Workbook

Sheet .. (hidden)
A2: PROFIT | C2: DATE
A4: NO. | B4: VAS CODE | G4: ="Acc "&$I$4& " / "&$J$4 -> Acc COMPARE LAST MONTH / | I4: COMPARE LAST MONTH | L4: Friday | M4: Saturday | N4: Sunday | O4: Monday | P4: Tuesday | Q4: Wednesday | R4: Thursday | S4: Friday | T4: Saturday | U4: Sunday | V4: Monday | W4: Tuesday | X4: Wednesday | Y4: Thursday | Z4: Friday | AA4: Saturday | AB4: Sunday | AC4: Monday | AD4: Tuesday | AE4: Wednesday | AF4: Thursday | AG4: Friday | AH4: Saturday | AI4: Sunday | AJ4: Monday | AK4: Tuesday | AL4: Wednesday | AM4: Wednesday | AN4: Wednesday | AO4: Wednesday | AP4: Wednesday
D5: NGƯỜI NHẬN BÁO CÁO | E5: TOTAL AFTER SHARING | F5: TOTAL BEFORE SHARING | I5: Acc last month | J5: +/- | K5: % | L5: 1 | M5: 2 | N5: 3 | O5: 4 | P5: 5 | Q5: 6 | R5: 7 | S5: 8 | T5: 9 | U5: 10 | V5: 11 | W5: 12 | X5: 13 | Y5: 14 | Z5: 15 | AA5: 16 | AB5: 17 | AC5: 18 | AD5: 19 | AE5: 20 | AF5: 21 | AG5: 22 | AH5: 23 | AI5: 24 | AJ5: 25 | AK5: 26 | AL5: 27 | AM5: 28 | AN5: 29 | AO5: 30 | AP5: 31
B6: NATCOM
A7: 1 | B7: BON_INFO, SMS INFOR | C7: LUCKYCODE | D7: BÌNH, A QUANG, HƯƠNG, DU | E7: =+F7*0.25 -> 0 | L7: 21267 | M7: 21194 | N7: 21278 | O7: 21428 | P7: 21357 | Q7: 20998 | R7: 22336 | S7: 23492 | T7: 25165 | U7: 26125 | V7: 22708 | AG7: 21267
A8: 2 | B8: IVR_INFOR | C8: LUCKYCODE | E8: =+F8*0.25 -> 0 | L8: 10965 | M8: 10990 | N8: 11010 | O8: 11176 | P8: 11034 | Q8: 10877 | R8: 10891 | S8: 10573 | T8: 11002 | U8: 10910 | V8: 8893 | AG8: 10965
A9: 3 | B9: LUCKY_SPIN | C9: 7878, Lawoulet | E9: =+F9*0.25 -> 0 | L9: 29898 | M9: 30199 | N9: 31887 | O9: 32658 | P9: 30840 | Q9: 30663 | R9: 29784 | S9: 30013 | T9: 29915 | U9: 29306 | V9: 20808 | AG9: 29898
A10: 4 | B10: LUCKY_CARD | C10: LUCKYCODE | E10: =+F10*0.3 -> 0 | L10: 20192 | M10: 21185 | N10: 22540 | O10: 22666 | P10: 22577 | Q10: 21112 | R10: 20142 | S10: 19278 | T10: 20206 | U10: 19805 | V10: 16174 | AG10: 20192
A11: 5 | B11: IVR_DATING | C11: 933 | E11: =+F11*0.3 -> 0 | L11: 28614 | M11: 29475 | N11: 29849 | O11: 29175 | P11: 28229 | Q11: 27897 | R11: 27436 | U11: 28230 | V11: 22380 | AG11: 28614
A12: 6 | B12: Lucky Draw | C12: 556 | E12: =+F12*0.25 -> 0 | M12: 43261,99 | N12: 55189,52 | O12: 19497,44 | P12: 54241,97 | Q12: 18471,68 | R12: 18414,44 | S12: 43915,32 | T12: 39650,38 | U12: 34237,96 | V12: 18827,42
A13: 7 | B13: LUCKY_WORD | C13: LUCKYCODE | E13: =+F13*0.3 -> 0 | L13: 38314 | M13: 38573 | N13: 37926 | O13: 37674 | P13: 37441 | Q13: 37421 | R13: 35963 | S13: 35967 | T13: 37794 | U13: 32050 | V13: 28386
B14: ITL
A15: 8 | B15: HOROSCOPE | C15: LUCKYCODE | D15: BÌNH, A QUANG, HƯƠNG, DU | E15: =+F15*0.25 -> 0 | L15: 34320 | M15: 36764 | N15: 38234 | O15: 39684 | P15: 40386 | Q15: 41375 | R15: 42272 | S15: 42644 | T15: 46194 | U15: 47601 | V15: 36994
B16: THIÊN AN
A17: 9 | B17: IVR_RADIO | C17: 945 | D17: BÌNH, A QUANG, A TÚ, HƯƠNG | E17: =+F17*0.3 -> 0 | L17: 17291 | O17: 17985 | P17: 17833 | Q17: 17551 | T17: 17989 | U17: 17844 | V17: 14257
A18: 10 | B18: CALL_PRO | C18: 526 | M18: 84064 | N18: 117796 | O18: 127274 | P18: 118909 | Q18: 122467 | R18: 120766 | S18: 123695 | T18: 127266 | U18: 106993 | V18: 104
B19: TM
A20: 11 | B20: MILLIONAIRE | C20: 8585,Jetmilyone | D20: BÌNH, A QUANG, A TÚ, HƯƠNG | E20: =+F20*0.25 -> 0 | L20: 30403 | M20: 24044 | N20: 29842 | O20: 29015 | P20: 28310 | Q20: 26524 | R20: 26070 | S20: 25942 | T20: 26379 | U20: 20350 | V20: 10792
A21: 12 | B21: NEW_VOTING | C21: MY TEAM | E21: =+F21*0.3 -> 0 | L21: 17200 | M21: 18080 | N21: 18222 | O21: 18160 | P21: 17880 | Q21: 17630 | R21: 17317 | S21: 17390 | T21: 18465 | U21: 17423 | V21: 13891
A22: 13 | B22: USSD_CHATTING | C22: 7979 | E22: =+F22*0.25 -> 0
A23: 14 | B23: BACKGROUND_MUSIC | C23: 689 | E23: =+F23*0.3 -> 0 | L23: 32916 | M23: 33420 | N23: 33526 | O23: 33908 | P23: 33698 | Q23: 33094 | R23: 32740 | S23: 33676 | T23: 34586 | U23: 27358 | V23: 23516
A24: 15 | B24: LUCKY_ROULETTE | C24: BINGO, 5500 | E24: =+F24*0.3 -> 0 | L24: 12805 | M24: 13522 | N24: 13593 | O24: 13192 | P24: 12977 | Q24: 12767 | R24: 12593 | S24: 12404 | T24: 13208 | U24: 13283 | V24: 10077
B25: TELETECH
A26: 16 | B26: GAME_PORTAL | C26: 834 | D26: BÌNH, A QUANG, HƯƠNG | E26: =+F26*0.3 -> 0 | L26: 23820 | M26: 23778 | N26: 28742 | O26: 28400 | P26: 28136 | Q26: 27578 | R26: 27166 | S26: 27310 | T26: 27992 | U26: 25838 | V26: 17672
B27: GTS
A28: 17 | B28: DATA CREDIT | C28: 734 | D28: BÌNH, A QUANG, A TÚ, HƯƠNG | L28: 420 | N28: 282 | O28: 516 | P28: 420 | R28: 174 | S28: 330 | T28: 498 | U28: 324
B29: SMART SOLUTION
A30: 18 | B30: E-News | C30: 368 | D30: BÌNH, DU, HƯƠNG | E30: =+F30*0.3 -> 0 | L30: 35787 | M30: 36387 | N30: 34921 | O30: 35093 | P30: 34062 | Q30: 33756 | R30: 33501 | S30: 32399 | T30: 34202 | U30: 32297 | V30: 23606
B31: E VENTS | C31: 3333 | D31: BÌNH, DU, A QUANG, HƯƠNG | E31: =+F31*0.3 -> 0
B32: VIETTECH
B33: TELEMOR
A34: 19 | B34: HOROSCOPE | C34: 184 | D34: BÌNH, A QUANG, TÚ, DU | O34: $108,3 | P34: 106,65 | Q34: 107,35 | R34: 177 | S34: 165,05 | T34: 188,2 | U34: 175,2 | V34: 158,5
B35: ITL
A36: 20 | B36: LUCKY_NUMBER | D36: BÌNH, TÚ, HƯƠNG | E36: =+F36*0.35 -> 0
A37: 21 | B37: FOOTBALL_PLUS | E37: =+F37*0.35 -> 0
B38: TELETECH
A39: 22 | B39: VIETCARE | D39: BÌNH, DU, HƯƠNG | E39: =+F39*0.35 -> 0
A40: 23 | B40: CHIÊM TINH | E40: =+F40*0.35 -> 0
B41: VIETTECH
B42: TOTAL
A44: REGISTER
A46: NO. | B46: VAS CODE | G46: ="Acc "&$I$4& " / "&$J$4 -> Acc COMPARE LAST MONTH / | I46: COMPARE LAST MONTH | L46: Friday | M46: Friday | N46: Friday | O46: Friday | P46: Friday | Q46: Friday | R46: Friday | S46: Friday | T46: Friday | U46: Friday | V46: Friday | W46: Friday | X46: Friday | Y46: Friday | Z46: Friday | AA46: Friday | AB46: Friday | AC46: Friday | AD46: Friday | AE46: Friday | AF46: Friday | AG46: Friday | AH46: Friday | AI46: Friday | AJ46: Friday | AK46: Friday | AL46: Friday | AM46: Friday | AN46: Friday | AO46: Friday | AP46: Friday
C47: SHORTCODE | I47: Acc last month | J47: +/- | K47: % | L47: 1 | M47: 2 | N47: 3 | O47: 4 | P47: 5 | Q47: 6 | R47: 7 | S47: 8 | T47: 9 | U47: 10 | V47: 11 | W47: 12 | X47: 13 | Y47: 14 | Z47: 15 | AA47: 16 | AB47: 17 | AC47: 18 | AD47: 19 | AE47: 20 | AF47: 21 | AG47: 22 | AH47: 23 | AI47: 24 | AJ47: 25 | AK47: 26 | AL47: 27 | AM47: 28 | AN47: 29 | AO47: 30 | AP47: 31
B48: NATCOM
A49: 1 | B49: BON_INFO,SMS INFOR | C49: LUCKYCODE | L49: 135 | M49: 122 | N49: 119 | O49: 105 | P49: 172 | Q49: 1016 | R49: 1805 | S49: 1689 | T49: 1524 | U49: 31 | V49: 838
A50: 2 | B50: IVR_INFOR | C50: LUCKYCODE | L50: 9 | M50: 6 | N50: 4 | O50: 4 | P50: 9 | Q50: 7 | R50: 16 | S50: 13 | T50: 11 | U50: 7 | V50: 7
A51: 3 | B51: LUCKY_SPIN | C51: 7878, Lawoulet | L51: 998 | M51: 986 | N51: 1285 | O51: 1100 | P51: 900 | Q51: 286 | R51: 422 | S51: 241 | T51: 108 | U51: 170 | V51: 51
A52: 4 | B52: LUCKY_CARD | C52: LUCKYCODE | L52: 942 | M52: 994 | N52: 1527 | O52: 1016 | P52: 920 | Q52: 77 | R52: 50 | S52: 41 | T52: 41 | U52: 48 | V52: 395
A53: 5 | B53: IVR_DATING | C53: 933 | L53: 27 | M53: 37 | N53: 31 | O53: 49 | P53: 181 | Q53: 43 | R53: 36 | U53: 67 | V53: 544
A54: 6 | B54: Lucky Draw | C54: 556 | L54: 1165 | M54: 1162 | N54: 1280 | O54: 1276 | P54: 1387 | Q54: 1272 | R54: 1211 | S54: 1212 | T54: 1075 | U54: 602 | V54: 15
A55: 7 | B55: LUCKY_WORD | C55: LUCKYCODE | L55: 65 | M55: 58 | N55: 54 | O55: 438 | P55: 287 | Q55: 863 | R55: 70 | S55: 56 | T55: 51 | U55: 31 | V55: 13
A56: 8 | B56: HOROSCOPE | C56: LUCKYCODE | L56: 5130 | M56: 4748 | N56: 4672 | O56: 4757 | P56: 4779 | Q56: 4688 | R56: 4548 | S56: 4602 | T56: 4528 | U56: 4486 | V56: 2073
A57: 9 | B57: IVR_RADIO | C57: 945 | L57: 55 | O57: 52 | P57: 137 | Q57: 38 | T57: 54 | U57: 205 | V57: 234
A58: 10 | B58: CALL_PRO | C58: 526 | M58: 836 | N58: 1347 | O58: 1660 | P58: 1459 | Q58: 1561 | R58: 1454 | S58: 1494 | T58: 1388 | U58: 1424 | V58: 15
A59: 11 | B59: MILLIONAIRE | C59: 8585,Jetmilyone | L59: 62 | M59: 71 | N59: 54 | O59: 51 | P59: 37 | Q59: 45 | R59: 40 | S59: 51 | T59: 46 | U59: 33 | V59: 1
A60: 12 | B60: NEW_VOTING | C60: MY TEAM | L60: 216 | M60: 366 | N60: 156 | O60: 157 | P60: 197 | Q60: 257 | R60: 137 | S60: 132 | T60: 163 | U60: 145 | V60: 97
A61: 13 | B61: USSD_CHATTING | C61: 7979
A62: 14 | B62: BACKGROUND_MUSIC | C62: 689 | L62: 52 | M62: 42 | N62: 45 | O62: 36 | P62: 45 | Q62: 51 | R62: 51 | S62: 46 | T62: 44 | U62: 34 | V62: 17
A63: 15 | B63: LUCKY_ROULETTE | C63: BINGO, 5500 | L63: 96 | M63: 75 | N63: 83 | O63: 161 | P63: 159 | Q63: 120 | R63: 164 | S63: 82 | T63: 82 | U63: 499 | V63: 99
A64: 16 | B64: GAME_PORTAL | C64: 834 | L64: 5 | M64: 7 | P64: 0 | Q64: 7 | R64: 0 | S64: 0 | T64: 13 | U64: 14 | V64: 2
A65: 17 | B65: DATA CREDIT | C65: 734 | L65: 0 | N65: 0 | O65: 0 | P65: 0 | R65: 0 | S65: 0 | T65: 0 | U65: 0
A66: 18 | B66: E-News | C66: 368 | L66: 414 | M66: 265 | N66: 277 | O66: 275 | P66: 285 | Q66: 464 | R66: 298 | S66: 188 | T66: 87 | U66: 67 | V66: 10043
B67: TELEMOR
A68: 19 | B68: HOROSCOPE | C68: 184 | O68: 127 | P68: 91 | Q68: 82 | R68: 1791 | S68: 382 | T68: 1033 | U68: 228 | V68: 111
A71: CANCEL
A73: NO. | B73: VAS CODE | G73: ="Acc "&$I$4& " / "&$J$4 -> Acc COMPARE LAST MONTH / | I73: COMPARE LAST MONTH | L73: Friday | M73: Friday | N73: Friday | O73: Friday | P73: Friday | Q73: Friday | R73: Friday | S73: Friday | T73: Friday | U73: Friday | V73: Friday | W73: Friday | X73: Friday | Y73: Friday | Z73: Friday | AA73: Friday | AB73: Friday | AC73: Friday | AD73: Friday | AE73: Friday | AF73: Friday | AG73: Friday | AH73: Friday | AI73: Friday | AJ73: Friday | AK73: Friday | AL73: Friday | AM73: Friday | AN73: Friday | AO73: Friday | AP73: Friday
C74: SHORTCODE | I74: Acc last month | J74: +/- | K74: % | L74: 1 | M74: 2 | N74: 3 | O74: 4 | P74: 5 | Q74: 6 | R74: 7 | S74: 8 | T74: 9 | U74: 10 | V74: 11 | W74: 12 | X74: 13 | Y74: 14 | Z74: 15 | AA74: 16 | AB74: 17 | AC74: 18 | AD74: 19 | AE74: 20 | AF74: 21 | AG74: 22 | AH74: 23 | AI74: 24 | AJ74: 25 | AK74: 26 | AL74: 27 | AM74: 28 | AN74: 29 | AO74: 30 | AP74: 31
B75: NATCOM
A76: 1 | B76: BON_INFO, SMS INFO | C76: LUCKYCODE | L76: 138 | M76: 138 | N76: 126 | O76: 125 | P76: 139 | Q76: 182 | R76: 223 | S76: 275 | T76: 274 | U76: 319 | V76: 194
A77: 2 | B77: IVR_INFOR | C77: LUCKYCODE | L77: 7 | M77: 8 | N77: 7 | O77: 8 | P77: 6 | Q77: 15 | R77: 15 | S77: 10 | T77: 8 | U77: 10 | V77: 13
A78: 3 | B78: LUCKY_SPIN | C78: 7878, Lawoulet | L78: 513 | M78: 511 | N78: 660 | O78: 674 | P78: 524 | Q78: 549 | R78: 493 | S78: 465 | T78: 331 | U78: 339 | V78: 164
A79: 4 | B79: LUCKY_CARD | C79: LUCKYCODE | L79: 387 | M79: 386 | N79: 1527 | O79: 408 | P79: 389 | Q79: 260 | R79: 241 | S79: 242 | T79: 245 | U79: 224 | V79: 207
A80: 5 | B80: IVR_DATING | C80: 933 | L80: 238 | M80: 227 | N80: 222 | O80: 253 | P80: 271 | Q80: 215 | R80: 248 | U80: 326 | V80: 210
A81: 6 | B81: Lucky Draw | C81: 556 | L81: 563 | M81: 544 | N81: 584 | O81: 574 | P81: 623 | Q81: 586 | R81: 541 | S81: 540 | T81: 494 | U81: 351 | V81: 34
A82: 7 | B82: LUCKY_WORD | C82: LUCKYCODE | L82: 543 | M82: 447 | N82: 436 | O82: 428 | P82: 399 | Q82: 523 | R82: 423 | S82: 424 | T82: 364 | U82: 354 | V82: 282
A83: 8 | B83: HOROSCOPE | C83: LUCKYCODE | L83: 2237 | M83: 2183 | N83: 2129 | O83: 2145 | P83: 2229 | Q83: 2069 | R83: 2085 | S83: 2162 | T83: 2266 | U83: 2092 | V83: 1129
A84: 9 | B84: IVR_RADIO | C84: 945 | L84: 209 | O84: 172 | P84: 162 | Q84: 165 | T84: 189 | U84: 228 | V84: 151
A85: 10 | B85: CALL_PRO | C85: 526 | M85: 836 | N85: 602 | O85: 672 | P85: 612 | Q85: 604 | R85: 561 | S85: 642 | T85: 594 | U85: 515 | V85: 6
A86: 11 | B86: MILLIONAIRE | C86: 8585,Jetmilyone | L86: 1041 | M86: 909 | N86: 816 | O86: 719 | P86: 637 | Q86: 621 | R86: 557 | S86: 581 | T86: 579 | U86: 526
A87: 12 | B87: NEW_VOTING | C87: MY TEAM | L87: 203 | M87: 171 | N87: 163 | O87: 165 | P87: 175 | Q87: 181 | R87: 160 | S87: 149 | T87: 189 | U87: 177 | V87: 126
A88: 13 | B88: USSD_CHATTING | C88: 7979
A89: 14 | B89: BACKGROUND_MUSIC | C89: 689 | L89: 411 | M89: 451 | N89: 451 | O89: 451 | P89: 449 | Q89: 438 | R89: 454 | S89: 399 | T89: 489 | U89: 418 | V89: 273
A90: 15 | B90: LUCKY_ROULETTE | C90: BINGO, 5500 | L90: 309 | M90: 305 | N90: 320 | O90: 348 | P90: 350 | Q90: 358 | R90: 305 | S90: 340 | T90: 381 | U90: 382 | V90: 234
A91: 16 | B91: GAME_PORTAL | C91: 834 | L91: 208 | M91: 206 | P91: 18 | Q91: 178 | R91: 20 | S91: 32 | T91: 197 | U91: 208 | V91: 126
A92: 17 | B92: DATA CREDIT | C92: 734 | L92: 3 | N92: 1 | O92: 5 | P92: 1 | R92: 0 | S92: 1 | T92: 2 | U92: 1
A93: 18 | B93: E-News | C93: 368 | L93: 536 | M93: 520 | N93: 463 | O93: 423 | P93: 467 | Q93: 440 | R93: 490 | S93: 335 | T93: 398 | U93: 385 | V93: 293
B94: TELEMOR
A95: 19 | B95: HOROSCOPE | C95: 184 | P95: 20 | Q95: 29 | R95: 50 | S95: 34 | T95: 37 | U95: 28 | V95: 15
A96: ADD MONEY
A98: NO. | B98: VAS CODE | G98: ="Acc "&$I$4& " / "&$J$4 -> Acc COMPARE LAST MONTH / | I98: COMPARE LAST MONTH | L98: Friday | M98: Friday | N98: Friday | O98: Friday | P98: Friday | Q98: Friday | R98: Friday | S98: Friday | T98: Friday | U98: Friday | V98: Friday | W98: Friday | X98: Friday | Y98: Friday | Z98: Friday | AA98: Friday | AB98: Friday | AC98: Friday | AD98: Friday | AE98: Friday | AF98: Friday | AG98: Friday | AH98: Friday | AI98: Friday | AJ98: Friday | AK98: Friday | AL98: Friday | AM98: Friday | AN98: Friday | AO98: Friday | AP98: Friday
C99: SHORTCODE | I99: Acc last month | J99: +/- | K99: % | L99: 1 | M99: 2 | N99: 3 | O99: 4 | P99: 5 | Q99: 6 | R99: 7 | S99: 8 | T99: 9 | U99: 10 | V99: 11 | W99: 12 | X99: 13 | Y99: 14 | Z99: 15 | AA99: 16 | AB99: 17 | AC99: 18 | AD99: 19 | AE99: 20 | AF99: 21 | AG99: 22 | AH99: 23 | AI99: 24 | AJ99: 25 | AK99: 26 | AL99: 27 | AM99: 28 | AN99: 29 | AO99: 30 | AP99: 31
B100: NATCOM
A101: 1 | B101: BON_INFO,SMS INFO | C101: LUCKYCODE | L101: 0 | M101: 0 | N101: 0 | O101: 0 | P101: 0 | Q101: 0 | R101: 0 | S101: 0 | T101: 0 | U101: 0 | V101: 0
A102: 2 | B102: IVR_INFOR | C102: LUCKYCODE | L102: 0 | M102: 0 | N102: 0 | O102: 0 | P102: 0 | Q102: 0 | R102: 0 | S102: 0 | T102: 0 | U102: 0 | V102: 0
A103: 3 | B103: LUCKY_SPIN | C103: 7878, Lawoulet | L103: 3000 | M103: 3001 | N103: 3001 | O103: 3000 | P103: 3000 | Q103: 3001 | R103: 3000 | S103: 3000 | T103: 3002 | U103: 3000 | V103: 982
A104: 4 | B104: LUCKY_CARD | C104: LUCKYCODE | L104: 4 | M104: 0 | N104: 4 | O104: 4 | P104: 0 | Q104: 0 | R104: 4 | S104: 4 | T104: 8 | U104: 0 | V104: 0
A105: 5 | B105: IVR_DATING | C105: 933 | L105: 0 | M105: 0 | N105: 0 | O105: 0 | P105: 0 | Q105: 5 | R105: 0 | U105: 0 | V105: 5
A106: 6 | B106: Lucky Draw | C106: 556 | L106: winner money | M106: 702 | N106: 2802,4 | O106: 346,6 | P106: 2728,8 | Q106: 34,4 | R106: 288,3 | S106: 574,2 | T106: 613 | U106: 686,6 | V106: 393,2
A107: 7 | B107: LUCKY_WORD | C107: LUCKYCODE | L107: 1025 | M107: 1025 | N107: 1025 | O107: 1025 | P107: 1025 | Q107: 1025 | R107: 1025 | S107: 1025 | T107: 1025 | U107: 1025 | V107: 1025
A108: 8 | B108: HOROSCOPE | C108: LUCKYCODE | L108: 0 | M108: 0 | N108: 0 | O108: 0 | P108: 0 | Q108: 0 | R108: 0 | S108: 0 | T108: 0 | U108: 0 | V108: 0
A109: 9 | B109: IVR_RADIO | C109: 945 | L109: 0 | O109: 0 | P109: 0 | Q109: 0 | T109: 0
A110: 10 | B110: CALL_PRO | C110: 526
A111: 11 | B111: MILLIONAIRE | C111: 8585,Jetmilyone
A112: 12 | B112: NEW_VOTING | C112: MY TEAM | L112: 0 | M112: 0 | N112: 0 | O112: 0 | P112: 0
A113: 13 | B113: USSD_CHATTING | C113: 7979
A114: 14 | B114: BACKGROUND_MUSIC | C114: 689
A115: 15 | B115: LUCKY_ROULETTE | C115: BINGO, 5500 | L115: 1025 | M115: 1025 | N115: 1025 | O115: 1025 | P115: 1025 | Q115: 1025 | R115: 1025 | S115: 1025 | T115: 1025 | U115: 720 | V115: 970
A116: 16 | B116: GAME_PORTAL | C116: 834
A117: 17 | B117: DATA CREDIT | C117: 734
A118: 18 | B118: E-News | C118: 368
B119: TELEMOR
A120: 19 | B120: HOROSCOPE | C120: 184

Sheet Kangatang (hidden)

Sheet Kangatang_2 (hidden)

Sheet Kangatang_3 (hidden)

Sheet Kangatang_4 (hidden)

Sheet Kangatang_5 (hidden)

Sheet Kangatang_6 (hidden)

Sheet Kangatang_7 (hidden)

Sheet Kangatang_8 (hidden)

Sheet Kangatang_9 (hidden)

Sheet Kangatang_10 (hidden)

Sheet Kangatang_11 (hidden)

Sheet Kangatang_12 (hidden)

Sheet Kangatang_13 (hidden)

Sheet Kangatang_14 (hidden)

Sheet Kangatang_15 (hidden)

Sheet Kangatang_16 (hidden)

Sheet Kangatang_17 (hidden)

Sheet Kangatang_18 (hidden)

Sheet Kangatang_19 (hidden)

Sheet Kangatang_20 (hidden)

Sheet Kangatang_21 (hidden)

Sheet Kangatang_22 (hidden)

Sheet Kangatang_23 (hidden)

Sheet Kangatang_24 (hidden)

Sheet Kangatang_25 (hidden)

Sheet Kangatang_26 (hidden)

Sheet Kangatang_27 (hidden)

Sheet Kangatang_28 (hidden)

Sheet Kangatang_29 (hidden)

Sheet Kangatang_30 (hidden)

Sheet Kangatang_31 (hidden)

Sheet Kangatang_32 (hidden)

Sheet Kangatang_33 (hidden)

Sheet Kangatang_34 (hidden)

Sheet Kangatang_35 (hidden)

Sheet Kangatang_36 (hidden)

Sheet Kangatang_37 (hidden)

Sheet Kangatang_38 (hidden)

Sheet Kangatang_39 (hidden)

Sheet Kangatang_40 (hidden)

Sheet Kangatang_41 (hidden)

Sheet Kangatang_42 (hidden)

Sheet Kangatang_43 (hidden)

Sheet Kangatang_44 (hidden)

Sheet Kangatang_45 (hidden)

Sheet Kangatang_46 (hidden)

Sheet Kangatang_47 (hidden)

Sheet Kangatang_48 (hidden)

Sheet Kangatang_49 (hidden)

Sheet Kangatang_50 (hidden)

Sheet Kangatang_51 (hidden)

Sheet Kangatang_52 (hidden)

Sheet Kangatang_53 (hidden)

Sheet Kangatang_54 (hidden)

Sheet Kangatang_55 (hidden)

Sheet Kangatang_56 (hidden)

Sheet Kangatang_57 (hidden)

Sheet Kangatang_58 (hidden)

Sheet Kangatang_59 (hidden)

Sheet Kangatang_60 (hidden)

Sheet Kangatang_61 (hidden)

Sheet Kangatang_62 (hidden)

Sheet Kangatang_63 (hidden)

Sheet Kangatang_64 (hidden)

Sheet Kangatang_65 (hidden)

Sheet Kangatang_66 (hidden)

Sheet Kangatang_67 (hidden)

Sheet Kangatang_68 (hidden)

Sheet Kangatang_69 (hidden)

Sheet Kangatang_70 (hidden)

Sheet Kangatang_71 (hidden)

Sheet Kangatang_72 (hidden)

Sheet Kangatang_73 (hidden)

Sheet Kangatang_74 (hidden)

Sheet Kangatang_75 (hidden)

Sheet Kangatang_76 (hidden)

Sheet Kangatang_77 (hidden)

Sheet Kangatang_78 (hidden)

Sheet Kangatang_79 (hidden)

Sheet Kangatang_80 (hidden)

Sheet Kangatang_81 (hidden)

Sheet Kangatang_82 (hidden)

Sheet Kangatang_83 (hidden)

Sheet Kangatang_84 (hidden)

Sheet Kangatang_85 (hidden)

Sheet Kangatang_86 (hidden)

Sheet Kangatang_87 (hidden)

Sheet Kangatang_88 (hidden)

Sheet Kangatang_89 (hidden)

Sheet Kangatang_90 (hidden)

Sheet Kangatang_91 (hidden)

Sheet Kangatang_92 (hidden)

Sheet Kangatang_93 (hidden)

Sheet Kangatang_94 (hidden)

Sheet Kangatang_95 (hidden)

Sheet Kangatang_96 (hidden)

Sheet Kangatang_97 (hidden)

Sheet Kangatang_98 (hidden)

Sheet Kangatang_99 (hidden)

Sheet Kangatang_100 (hidden)

Sheet Kangatang_101 (hidden)

Sheet Kangatang_102 (hidden)

Sheet Kangatang_103 (hidden)

Sheet Kangatang_104 (hidden)

Sheet Kangatang_105 (hidden)

Sheet Kangatang_106 (hidden)

Sheet Kangatang_107 (hidden)

Sheet Kangatang_108 (hidden)

Sheet Kangatang_109 (hidden)

Sheet Kangatang_110 (hidden)

Sheet Kangatang_111 (hidden)

Sheet Kangatang_112 (hidden)

Sheet Kangatang_113 (hidden)

Sheet Kangatang_114 (hidden)

Sheet Kangatang_115 (hidden)

Sheet Kangatang_116 (hidden)

Sheet Kangatang_117 (hidden)

Sheet Kangatang_118 (hidden)

Sheet Kangatang_119 (hidden)

Sheet Kangatang_120 (hidden)

Sheet Kangatang_121 (hidden)

Sheet Kangatang_122 (hidden)

Sheet Kangatang_123 (hidden)

Sheet Kangatang_124 (hidden)

Sheet List service (hidden)
A1: ID | B1: No | C1: Service | D1: Shortcode | E1: Main Responsible | F1: Support | G1: Partner | H1: Status | I1: Contract | J1: PAT | K1: Scenario | L1: PAC | M1: CMS | N1: người nhận báo cáo
A2: NATCOM
A3: 1 | B3: 1 | C3: BON_INFO,SMS INFO | D3: 206, LUCKYCODE | E3: Christian | F3: Portier | G3: INTERLAND | H3: Đang chạy | I3: Đã có | N3: BÌNH, A QUANG, HƯƠNG
A4: 2 | C4: LUCKY_SPIN | D4: 7878, LAWOULET | H4: Đang chạy | I4: Đã có
A5: 3 | C5: LUCKY_CARD | D5: 8889, LUCKY CODE | H5: Đang chạy | I5: Đã có
A6: 4 | C6: IVR_DATING | D6: 933 | H6: Đang chạy | I6: Đã có
A7: 5 | C7: Lucky Draw | D7: 556 | H7: Đang chạy | I7: Đã có
A8: 6 | C8: LUCKY_WORD | D8: 8484, LUCKYCODE | H8: Đang chạy | I8: Đã có
A9: 7 | C9: Natcom Education | H9: Kickoff | I9: Chưa có
A10: 8 | B10: 2 | C10: HOROSCOPE | D10: 566, LUCKYCODE | E10: Christian | F10: Portier | H10: Đang chạy | I10: Đã có
A11: 9 | B11: 3 | C11: IVR_RADIO | D11: 945 | E11: Hector | F11: Portier | G11: TM Music | H11: Đang chạy | I11: Đã có
A12: 10 | C12: CALL_PRO | D12: 526 | H12: Đang chạy | I12: Đã có
A13: 11 | B13: 4 | C13: MILLIONAIRE | D13: 8585,Jetmilyone | E13: Christian | F13: Hector + Portier | G13: TELETECH | H13: Đang chạy | I13: Đã có
A14: 12 | C14: NEW_VOTING | D14: 450,MY TEAM | H14: Đang chạy | I14: Đã có
A15: 13 | C15: USSD_CHATTING | D15: 7979 | H15: Đang chạy | I15: Đã có
A16: 14 | C16: BACKGROUND_MUSIC | D16: 689 | H16: Đang chạy | I16: Đã có
A17: 15 | C17: LUCKY_ROULETTE | D17: 5500,BINGO | H17: Đang chạy | I17: Đã có
A18: 16 | C18: IVR Religious | D18: 727 | H18: Thiếu file ghi âm + upcode charge/ussd là test nghiệm thu | I18: CHƯA CÓ
A19: 17 | B19: 5 | C19: Data Credit | D19: 734 | E19: HECTOR | F19: David | G19: SOLUTION EFFECT SMART | H19: Đang chạy | I19: Đã có
A20: 18 | B20: 6 | C20: GAME_PORTAL | D20: 834 | E20: David | F20: Christian | G20: GLOBAL SOLUTION | H20: Đang chạy | I20: Đã có
A21: 19 | B21: 7 | C21: E-News | D21: 368 | E21: Christian | F21: Hector + Portier | G21: VIETTECH | H21: Đang chạy | I21: Đã có
A22: 20 | C22: N-Event | D22: 3333 | H22: Thiếu SMS MO là test nghiệm thu | I22: CHƯA CÓ
A23: VIETNAMMOBILE
A24: 1 | C24: LUCKY_NUMBER | D24: 629 | G24: SMART SOLUTION | H24: Đang chạy | M24: CMS: http://171.244.43.220/crm/natcom.aspx?module=natcom_revanues& phanquang // Natcom@123 | N24: support@viettech.asia/supviettech@ | P24: k trả qua ussd chỉ trả qa web + sms
A25: 2 | C25: FOOTBALL_PLUS | D25: 359 | G25: TELETECH | H25: Đang chạy
A26: 3 | C26: VIETCARE | D26: 639 | G26: VIETTECH | H26: Đang chạy | M26: DOANH THU: http://vietcarevnm.com:8080/ user: huongntt pass: vietcare@123 CMS: janvevuglobal@gmail.com // janvevuglobal@gmail.com@123 Link: http://vietcarevnm.com/wp-admin | N26: CMS: janvevuglobal@gmail.com // janvevuglobal@gmail.com@123 Link: http://vietcarevnm.com/wp-admin | O26: [10:45, 7/12/2019] Chị Hương: http://lukclub.com/ [10:46, 7/12/2019] Chị Hương: Account: demo01 Pass: qqqq1111
A27: 4 | C27: CHIÊM TINH | D27: 629 | G27: VIETTECH | H27: PAT | M27: DOANH THU: http://12cunghoangdaovnm.com:8080 janevu/chiemtinh@123 CMS: janvevuglobal@gmail.com // janvevuglobal@gmail.com@123 Link: http://12cunghoangdaovnm.com/wp-admin/ | N27: CMS: janvevuglobal@gmail.com // janvevuglobal@gmail.com@123 http://12cunghoangdaovnm.com/loginweb/ | O27: http://nedu.viettech.asia hocsinh/hocsinh
C28: Khéo Plus | G28: VIETTECH | M28: Link : http://kheoplus.com CMS: http://kheoplus.com/wp-admin user : bichphuong///bichphuong2807 | N28: url: http://kheoplus.com:8080 user: bichphuong pass: bichphuong2807
C29: vietfood | M29: http://vietfood.info:8080 id : bichphuong pass: bichphuong2807 | N29: url: http://vietfood.info/loginweb Id: bichphuong pass: xvPm!BfI1pDmG$ft28XkBudy
A30: TELEMOR | N30: user: bichphuong
A31: 1 | C31: HOROSCOPE | D31: 184 | G31: INTERLAND | H31: Đang chạy | N31: pass: bichphuong2807
M33: http://g.lumitelburundi.com:8181 admin / gameportal@123
M34: http://games.tls.tl:8090/Admin/ServiceManagement admin / fortune@123

Sheet FLOW (hidden)
A3: A | B3: Triển khai dịch vụ
B4: 1. Tờ trình
B5: 2. Mail hoặc skype kickoff
B6: 3. Gửi kịch bản + sizing (account server, db, các kết nối, thông tin smpp, ussd, ivr ...) | C6: - Xác định contact point để push việc - Kịch bản bao gồm: 1. Mô tả dịch vụ 2. Chính sách dịch vụ: Thuê bao sub (giá, lượt nghe, lượt chơi .....) Thuê bao unsub (giá, lượt nghe, lượt chơi .....) Trả thưởng/thể lệ giải thưởng nếu có 3. Sizing (account server, db, các kết nối, thông tin smpp, ussd, ivr ...)
B7: 4. PAT | C7: Pass là hẹn lịch launching dịch vụ. Lấy lại bản scan
B8: 5. PAC | C8: NCM làm và gửi lại cho mình kí, đóng dấu xong scan gửi lại
A9: B. | B9: Truyền thông
B10: 1. Check balance
B11: 2. Balance plus
B12: 3. SMS
B13: 4. Call out
A15: C. | B15: Kịch bản VAS
B16: 1. SMS | C16: Gói ngày: 3 - 5HTG/ngày
B17: 2. USSD | C17: Gói tuần: 15 HTG/tuần
B18: 3. IVR | C18: Gói tháng: 45 HTG/tuần
B19: 4. WEB, nhận thông tin đăng ký qua SMS - xin freedata

Sheet REPORT_FULL (hidden)
A2: PROFIT | C2: DATE
A4: NO. | B4: VAS CODE | F4: ="Acc "&$G$4& " / "&$H$4 -> Acc COMPARE LAST MONTH / | G4: COMPARE LAST MONTH | J4: Friday | K4: Saturday | L4: Sunday | M4: Monday | N4: Tuesday | O4: Wednesday | P4: Thursday | Q4: Friday | R4: Saturday | S4: Sunday | T4: Monday | U4: Tuesday | V4: Wednesday | W4: Thursday | X4: Friday | Y4: Saturday | Z4: Sunday | AA4: Monday | AB4: Tuesday | AC4: Wednesday | AD4: Thursday | AE4: Friday | AF4: Saturday | AG4: Sunday | AH4: Monday | AI4: Tuesday | AJ4: Wednesday | AK4: Wednesday | AL4: Wednesday | AM4: Wednesday | AN4: Wednesday
D5: TOTAL AFTER SHARING | E5: TOTAL BEFORE SHARING | G5: Acc last month | H5: +/- | I5: % | J5: 1 | K5: 2 | L5: 3 | M5: 4 | N5: 5 | O5: 6 | P5: 7 | Q5: 8 | R5: 9 | S5: 10 | T5: 11 | U5: 12 | V5: 13 | W5: 14 | X5: 15 | Y5: 16 | Z5: 17 | AA5: 18 | AB5: 19 | AC5: 20 | AD5: 21 | AE5: 22 | AF5: 23 | AG5: 24 | AH5: 25 | AI5: 26 | AJ5: 27 | AK5: 28 | AL5: 29 | AM5: 30 | AN5: 31
B6: NATCOM
A7: 1 | B7: BON_INFO, SMS INFOR | C7: LUCKYCODE | D7: =+E7*0.25 -> 0 | J7: 21267 | K7: 21194 | L7: 21278 | M7: 21428 | N7: 21357 | O7: 20998 | P7: 22336 | Q7: 23492 | R7: 25165 | S7: 26125 | T7: 22708
A8: 2 | B8: IVR_INFOR | C8: LUCKYCODE | D8: =+E8*0.25 -> 0 | J8: 10965 | K8: 10990 | L8: 11010 | M8: 11176 | N8: 11034 | O8: 10877 | P8: 10891 | Q8: 10573 | R8: 11002 | S8: 10910 | T8: 8893
A9: 3 | B9: LUCKY_SPIN | C9: 7878, Lawoulet | D9: =+E9*0.25 -> 0 | J9: 29898 | K9: 30199 | L9: 31887 | M9: 32658 | N9: 30840 | O9: 30663 | P9: 29784 | Q9: 30013 | R9: 29915 | S9: 29306 | T9: 20808
A10: 4 | B10: LUCKY_CARD | C10: LUCKYCODE | D10: =+E10*0.3 -> 0 | J10: 20192 | K10: 21185 | L10: 22540 | M10: 22666 | N10: 22577 | O10: 21112 | P10: 20142 | Q10: 19278 | R10: 20206 | S10: 19805 | T10: 16174
A11: 5 | B11: IVR_DATING | C11: 933 | D11: =+E11*0.3 -> 0 | J11: 28614 | K11: 29475 | L11: 29849 | M11: 29175 | N11: 28229 | O11: 27897 | P11: 27436 | S11: 28230 | T11: 22380
A12: 6 | B12: Lucky Draw | C12: 556 | D12: =+E12*0.25 -> 0 | K12: 43261,99 | L12: 55189,52 | M12: 19497,44 | N12: 54241,97 | O12: 18471,68 | P12: 18414,44 | Q12: 43915,32 | R12: 39650,38 | S12: 34237,96 | T12: 18827,42
A13: 7 | B13: LUCKY_WORD | C13: LUCKYCODE | D13: =+E13*0.3 -> 0 | J13: 38314 | K13: 38573 | L13: 37926 | M13: 37674 | N13: 37441 | O13: 37421 | P13: 35963 | Q13: 35967 | R13: 37794 | S13: 32050 | T13: 28386
B14: ITL
A15: 8 | B15: HOROSCOPE | C15: LUCKYCODE | D15: =+E15*0.25 -> 0 | J15: 34320 | K15: 36764 | L15: 38234 | M15: 39684 | N15: 40386 | O15: 41375 | P15: 42272 | Q15: 42644 | R15: 46194 | S15: 47601 | T15: 36994
B16: THIÊN AN
A17: 9 | B17: IVR_RADIO | C17: 945 | D17: =+E17*0.3 -> 0 | J17: 17291 | M17: 17985 | N17: 17833 | O17: 17551 | R17: 17989 | S17: 17844 | T17: 14257
A18: 10 | B18: CALL_PRO | C18: 526 | K18: 84064 | L18: 117796 | M18: 127274 | N18: 118909 | O18: 122467 | P18: 120766 | Q18: 123695 | R18: 127266 | S18: 106993 | T18: 104
B19: TM
A20: 11 | B20: MILLIONAIRE | C20: 8585,Jetmilyone | D20: =+E20*0.25 -> 0 | J20: 30403 | K20: 24044 | L20: 29842 | M20: 29015 | N20: 28310 | O20: 26524 | P20: 26070 | Q20: 25942 | R20: 26379 | S20: 20350 | T20: 10792
A21: 12 | B21: NEW_VOTING | C21: MY TEAM | D21: =+E21*0.3 -> 0 | J21: 17200 | K21: 18080 | L21: 18222 | M21: 18160 | N21: 17880 | O21: 17630 | P21: 17317 | Q21: 17390 | R21: 18465 | S21: 17423 | T21: 13891
A22: 13 | B22: USSD_CHATTING | C22: 7979 | D22: =+E22*0.25 -> 0
A23: 14 | B23: BACKGROUND_MUSIC | C23: 689 | D23: =+E23*0.3 -> 0 | J23: 32916 | K23: 33420 | L23: 33526 | M23: 33908 | N23: 33698 | O23: 33094 | P23: 32740 | Q23: 33676 | R23: 34586 | S23: 27358 | T23: 23516
A24: 15 | B24: LUCKY_ROULETTE | C24: BINGO, 5500 | D24: =+E24*0.3 -> 0 | J24: 12805 | K24: 13522 | L24: 13593 | M24: 13192 | N24: 12977 | O24: 12767 | P24: 12593 | Q24: 12404 | R24: 13208 | S24: 13283 | T24: 10077
B25: TELETECH
A26: 16 | B26: GAME_PORTAL | C26: 834 | D26: =+E26*0.3 -> 0 | J26: 23820 | K26: 23778 | L26: 28742 | M26: 28400 | N26: 28136 | O26: 27578 | P26: 27166 | Q26: 27310 | R26: 27992 | S26: 25838 | T26: 17672
B27: GTS
A28: 17 | B28: DATA CREDIT | C28: 734 | J28: 420 | L28: 282 | M28: 516 | N28: 420 | P28: 174 | Q28: 330 | R28: 498 | S28: 324
B29: SMART SOLUTION
A30: 18 | B30: E-News | C30: 368 | D30: =+E30*0.3 -> 0 | J30: 35787 | K30: 36387 | L30: 34921 | M30: 35093 | N30: 34062 | O30: 33756 | P30: 33501 | Q30: 32399 | R30: 34202 | S30: 32297 | T30: 23606
B31: E VENTS | C31: 3333 | D31: =+E31*0.3 -> 0
B32: VIETTECH
B33: TELEMOR
A34: 19 | B34: HOROSCOPE | C34: 184 | M34: $108,3 | N34: 106,65 | O34: 107,35 | P34: 177 | Q34: 165,05 | R34: 188,2 | S34: 175,2 | T34: 158,5
B35: ITL
A36: 20 | B36: LUCKY_NUMBER | D36: =+E36*0.35 -> 0
A37: 21 | B37: FOOTBALL_PLUS | D37: =+E37*0.35 -> 0
B38: TELETECH
A39: 22 | B39: VIETCARE | D39: =+E39*0.35 -> 0
A40: 23 | B40: CHIÊM TINH | D40: =+E40*0.35 -> 0
B41: VIETTECH
B42: TOTAL
A44: REGISTER
A46: NO. | B46: VAS CODE | F46: ="Acc "&$G$4& " / "&$H$4 -> Acc COMPARE LAST MONTH / | G46: COMPARE LAST MONTH | J46: Friday | K46: Friday | L46: Friday | M46: Friday | N46: Friday | O46: Friday | P46: Friday | Q46: Friday | R46: Friday | S46: Friday | T46: Friday | U46: Friday | V46: Friday | W46: Friday | X46: Friday | Y46: Friday | Z46: Friday | AA46: Friday | AB46: Friday | AC46: Friday | AD46: Friday | AE46: Friday | AF46: Friday | AG46: Friday | AH46: Friday | AI46: Friday | AJ46: Friday | AK46: Friday | AL46: Friday | AM46: Friday | AN46: Friday
C47: SHORTCODE | G47: Acc last month | H47: +/- | I47: % | J47: 1 | K47: 2 | L47: 3 | M47: 4 | N47: 5 | O47: 6 | P47: 7 | Q47: 8 | R47: 9 | S47: 10 | T47: 11 | U47: 12 | V47: 13 | W47: 14 | X47: 15 | Y47: 16 | Z47: 17 | AA47: 18 | AB47: 19 | AC47: 20 | AD47: 21 | AE47: 22 | AF47: 23 | AG47: 24 | AH47: 25 | AI47: 26 | AJ47: 27 | AK47: 28 | AL47: 29 | AM47: 30 | AN47: 31
B48: NATCOM
A49: 1 | B49: BON_INFO,SMS INFOR | C49: LUCKYCODE | J49: 135 | K49: 122 | L49: 119 | M49: 105 | N49: 172 | O49: 1016 | P49: 1805 | Q49: 1689 | R49: 1524 | S49: 31 | T49: 838
A50: 2 | B50: IVR_INFOR | C50: LUCKYCODE | J50: 9 | K50: 6 | L50: 4 | M50: 4 | N50: 9 | O50: 7 | P50: 16 | Q50: 13 | R50: 11 | S50: 7 | T50: 7
A51: 3 | B51: LUCKY_SPIN | C51: 7878, Lawoulet | J51: 998 | K51: 986 | L51: 1285 | M51: 1100 | N51: 900 | O51: 286 | P51: 422 | Q51: 241 | R51: 108 | S51: 170 | T51: 51
A52: 4 | B52: LUCKY_CARD | C52: LUCKYCODE | J52: 942 | K52: 994 | L52: 1527 | M52: 1016 | N52: 920 | O52: 77 | P52: 50 | Q52: 41 | R52: 41 | S52: 48 | T52: 395
A53: 5 | B53: IVR_DATING | C53: 933 | J53: 27 | K53: 37 | L53: 31 | M53: 49 | N53: 181 | O53: 43 | P53: 36 | S53: 67 | T53: 544
A54: 6 | B54: Lucky Draw | C54: 556 | J54: 1165 | K54: 1162 | L54: 1280 | M54: 1276 | N54: 1387 | O54: 1272 | P54: 1211 | Q54: 1212 | R54: 1075 | S54: 602 | T54: 15
A55: 7 | B55: LUCKY_WORD | C55: LUCKYCODE | J55: 65 | K55: 58 | L55: 54 | M55: 438 | N55: 287 | O55: 863 | P55: 70 | Q55: 56 | R55: 51 | S55: 31 | T55: 13
A56: 8 | B56: HOROSCOPE | C56: LUCKYCODE | J56: 5130 | K56: 4748 | L56: 4672 | M56: 4757 | N56: 4779 | O56: 4688 | P56: 4548 | Q56: 4602 | R56: 4528 | S56: 4486 | T56: 2073
A57: 9 | B57: IVR_RADIO | C57: 945 | J57: 55 | M57: 52 | N57: 137 | O57: 38 | R57: 54 | S57: 205 | T57: 234
A58: 10 | B58: CALL_PRO | C58: 526 | K58: 836 | L58: 1347 | M58: 1660 | N58: 1459 | O58: 1561 | P58: 1454 | Q58: 1494 | R58: 1388 | S58: 1424 | T58: 15
A59: 11 | B59: MILLIONAIRE | C59: 8585,Jetmilyone | J59: 62 | K59: 71 | L59: 54 | M59: 51 | N59: 37 | O59: 45 | P59: 40 | Q59: 51 | R59: 46 | S59: 33 | T59: 1
A60: 12 | B60: NEW_VOTING | C60: MY TEAM | J60: 216 | K60: 366 | L60: 156 | M60: 157 | N60: 197 | O60: 257 | P60: 137 | Q60: 132 | R60: 163 | S60: 145 | T60: 97
A61: 13 | B61: USSD_CHATTING | C61: 7979
A62: 14 | B62: BACKGROUND_MUSIC | C62: 689 | J62: 52 | K62: 42 | L62: 45 | M62: 36 | N62: 45 | O62: 51 | P62: 51 | Q62: 46 | R62: 44 | S62: 34 | T62: 17
A63: 15 | B63: LUCKY_ROULETTE | C63: BINGO, 5500 | J63: 96 | K63: 75 | L63: 83 | M63: 161 | N63: 159 | O63: 120 | P63: 164 | Q63: 82 | R63: 82 | S63: 499 | T63: 99
A64: 16 | B64: GAME_PORTAL | C64: 834 | J64: 5 | K64: 7 | N64: 0 | O64: 7 | P64: 0 | Q64: 0 | R64: 13 | S64: 14 | T64: 2
A65: 17 | B65: DATA CREDIT | C65: 734 | J65: 0 | L65: 0 | M65: 0 | N65: 0 | P65: 0 | Q65: 0 | R65: 0 | S65: 0
A66: 18 | B66: E-News | C66: 368 | J66: 414 | K66: 265 | L66: 277 | M66: 275 | N66: 285 | O66: 464 | P66: 298 | Q66: 188 | R66: 87 | S66: 67 | T66: 10043
B67: TELEMOR
A68: 19 | B68: HOROSCOPE | C68: 184 | M68: 127 | N68: 91 | O68: 82 | P68: 1791 | Q68: 382 | R68: 1033 | S68: 228 | T68: 111
A71: CANCEL
A73: NO. | B73: VAS CODE | F73: ="Acc "&$G$4& " / "&$H$4 -> Acc COMPARE LAST MONTH / | G73: COMPARE LAST MONTH | J73: Friday | K73: Friday | L73: Friday | M73: Friday | N73: Friday | O73: Friday | P73: Friday | Q73: Friday | R73: Friday | S73: Friday | T73: Friday | U73: Friday | V73: Friday | W73: Friday | X73: Friday | Y73: Friday | Z73: Friday | AA73: Friday | AB73: Friday | AC73: Friday | AD73: Friday | AE73: Friday | AF73: Friday | AG73: Friday | AH73: Friday | AI73: Friday | AJ73: Friday | AK73: Friday | AL73: Friday | AM73: Friday | AN73: Friday
C74: SHORTCODE | G74: Acc last month | H74: +/- | I74: % | J74: 1 | K74: 2 | L74: 3 | M74: 4 | N74: 5 | O74: 6 | P74: 7 | Q74: 8 | R74: 9 | S74: 10 | T74: 11 | U74: 12 | V74: 13 | W74: 14 | X74: 15 | Y74: 16 | Z74: 17 | AA74: 18 | AB74: 19 | AC74: 20 | AD74: 21 | AE74: 22 | AF74: 23 | AG74: 24 | AH74: 25 | AI74: 26 | AJ74: 27 | AK74: 28 | AL74: 29 | AM74: 30 | AN74: 31
B75: NATCOM
A76: 1 | B76: BON_INFO, SMS INFO | C76: LUCKYCODE | J76: 138 | K76: 138 | L76: 126 | M76: 125 | N76: 139 | O76: 182 | P76: 223 | Q76: 275 | R76: 274 | S76: 319 | T76: 194
A77: 2 | B77: IVR_INFOR | C77: LUCKYCODE | J77: 7 | K77: 8 | L77: 7 | M77: 8 | N77: 6 | O77: 15 | P77: 15 | Q77: 10 | R77: 8 | S77: 10 | T77: 13
A78: 3 | B78: LUCKY_SPIN | C78: 7878, Lawoulet | J78: 513 | K78: 511 | L78: 660 | M78: 674 | N78: 524 | O78: 549 | P78: 493 | Q78: 465 | R78: 331 | S78: 339 | T78: 164
A79: 4 | B79: LUCKY_CARD | C79: LUCKYCODE | J79: 387 | K79: 386 | L79: 1527 | M79: 408 | N79: 389 | O79: 260 | P79: 241 | Q79: 242 | R79: 245 | S79: 224 | T79: 207
A80: 5 | B80: IVR_DATING | C80: 933 | J80: 238 | K80: 227 | L80: 222 | M80: 253 | N80: 271 | O80: 215 | P80: 248 | S80: 326 | T80: 210
A81: 6 | B81: Lucky Draw | C81: 556 | J81: 563 | K81: 544 | L81: 584 | M81: 574 | N81: 623 | O81: 586 | P81: 541 | Q81: 540 | R81: 494 | S81: 351 | T81: 34
A82: 7 | B82: LUCKY_WORD | C82: LUCKYCODE | J82: 543 | K82: 447 | L82: 436 | M82: 428 | N82: 399 | O82: 523 | P82: 423 | Q82: 424 | R82: 364 | S82: 354 | T82: 282
A83: 8 | B83: HOROSCOPE | C83: LUCKYCODE | J83: 2237 | K83: 2183 | L83: 2129 | M83: 2145 | N83: 2229 | O83: 2069 | P83: 2085 | Q83: 2162 | R83: 2266 | S83: 2092 | T83: 1129
A84: 9 | B84: IVR_RADIO | C84: 945 | J84: 209 | M84: 172 | N84: 162 | O84: 165 | R84: 189 | S84: 228 | T84: 151
A85: 10 | B85: CALL_PRO | C85: 526 | K85: 836 | L85: 602 | M85: 672 | N85: 612 | O85: 604 | P85: 561 | Q85: 642 | R85: 594 | S85: 515 | T85: 6
A86: 11 | B86: MILLIONAIRE | C86: 8585,Jetmilyone | J86: 1041 | K86: 909 | L86: 816 | M86: 719 | N86: 637 | O86: 621 | P86: 557 | Q86: 581 | R86: 579 | S86: 526
A87: 12 | B87: NEW_VOTING | C87: MY TEAM | J87: 203 | K87: 171 | L87: 163 | M87: 165 | N87: 175 | O87: 181 | P87: 160 | Q87: 149 | R87: 189 | S87: 177 | T87: 126
A88: 13 | B88: USSD_CHATTING | C88: 7979
A89: 14 | B89: BACKGROUND_MUSIC | C89: 689 | J89: 411 | K89: 451 | L89: 451 | M89: 451 | N89: 449 | O89: 438 | P89: 454 | Q89: 399 | R89: 489 | S89: 418 | T89: 273
A90: 15 | B90: LUCKY_ROULETTE | C90: BINGO, 5500 | J90: 309 | K90: 305 | L90: 320 | M90: 348 | N90: 350 | O90: 358 | P90: 305 | Q90: 340 | R90: 381 | S90: 382 | T90: 234
A91: 16 | B91: GAME_PORTAL | C91: 834 | J91: 208 | K91: 206 | N91: 18 | O91: 178 | P91: 20 | Q91: 32 | R91: 197 | S91: 208 | T91: 126
A92: 17 | B92: DATA CREDIT | C92: 734 | J92: 3 | L92: 1 | M92: 5 | N92: 1 | P92: 0 | Q92: 1 | R92: 2 | S92: 1
A93: 18 | B93: E-News | C93: 368 | J93: 536 | K93: 520 | L93: 463 | M93: 423 | N93: 467 | O93: 440 | P93: 490 | Q93: 335 | R93: 398 | S93: 385 | T93: 293
B94: TELEMOR
A95: 19 | B95: HOROSCOPE | C95: 184 | N95: 20 | O95: 29 | P95: 50 | Q95: 34 | R95: 37 | S95: 28 | T95: 15
A96: ADD MONEY
A98: NO. | B98: VAS CODE | F98: ="Acc "&$G$4& " / "&$H$4 -> Acc COMPARE LAST MONTH / | G98: COMPARE LAST MONTH | J98: Friday | K98: Friday | L98: Friday | M98: Friday | N98: Friday | O98: Friday | P98: Friday | Q98: Friday | R98: Friday | S98: Friday | T98: Friday | U98: Friday | V98: Friday | W98: Friday | X98: Friday | Y98: Friday | Z98: Friday | AA98: Friday | AB98: Friday | AC98: Friday | AD98: Friday | AE98: Friday | AF98: Friday | AG98: Friday | AH98: Friday | AI98: Friday | AJ98: Friday | AK98: Friday | AL98: Friday | AM98: Friday | AN98: Friday
C99: SHORTCODE | G99: Acc last month | H99: +/- | I99: % | J99: 1 | K99: 2 | L99: 3 | M99: 4 | N99: 5 | O99: 6 | P99: 7 | Q99: 8 | R99: 9 | S99: 10 | T99: 11 | U99: 12 | V99: 13 | W99: 14 | X99: 15 | Y99: 16 | Z99: 17 | AA99: 18 | AB99: 19 | AC99: 20 | AD99: 21 | AE99: 22 | AF99: 23 | AG99: 24 | AH99: 25 | AI99: 26 | AJ99: 27 | AK99: 28 | AL99: 29 | AM99: 30 | AN99: 31
B100: NATCOM
A101: 1 | B101: BON_INFO,SMS INFO | C101: LUCKYCODE | J101: 0 | K101: 0 | L101: 0 | M101: 0 | N101: 0 | O101: 0 | P101: 0 | Q101: 0 | R101: 0 | S101: 0 | T101: 0
A102: 2 | B102: IVR_INFOR | C102: LUCKYCODE | J102: 0 | K102: 0 | L102: 0 | M102: 0 | N102: 0 | O102: 0 | P102: 0 | Q102: 0 | R102: 0 | S102: 0 | T102: 0
A103: 3 | B103: LUCKY_SPIN | C103: 7878, Lawoulet | J103: 3000 | K103: 3001 | L103: 3001 | M103: 3000 | N103: 3000 | O103: 3001 | P103: 3000 | Q103: 3000 | R103: 3002 | S103: 3000 | T103: 982
A104: 4 | B104: LUCKY_CARD | C104: LUCKYCODE | J104: 4 | K104: 0 | L104: 4 | M104: 4 | N104: 0 | O104: 0 | P104: 4 | Q104: 4 | R104: 8 | S104: 0 | T104: 0
A105: 5 | B105: IVR_DATING | C105: 933 | J105: 0 | K105: 0 | L105: 0 | M105: 0 | N105: 0 | O105: 5 | P105: 0 | S105: 0 | T105: 5
A106: 6 | B106: Lucky Draw | C106: 556 | J106: winner money | K106: 702 | L106: 2802,4 | M106: 346,6 | N106: 2728,8 | O106: 34,4 | P106: 288,3 | Q106: 574,2 | R106: 613 | S106: 686,6 | T106: 393,2
A107: 7 | B107: LUCKY_WORD | C107: LUCKYCODE | J107: 1025 | K107: 1025 | L107: 1025 | M107: 1025 | N107: 1025 | O107: 1025 | P107: 1025 | Q107: 1025 | R107: 1025 | S107: 1025 | T107: 1025
A108: 8 | B108: HOROSCOPE | C108: LUCKYCODE | J108: 0 | K108: 0 | L108: 0 | M108: 0 | N108: 0 | O108: 0 | P108: 0 | Q108: 0 | R108: 0 | S108: 0 | T108: 0
A109: 9 | B109: IVR_RADIO | C109: 945 | J109: 0 | M109: 0 | N109: 0 | O109: 0 | R109: 0
A110: 10 | B110: CALL_PRO | C110: 526
A111: 11 | B111: MILLIONAIRE | C111: 8585,Jetmilyone
A112: 12 | B112: NEW_VOTING | C112: MY TEAM | J112: 0 | K112: 0 | L112: 0 | M112: 0 | N112: 0
A113: 13 | B113: USSD_CHATTING | C113: 7979
A114: 14 | B114: BACKGROUND_MUSIC | C114: 689
A115: 15 | B115: LUCKY_ROULETTE | C115: BINGO, 5500 | J115: 1025 | K115: 1025 | L115: 1025 | M115: 1025 | N115: 1025 | O115: 1025 | P115: 1025 | Q115: 1025 | R115: 1025 | S115: 720 | T115: 970
A116: 16 | B116: GAME_PORTAL | C116: 834
A117: 17 | B117: DATA CREDIT | C117: 734
A118: 18 | B118: E-News | C118: 368
B119: TELEMOR
A120: 19 | B120: HOROSCOPE | C120: 184

Sheet ANH QUANG (hidden)
A2: PROFIT | C2: DATE
A4: NO. | B4: VAS CODE | G4: ="Acc "&$H$4& " / "&$I$4 -> Acc COMPARE LAST MONTH / | H4: COMPARE LAST MONTH | K4: Friday | L4: Saturday | M4: Sunday | N4: Monday | O4: Tuesday | P4: Wednesday | Q4: Thursday | R4: Friday | S4: Saturday | T4: Sunday | U4: Monday | V4: Tuesday | W4: Wednesday | X4: Thursday | Y4: Friday | Z4: Saturday | AA4: Sunday | AB4: Monday | AC4: Tuesday | AD4: Wednesday | AE4: Thursday | AF4: Friday | AG4: Saturday | AH4: Sunday | AI4: Monday | AJ4: Tuesday | AK4: Wednesday | AL4: Wednesday | AM4: Wednesday | AN4: Wednesday | AO4: Wednesday
D5: NGƯỜI NHẬN BÁO CÁO | E5: TOTAL AFTER SHARING | F5: TOTAL BEFORE SHARING | H5: Acc last month | I5: +/- | J5: % | K5: 1 | L5: 2 | M5: 3 | N5: 4 | O5: 5 | P5: 6 | Q5: 7 | R5: 8 | S5: 9 | T5: 10 | U5: 11 | V5: 12 | W5: 13 | X5: 14 | Y5: 15 | Z5: 16 | AA5: 17 | AB5: 18 | AC5: 19 | AD5: 20 | AE5: 21 | AF5: 22 | AG5: 23 | AH5: 24 | AI5: 25 | AJ5: 26 | AK5: 27 | AL5: 28 | AM5: 29 | AN5: 30 | AO5: 31
B6: ='..'!B6 -> NATCOM
A7: ='..'!A7 -> 1 | B7: ='..'!B7 -> BON_INFO, SMS INFOR | C7: ='..'!C7 -> LUCKYCODE | D7: BÌNH, A QUANG, HƯƠNG, DU | E7: ='..'!E7 -> 0 | F7: ='..'!F7 -> 0 | G7: ='..'!G7 -> 0 | H7: ='..'!I7 -> 0 | I7: ='..'!J7 -> 0 | J7: ='..'!K7 -> 0 | K7: ='..'!L7 -> 21267 | L7: ='..'!M7 -> 21194 | M7: ='..'!N7 -> 21278 | N7: ='..'!O7 -> 21428 | O7: ='..'!P7 -> 21357 | P7: ='..'!Q7 -> 20998 | Q7: ='..'!R7 -> 22336 | R7: ='..'!S7 -> 23492 | S7: ='..'!T7 -> 25165 | T7: ='..'!U7 -> 26125 | U7: ='..'!V7 -> 22708 | V7: ='..'!W7 -> 0 | W7: ='..'!X7 -> 0 | X7: ='..'!Y7 -> 0 | Y7: ='..'!Z7 -> 0 | Z7: ='..'!AA7 -> 0 | AA7: ='..'!AB7 -> 0 | AB7: ='..'!AC7 -> 0 | AC7: ='..'!AD7 -> 0 | AD7: ='..'!AE7 -> 0 | AE7: ='..'!AF7 -> 0 | AF7: ='..'!AG7 -> 21267 | AG7: ='..'!AH7 -> 0 | AH7: ='..'!AI7 -> 0 | AI7: ='..'!AJ7 -> 0 | AJ7: ='..'!AK7 -> 0 | AK7: ='..'!AL7 -> 0 | AL7: ='..'!AM7 -> 0 | AM7: ='..'!AN7 -> 0 | AN7: ='..'!AO7 -> 0 | AO7: ='..'!AP7 -> 0
A8: ='..'!A8 -> 2 | B8: ='..'!B8 -> IVR_INFOR | C8: ='..'!C8 -> LUCKYCODE | E8: ='..'!E8 -> 0 | F8: ='..'!F8 -> 0 | G8: ='..'!G8 -> 0 | H8: ='..'!I8 -> 0 | I8: ='..'!J8 -> 0 | J8: ='..'!K8 -> 0 | K8: ='..'!L8 -> 10965 | L8: ='..'!M8 -> 10990 | M8: ='..'!N8 -> 11010 | N8: ='..'!O8 -> 11176 | O8: ='..'!P8 -> 11034 | P8: ='..'!Q8 -> 10877 | Q8: ='..'!R8 -> 10891 | R8: ='..'!S8 -> 10573 | S8: ='..'!T8 -> 11002 | T8: ='..'!U8 -> 10910 | U8: ='..'!V8 -> 8893 | V8: ='..'!W8 -> 0 | W8: ='..'!X8 -> 0 | X8: ='..'!Y8 -> 0 | Y8: ='..'!Z8 -> 0 | Z8: ='..'!AA8 -> 0 | AA8: ='..'!AB8 -> 0 | AB8: ='..'!AC8 -> 0 | AC8: ='..'!AD8 -> 0 | AD8: ='..'!AE8 -> 0 | AE8: ='..'!AF8 -> 0 | AF8: ='..'!AG8 -> 10965 | AG8: ='..'!AH8 -> 0 | AH8: ='..'!AI8 -> 0 | AI8: ='..'!AJ8 -> 0 | AJ8: ='..'!AK8 -> 0 | AK8: ='..'!AL8 -> 0 | AL8: ='..'!AM8 -> 0 | AM8: ='..'!AN8 -> 0 | AN8: ='..'!AO8 -> 0 | AO8: ='..'!AP8 -> 0
A9: ='..'!A9 -> 3 | B9: ='..'!B9 -> LUCKY_SPIN | C9: ='..'!C9 -> 7878, Lawoulet | E9: ='..'!E9 -> 0 | F9: ='..'!F9 -> 0 | G9: ='..'!G9 -> 0 | H9: ='..'!I9 -> 0 | I9: ='..'!J9 -> 0 | J9: ='..'!K9 -> 0 | K9: ='..'!L9 -> 29898 | L9: ='..'!M9 -> 30199 | M9: ='..'!N9 -> 31887 | N9: ='..'!O9 -> 32658 | O9: ='..'!P9 -> 30840 | P9: ='..'!Q9 -> 30663 | Q9: ='..'!R9 -> 29784 | R9: ='..'!S9 -> 30013 | S9: ='..'!T9 -> 29915 | T9: ='..'!U9 -> 29306 | U9: ='..'!V9 -> 20808 | V9: ='..'!W9 -> 0 | W9: ='..'!X9 -> 0 | X9: ='..'!Y9 -> 0 | Y9: ='..'!Z9 -> 0 | Z9: ='..'!AA9 -> 0 | AA9: ='..'!AB9 -> 0 | AB9: ='..'!AC9 -> 0 | AC9: ='..'!AD9 -> 0 | AD9: ='..'!AE9 -> 0 | AE9: ='..'!AF9 -> 0 | AF9: ='..'!AG9 -> 29898 | AG9: ='..'!AH9 -> 0 | AH9: ='..'!AI9 -> 0 | AI9: ='..'!AJ9 -> 0 | AJ9: ='..'!AK9 -> 0 | AK9: ='..'!AL9 -> 0 | AL9: ='..'!AM9 -> 0 | AM9: ='..'!AN9 -> 0 | AN9: ='..'!AO9 -> 0 | AO9: ='..'!AP9 -> 0
A10: ='..'!A10 -> 4 | B10: ='..'!B10 -> LUCKY_CARD | C10: ='..'!C10 -> LUCKYCODE | E10: ='..'!E10 -> 0 | F10: ='..'!F10 -> 0 | G10: ='..'!G10 -> 0 | H10: ='..'!I10 -> 0 | I10: ='..'!J10 -> 0 | J10: ='..'!K10 -> 0 | K10: ='..'!L10 -> 20192 | L10: ='..'!M10 -> 21185 | M10: ='..'!N10 -> 22540 | N10: ='..'!O10 -> 22666 | O10: ='..'!P10 -> 22577 | P10: ='..'!Q10 -> 21112 | Q10: ='..'!R10 -> 20142 | R10: ='..'!S10 -> 19278 | S10: ='..'!T10 -> 20206 | T10: ='..'!U10 -> 19805 | U10: ='..'!V10 -> 16174 | V10: ='..'!W10 -> 0 | W10: ='..'!X10 -> 0 | X10: ='..'!Y10 -> 0 | Y10: ='..'!Z10 -> 0 | Z10: ='..'!AA10 -> 0 | AA10: ='..'!AB10 -> 0 | AB10: ='..'!AC10 -> 0 | AC10: ='..'!AD10 -> 0 | AD10: ='..'!AE10 -> 0 | AE10: ='..'!AF10 -> 0 | AF10: ='..'!AG10 -> 20192 | AG10: ='..'!AH10 -> 0 | AH10: ='..'!AI10 -> 0 | AI10: ='..'!AJ10 -> 0 | AJ10: ='..'!AK10 -> 0 | AK10: ='..'!AL10 -> 0 | AL10: ='..'!AM10 -> 0 | AM10: ='..'!AN10 -> 0 | AN10: ='..'!AO10 -> 0 | AO10: ='..'!AP10 -> 0
A11: ='..'!A11 -> 5 | B11: ='..'!B11 -> IVR_DATING | C11: ='..'!C11 -> 933 | E11: ='..'!E11 -> 0 | F11: ='..'!F11 -> 0 | G11: ='..'!G11 -> 0 | H11: ='..'!I11 -> 0 | I11: ='..'!J11 -> 0 | J11: ='..'!K11 -> 0 | K11: ='..'!L11 -> 28614 | L11: ='..'!M11 -> 29475 | M11: ='..'!N11 -> 29849 | N11: ='..'!O11 -> 29175 | O11: ='..'!P11 -> 28229 | P11: ='..'!Q11 -> 27897 | Q11: ='..'!R11 -> 27436 | R11: ='..'!S11 -> 0 | S11: ='..'!T11 -> 0 | T11: ='..'!U11 -> 28230 | U11: ='..'!V11 -> 22380 | V11: ='..'!W11 -> 0 | W11: ='..'!X11 -> 0 | X11: ='..'!Y11 -> 0 | Y11: ='..'!Z11 -> 0 | Z11: ='..'!AA11 -> 0 | AA11: ='..'!AB11 -> 0 | AB11: ='..'!AC11 -> 0 | AC11: ='..'!AD11 -> 0 | AD11: ='..'!AE11 -> 0 | AE11: ='..'!AF11 -> 0 | AF11: ='..'!AG11 -> 28614 | AG11: ='..'!AH11 -> 0 | AH11: ='..'!AI11 -> 0 | AI11: ='..'!AJ11 -> 0 | AJ11: ='..'!AK11 -> 0 | AK11: ='..'!AL11 -> 0 | AL11: ='..'!AM11 -> 0 | AM11: ='..'!AN11 -> 0 | AN11: ='..'!AO11 -> 0 | AO11: ='..'!AP11 -> 0
A12: ='..'!A12 -> 6 | B12: ='..'!B12 -> Lucky Draw | C12: ='..'!C12 -> 556 | E12: ='..'!E12 -> 0 | F12: ='..'!F12 -> 0 | G12: ='..'!G12 -> 0 | H12: ='..'!I12 -> 0 | I12: ='..'!J12 -> 0 | J12: ='..'!K12 -> 0 | K12: ='..'!L12 -> 0 | L12: ='..'!M12 -> 43261,99 | M12: ='..'!N12 -> 55189,52 | N12: ='..'!O12 -> 19497,44 | O12: ='..'!P12 -> 54241,97 | P12: ='..'!Q12 -> 18471,68 | Q12: ='..'!R12 -> 18414,44 | R12: ='..'!S12 -> 43915,32 | S12: ='..'!T12 -> 39650,38 | T12: ='..'!U12 -> 34237,96 | U12: ='..'!V12 -> 18827,42 | V12: ='..'!W12 -> 0 | W12: ='..'!X12 -> 0 | X12: ='..'!Y12 -> 0 | Y12: ='..'!Z12 -> 0 | Z12: ='..'!AA12 -> 0 | AA12: ='..'!AB12 -> 0 | AB12: ='..'!AC12 -> 0 | AC12: ='..'!AD12 -> 0 | AD12: ='..'!AE12 -> 0 | AE12: ='..'!AF12 -> 0 | AF12: ='..'!AG12 -> 0 | AG12: ='..'!AH12 -> 0 | AH12: ='..'!AI12 -> 0 | AI12: ='..'!AJ12 -> 0 | AJ12: ='..'!AK12 -> 0 | AK12: ='..'!AL12 -> 0 | AL12: ='..'!AM12 -> 0 | AM12: ='..'!AN12 -> 0 | AN12: ='..'!AO12 -> 0 | AO12: ='..'!AP12 -> 0
A13: ='..'!A13 -> 7 | B13: ='..'!B13 -> LUCKY_WORD | C13: ='..'!C13 -> LUCKYCODE | E13: ='..'!E13 -> 0 | F13: ='..'!F13 -> 0 | G13: ='..'!G13 -> 0 | H13: ='..'!I13 -> 0 | I13: ='..'!J13 -> 0 | J13: ='..'!K13 -> 0 | K13: ='..'!L13 -> 38314 | L13: ='..'!M13 -> 38573 | M13: ='..'!N13 -> 37926 | N13: ='..'!O13 -> 37674 | O13: ='..'!P13 -> 37441 | P13: ='..'!Q13 -> 37421 | Q13: ='..'!R13 -> 35963 | R13: ='..'!S13 -> 35967 | S13: ='..'!T13 -> 37794 | T13: ='..'!U13 -> 32050 | U13: ='..'!V13 -> 28386 | V13: ='..'!W13 -> 0 | W13: ='..'!X13 -> 0 | X13: ='..'!Y13 -> 0 | Y13: ='..'!Z13 -> 0 | Z13: ='..'!AA13 -> 0 | AA13: ='..'!AB13 -> 0 | AB13: ='..'!AC13 -> 0 | AC13: ='..'!AD13 -> 0 | AD13: ='..'!AE13 -> 0 | AE13: ='..'!AF13 -> 0 | AF13: ='..'!AG13 -> 0 | AG13: ='..'!AH13 -> 0 | AH13: ='..'!AI13 -> 0 | AI13: ='..'!AJ13 -> 0 | AJ13: ='..'!AK13 -> 0 | AK13: ='..'!AL13 -> 0 | AL13: ='..'!AM13 -> 0 | AM13: ='..'!AN13 -> 0 | AN13: ='..'!AO13 -> 0 | AO13: ='..'!AP13 -> 0
B14: ='..'!B14 -> ITL | E14: ='..'!E14 -> 0 | F14: ='..'!F14 -> 0 | G14: ='..'!G14 -> 0 | H14: ='..'!I14 -> 0 | I14: ='..'!J14 -> 0 | J14: ='..'!K14 -> 0 | K14: ='..'!L14 -> 0 | L14: ='..'!M14 -> 0 | M14: ='..'!N14 -> 0 | N14: ='..'!O14 -> 0 | O14: ='..'!P14 -> 0 | P14: ='..'!Q14 -> 0 | Q14: ='..'!R14 -> 0 | R14: ='..'!S14 -> 0 | S14: ='..'!T14 -> 0 | T14: ='..'!U14 -> 0 | U14: ='..'!V14 -> 0 | V14: ='..'!W14 -> 0 | W14: ='..'!X14 -> 0 | X14: ='..'!Y14 -> 0 | Y14: ='..'!Z14 -> 0 | Z14: ='..'!AA14 -> 0 | AA14: ='..'!AB14 -> 0 | AB14: ='..'!AC14 -> 0 | AC14: ='..'!AD14 -> 0 | AD14: ='..'!AE14 -> 0 | AE14: ='..'!AF14 -> 0 | AF14: ='..'!AG14 -> 0 | AG14: ='..'!AH14 -> 0 | AH14: ='..'!AI14 -> 0 | AI14: ='..'!AJ14 -> 0 | AJ14: ='..'!AK14 -> 0 | AK14: ='..'!AL14 -> 0 | AL14: ='..'!AM14 -> 0 | AM14: ='..'!AN14 -> 0 | AN14: ='..'!AO14 -> 0 | AO14: ='..'!AP14 -> 0
A15: ='..'!A15 -> 8 | B15: ='..'!B15 -> HOROSCOPE | C15: ='..'!C15 -> LUCKYCODE | D15: BÌNH, A QUANG, HƯƠNG, DU | E15: ='..'!E15 -> 0 | F15: ='..'!F15 -> 0 | G15: ='..'!G15 -> 0 | H15: ='..'!I15 -> 0 | I15: ='..'!J15 -> 0 | J15: ='..'!K15 -> 0 | K15: ='..'!L15 -> 34320 | L15: ='..'!M15 -> 36764 | M15: ='..'!N15 -> 38234 | N15: ='..'!O15 -> 39684 | O15: ='..'!P15 -> 40386 | P15: ='..'!Q15 -> 41375 | Q15: ='..'!R15 -> 42272 | R15: ='..'!S15 -> 42644 | S15: ='..'!T15 -> 46194 | T15: ='..'!U15 -> 47601 | U15: ='..'!V15 -> 36994 | V15: ='..'!W15 -> 0 | W15: ='..'!X15 -> 0 | X15: ='..'!Y15 -> 0 | Y15: ='..'!Z15 -> 0 | Z15: ='..'!AA15 -> 0 | AA15: ='..'!AB15 -> 0 | AB15: ='..'!AC15 -> 0 | AC15: ='..'!AD15 -> 0 | AD15: ='..'!AE15 -> 0 | AE15: ='..'!AF15 -> 0 | AF15: ='..'!AG15 -> 0 | AG15: ='..'!AH15 -> 0 | AH15: ='..'!AI15 -> 0 | AI15: ='..'!AJ15 -> 0 | AJ15: ='..'!AK15 -> 0 | AK15: ='..'!AL15 -> 0 | AL15: ='..'!AM15 -> 0 | AM15: ='..'!AN15 -> 0 | AN15: ='..'!AO15 -> 0 | AO15: ='..'!AP15 -> 0
B16: THIÊN AN | E16: ='..'!E16 -> 0 | F16: ='..'!F16 -> 0 | G16: ='..'!G16 -> 0 | H16: ='..'!I16 -> 0 | I16: ='..'!J16 -> 0 | J16: ='..'!K16 -> 0 | K16: ='..'!L16 -> 0 | L16: ='..'!M16 -> 0 | M16: ='..'!N16 -> 0 | N16: ='..'!O16 -> 0 | O16: ='..'!P16 -> 0 | P16: ='..'!Q16 -> 0 | Q16: ='..'!R16 -> 0 | R16: ='..'!S16 -> 0 | S16: ='..'!T16 -> 0 | T16: ='..'!U16 -> 0 | U16: ='..'!V16 -> 0 | V16: ='..'!W16 -> 0 | W16: ='..'!X16 -> 0 | X16: ='..'!Y16 -> 0 | Y16: ='..'!Z16 -> 0 | Z16: ='..'!AA16 -> 0 | AA16: ='..'!AB16 -> 0 | AB16: ='..'!AC16 -> 0 | AC16: ='..'!AD16 -> 0 | AD16: ='..'!AE16 -> 0 | AE16: ='..'!AF16 -> 0 | AF16: ='..'!AG16 -> 0 | AG16: ='..'!AH16 -> 0 | AH16: ='..'!AI16 -> 0 | AI16: ='..'!AJ16 -> 0 | AJ16: ='..'!AK16 -> 0 | AK16: ='..'!AL16 -> 0 | AL16: ='..'!AM16 -> 0 | AM16: ='..'!AN16 -> 0 | AN16: ='..'!AO16 -> 0 | AO16: ='..'!AP16 -> 0
A17: ='..'!A17 -> 9 | B17: ='..'!B17 -> IVR_RADIO | C17: ='..'!C17 -> 945 | D17: BÌNH, A QUANG, A TÚ, HƯƠNG | E17: ='..'!E17 -> 0 | F17: ='..'!F17 -> 0 | G17: ='..'!G17 -> 0 | H17: ='..'!I17 -> 0 | I17: ='..'!J17 -> 0 | J17: ='..'!K17 -> 0 | K17: ='..'!L17 -> 17291 | L17: ='..'!M17 -> 0 | M17: ='..'!N17 -> 0 | N17: ='..'!O17 -> 17985 | O17: ='..'!P17 -> 17833 | P17: ='..'!Q17 -> 17551 | Q17: ='..'!R17 -> 0 | R17: ='..'!S17 -> 0 | S17: ='..'!T17 -> 17989 | T17: ='..'!U17 -> 17844 | U17: ='..'!V17 -> 14257 | V17: ='..'!W17 -> 0 | W17: ='..'!X17 -> 0 | X17: ='..'!Y17 -> 0 | Y17: ='..'!Z17 -> 0 | Z17: ='..'!AA17 -> 0 | AA17: ='..'!AB17 -> 0 | AB17: ='..'!AC17 -> 0 | AC17: ='..'!AD17 -> 0 | AD17: ='..'!AE17 -> 0 | AE17: ='..'!AF17 -> 0 | AF17: ='..'!AG17 -> 0 | AG17: ='..'!AH17 -> 0 | AH17: ='..'!AI17 -> 0 | AI17: ='..'!AJ17 -> 0 | AJ17: ='..'!AK17 -> 0 | AK17: ='..'!AL17 -> 0 | AL17: ='..'!AM17 -> 0 | AM17: ='..'!AN17 -> 0 | AN17: ='..'!AO17 -> 0 | AO17: ='..'!AP17 -> 0
A18: ='..'!A18 -> 10 | B18: ='..'!B18 -> CALL_PRO | C18: ='..'!C18 -> 526 | E18: ='..'!E18 -> 0 | F18: ='..'!F18 -> 0 | G18: ='..'!G18 -> 0 | H18: ='..'!I18 -> 0 | I18: ='..'!J18 -> 0 | J18: ='..'!K18 -> 0 | K18: ='..'!L18 -> 0 | L18: ='..'!M18 -> 84064 | M18: ='..'!N18 -> 117796 | N18: ='..'!O18 -> 127274 | O18: ='..'!P18 -> 118909 | P18: ='..'!Q18 -> 122467 | Q18: ='..'!R18 -> 120766 | R18: ='..'!S18 -> 123695 | S18: ='..'!T18 -> 127266 | T18: ='..'!U18 -> 106993 | U18: ='..'!V18 -> 104 | V18: ='..'!W18 -> 0 | W18: ='..'!X18 -> 0 | X18: ='..'!Y18 -> 0 | Y18: ='..'!Z18 -> 0 | Z18: ='..'!AA18 -> 0 | AA18: ='..'!AB18 -> 0 | AB18: ='..'!AC18 -> 0 | AC18: ='..'!AD18 -> 0 | AD18: ='..'!AE18 -> 0 | AE18: ='..'!AF18 -> 0 | AF18: ='..'!AG18 -> 0 | AG18: ='..'!AH18 -> 0 | AH18: ='..'!AI18 -> 0 | AI18: ='..'!AJ18 -> 0 | AJ18: ='..'!AK18 -> 0 | AK18: ='..'!AL18 -> 0 | AL18: ='..'!AM18 -> 0 | AM18: ='..'!AN18 -> 0 | AN18: ='..'!AO18 -> 0 | AO18: ='..'!AP18 -> 0
B19: TM | E19: ='..'!E19 -> 0 | F19: ='..'!F19 -> 0 | G19: ='..'!G19 -> 0 | H19: ='..'!I19 -> 0 | I19: ='..'!J19 -> 0 | J19: ='..'!K19 -> 0 | K19: ='..'!L19 -> 0 | L19: ='..'!M19 -> 0 | M19: ='..'!N19 -> 0 | N19: ='..'!O19 -> 0 | O19: ='..'!P19 -> 0 | P19: ='..'!Q19 -> 0 | Q19: ='..'!R19 -> 0 | R19: ='..'!S19 -> 0 | S19: ='..'!T19 -> 0 | T19: ='..'!U19 -> 0 | U19: ='..'!V19 -> 0 | V19: ='..'!W19 -> 0 | W19: ='..'!X19 -> 0 | X19: ='..'!Y19 -> 0 | Y19: ='..'!Z19 -> 0 | Z19: ='..'!AA19 -> 0 | AA19: ='..'!AB19 -> 0 | AB19: ='..'!AC19 -> 0 | AC19: ='..'!AD19 -> 0 | AD19: ='..'!AE19 -> 0 | AE19: ='..'!AF19 -> 0 | AF19: ='..'!AG19 -> 0 | AG19: ='..'!AH19 -> 0 | AH19: ='..'!AI19 -> 0 | AI19: ='..'!AJ19 -> 0 | AJ19: ='..'!AK19 -> 0 | AK19: ='..'!AL19 -> 0 | AL19: ='..'!AM19 -> 0 | AM19: ='..'!AN19 -> 0 | AN19: ='..'!AO19 -> 0 | AO19: ='..'!AP19 -> 0
A20: ='..'!A20 -> 11 | B20: ='..'!B20 -> MILLIONAIRE | C20: ='..'!C20 -> 8585,Jetmilyone | D20: BÌNH, A QUANG, A TÚ, HƯƠNG | E20: ='..'!E20 -> 0 | F20: ='..'!F20 -> 0 | G20: ='..'!G20 -> 0 | H20: ='..'!I20 -> 0 | I20: ='..'!J20 -> 0 | J20: ='..'!K20 -> 0 | K20: ='..'!L20 -> 30403 | L20: ='..'!M20 -> 24044 | M20: ='..'!N20 -> 29842 | N20: ='..'!O20 -> 29015 | O20: ='..'!P20 -> 28310 | P20: ='..'!Q20 -> 26524 | Q20: ='..'!R20 -> 26070 | R20: ='..'!S20 -> 25942 | S20: ='..'!T20 -> 26379 | T20: ='..'!U20 -> 20350 | U20: ='..'!V20 -> 10792 | V20: ='..'!W20 -> 0 | W20: ='..'!X20 -> 0 | X20: ='..'!Y20 -> 0 | Y20: ='..'!Z20 -> 0 | Z20: ='..'!AA20 -> 0 | AA20: ='..'!AB20 -> 0 | AB20: ='..'!AC20 -> 0 | AC20: ='..'!AD20 -> 0 | AD20: ='..'!AE20 -> 0 | AE20: ='..'!AF20 -> 0 | AF20: ='..'!AG20 -> 0 | AG20: ='..'!AH20 -> 0 | AH20: ='..'!AI20 -> 0 | AI20: ='..'!AJ20 -> 0 | AJ20: ='..'!AK20 -> 0 | AK20: ='..'!AL20 -> 0 | AL20: ='..'!AM20 -> 0 | AM20: ='..'!AN20 -> 0 | AN20: ='..'!AO20 -> 0 | AO20: ='..'!AP20 -> 0
A21: ='..'!A21 -> 12 | B21: ='..'!B21 -> NEW_VOTING | C21: ='..'!C21 -> MY TEAM | E21: ='..'!E21 -> 0 | F21: ='..'!F21 -> 0 | G21: ='..'!G21 -> 0 | H21: ='..'!I21 -> 0 | I21: ='..'!J21 -> 0 | J21: ='..'!K21 -> 0 | K21: ='..'!L21 -> 17200 | L21: ='..'!M21 -> 18080 | M21: ='..'!N21 -> 18222 | N21: ='..'!O21 -> 18160 | O21: ='..'!P21 -> 17880 | P21: ='..'!Q21 -> 17630 | Q21: ='..'!R21 -> 17317 | R21: ='..'!S21 -> 17390 | S21: ='..'!T21 -> 18465 | T21: ='..'!U21 -> 17423 | U21: ='..'!V21 -> 13891 | V21: ='..'!W21 -> 0 | W21: ='..'!X21 -> 0 | X21: ='..'!Y21 -> 0 | Y21: ='..'!Z21 -> 0 | Z21: ='..'!AA21 -> 0 | AA21: ='..'!AB21 -> 0 | AB21: ='..'!AC21 -> 0 | AC21: ='..'!AD21 -> 0 | AD21: ='..'!AE21 -> 0 | AE21: ='..'!AF21 -> 0 | AF21: ='..'!AG21 -> 0 | AG21: ='..'!AH21 -> 0 | AH21: ='..'!AI21 -> 0 | AI21: ='..'!AJ21 -> 0 | AJ21: ='..'!AK21 -> 0 | AK21: ='..'!AL21 -> 0 | AL21: ='..'!AM21 -> 0 | AM21: ='..'!AN21 -> 0 | AN21: ='..'!AO21 -> 0 | AO21: ='..'!AP21 -> 0
A22: ='..'!A22 -> 13 | B22: ='..'!B22 -> USSD_CHATTING | C22: ='..'!C22 -> 7979 | E22: ='..'!E22 -> 0 | F22: ='..'!F22 -> 0 | G22: ='..'!G22 -> 0 | H22: ='..'!I22 -> 0 | I22: ='..'!J22 -> 0 | J22: ='..'!K22 -> 0 | K22: ='..'!L22 -> 0 | L22: ='..'!M22 -> 0 | M22: ='..'!N22 -> 0 | N22: ='..'!O22 -> 0 | O22: ='..'!P22 -> 0 | P22: ='..'!Q22 -> 0 | Q22: ='..'!R22 -> 0 | R22: ='..'!S22 -> 0 | S22: ='..'!T22 -> 0 | T22: ='..'!U22 -> 0 | U22: ='..'!V22 -> 0 | V22: ='..'!W22 -> 0 | W22: ='..'!X22 -> 0 | X22: ='..'!Y22 -> 0 | Y22: ='..'!Z22 -> 0 | Z22: ='..'!AA22 -> 0 | AA22: ='..'!AB22 -> 0 | AB22: ='..'!AC22 -> 0 | AC22: ='..'!AD22 -> 0 | AD22: ='..'!AE22 -> 0 | AE22: ='..'!AF22 -> 0 | AF22: ='..'!AG22 -> 0 | AG22: ='..'!AH22 -> 0 | AH22: ='..'!AI22 -> 0 | AI22: ='..'!AJ22 -> 0 | AJ22: ='..'!AK22 -> 0 | AK22: ='..'!AL22 -> 0 | AL22: ='..'!AM22 -> 0 | AM22: ='..'!AN22 -> 0 | AN22: ='..'!AO22 -> 0 | AO22: ='..'!AP22 -> 0
A23: ='..'!A23 -> 14 | B23: ='..'!B23 -> BACKGROUND_MUSIC | C23: ='..'!C23 -> 689 | E23: ='..'!E23 -> 0 | F23: ='..'!F23 -> 0 | G23: ='..'!G23 -> 0 | H23: ='..'!I23 -> 0 | I23: ='..'!J23 -> 0 | J23: ='..'!K23 -> 0 | K23: ='..'!L23 -> 32916 | L23: ='..'!M23 -> 33420 | M23: ='..'!N23 -> 33526 | N23: ='..'!O23 -> 33908 | O23: ='..'!P23 -> 33698 | P23: ='..'!Q23 -> 33094 | Q23: ='..'!R23 -> 32740 | R23: ='..'!S23 -> 33676 | S23: ='..'!T23 -> 34586 | T23: ='..'!U23 -> 27358 | U23: ='..'!V23 -> 23516 | V23: ='..'!W23 -> 0 | W23: ='..'!X23 -> 0 | X23: ='..'!Y23 -> 0 | Y23: ='..'!Z23 -> 0 | Z23: ='..'!AA23 -> 0 | AA23: ='..'!AB23 -> 0 | AB23: ='..'!AC23 -> 0 | AC23: ='..'!AD23 -> 0 | AD23: ='..'!AE23 -> 0 | AE23: ='..'!AF23 -> 0 | AF23: ='..'!AG23 -> 0 | AG23: ='..'!AH23 -> 0 | AH23: ='..'!AI23 -> 0 | AI23: ='..'!AJ23 -> 0 | AJ23: ='..'!AK23 -> 0 | AK23: ='..'!AL23 -> 0 | AL23: ='..'!AM23 -> 0 | AM23: ='..'!AN23 -> 0 | AN23: ='..'!AO23 -> 0 | AO23: ='..'!AP23 -> 0
A24: ='..'!A24 -> 15 | B24: ='..'!B24 -> LUCKY_ROULETTE | C24: ='..'!C24 -> BINGO, 5500 | E24: ='..'!E24 -> 0 | F24: ='..'!F24 -> 0 | G24: ='..'!G24 -> 0 | H24: ='..'!I24 -> 0 | I24: ='..'!J24 -> 0 | J24: ='..'!K24 -> 0 | K24: ='..'!L24 -> 12805 | L24: ='..'!M24 -> 13522 | M24: ='..'!N24 -> 13593 | N24: ='..'!O24 -> 13192 | O24: ='..'!P24 -> 12977 | P24: ='..'!Q24 -> 12767 | Q24: ='..'!R24 -> 12593 | R24: ='..'!S24 -> 12404 | S24: ='..'!T24 -> 13208 | T24: ='..'!U24 -> 13283 | U24: ='..'!V24 -> 10077 | V24: ='..'!W24 -> 0 | W24: ='..'!X24 -> 0 | X24: ='..'!Y24 -> 0 | Y24: ='..'!Z24 -> 0 | Z24: ='..'!AA24 -> 0 | AA24: ='..'!AB24 -> 0 | AB24: ='..'!AC24 -> 0 | AC24: ='..'!AD24 -> 0 | AD24: ='..'!AE24 -> 0 | AE24: ='..'!AF24 -> 0 | AF24: ='..'!AG24 -> 0 | AG24: ='..'!AH24 -> 0 | AH24: ='..'!AI24 -> 0 | AI24: ='..'!AJ24 -> 0 | AJ24: ='..'!AK24 -> 0 | AK24: ='..'!AL24 -> 0 | AL24: ='..'!AM24 -> 0 | AM24: ='..'!AN24 -> 0 | AN24: ='..'!AO24 -> 0 | AO24: ='..'!AP24 -> 0
B25: TELETECH | E25: ='..'!E25 -> 0 | F25: ='..'!F25 -> 0 | G25: ='..'!G25 -> 0 | H25: ='..'!I25 -> 0 | I25: ='..'!J25 -> 0 | J25: ='..'!K25 -> 0 | K25: ='..'!L25 -> 0 | L25: ='..'!M25 -> 0 | M25: ='..'!N25 -> 0 | N25: ='..'!O25 -> 0 | O25: ='..'!P25 -> 0 | P25: ='..'!Q25 -> 0 | Q25: ='..'!R25 -> 0 | R25: ='..'!S25 -> 0 | S25: ='..'!T25 -> 0 | T25: ='..'!U25 -> 0 | U25: ='..'!V25 -> 0 | V25: ='..'!W25 -> 0 | W25: ='..'!X25 -> 0 | X25: ='..'!Y25 -> 0 | Y25: ='..'!Z25 -> 0 | Z25: ='..'!AA25 -> 0 | AA25: ='..'!AB25 -> 0 | AB25: ='..'!AC25 -> 0 | AC25: ='..'!AD25 -> 0 | AD25: ='..'!AE25 -> 0 | AE25: ='..'!AF25 -> 0 | AF25: ='..'!AG25 -> 0 | AG25: ='..'!AH25 -> 0 | AH25: ='..'!AI25 -> 0 | AI25: ='..'!AJ25 -> 0 | AJ25: ='..'!AK25 -> 0 | AK25: ='..'!AL25 -> 0 | AL25: ='..'!AM25 -> 0 | AM25: ='..'!AN25 -> 0 | AN25: ='..'!AO25 -> 0 | AO25: ='..'!AP25 -> 0
A26: ='..'!A26 -> 16 | B26: ='..'!B26 -> GAME_PORTAL | C26: ='..'!C26 -> 834 | D26: BÌNH, A QUANG, HƯƠNG | E26: ='..'!E26 -> 0 | F26: ='..'!F26 -> 0 | G26: ='..'!G26 -> 0 | H26: ='..'!I26 -> 0 | I26: ='..'!J26 -> 0 | J26: ='..'!K26 -> 0 | K26: ='..'!L26 -> 23820 | L26: ='..'!M26 -> 23778 | M26: ='..'!N26 -> 28742 | N26: ='..'!O26 -> 28400 | O26: ='..'!P26 -> 28136 | P26: ='..'!Q26 -> 27578 | Q26: ='..'!R26 -> 27166 | R26: ='..'!S26 -> 27310 | S26: ='..'!T26 -> 27992 | T26: ='..'!U26 -> 25838 | U26: ='..'!V26 -> 17672 | V26: ='..'!W26 -> 0 | W26: ='..'!X26 -> 0 | X26: ='..'!Y26 -> 0 | Y26: ='..'!Z26 -> 0 | Z26: ='..'!AA26 -> 0 | AA26: ='..'!AB26 -> 0 | AB26: ='..'!AC26 -> 0 | AC26: ='..'!AD26 -> 0 | AD26: ='..'!AE26 -> 0 | AE26: ='..'!AF26 -> 0 | AF26: ='..'!AG26 -> 0 | AG26: ='..'!AH26 -> 0 | AH26: ='..'!AI26 -> 0 | AI26: ='..'!AJ26 -> 0 | AJ26: ='..'!AK26 -> 0 | AK26: ='..'!AL26 -> 0 | AL26: ='..'!AM26 -> 0 | AM26: ='..'!AN26 -> 0 | AN26: ='..'!AO26 -> 0 | AO26: ='..'!AP26 -> 0
B27: GTS | E27: ='..'!E27 -> 0 | F27: ='..'!F27 -> 0 | G27: ='..'!G27 -> 0 | H27: ='..'!I27 -> 0 | I27: ='..'!J27 -> 0 | J27: ='..'!K27 -> 0 | K27: ='..'!L27 -> 0 | L27: ='..'!M27 -> 0 | M27: ='..'!N27 -> 0 | N27: ='..'!O27 -> 0 | O27: ='..'!P27 -> 0 | P27: ='..'!Q27 -> 0 | Q27: ='..'!R27 -> 0 | R27: ='..'!S27 -> 0 | S27: ='..'!T27 -> 0 | T27: ='..'!U27 -> 0 | U27: ='..'!V27 -> 0 | V27: ='..'!W27 -> 0 | W27: ='..'!X27 -> 0 | X27: ='..'!Y27 -> 0 | Y27: ='..'!Z27 -> 0 | Z27: ='..'!AA27 -> 0 | AA27: ='..'!AB27 -> 0 | AB27: ='..'!AC27 -> 0 | AC27: ='..'!AD27 -> 0 | AD27: ='..'!AE27 -> 0 | AE27: ='..'!AF27 -> 0 | AF27: ='..'!AG27 -> 0 | AG27: ='..'!AH27 -> 0 | AH27: ='..'!AI27 -> 0 | AI27: ='..'!AJ27 -> 0 | AJ27: ='..'!AK27 -> 0 | AK27: ='..'!AL27 -> 0 | AL27: ='..'!AM27 -> 0 | AM27: ='..'!AN27 -> 0 | AN27: ='..'!AO27 -> 0 | AO27: ='..'!AP27 -> 0
A28: ='..'!A28 -> 17 | B28: ='..'!B28 -> DATA CREDIT | C28: ='..'!C28 -> 734 | D28: BÌNH, A QUANG, A TÚ, HƯƠNG | E28: ='..'!E28 -> 0 | F28: ='..'!F28 -> 0 | G28: ='..'!G28 -> 0 | H28: ='..'!I28 -> 0 | I28: ='..'!J28 -> 0 | J28: ='..'!K28 -> 0 | K28: ='..'!L28 -> 420 | L28: ='..'!M28 -> 0 | M28: ='..'!N28 -> 282 | N28: ='..'!O28 -> 516 | O28: ='..'!P28 -> 420 | P28: ='..'!Q28 -> 0 | Q28: ='..'!R28 -> 174 | R28: ='..'!S28 -> 330 | S28: ='..'!T28 -> 498 | T28: ='..'!U28 -> 324 | U28: ='..'!V28 -> 0 | V28: ='..'!W28 -> 0 | W28: ='..'!X28 -> 0 | X28: ='..'!Y28 -> 0 | Y28: ='..'!Z28 -> 0 | Z28: ='..'!AA28 -> 0 | AA28: ='..'!AB28 -> 0 | AB28: ='..'!AC28 -> 0 | AC28: ='..'!AD28 -> 0 | AD28: ='..'!AE28 -> 0 | AE28: ='..'!AF28 -> 0 | AF28: ='..'!AG28 -> 0 | AG28: ='..'!AH28 -> 0 | AH28: ='..'!AI28 -> 0 | AI28: ='..'!AJ28 -> 0 | AJ28: ='..'!AK28 -> 0 | AK28: ='..'!AL28 -> 0 | AL28: ='..'!AM28 -> 0 | AM28: ='..'!AN28 -> 0 | AN28: ='..'!AO28 -> 0 | AO28: ='..'!AP28 -> 0
B29: VIETTECH
B30: TELEMOR
A31: 18 | B31: HOROSCOPE | C31: 184 | D31: BÌNH, A QUANG, TÚ, DU | N31: $108,3 | O31: 106,65 | P31: 107,35 | Q31: 177 | R31: 165,05 | S31: 188,2 | T31: 175,2 | U31: 158,5
B32: TOTAL
A34: REGISTER
A36: NO. | B36: VAS CODE | G36: ="Acc "&$H$4& " / "&$I$4 -> Acc COMPARE LAST MONTH / | H36: COMPARE LAST MONTH | K36: Friday | L36: Friday | M36: Friday | N36: Friday | O36: Friday | P36: Friday | Q36: Friday | R36: Friday | S36: Friday | T36: Friday | U36: Friday | V36: Friday | W36: Friday | X36: Friday | Y36: Friday | Z36: Friday | AA36: Friday | AB36: Friday | AC36: Friday | AD36: Friday | AE36: Friday | AF36: Friday | AG36: Friday | AH36: Friday | AI36: Friday | AJ36: Friday | AK36: Friday | AL36: Friday | AM36: Friday | AN36: Friday | AO36: Friday
C37: SHORTCODE | H37: Acc last month | I37: +/- | J37: % | K37: 1 | L37: 2 | M37: 3 | N37: 4 | O37: 5 | P37: 6 | Q37: 7 | R37: 8 | S37: 9 | T37: 10 | U37: 11 | V37: 12 | W37: 13 | X37: 14 | Y37: 15 | Z37: 16 | AA37: 17 | AB37: 18 | AC37: 19 | AD37: 20 | AE37: 21 | AF37: 22 | AG37: 23 | AH37: 24 | AI37: 25 | AJ37: 26 | AK37: 27 | AL37: 28 | AM37: 29 | AN37: 30 | AO37: 31
B38: ='..'!B48 -> NATCOM
A39: ='..'!A49 -> 1 | B39: ='..'!B49 -> BON_INFO,SMS INFOR | C39: ='..'!C49 -> LUCKYCODE | D39: ='..'!D49 -> 0 | E39: ='..'!E49 -> 0 | F39: ='..'!F49 -> 0 | G39: ='..'!G49 -> 0 | H39: ='..'!I49 -> 0 | I39: ='..'!J49 -> 0 | J39: ='..'!K49 -> 0 | K39: ='..'!L49 -> 135 | L39: ='..'!M49 -> 122 | M39: ='..'!N49 -> 119 | N39: ='..'!O49 -> 105 | O39: ='..'!P49 -> 172 | P39: ='..'!Q49 -> 1016 | Q39: ='..'!R49 -> 1805 | R39: ='..'!S49 -> 1689 | S39: ='..'!T49 -> 1524 | T39: ='..'!U49 -> 31 | U39: ='..'!V49 -> 838 | V39: ='..'!W49 -> 0 | W39: ='..'!X49 -> 0 | X39: ='..'!Y49 -> 0 | Y39: ='..'!Z49 -> 0 | Z39: ='..'!AA49 -> 0 | AA39: ='..'!AB49 -> 0 | AB39: ='..'!AC49 -> 0 | AC39: ='..'!AD49 -> 0 | AD39: ='..'!AE49 -> 0 | AE39: ='..'!AF49 -> 0 | AF39: ='..'!AG49 -> 0 | AG39: ='..'!AH49 -> 0 | AH39: ='..'!AI49 -> 0 | AI39: ='..'!AJ49 -> 0 | AJ39: ='..'!AK49 -> 0 | AK39: ='..'!AL49 -> 0 | AL39: ='..'!AM49 -> 0 | AM39: ='..'!AN49 -> 0 | AN39: ='..'!AO49 -> 0 | AO39: ='..'!AP49 -> 0
A40: ='..'!A50 -> 2 | B40: ='..'!B50 -> IVR_INFOR | C40: ='..'!C50 -> LUCKYCODE | D40: ='..'!D50 -> 0 | E40: ='..'!E50 -> 0 | F40: ='..'!F50 -> 0 | G40: ='..'!G50 -> 0 | H40: ='..'!I50 -> 0 | I40: ='..'!J50 -> 0 | J40: ='..'!K50 -> 0 | K40: ='..'!L50 -> 9 | L40: ='..'!M50 -> 6 | M40: ='..'!N50 -> 4 | N40: ='..'!O50 -> 4 | O40: ='..'!P50 -> 9 | P40: ='..'!Q50 -> 7 | Q40: ='..'!R50 -> 16 | R40: ='..'!S50 -> 13 | S40: ='..'!T50 -> 11 | T40: ='..'!U50 -> 7 | U40: ='..'!V50 -> 7 | V40: ='..'!W50 -> 0 | W40: ='..'!X50 -> 0 | X40: ='..'!Y50 -> 0 | Y40: ='..'!Z50 -> 0 | Z40: ='..'!AA50 -> 0 | AA40: ='..'!AB50 -> 0 | AB40: ='..'!AC50 -> 0 | AC40: ='..'!AD50 -> 0 | AD40: ='..'!AE50 -> 0 | AE40: ='..'!AF50 -> 0 | AF40: ='..'!AG50 -> 0 | AG40: ='..'!AH50 -> 0 | AH40: ='..'!AI50 -> 0 | AI40: ='..'!AJ50 -> 0 | AJ40: ='..'!AK50 -> 0 | AK40: ='..'!AL50 -> 0 | AL40: ='..'!AM50 -> 0 | AM40: ='..'!AN50 -> 0 | AN40: ='..'!AO50 -> 0 | AO40: ='..'!AP50 -> 0
A41: ='..'!A51 -> 3 | B41: ='..'!B51 -> LUCKY_SPIN | C41: ='..'!C51 -> 7878, Lawoulet | D41: ='..'!D51 -> 0 | E41: ='..'!E51 -> 0 | F41: ='..'!F51 -> 0 | G41: ='..'!G51 -> 0 | H41: ='..'!I51 -> 0 | I41: ='..'!J51 -> 0 | J41: ='..'!K51 -> 0 | K41: ='..'!L51 -> 998 | L41: ='..'!M51 -> 986 | M41: ='..'!N51 -> 1285 | N41: ='..'!O51 -> 1100 | O41: ='..'!P51 -> 900 | P41: ='..'!Q51 -> 286 | Q41: ='..'!R51 -> 422 | R41: ='..'!S51 -> 241 | S41: ='..'!T51 -> 108 | T41: ='..'!U51 -> 170 | U41: ='..'!V51 -> 51 | V41: ='..'!W51 -> 0 | W41: ='..'!X51 -> 0 | X41: ='..'!Y51 -> 0 | Y41: ='..'!Z51 -> 0 | Z41: ='..'!AA51 -> 0 | AA41: ='..'!AB51 -> 0 | AB41: ='..'!AC51 -> 0 | AC41: ='..'!AD51 -> 0 | AD41: ='..'!AE51 -> 0 | AE41: ='..'!AF51 -> 0 | AF41: ='..'!AG51 -> 0 | AG41: ='..'!AH51 -> 0 | AH41: ='..'!AI51 -> 0 | AI41: ='..'!AJ51 -> 0 | AJ41: ='..'!AK51 -> 0 | AK41: ='..'!AL51 -> 0 | AL41: ='..'!AM51 -> 0 | AM41: ='..'!AN51 -> 0 | AN41: ='..'!AO51 -> 0 | AO41: ='..'!AP51 -> 0
A42: ='..'!A52 -> 4 | B42: ='..'!B52 -> LUCKY_CARD | C42: ='..'!C52 -> LUCKYCODE | D42: ='..'!D52 -> 0 | E42: ='..'!E52 -> 0 | F42: ='..'!F52 -> 0 | G42: ='..'!G52 -> 0 | H42: ='..'!I52 -> 0 | I42: ='..'!J52 -> 0 | J42: ='..'!K52 -> 0 | K42: ='..'!L52 -> 942 | L42: ='..'!M52 -> 994 | M42: ='..'!N52 -> 1527 | N42: ='..'!O52 -> 1016 | O42: ='..'!P52 -> 920 | P42: ='..'!Q52 -> 77 | Q42: ='..'!R52 -> 50 | R42: ='..'!S52 -> 41 | S42: ='..'!T52 -> 41 | T42: ='..'!U52 -> 48 | U42: ='..'!V52 -> 395 | V42: ='..'!W52 -> 0 | W42: ='..'!X52 -> 0 | X42: ='..'!Y52 -> 0 | Y42: ='..'!Z52 -> 0 | Z42: ='..'!AA52 -> 0 | AA42: ='..'!AB52 -> 0 | AB42: ='..'!AC52 -> 0 | AC42: ='..'!AD52 -> 0 | AD42: ='..'!AE52 -> 0 | AE42: ='..'!AF52 -> 0 | AF42: ='..'!AG52 -> 0 | AG42: ='..'!AH52 -> 0 | AH42: ='..'!AI52 -> 0 | AI42: ='..'!AJ52 -> 0 | AJ42: ='..'!AK52 -> 0 | AK42: ='..'!AL52 -> 0 | AL42: ='..'!AM52 -> 0 | AM42: ='..'!AN52 -> 0 | AN42: ='..'!AO52 -> 0 | AO42: ='..'!AP52 -> 0
A43: ='..'!A53 -> 5 | B43: ='..'!B53 -> IVR_DATING | C43: ='..'!C53 -> 933 | D43: ='..'!D53 -> 0 | E43: ='..'!E53 -> 0 | F43: ='..'!F53 -> 0 | G43: ='..'!G53 -> 0 | H43: ='..'!I53 -> 0 | I43: ='..'!J53 -> 0 | J43: ='..'!K53 -> 0 | K43: ='..'!L53 -> 27 | L43: ='..'!M53 -> 37 | M43: ='..'!N53 -> 31 | N43: ='..'!O53 -> 49 | O43: ='..'!P53 -> 181 | P43: ='..'!Q53 -> 43 | Q43: ='..'!R53 -> 36 | R43: ='..'!S53 -> 0 | S43: ='..'!T53 -> 0 | T43: ='..'!U53 -> 67 | U43: ='..'!V53 -> 544 | V43: ='..'!W53 -> 0 | W43: ='..'!X53 -> 0 | X43: ='..'!Y53 -> 0 | Y43: ='..'!Z53 -> 0 | Z43: ='..'!AA53 -> 0 | AA43: ='..'!AB53 -> 0 | AB43: ='..'!AC53 -> 0 | AC43: ='..'!AD53 -> 0 | AD43: ='..'!AE53 -> 0 | AE43: ='..'!AF53 -> 0 | AF43: ='..'!AG53 -> 0 | AG43: ='..'!AH53 -> 0 | AH43: ='..'!AI53 -> 0 | AI43: ='..'!AJ53 -> 0 | AJ43: ='..'!AK53 -> 0 | AK43: ='..'!AL53 -> 0 | AL43: ='..'!AM53 -> 0 | AM43: ='..'!AN53 -> 0 | AN43: ='..'!AO53 -> 0 | AO43: ='..'!AP53 -> 0
A44: ='..'!A54 -> 6 | B44: ='..'!B54 -> Lucky Draw | C44: ='..'!C54 -> 556 | D44: ='..'!D54 -> 0 | E44: ='..'!E54 -> 0 | F44: ='..'!F54 -> 0 | G44: ='..'!G54 -> 0 | H44: ='..'!I54 -> 0 | I44: ='..'!J54 -> 0 | J44: ='..'!K54 -> 0 | K44: ='..'!L54 -> 1165 | L44: ='..'!M54 -> 1162 | M44: ='..'!N54 -> 1280 | N44: ='..'!O54 -> 1276 | O44: ='..'!P54 -> 1387 | P44: ='..'!Q54 -> 1272 | Q44: ='..'!R54 -> 1211 | R44: ='..'!S54 -> 1212 | S44: ='..'!T54 -> 1075 | T44: ='..'!U54 -> 602 | U44: ='..'!V54 -> 15 | V44: ='..'!W54 -> 0 | W44: ='..'!X54 -> 0 | X44: ='..'!Y54 -> 0 | Y44: ='..'!Z54 -> 0 | Z44: ='..'!AA54 -> 0 | AA44: ='..'!AB54 -> 0 | AB44: ='..'!AC54 -> 0 | AC44: ='..'!AD54 -> 0 | AD44: ='..'!AE54 -> 0 | AE44: ='..'!AF54 -> 0 | AF44: ='..'!AG54 -> 0 | AG44: ='..'!AH54 -> 0 | AH44: ='..'!AI54 -> 0 | AI44: ='..'!AJ54 -> 0 | AJ44: ='..'!AK54 -> 0 | AK44: ='..'!AL54 -> 0 | AL44: ='..'!AM54 -> 0 | AM44: ='..'!AN54 -> 0 | AN44: ='..'!AO54 -> 0 | AO44: ='..'!AP54 -> 0
A45: ='..'!A55 -> 7 | B45: ='..'!B55 -> LUCKY_WORD | C45: ='..'!C55 -> LUCKYCODE | D45: ='..'!D55 -> 0 | E45: ='..'!E55 -> 0 | F45: ='..'!F55 -> 0 | G45: ='..'!G55 -> 0 | H45: ='..'!I55 -> 0 | I45: ='..'!J55 -> 0 | J45: ='..'!K55 -> 0 | K45: ='..'!L55 -> 65 | L45: ='..'!M55 -> 58 | M45: ='..'!N55 -> 54 | N45: ='..'!O55 -> 438 | O45: ='..'!P55 -> 287 | P45: ='..'!Q55 -> 863 | Q45: ='..'!R55 -> 70 | R45: ='..'!S55 -> 56 | S45: ='..'!T55 -> 51 | T45: ='..'!U55 -> 31 | U45: ='..'!V55 -> 13 | V45: ='..'!W55 -> 0 | W45: ='..'!X55 -> 0 | X45: ='..'!Y55 -> 0 | Y45: ='..'!Z55 -> 0 | Z45: ='..'!AA55 -> 0 | AA45: ='..'!AB55 -> 0 | AB45: ='..'!AC55 -> 0 | AC45: ='..'!AD55 -> 0 | AD45: ='..'!AE55 -> 0 | AE45: ='..'!AF55 -> 0 | AF45: ='..'!AG55 -> 0 | AG45: ='..'!AH55 -> 0 | AH45: ='..'!AI55 -> 0 | AI45: ='..'!AJ55 -> 0 | AJ45: ='..'!AK55 -> 0 | AK45: ='..'!AL55 -> 0 | AL45: ='..'!AM55 -> 0 | AM45: ='..'!AN55 -> 0 | AN45: ='..'!AO55 -> 0 | AO45: ='..'!AP55 -> 0
A46: ='..'!A56 -> 8 | B46: ='..'!B56 -> HOROSCOPE | C46: ='..'!C56 -> LUCKYCODE | D46: ='..'!D56 -> 0 | E46: ='..'!E56 -> 0 | F46: ='..'!F56 -> 0 | G46: ='..'!G56 -> 0 | H46: ='..'!I56 -> 0 | I46: ='..'!J56 -> 0 | J46: ='..'!K56 -> 0 | K46: ='..'!L56 -> 5130 | L46: ='..'!M56 -> 4748 | M46: ='..'!N56 -> 4672 | N46: ='..'!O56 -> 4757 | O46: ='..'!P56 -> 4779 | P46: ='..'!Q56 -> 4688 | Q46: ='..'!R56 -> 4548 | R46: ='..'!S56 -> 4602 | S46: ='..'!T56 -> 4528 | T46: ='..'!U56 -> 4486 | U46: ='..'!V56 -> 2073 | V46: ='..'!W56 -> 0 | W46: ='..'!X56 -> 0 | X46: ='..'!Y56 -> 0 | Y46: ='..'!Z56 -> 0 | Z46: ='..'!AA56 -> 0 | AA46: ='..'!AB56 -> 0 | AB46: ='..'!AC56 -> 0 | AC46: ='..'!AD56 -> 0 | AD46: ='..'!AE56 -> 0 | AE46: ='..'!AF56 -> 0 | AF46: ='..'!AG56 -> 0 | AG46: ='..'!AH56 -> 0 | AH46: ='..'!AI56 -> 0 | AI46: ='..'!AJ56 -> 0 | AJ46: ='..'!AK56 -> 0 | AK46: ='..'!AL56 -> 0 | AL46: ='..'!AM56 -> 0 | AM46: ='..'!AN56 -> 0 | AN46: ='..'!AO56 -> 0 | AO46: ='..'!AP56 -> 0
A47: ='..'!A57 -> 9 | B47: ='..'!B57 -> IVR_RADIO | C47: ='..'!C57 -> 945 | D47: ='..'!D57 -> 0 | E47: ='..'!E57 -> 0 | F47: ='..'!F57 -> 0 | G47: ='..'!G57 -> 0 | H47: ='..'!I57 -> 0 | I47: ='..'!J57 -> 0 | J47: ='..'!K57 -> 0 | K47: ='..'!L57 -> 55 | L47: ='..'!M57 -> 0 | M47: ='..'!N57 -> 0 | N47: ='..'!O57 -> 52 | O47: ='..'!P57 -> 137 | P47: ='..'!Q57 -> 38 | Q47: ='..'!R57 -> 0 | R47: ='..'!S57 -> 0 | S47: ='..'!T57 -> 54 | T47: ='..'!U57 -> 205 | U47: ='..'!V57 -> 234 | V47: ='..'!W57 -> 0 | W47: ='..'!X57 -> 0 | X47: ='..'!Y57 -> 0 | Y47: ='..'!Z57 -> 0 | Z47: ='..'!AA57 -> 0 | AA47: ='..'!AB57 -> 0 | AB47: ='..'!AC57 -> 0 | AC47: ='..'!AD57 -> 0 | AD47: ='..'!AE57 -> 0 | AE47: ='..'!AF57 -> 0 | AF47: ='..'!AG57 -> 0 | AG47: ='..'!AH57 -> 0 | AH47: ='..'!AI57 -> 0 | AI47: ='..'!AJ57 -> 0 | AJ47: ='..'!AK57 -> 0 | AK47: ='..'!AL57 -> 0 | AL47: ='..'!AM57 -> 0 | AM47: ='..'!AN57 -> 0 | AN47: ='..'!AO57 -> 0 | AO47: ='..'!AP57 -> 0
A48: ='..'!A58 -> 10 | B48: ='..'!B58 -> CALL_PRO | C48: ='..'!C58 -> 526 | D48: ='..'!D58 -> 0 | E48: ='..'!E58 -> 0 | F48: ='..'!F58 -> 0 | G48: ='..'!G58 -> 0 | H48: ='..'!I58 -> 0 | I48: ='..'!J58 -> 0 | J48: ='..'!K58 -> 0 | K48: ='..'!L58 -> 0 | L48: ='..'!M58 -> 836 | M48: ='..'!N58 -> 1347 | N48: ='..'!O58 -> 1660 | O48: ='..'!P58 -> 1459 | P48: ='..'!Q58 -> 1561 | Q48: ='..'!R58 -> 1454 | R48: ='..'!S58 -> 1494 | S48: ='..'!T58 -> 1388 | T48: ='..'!U58 -> 1424 | U48: ='..'!V58 -> 15 | V48: ='..'!W58 -> 0 | W48: ='..'!X58 -> 0 | X48: ='..'!Y58 -> 0 | Y48: ='..'!Z58 -> 0 | Z48: ='..'!AA58 -> 0 | AA48: ='..'!AB58 -> 0 | AB48: ='..'!AC58 -> 0 | AC48: ='..'!AD58 -> 0 | AD48: ='..'!AE58 -> 0 | AE48: ='..'!AF58 -> 0 | AF48: ='..'!AG58 -> 0 | AG48: ='..'!AH58 -> 0 | AH48: ='..'!AI58 -> 0 | AI48: ='..'!AJ58 -> 0 | AJ48: ='..'!AK58 -> 0 | AK48: ='..'!AL58 -> 0 | AL48: ='..'!AM58 -> 0 | AM48: ='..'!AN58 -> 0 | AN48: ='..'!AO58 -> 0 | AO48: ='..'!AP58 -> 0
A49: ='..'!A59 -> 11 | B49: ='..'!B59 -> MILLIONAIRE | C49: ='..'!C59 -> 8585,Jetmilyone | D49: ='..'!D59 -> 0 | E49: ='..'!E59 -> 0 | F49: ='..'!F59 -> 0 | G49: ='..'!G59 -> 0 | H49: ='..'!I59 -> 0 | I49: ='..'!J59 -> 0 | J49: ='..'!K59 -> 0 | K49: ='..'!L59 -> 62 | L49: ='..'!M59 -> 71 | M49: ='..'!N59 -> 54 | N49: ='..'!O59 -> 51 | O49: ='..'!P59 -> 37 | P49: ='..'!Q59 -> 45 | Q49: ='..'!R59 -> 40 | R49: ='..'!S59 -> 51 | S49: ='..'!T59 -> 46 | T49: ='..'!U59 -> 33 | U49: ='..'!V59 -> 1 | V49: ='..'!W59 -> 0 | W49: ='..'!X59 -> 0 | X49: ='..'!Y59 -> 0 | Y49: ='..'!Z59 -> 0 | Z49: ='..'!AA59 -> 0 | AA49: ='..'!AB59 -> 0 | AB49: ='..'!AC59 -> 0 | AC49: ='..'!AD59 -> 0 | AD49: ='..'!AE59 -> 0 | AE49: ='..'!AF59 -> 0 | AF49: ='..'!AG59 -> 0 | AG49: ='..'!AH59 -> 0 | AH49: ='..'!AI59 -> 0 | AI49: ='..'!AJ59 -> 0 | AJ49: ='..'!AK59 -> 0 | AK49: ='..'!AL59 -> 0 | AL49: ='..'!AM59 -> 0 | AM49: ='..'!AN59 -> 0 | AN49: ='..'!AO59 -> 0 | AO49: ='..'!AP59 -> 0
A50: ='..'!A60 -> 12 | B50: ='..'!B60 -> NEW_VOTING | C50: ='..'!C60 -> MY TEAM | D50: ='..'!D60 -> 0 | E50: ='..'!E60 -> 0 | F50: ='..'!F60 -> 0 | G50: ='..'!G60 -> 0 | H50: ='..'!I60 -> 0 | I50: ='..'!J60 -> 0 | J50: ='..'!K60 -> 0 | K50: ='..'!L60 -> 216 | L50: ='..'!M60 -> 366 | M50: ='..'!N60 -> 156 | N50: ='..'!O60 -> 157 | O50: ='..'!P60 -> 197 | P50: ='..'!Q60 -> 257 | Q50: ='..'!R60 -> 137 | R50: ='..'!S60 -> 132 | S50: ='..'!T60 -> 163 | T50: ='..'!U60 -> 145 | U50: ='..'!V60 -> 97 | V50: ='..'!W60 -> 0 | W50: ='..'!X60 -> 0 | X50: ='..'!Y60 -> 0 | Y50: ='..'!Z60 -> 0 | Z50: ='..'!AA60 -> 0 | AA50: ='..'!AB60 -> 0 | AB50: ='..'!AC60 -> 0 | AC50: ='..'!AD60 -> 0 | AD50: ='..'!AE60 -> 0 | AE50: ='..'!AF60 -> 0 | AF50: ='..'!AG60 -> 0 | AG50: ='..'!AH60 -> 0 | AH50: ='..'!AI60 -> 0 | AI50: ='..'!AJ60 -> 0 | AJ50: ='..'!AK60 -> 0 | AK50: ='..'!AL60 -> 0 | AL50: ='..'!AM60 -> 0 | AM50: ='..'!AN60 -> 0 | AN50: ='..'!AO60 -> 0 | AO50: ='..'!AP60 -> 0
A51: ='..'!A61 -> 13 | B51: ='..'!B61 -> USSD_CHATTING | C51: ='..'!C61 -> 7979 | D51: ='..'!D61 -> 0 | E51: ='..'!E61 -> 0 | F51: ='..'!F61 -> 0 | G51: ='..'!G61 -> 0 | H51: ='..'!I61 -> 0 | I51: ='..'!J61 -> 0 | J51: ='..'!K61 -> 0 | K51: ='..'!L61 -> 0 | L51: ='..'!M61 -> 0 | M51: ='..'!N61 -> 0 | N51: ='..'!O61 -> 0 | O51: ='..'!P61 -> 0 | P51: ='..'!Q61 -> 0 | Q51: ='..'!R61 -> 0 | R51: ='..'!S61 -> 0 | S51: ='..'!T61 -> 0 | T51: ='..'!U61 -> 0 | U51: ='..'!V61 -> 0 | V51: ='..'!W61 -> 0 | W51: ='..'!X61 -> 0 | X51: ='..'!Y61 -> 0 | Y51: ='..'!Z61 -> 0 | Z51: ='..'!AA61 -> 0 | AA51: ='..'!AB61 -> 0 | AB51: ='..'!AC61 -> 0 | AC51: ='..'!AD61 -> 0 | AD51: ='..'!AE61 -> 0 | AE51: ='..'!AF61 -> 0 | AF51: ='..'!AG61 -> 0 | AG51: ='..'!AH61 -> 0 | AH51: ='..'!AI61 -> 0 | AI51: ='..'!AJ61 -> 0 | AJ51: ='..'!AK61 -> 0 | AK51: ='..'!AL61 -> 0 | AL51: ='..'!AM61 -> 0 | AM51: ='..'!AN61 -> 0 | AN51: ='..'!AO61 -> 0 | AO51: ='..'!AP61 -> 0
A52: ='..'!A62 -> 14 | B52: ='..'!B62 -> BACKGROUND_MUSIC | C52: ='..'!C62 -> 689 | D52: ='..'!D62 -> 0 | E52: ='..'!E62 -> 0 | F52: ='..'!F62 -> 0 | G52: ='..'!G62 -> 0 | H52: ='..'!I62 -> 0 | I52: ='..'!J62 -> 0 | J52: ='..'!K62 -> 0 | K52: ='..'!L62 -> 52 | L52: ='..'!M62 -> 42 | M52: ='..'!N62 -> 45 | N52: ='..'!O62 -> 36 | O52: ='..'!P62 -> 45 | P52: ='..'!Q62 -> 51 | Q52: ='..'!R62 -> 51 | R52: ='..'!S62 -> 46 | S52: ='..'!T62 -> 44 | T52: ='..'!U62 -> 34 | U52: ='..'!V62 -> 17 | V52: ='..'!W62 -> 0 | W52: ='..'!X62 -> 0 | X52: ='..'!Y62 -> 0 | Y52: ='..'!Z62 -> 0 | Z52: ='..'!AA62 -> 0 | AA52: ='..'!AB62 -> 0 | AB52: ='..'!AC62 -> 0 | AC52: ='..'!AD62 -> 0 | AD52: ='..'!AE62 -> 0 | AE52: ='..'!AF62 -> 0 | AF52: ='..'!AG62 -> 0 | AG52: ='..'!AH62 -> 0 | AH52: ='..'!AI62 -> 0 | AI52: ='..'!AJ62 -> 0 | AJ52: ='..'!AK62 -> 0 | AK52: ='..'!AL62 -> 0 | AL52: ='..'!AM62 -> 0 | AM52: ='..'!AN62 -> 0 | AN52: ='..'!AO62 -> 0 | AO52: ='..'!AP62 -> 0
A53: ='..'!A63 -> 15 | B53: ='..'!B63 -> LUCKY_ROULETTE | C53: ='..'!C63 -> BINGO, 5500 | D53: ='..'!D63 -> 0 | E53: ='..'!E63 -> 0 | F53: ='..'!F63 -> 0 | G53: ='..'!G63 -> 0 | H53: ='..'!I63 -> 0 | I53: ='..'!J63 -> 0 | J53: ='..'!K63 -> 0 | K53: ='..'!L63 -> 96 | L53: ='..'!M63 -> 75 | M53: ='..'!N63 -> 83 | N53: ='..'!O63 -> 161 | O53: ='..'!P63 -> 159 | P53: ='..'!Q63 -> 120 | Q53: ='..'!R63 -> 164 | R53: ='..'!S63 -> 82 | S53: ='..'!T63 -> 82 | T53: ='..'!U63 -> 499 | U53: ='..'!V63 -> 99 | V53: ='..'!W63 -> 0 | W53: ='..'!X63 -> 0 | X53: ='..'!Y63 -> 0 | Y53: ='..'!Z63 -> 0 | Z53: ='..'!AA63 -> 0 | AA53: ='..'!AB63 -> 0 | AB53: ='..'!AC63 -> 0 | AC53: ='..'!AD63 -> 0 | AD53: ='..'!AE63 -> 0 | AE53: ='..'!AF63 -> 0 | AF53: ='..'!AG63 -> 0 | AG53: ='..'!AH63 -> 0 | AH53: ='..'!AI63 -> 0 | AI53: ='..'!AJ63 -> 0 | AJ53: ='..'!AK63 -> 0 | AK53: ='..'!AL63 -> 0 | AL53: ='..'!AM63 -> 0 | AM53: ='..'!AN63 -> 0 | AN53: ='..'!AO63 -> 0 | AO53: ='..'!AP63 -> 0
A54: ='..'!A64 -> 16 | B54: ='..'!B64 -> GAME_PORTAL | C54: ='..'!C64 -> 834 | D54: ='..'!D64 -> 0 | E54: ='..'!E64 -> 0 | F54: ='..'!F64 -> 0 | G54: ='..'!G64 -> 0 | H54: ='..'!I64 -> 0 | I54: ='..'!J64 -> 0 | J54: ='..'!K64 -> 0 | K54: ='..'!L64 -> 5 | L54: ='..'!M64 -> 7 | M54: ='..'!N64 -> 0 | N54: ='..'!O64 -> 0 | O54: ='..'!P64 -> 0 | P54: ='..'!Q64 -> 7 | Q54: ='..'!R64 -> 0 | R54: ='..'!S64 -> 0 | S54: ='..'!T64 -> 13 | T54: ='..'!U64 -> 14 | U54: ='..'!V64 -> 2 | V54: ='..'!W64 -> 0 | W54: ='..'!X64 -> 0 | X54: ='..'!Y64 -> 0 | Y54: ='..'!Z64 -> 0 | Z54: ='..'!AA64 -> 0 | AA54: ='..'!AB64 -> 0 | AB54: ='..'!AC64 -> 0 | AC54: ='..'!AD64 -> 0 | AD54: ='..'!AE64 -> 0 | AE54: ='..'!AF64 -> 0 | AF54: ='..'!AG64 -> 0 | AG54: ='..'!AH64 -> 0 | AH54: ='..'!AI64 -> 0 | AI54: ='..'!AJ64 -> 0 | AJ54: ='..'!AK64 -> 0 | AK54: ='..'!AL64 -> 0 | AL54: ='..'!AM64 -> 0 | AM54: ='..'!AN64 -> 0 | AN54: ='..'!AO64 -> 0 | AO54: ='..'!AP64 -> 0
A55: ='..'!A65 -> 17 | B55: ='..'!B65 -> DATA CREDIT | C55: ='..'!C65 -> 734 | D55: ='..'!D65 -> 0 | E55: ='..'!E65 -> 0 | F55: ='..'!F65 -> 0 | G55: ='..'!G65 -> 0 | H55: ='..'!I65 -> 0 | I55: ='..'!J65 -> 0 | J55: ='..'!K65 -> 0 | K55: ='..'!L65 -> 0 | L55: ='..'!M65 -> 0 | M55: ='..'!N65 -> 0 | N55: ='..'!O65 -> 0 | O55: ='..'!P65 -> 0 | P55: ='..'!Q65 -> 0 | Q55: ='..'!R65 -> 0 | R55: ='..'!S65 -> 0 | S55: ='..'!T65 -> 0 | T55: ='..'!U65 -> 0 | U55: ='..'!V65 -> 0 | V55: ='..'!W65 -> 0 | W55: ='..'!X65 -> 0 | X55: ='..'!Y65 -> 0 | Y55: ='..'!Z65 -> 0 | Z55: ='..'!AA65 -> 0 | AA55: ='..'!AB65 -> 0 | AB55: ='..'!AC65 -> 0 | AC55: ='..'!AD65 -> 0 | AD55: ='..'!AE65 -> 0 | AE55: ='..'!AF65 -> 0 | AF55: ='..'!AG65 -> 0 | AG55: ='..'!AH65 -> 0 | AH55: ='..'!AI65 -> 0 | AI55: ='..'!AJ65 -> 0 | AJ55: ='..'!AK65 -> 0 | AK55: ='..'!AL65 -> 0 | AL55: ='..'!AM65 -> 0 | AM55: ='..'!AN65 -> 0 | AN55: ='..'!AO65 -> 0 | AO55: ='..'!AP65 -> 0
B56: TELEMOR
A57: 18 | B57: ='..'!B68 -> HOROSCOPE | C57: ='..'!C68 -> 184 | D57: ='..'!D68 -> 0 | E57: ='..'!E68 -> 0 | F57: ='..'!F68 -> 0 | G57: ='..'!G68 -> 0 | H57: ='..'!I68 -> 0 | I57: ='..'!J68 -> 0 | J57: ='..'!K68 -> 0 | K57: ='..'!L68 -> 0 | L57: ='..'!M68 -> 0 | M57: ='..'!N68 -> 0 | N57: ='..'!O68 -> 127 | O57: ='..'!P68 -> 91 | P57: ='..'!Q68 -> 82 | Q57: ='..'!R68 -> 1791 | R57: ='..'!S68 -> 382 | S57: ='..'!T68 -> 1033 | T57: ='..'!U68 -> 228 | U57: ='..'!V68 -> 111 | V57: ='..'!W68 -> 0 | W57: ='..'!X68 -> 0 | X57: ='..'!Y68 -> 0 | Y57: ='..'!Z68 -> 0 | Z57: ='..'!AA68 -> 0 | AA57: ='..'!AB68 -> 0 | AB57: ='..'!AC68 -> 0 | AC57: ='..'!AD68 -> 0 | AD57: ='..'!AE68 -> 0 | AE57: ='..'!AF68 -> 0 | AF57: ='..'!AG68 -> 0 | AG57: ='..'!AH68 -> 0 | AH57: ='..'!AI68 -> 0 | AI57: ='..'!AJ68 -> 0 | AJ57: ='..'!AK68 -> 0 | AK57: ='..'!AL68 -> 0 | AL57: ='..'!AM68 -> 0 | AM57: ='..'!AN68 -> 0 | AN57: ='..'!AO68 -> 0 | AO57: ='..'!AP68 -> 0
A60: CANCEL
A62: NO. | B62: VAS CODE | G62: ="Acc "&$H$4& " / "&$I$4 -> Acc COMPARE LAST MONTH / | H62: COMPARE LAST MONTH | K62: Friday | L62: Friday | M62: Friday | N62: Friday | O62: Friday | P62: Friday | Q62: Friday | R62: Friday | S62: Friday | T62: Friday | U62: Friday | V62: Friday | W62: Friday | X62: Friday | Y62: Friday | Z62: Friday | AA62: Friday | AB62: Friday | AC62: Friday | AD62: Friday | AE62: Friday | AF62: Friday | AG62: Friday | AH62: Friday | AI62: Friday | AJ62: Friday | AK62: Friday | AL62: Friday | AM62: Friday | AN62: Friday | AO62: Friday
C63: SHORTCODE | H63: Acc last month | I63: +/- | J63: % | K63: 1 | L63: 2 | M63: 3 | N63: 4 | O63: 5 | P63: 6 | Q63: 7 | R63: 8 | S63: 9 | T63: 10 | U63: 11 | V63: 12 | W63: 13 | X63: 14 | Y63: 15 | Z63: 16 | AA63: 17 | AB63: 18 | AC63: 19 | AD63: 20 | AE63: 21 | AF63: 22 | AG63: 23 | AH63: 24 | AI63: 25 | AJ63: 26 | AK63: 27 | AL63: 28 | AM63: 29 | AN63: 30 | AO63: 31
B64: NATCOM
A65: ='..'!A49 -> 1 | B65: ='..'!B49 -> BON_INFO,SMS INFOR | C65: ='..'!C49 -> LUCKYCODE | D65: ='..'!D49 -> 0 | E65: ='..'!E49 -> 0 | F65: ='..'!F49 -> 0 | G65: ='..'!G49 -> 0 | H65: ='..'!I49 -> 0 | I65: ='..'!J49 -> 0 | J65: ='..'!K49 -> 0 | K65: ='..'!L49 -> 135 | L65: ='..'!M49 -> 122 | M65: ='..'!N49 -> 119 | N65: ='..'!O49 -> 105 | O65: ='..'!P49 -> 172 | P65: ='..'!Q49 -> 1016 | Q65: ='..'!R49 -> 1805 | R65: ='..'!S49 -> 1689 | S65: ='..'!T49 -> 1524 | T65: ='..'!U49 -> 31 | U65: ='..'!V49 -> 838 | V65: ='..'!W49 -> 0 | W65: ='..'!X49 -> 0 | X65: ='..'!Y49 -> 0 | Y65: ='..'!Z49 -> 0 | Z65: ='..'!AA49 -> 0 | AA65: ='..'!AB49 -> 0 | AB65: ='..'!AC49 -> 0 | AC65: ='..'!AD49 -> 0 | AD65: ='..'!AE49 -> 0 | AE65: ='..'!AF49 -> 0 | AF65: ='..'!AG49 -> 0 | AG65: ='..'!AH49 -> 0 | AH65: ='..'!AI49 -> 0 | AI65: ='..'!AJ49 -> 0 | AJ65: ='..'!AK49 -> 0 | AK65: ='..'!AL49 -> 0 | AL65: ='..'!AM49 -> 0 | AM65: ='..'!AN49 -> 0 | AN65: ='..'!AO49 -> 0 | AO65: ='..'!AP49 -> 0
A66: ='..'!A50 -> 2 | B66: ='..'!B50 -> IVR_INFOR | C66: ='..'!C50 -> LUCKYCODE | D66: ='..'!D50 -> 0 | E66: ='..'!E50 -> 0 | F66: ='..'!F50 -> 0 | G66: ='..'!G50 -> 0 | H66: ='..'!I50 -> 0 | I66: ='..'!J50 -> 0 | J66: ='..'!K50 -> 0 | K66: ='..'!L50 -> 9 | L66: ='..'!M50 -> 6 | M66: ='..'!N50 -> 4 | N66: ='..'!O50 -> 4 | O66: ='..'!P50 -> 9 | P66: ='..'!Q50 -> 7 | Q66: ='..'!R50 -> 16 | R66: ='..'!S50 -> 13 | S66: ='..'!T50 -> 11 | T66: ='..'!U50 -> 7 | U66: ='..'!V50 -> 7 | V66: ='..'!W50 -> 0 | W66: ='..'!X50 -> 0 | X66: ='..'!Y50 -> 0 | Y66: ='..'!Z50 -> 0 | Z66: ='..'!AA50 -> 0 | AA66: ='..'!AB50 -> 0 | AB66: ='..'!AC50 -> 0 | AC66: ='..'!AD50 -> 0 | AD66: ='..'!AE50 -> 0 | AE66: ='..'!AF50 -> 0 | AF66: ='..'!AG50 -> 0 | AG66: ='..'!AH50 -> 0 | AH66: ='..'!AI50 -> 0 | AI66: ='..'!AJ50 -> 0 | AJ66: ='..'!AK50 -> 0 | AK66: ='..'!AL50 -> 0 | AL66: ='..'!AM50 -> 0 | AM66: ='..'!AN50 -> 0 | AN66: ='..'!AO50 -> 0 | AO66: ='..'!AP50 -> 0
A67: ='..'!A51 -> 3 | B67: ='..'!B51 -> LUCKY_SPIN | C67: ='..'!C51 -> 7878, Lawoulet | D67: ='..'!D51 -> 0 | E67: ='..'!E51 -> 0 | F67: ='..'!F51 -> 0 | G67: ='..'!G51 -> 0 | H67: ='..'!I51 -> 0 | I67: ='..'!J51 -> 0 | J67: ='..'!K51 -> 0 | K67: ='..'!L51 -> 998 | L67: ='..'!M51 -> 986 | M67: ='..'!N51 -> 1285 | N67: ='..'!O51 -> 1100 | O67: ='..'!P51 -> 900 | P67: ='..'!Q51 -> 286 | Q67: ='..'!R51 -> 422 | R67: ='..'!S51 -> 241 | S67: ='..'!T51 -> 108 | T67: ='..'!U51 -> 170 | U67: ='..'!V51 -> 51 | V67: ='..'!W51 -> 0 | W67: ='..'!X51 -> 0 | X67: ='..'!Y51 -> 0 | Y67: ='..'!Z51 -> 0 | Z67: ='..'!AA51 -> 0 | AA67: ='..'!AB51 -> 0 | AB67: ='..'!AC51 -> 0 | AC67: ='..'!AD51 -> 0 | AD67: ='..'!AE51 -> 0 | AE67: ='..'!AF51 -> 0 | AF67: ='..'!AG51 -> 0 | AG67: ='..'!AH51 -> 0 | AH67: ='..'!AI51 -> 0 | AI67: ='..'!AJ51 -> 0 | AJ67: ='..'!AK51 -> 0 | AK67: ='..'!AL51 -> 0 | AL67: ='..'!AM51 -> 0 | AM67: ='..'!AN51 -> 0 | AN67: ='..'!AO51 -> 0 | AO67: ='..'!AP51 -> 0
A68: ='..'!A52 -> 4 | B68: ='..'!B52 -> LUCKY_CARD | C68: ='..'!C52 -> LUCKYCODE | D68: ='..'!D52 -> 0 | E68: ='..'!E52 -> 0 | F68: ='..'!F52 -> 0 | G68: ='..'!G52 -> 0 | H68: ='..'!I52 -> 0 | I68: ='..'!J52 -> 0 | J68: ='..'!K52 -> 0 | K68: ='..'!L52 -> 942 | L68: ='..'!M52 -> 994 | M68: ='..'!N52 -> 1527 | N68: ='..'!O52 -> 1016 | O68: ='..'!P52 -> 920 | P68: ='..'!Q52 -> 77 | Q68: ='..'!R52 -> 50 | R68: ='..'!S52 -> 41 | S68: ='..'!T52 -> 41 | T68: ='..'!U52 -> 48 | U68: ='..'!V52 -> 395 | V68: ='..'!W52 -> 0 | W68: ='..'!X52 -> 0 | X68: ='..'!Y52 -> 0 | Y68: ='..'!Z52 -> 0 | Z68: ='..'!AA52 -> 0 | AA68: ='..'!AB52 -> 0 | AB68: ='..'!AC52 -> 0 | AC68: ='..'!AD52 -> 0 | AD68: ='..'!AE52 -> 0 | AE68: ='..'!AF52 -> 0 | AF68: ='..'!AG52 -> 0 | AG68: ='..'!AH52 -> 0 | AH68: ='..'!AI52 -> 0 | AI68: ='..'!AJ52 -> 0 | AJ68: ='..'!AK52 -> 0 | AK68: ='..'!AL52 -> 0 | AL68: ='..'!AM52 -> 0 | AM68: ='..'!AN52 -> 0 | AN68: ='..'!AO52 -> 0 | AO68: ='..'!AP52 -> 0
A69: ='..'!A53 -> 5 | B69: ='..'!B53 -> IVR_DATING | C69: ='..'!C53 -> 933 | D69: ='..'!D53 -> 0 | E69: ='..'!E53 -> 0 | F69: ='..'!F53 -> 0 | G69: ='..'!G53 -> 0 | H69: ='..'!I53 -> 0 | I69: ='..'!J53 -> 0 | J69: ='..'!K53 -> 0 | K69: ='..'!L53 -> 27 | L69: ='..'!M53 -> 37 | M69: ='..'!N53 -> 31 | N69: ='..'!O53 -> 49 | O69: ='..'!P53 -> 181 | P69: ='..'!Q53 -> 43 | Q69: ='..'!R53 -> 36 | R69: ='..'!S53 -> 0 | S69: ='..'!T53 -> 0 | T69: ='..'!U53 -> 67 | U69: ='..'!V53 -> 544 | V69: ='..'!W53 -> 0 | W69: ='..'!X53 -> 0 | X69: ='..'!Y53 -> 0 | Y69: ='..'!Z53 -> 0 | Z69: ='..'!AA53 -> 0 | AA69: ='..'!AB53 -> 0 | AB69: ='..'!AC53 -> 0 | AC69: ='..'!AD53 -> 0 | AD69: ='..'!AE53 -> 0 | AE69: ='..'!AF53 -> 0 | AF69: ='..'!AG53 -> 0 | AG69: ='..'!AH53 -> 0 | AH69: ='..'!AI53 -> 0 | AI69: ='..'!AJ53 -> 0 | AJ69: ='..'!AK53 -> 0 | AK69: ='..'!AL53 -> 0 | AL69: ='..'!AM53 -> 0 | AM69: ='..'!AN53 -> 0 | AN69: ='..'!AO53 -> 0 | AO69: ='..'!AP53 -> 0
A70: ='..'!A54 -> 6 | B70: ='..'!B54 -> Lucky Draw | C70: ='..'!C54 -> 556 | D70: ='..'!D54 -> 0 | E70: ='..'!E54 -> 0 | F70: ='..'!F54 -> 0 | G70: ='..'!G54 -> 0 | H70: ='..'!I54 -> 0 | I70: ='..'!J54 -> 0 | J70: ='..'!K54 -> 0 | K70: ='..'!L54 -> 1165 | L70: ='..'!M54 -> 1162 | M70: ='..'!N54 -> 1280 | N70: ='..'!O54 -> 1276 | O70: ='..'!P54 -> 1387 | P70: ='..'!Q54 -> 1272 | Q70: ='..'!R54 -> 1211 | R70: ='..'!S54 -> 1212 | S70: ='..'!T54 -> 1075 | T70: ='..'!U54 -> 602 | U70: ='..'!V54 -> 15 | V70: ='..'!W54 -> 0 | W70: ='..'!X54 -> 0 | X70: ='..'!Y54 -> 0 | Y70: ='..'!Z54 -> 0 | Z70: ='..'!AA54 -> 0 | AA70: ='..'!AB54 -> 0 | AB70: ='..'!AC54 -> 0 | AC70: ='..'!AD54 -> 0 | AD70: ='..'!AE54 -> 0 | AE70: ='..'!AF54 -> 0 | AF70: ='..'!AG54 -> 0 | AG70: ='..'!AH54 -> 0 | AH70: ='..'!AI54 -> 0 | AI70: ='..'!AJ54 -> 0 | AJ70: ='..'!AK54 -> 0 | AK70: ='..'!AL54 -> 0 | AL70: ='..'!AM54 -> 0 | AM70: ='..'!AN54 -> 0 | AN70: ='..'!AO54 -> 0 | AO70: ='..'!AP54 -> 0
A71: ='..'!A55 -> 7 | B71: ='..'!B55 -> LUCKY_WORD | C71: ='..'!C55 -> LUCKYCODE | D71: ='..'!D55 -> 0 | E71: ='..'!E55 -> 0 | F71: ='..'!F55 -> 0 | G71: ='..'!G55 -> 0 | H71: ='..'!I55 -> 0 | I71: ='..'!J55 -> 0 | J71: ='..'!K55 -> 0 | K71: ='..'!L55 -> 65 | L71: ='..'!M55 -> 58 | M71: ='..'!N55 -> 54 | N71: ='..'!O55 -> 438 | O71: ='..'!P55 -> 287 | P71: ='..'!Q55 -> 863 | Q71: ='..'!R55 -> 70 | R71: ='..'!S55 -> 56 | S71: ='..'!T55 -> 51 | T71: ='..'!U55 -> 31 | U71: ='..'!V55 -> 13 | V71: ='..'!W55 -> 0 | W71: ='..'!X55 -> 0 | X71: ='..'!Y55 -> 0 | Y71: ='..'!Z55 -> 0 | Z71: ='..'!AA55 -> 0 | AA71: ='..'!AB55 -> 0 | AB71: ='..'!AC55 -> 0 | AC71: ='..'!AD55 -> 0 | AD71: ='..'!AE55 -> 0 | AE71: ='..'!AF55 -> 0 | AF71: ='..'!AG55 -> 0 | AG71: ='..'!AH55 -> 0 | AH71: ='..'!AI55 -> 0 | AI71: ='..'!AJ55 -> 0 | AJ71: ='..'!AK55 -> 0 | AK71: ='..'!AL55 -> 0 | AL71: ='..'!AM55 -> 0 | AM71: ='..'!AN55 -> 0 | AN71: ='..'!AO55 -> 0 | AO71: ='..'!AP55 -> 0
A72: ='..'!A56 -> 8 | B72: ='..'!B56 -> HOROSCOPE | C72: ='..'!C56 -> LUCKYCODE | D72: ='..'!D56 -> 0 | E72: ='..'!E56 -> 0 | F72: ='..'!F56 -> 0 | G72: ='..'!G56 -> 0 | H72: ='..'!I56 -> 0 | I72: ='..'!J56 -> 0 | J72: ='..'!K56 -> 0 | K72: ='..'!L56 -> 5130 | L72: ='..'!M56 -> 4748 | M72: ='..'!N56 -> 4672 | N72: ='..'!O56 -> 4757 | O72: ='..'!P56 -> 4779 | P72: ='..'!Q56 -> 4688 | Q72: ='..'!R56 -> 4548 | R72: ='..'!S56 -> 4602 | S72: ='..'!T56 -> 4528 | T72: ='..'!U56 -> 4486 | U72: ='..'!V56 -> 2073 | V72: ='..'!W56 -> 0 | W72: ='..'!X56 -> 0 | X72: ='..'!Y56 -> 0 | Y72: ='..'!Z56 -> 0 | Z72: ='..'!AA56 -> 0 | AA72: ='..'!AB56 -> 0 | AB72: ='..'!AC56 -> 0 | AC72: ='..'!AD56 -> 0 | AD72: ='..'!AE56 -> 0 | AE72: ='..'!AF56 -> 0 | AF72: ='..'!AG56 -> 0 | AG72: ='..'!AH56 -> 0 | AH72: ='..'!AI56 -> 0 | AI72: ='..'!AJ56 -> 0 | AJ72: ='..'!AK56 -> 0 | AK72: ='..'!AL56 -> 0 | AL72: ='..'!AM56 -> 0 | AM72: ='..'!AN56 -> 0 | AN72: ='..'!AO56 -> 0 | AO72: ='..'!AP56 -> 0
A73: ='..'!A57 -> 9 | B73: ='..'!B57 -> IVR_RADIO | C73: ='..'!C57 -> 945 | D73: ='..'!D57 -> 0 | E73: ='..'!E57 -> 0 | F73: ='..'!F57 -> 0 | G73: ='..'!G57 -> 0 | H73: ='..'!I57 -> 0 | I73: ='..'!J57 -> 0 | J73: ='..'!K57 -> 0 | K73: ='..'!L57 -> 55 | L73: ='..'!M57 -> 0 | M73: ='..'!N57 -> 0 | N73: ='..'!O57 -> 52 | O73: ='..'!P57 -> 137 | P73: ='..'!Q57 -> 38 | Q73: ='..'!R57 -> 0 | R73: ='..'!S57 -> 0 | S73: ='..'!T57 -> 54 | T73: ='..'!U57 -> 205 | U73: ='..'!V57 -> 234 | V73: ='..'!W57 -> 0 | W73: ='..'!X57 -> 0 | X73: ='..'!Y57 -> 0 | Y73: ='..'!Z57 -> 0 | Z73: ='..'!AA57 -> 0 | AA73: ='..'!AB57 -> 0 | AB73: ='..'!AC57 -> 0 | AC73: ='..'!AD57 -> 0 | AD73: ='..'!AE57 -> 0 | AE73: ='..'!AF57 -> 0 | AF73: ='..'!AG57 -> 0 | AG73: ='..'!AH57 -> 0 | AH73: ='..'!AI57 -> 0 | AI73: ='..'!AJ57 -> 0 | AJ73: ='..'!AK57 -> 0 | AK73: ='..'!AL57 -> 0 | AL73: ='..'!AM57 -> 0 | AM73: ='..'!AN57 -> 0 | AN73: ='..'!AO57 -> 0 | AO73: ='..'!AP57 -> 0
A74: ='..'!A58 -> 10 | B74: ='..'!B58 -> CALL_PRO | C74: ='..'!C58 -> 526 | D74: ='..'!D58 -> 0 | E74: ='..'!E58 -> 0 | F74: ='..'!F58 -> 0 | G74: ='..'!G58 -> 0 | H74: ='..'!I58 -> 0 | I74: ='..'!J58 -> 0 | J74: ='..'!K58 -> 0 | K74: ='..'!L58 -> 0 | L74: ='..'!M58 -> 836 | M74: ='..'!N58 -> 1347 | N74: ='..'!O58 -> 1660 | O74: ='..'!P58 -> 1459 | P74: ='..'!Q58 -> 1561 | Q74: ='..'!R58 -> 1454 | R74: ='..'!S58 -> 1494 | S74: ='..'!T58 -> 1388 | T74: ='..'!U58 -> 1424 | U74: ='..'!V58 -> 15 | V74: ='..'!W58 -> 0 | W74: ='..'!X58 -> 0 | X74: ='..'!Y58 -> 0 | Y74: ='..'!Z58 -> 0 | Z74: ='..'!AA58 -> 0 | AA74: ='..'!AB58 -> 0 | AB74: ='..'!AC58 -> 0 | AC74: ='..'!AD58 -> 0 | AD74: ='..'!AE58 -> 0 | AE74: ='..'!AF58 -> 0 | AF74: ='..'!AG58 -> 0 | AG74: ='..'!AH58 -> 0 | AH74: ='..'!AI58 -> 0 | AI74: ='..'!AJ58 -> 0 | AJ74: ='..'!AK58 -> 0 | AK74: ='..'!AL58 -> 0 | AL74: ='..'!AM58 -> 0 | AM74: ='..'!AN58 -> 0 | AN74: ='..'!AO58 -> 0 | AO74: ='..'!AP58 -> 0
A75: ='..'!A59 -> 11 | B75: ='..'!B59 -> MILLIONAIRE | C75: ='..'!C59 -> 8585,Jetmilyone | D75: ='..'!D59 -> 0 | E75: ='..'!E59 -> 0 | F75: ='..'!F59 -> 0 | G75: ='..'!G59 -> 0 | H75: ='..'!I59 -> 0 | I75: ='..'!J59 -> 0 | J75: ='..'!K59 -> 0 | K75: ='..'!L59 -> 62 | L75: ='..'!M59 -> 71 | M75: ='..'!N59 -> 54 | N75: ='..'!O59 -> 51 | O75: ='..'!P59 -> 37 | P75: ='..'!Q59 -> 45 | Q75: ='..'!R59 -> 40 | R75: ='..'!S59 -> 51 | S75: ='..'!T59 -> 46 | T75: ='..'!U59 -> 33 | U75: ='..'!V59 -> 1 | V75: ='..'!W59 -> 0 | W75: ='..'!X59 -> 0 | X75: ='..'!Y59 -> 0 | Y75: ='..'!Z59 -> 0 | Z75: ='..'!AA59 -> 0 | AA75: ='..'!AB59 -> 0 | AB75: ='..'!AC59 -> 0 | AC75: ='..'!AD59 -> 0 | AD75: ='..'!AE59 -> 0 | AE75: ='..'!AF59 -> 0 | AF75: ='..'!AG59 -> 0 | AG75: ='..'!AH59 -> 0 | AH75: ='..'!AI59 -> 0 | AI75: ='..'!AJ59 -> 0 | AJ75: ='..'!AK59 -> 0 | AK75: ='..'!AL59 -> 0 | AL75: ='..'!AM59 -> 0 | AM75: ='..'!AN59 -> 0 | AN75: ='..'!AO59 -> 0 | AO75: ='..'!AP59 -> 0
A76: ='..'!A60 -> 12 | B76: ='..'!B60 -> NEW_VOTING | C76: ='..'!C60 -> MY TEAM | D76: ='..'!D60 -> 0 | E76: ='..'!E60 -> 0 | F76: ='..'!F60 -> 0 | G76: ='..'!G60 -> 0 | H76: ='..'!I60 -> 0 | I76: ='..'!J60 -> 0 | J76: ='..'!K60 -> 0 | K76: ='..'!L60 -> 216 | L76: ='..'!M60 -> 366 | M76: ='..'!N60 -> 156 | N76: ='..'!O60 -> 157 | O76: ='..'!P60 -> 197 | P76: ='..'!Q60 -> 257 | Q76: ='..'!R60 -> 137 | R76: ='..'!S60 -> 132 | S76: ='..'!T60 -> 163 | T76: ='..'!U60 -> 145 | U76: ='..'!V60 -> 97 | V76: ='..'!W60 -> 0 | W76: ='..'!X60 -> 0 | X76: ='..'!Y60 -> 0 | Y76: ='..'!Z60 -> 0 | Z76: ='..'!AA60 -> 0 | AA76: ='..'!AB60 -> 0 | AB76: ='..'!AC60 -> 0 | AC76: ='..'!AD60 -> 0 | AD76: ='..'!AE60 -> 0 | AE76: ='..'!AF60 -> 0 | AF76: ='..'!AG60 -> 0 | AG76: ='..'!AH60 -> 0 | AH76: ='..'!AI60 -> 0 | AI76: ='..'!AJ60 -> 0 | AJ76: ='..'!AK60 -> 0 | AK76: ='..'!AL60 -> 0 | AL76: ='..'!AM60 -> 0 | AM76: ='..'!AN60 -> 0 | AN76: ='..'!AO60 -> 0 | AO76: ='..'!AP60 -> 0
A77: ='..'!A61 -> 13 | B77: ='..'!B61 -> USSD_CHATTING | C77: ='..'!C61 -> 7979 | D77: ='..'!D61 -> 0 | E77: ='..'!E61 -> 0 | F77: ='..'!F61 -> 0 | G77: ='..'!G61 -> 0 | H77: ='..'!I61 -> 0 | I77: ='..'!J61 -> 0 | J77: ='..'!K61 -> 0 | K77: ='..'!L61 -> 0 | L77: ='..'!M61 -> 0 | M77: ='..'!N61 -> 0 | N77: ='..'!O61 -> 0 | O77: ='..'!P61 -> 0 | P77: ='..'!Q61 -> 0 | Q77: ='..'!R61 -> 0 | R77: ='..'!S61 -> 0 | S77: ='..'!T61 -> 0 | T77: ='..'!U61 -> 0 | U77: ='..'!V61 -> 0 | V77: ='..'!W61 -> 0 | W77: ='..'!X61 -> 0 | X77: ='..'!Y61 -> 0 | Y77: ='..'!Z61 -> 0 | Z77: ='..'!AA61 -> 0 | AA77: ='..'!AB61 -> 0 | AB77: ='..'!AC61 -> 0 | AC77: ='..'!AD61 -> 0 | AD77: ='..'!AE61 -> 0 | AE77: ='..'!AF61 -> 0 | AF77: ='..'!AG61 -> 0 | AG77: ='..'!AH61 -> 0 | AH77: ='..'!AI61 -> 0 | AI77: ='..'!AJ61 -> 0 | AJ77: ='..'!AK61 -> 0 | AK77: ='..'!AL61 -> 0 | AL77: ='..'!AM61 -> 0 | AM77: ='..'!AN61 -> 0 | AN77: ='..'!AO61 -> 0 | AO77: ='..'!AP61 -> 0
A78: ='..'!A62 -> 14 | B78: ='..'!B62 -> BACKGROUND_MUSIC | C78: ='..'!C62 -> 689 | D78: ='..'!D62 -> 0 | E78: ='..'!E62 -> 0 | F78: ='..'!F62 -> 0 | G78: ='..'!G62 -> 0 | H78: ='..'!I62 -> 0 | I78: ='..'!J62 -> 0 | J78: ='..'!K62 -> 0 | K78: ='..'!L62 -> 52 | L78: ='..'!M62 -> 42 | M78: ='..'!N62 -> 45 | N78: ='..'!O62 -> 36 | O78: ='..'!P62 -> 45 | P78: ='..'!Q62 -> 51 | Q78: ='..'!R62 -> 51 | R78: ='..'!S62 -> 46 | S78: ='..'!T62 -> 44 | T78: ='..'!U62 -> 34 | U78: ='..'!V62 -> 17 | V78: ='..'!W62 -> 0 | W78: ='..'!X62 -> 0 | X78: ='..'!Y62 -> 0 | Y78: ='..'!Z62 -> 0 | Z78: ='..'!AA62 -> 0 | AA78: ='..'!AB62 -> 0 | AB78: ='..'!AC62 -> 0 | AC78: ='..'!AD62 -> 0 | AD78: ='..'!AE62 -> 0 | AE78: ='..'!AF62 -> 0 | AF78: ='..'!AG62 -> 0 | AG78: ='..'!AH62 -> 0 | AH78: ='..'!AI62 -> 0 | AI78: ='..'!AJ62 -> 0 | AJ78: ='..'!AK62 -> 0 | AK78: ='..'!AL62 -> 0 | AL78: ='..'!AM62 -> 0 | AM78: ='..'!AN62 -> 0 | AN78: ='..'!AO62 -> 0 | AO78: ='..'!AP62 -> 0
A79: ='..'!A63 -> 15 | B79: ='..'!B63 -> LUCKY_ROULETTE | C79: ='..'!C63 -> BINGO, 5500 | D79: ='..'!D63 -> 0 | E79: ='..'!E63 -> 0 | F79: ='..'!F63 -> 0 | G79: ='..'!G63 -> 0 | H79: ='..'!I63 -> 0 | I79: ='..'!J63 -> 0 | J79: ='..'!K63 -> 0 | K79: ='..'!L63 -> 96 | L79: ='..'!M63 -> 75 | M79: ='..'!N63 -> 83 | N79: ='..'!O63 -> 161 | O79: ='..'!P63 -> 159 | P79: ='..'!Q63 -> 120 | Q79: ='..'!R63 -> 164 | R79: ='..'!S63 -> 82 | S79: ='..'!T63 -> 82 | T79: ='..'!U63 -> 499 | U79: ='..'!V63 -> 99 | V79: ='..'!W63 -> 0 | W79: ='..'!X63 -> 0 | X79: ='..'!Y63 -> 0 | Y79: ='..'!Z63 -> 0 | Z79: ='..'!AA63 -> 0 | AA79: ='..'!AB63 -> 0 | AB79: ='..'!AC63 -> 0 | AC79: ='..'!AD63 -> 0 | AD79: ='..'!AE63 -> 0 | AE79: ='..'!AF63 -> 0 | AF79: ='..'!AG63 -> 0 | AG79: ='..'!AH63 -> 0 | AH79: ='..'!AI63 -> 0 | AI79: ='..'!AJ63 -> 0 | AJ79: ='..'!AK63 -> 0 | AK79: ='..'!AL63 -> 0 | AL79: ='..'!AM63 -> 0 | AM79: ='..'!AN63 -> 0 | AN79: ='..'!AO63 -> 0 | AO79: ='..'!AP63 -> 0
A80: ='..'!A64 -> 16 | B80: ='..'!B64 -> GAME_PORTAL | C80: ='..'!C64 -> 834 | D80: ='..'!D64 -> 0 | E80: ='..'!E64 -> 0 | F80: ='..'!F64 -> 0 | G80: ='..'!G64 -> 0 | H80: ='..'!I64 -> 0 | I80: ='..'!J64 -> 0 | J80: ='..'!K64 -> 0 | K80: ='..'!L64 -> 5 | L80: ='..'!M64 -> 7 | M80: ='..'!N64 -> 0 | N80: ='..'!O64 -> 0 | O80: ='..'!P64 -> 0 | P80: ='..'!Q64 -> 7 | Q80: ='..'!R64 -> 0 | R80: ='..'!S64 -> 0 | S80: ='..'!T64 -> 13 | T80: ='..'!U64 -> 14 | U80: ='..'!V64 -> 2 | V80: ='..'!W64 -> 0 | W80: ='..'!X64 -> 0 | X80: ='..'!Y64 -> 0 | Y80: ='..'!Z64 -> 0 | Z80: ='..'!AA64 -> 0 | AA80: ='..'!AB64 -> 0 | AB80: ='..'!AC64 -> 0 | AC80: ='..'!AD64 -> 0 | AD80: ='..'!AE64 -> 0 | AE80: ='..'!AF64 -> 0 | AF80: ='..'!AG64 -> 0 | AG80: ='..'!AH64 -> 0 | AH80: ='..'!AI64 -> 0 | AI80: ='..'!AJ64 -> 0 | AJ80: ='..'!AK64 -> 0 | AK80: ='..'!AL64 -> 0 | AL80: ='..'!AM64 -> 0 | AM80: ='..'!AN64 -> 0 | AN80: ='..'!AO64 -> 0 | AO80: ='..'!AP64 -> 0
A81: ='..'!A65 -> 17 | B81: ='..'!B65 -> DATA CREDIT | C81: ='..'!C65 -> 734 | D81: ='..'!D65 -> 0 | E81: ='..'!E65 -> 0 | F81: ='..'!F65 -> 0 | G81: ='..'!G65 -> 0 | H81: ='..'!I65 -> 0 | I81: ='..'!J65 -> 0 | J81: ='..'!K65 -> 0 | K81: ='..'!L65 -> 0 | L81: ='..'!M65 -> 0 | M81: ='..'!N65 -> 0 | N81: ='..'!O65 -> 0 | O81: ='..'!P65 -> 0 | P81: ='..'!Q65 -> 0 | Q81: ='..'!R65 -> 0 | R81: ='..'!S65 -> 0 | S81: ='..'!T65 -> 0 | T81: ='..'!U65 -> 0 | U81: ='..'!V65 -> 0 | V81: ='..'!W65 -> 0 | W81: ='..'!X65 -> 0 | X81: ='..'!Y65 -> 0 | Y81: ='..'!Z65 -> 0 | Z81: ='..'!AA65 -> 0 | AA81: ='..'!AB65 -> 0 | AB81: ='..'!AC65 -> 0 | AC81: ='..'!AD65 -> 0 | AD81: ='..'!AE65 -> 0 | AE81: ='..'!AF65 -> 0 | AF81: ='..'!AG65 -> 0 | AG81: ='..'!AH65 -> 0 | AH81: ='..'!AI65 -> 0 | AI81: ='..'!AJ65 -> 0 | AJ81: ='..'!AK65 -> 0 | AK81: ='..'!AL65 -> 0 | AL81: ='..'!AM65 -> 0 | AM81: ='..'!AN65 -> 0 | AN81: ='..'!AO65 -> 0 | AO81: ='..'!AP65 -> 0
B82: ='..'!B94 -> TELEMOR
A83: 18 | B83: ='..'!B95 -> HOROSCOPE | C83: ='..'!C95 -> 184 | D83: ='..'!D95 -> 0 | E83: ='..'!E95 -> 0 | F83: ='..'!F95 -> 0 | G83: ='..'!G95 -> 0 | H83: ='..'!I95 -> 0 | I83: ='..'!J95 -> 0 | J83: ='..'!K95 -> 0 | K83: ='..'!L95 -> 0 | L83: ='..'!M95 -> 0 | M83: ='..'!N95 -> 0 | N83: ='..'!O95 -> 0 | O83: ='..'!P95 -> 20 | P83: ='..'!Q95 -> 29 | Q83: ='..'!R95 -> 50 | R83: ='..'!S95 -> 34 | S83: ='..'!T95 -> 37 | T83: ='..'!U95 -> 28 | U83: ='..'!V95 -> 15 | V83: ='..'!W95 -> 0 | W83: ='..'!X95 -> 0 | X83: ='..'!Y95 -> 0 | Y83: ='..'!Z95 -> 0 | Z83: ='..'!AA95 -> 0 | AA83: ='..'!AB95 -> 0 | AB83: ='..'!AC95 -> 0 | AC83: ='..'!AD95 -> 0 | AD83: ='..'!AE95 -> 0 | AE83: ='..'!AF95 -> 0 | AF83: ='..'!AG95 -> 0 | AG83: ='..'!AH95 -> 0 | AH83: ='..'!AI95 -> 0 | AI83: ='..'!AJ95 -> 0 | AJ83: ='..'!AK95 -> 0 | AK83: ='..'!AL95 -> 0 | AL83: ='..'!AM95 -> 0 | AM83: ='..'!AN95 -> 0 | AN83: ='..'!AO95 -> 0 | AO83: ='..'!AP95 -> 0
A84: ADD MONEY
A86: NO. | B86: VAS CODE | G86: ="Acc "&$H$4& " / "&$I$4 -> Acc COMPARE LAST MONTH / | H86: COMPARE LAST MONTH | K86: Friday | L86: Friday | M86: Friday | N86: Friday | O86: Friday | P86: Friday | Q86: Friday | R86: Friday | S86: Friday | T86: Friday | U86: Friday | V86: Friday | W86: Friday | X86: Friday | Y86: Friday | Z86: Friday | AA86: Friday | AB86: Friday | AC86: Friday | AD86: Friday | AE86: Friday | AF86: Friday | AG86: Friday | AH86: Friday | AI86: Friday | AJ86: Friday | AK86: Friday | AL86: Friday | AM86: Friday | AN86: Friday | AO86: Friday
C87: SHORTCODE | H87: Acc last month | I87: +/- | J87: % | K87: 1 | L87: 2 | M87: 3 | N87: 4 | O87: 5 | P87: 6 | Q87: 7 | R87: 8 | S87: 9 | T87: 10 | U87: 11 | V87: 12 | W87: 13 | X87: 14 | Y87: 15 | Z87: 16 | AA87: 17 | AB87: 18 | AC87: 19 | AD87: 20 | AE87: 21 | AF87: 22 | AG87: 23 | AH87: 24 | AI87: 25 | AJ87: 26 | AK87: 27 | AL87: 28 | AM87: 29 | AN87: 30 | AO87: 31
B88: ='..'!B100 -> NATCOM
A89: ='..'!A101 -> 1 | B89: ='..'!B101 -> BON_INFO,SMS INFO | C89: ='..'!C101 -> LUCKYCODE | D89: ='..'!D101 -> 0 | E89: ='..'!E101 -> 0 | F89: ='..'!F101 -> 0 | G89: ='..'!G101 -> 0 | H89: ='..'!I101 -> 0 | I89: ='..'!J101 -> 0 | J89: ='..'!K101 -> 0 | K89: ='..'!L101 -> 0 | L89: ='..'!M101 -> 0 | M89: ='..'!N101 -> 0 | N89: ='..'!O101 -> 0 | O89: ='..'!P101 -> 0 | P89: ='..'!Q101 -> 0 | Q89: ='..'!R101 -> 0 | R89: ='..'!S101 -> 0 | S89: ='..'!T101 -> 0 | T89: ='..'!U101 -> 0 | U89: ='..'!V101 -> 0 | V89: ='..'!W101 -> 0 | W89: ='..'!X101 -> 0 | X89: ='..'!Y101 -> 0 | Y89: ='..'!Z101 -> 0 | Z89: ='..'!AA101 -> 0 | AA89: ='..'!AB101 -> 0 | AB89: ='..'!AC101 -> 0 | AC89: ='..'!AD101 -> 0 | AD89: ='..'!AE101 -> 0 | AE89: ='..'!AF101 -> 0 | AF89: ='..'!AG101 -> 0 | AG89: ='..'!AH101 -> 0 | AH89: ='..'!AI101 -> 0 | AI89: ='..'!AJ101 -> 0 | AJ89: ='..'!AK101 -> 0 | AK89: ='..'!AL101 -> 0 | AL89: ='..'!AM101 -> 0 | AM89: ='..'!AN101 -> 0 | AN89: ='..'!AO101 -> 0 | AO89: ='..'!AP101 -> 0
A90: ='..'!A102 -> 2 | B90: ='..'!B102 -> IVR_INFOR | C90: ='..'!C102 -> LUCKYCODE | D90: ='..'!D102 -> 0 | E90: ='..'!E102 -> 0 | F90: ='..'!F102 -> 0 | G90: ='..'!G102 -> 0 | H90: ='..'!I102 -> 0 | I90: ='..'!J102 -> 0 | J90: ='..'!K102 -> 0 | K90: ='..'!L102 -> 0 | L90: ='..'!M102 -> 0 | M90: ='..'!N102 -> 0 | N90: ='..'!O102 -> 0 | O90: ='..'!P102 -> 0 | P90: ='..'!Q102 -> 0 | Q90: ='..'!R102 -> 0 | R90: ='..'!S102 -> 0 | S90: ='..'!T102 -> 0 | T90: ='..'!U102 -> 0 | U90: ='..'!V102 -> 0 | V90: ='..'!W102 -> 0 | W90: ='..'!X102 -> 0 | X90: ='..'!Y102 -> 0 | Y90: ='..'!Z102 -> 0 | Z90: ='..'!AA102 -> 0 | AA90: ='..'!AB102 -> 0 | AB90: ='..'!AC102 -> 0 | AC90: ='..'!AD102 -> 0 | AD90: ='..'!AE102 -> 0 | AE90: ='..'!AF102 -> 0 | AF90: ='..'!AG102 -> 0 | AG90: ='..'!AH102 -> 0 | AH90: ='..'!AI102 -> 0 | AI90: ='..'!AJ102 -> 0 | AJ90: ='..'!AK102 -> 0 | AK90: ='..'!AL102 -> 0 | AL90: ='..'!AM102 -> 0 | AM90: ='..'!AN102 -> 0 | AN90: ='..'!AO102 -> 0 | AO90: ='..'!AP102 -> 0
A91: ='..'!A103 -> 3 | B91: ='..'!B103 -> LUCKY_SPIN | C91: ='..'!C103 -> 7878, Lawoulet | D91: ='..'!D103 -> 0 | E91: ='..'!E103 -> 0 | F91: ='..'!F103 -> 0 | G91: ='..'!G103 -> 0 | H91: ='..'!I103 -> 0 | I91: ='..'!J103 -> 0 | J91: ='..'!K103 -> 0 | K91: ='..'!L103 -> 3000 | L91: ='..'!M103 -> 3001 | M91: ='..'!N103 -> 3001 | N91: ='..'!O103 -> 3000 | O91: ='..'!P103 -> 3000 | P91: ='..'!Q103 -> 3001 | Q91: ='..'!R103 -> 3000 | R91: ='..'!S103 -> 3000 | S91: ='..'!T103 -> 3002 | T91: ='..'!U103 -> 3000 | U91: ='..'!V103 -> 982 | V91: ='..'!W103 -> 0 | W91: ='..'!X103 -> 0 | X91: ='..'!Y103 -> 0 | Y91: ='..'!Z103 -> 0 | Z91: ='..'!AA103 -> 0 | AA91: ='..'!AB103 -> 0 | AB91: ='..'!AC103 -> 0 | AC91: ='..'!AD103 -> 0 | AD91: ='..'!AE103 -> 0 | AE91: ='..'!AF103 -> 0 | AF91: ='..'!AG103 -> 0 | AG91: ='..'!AH103 -> 0 | AH91: ='..'!AI103 -> 0 | AI91: ='..'!AJ103 -> 0 | AJ91: ='..'!AK103 -> 0 | AK91: ='..'!AL103 -> 0 | AL91: ='..'!AM103 -> 0 | AM91: ='..'!AN103 -> 0 | AN91: ='..'!AO103 -> 0 | AO91: ='..'!AP103 -> 0
A92: ='..'!A104 -> 4 | B92: ='..'!B104 -> LUCKY_CARD | C92: ='..'!C104 -> LUCKYCODE | D92: ='..'!D104 -> 0 | E92: ='..'!E104 -> 0 | F92: ='..'!F104 -> 0 | G92: ='..'!G104 -> 0 | H92: ='..'!I104 -> 0 | I92: ='..'!J104 -> 0 | J92: ='..'!K104 -> 0 | K92: ='..'!L104 -> 4 | L92: ='..'!M104 -> 0 | M92: ='..'!N104 -> 4 | N92: ='..'!O104 -> 4 | O92: ='..'!P104 -> 0 | P92: ='..'!Q104 -> 0 | Q92: ='..'!R104 -> 4 | R92: ='..'!S104 -> 4 | S92: ='..'!T104 -> 8 | T92: ='..'!U104 -> 0 | U92: ='..'!V104 -> 0 | V92: ='..'!W104 -> 0 | W92: ='..'!X104 -> 0 | X92: ='..'!Y104 -> 0 | Y92: ='..'!Z104 -> 0 | Z92: ='..'!AA104 -> 0 | AA92: ='..'!AB104 -> 0 | AB92: ='..'!AC104 -> 0 | AC92: ='..'!AD104 -> 0 | AD92: ='..'!AE104 -> 0 | AE92: ='..'!AF104 -> 0 | AF92: ='..'!AG104 -> 0 | AG92: ='..'!AH104 -> 0 | AH92: ='..'!AI104 -> 0 | AI92: ='..'!AJ104 -> 0 | AJ92: ='..'!AK104 -> 0 | AK92: ='..'!AL104 -> 0 | AL92: ='..'!AM104 -> 0 | AM92: ='..'!AN104 -> 0 | AN92: ='..'!AO104 -> 0 | AO92: ='..'!AP104 -> 0
A93: ='..'!A105 -> 5 | B93: ='..'!B105 -> IVR_DATING | C93: ='..'!C105 -> 933 | D93: ='..'!D105 -> 0 | E93: ='..'!E105 -> 0 | F93: ='..'!F105 -> 0 | G93: ='..'!G105 -> 0 | H93: ='..'!I105 -> 0 | I93: ='..'!J105 -> 0 | J93: ='..'!K105 -> 0 | K93: ='..'!L105 -> 0 | L93: ='..'!M105 -> 0 | M93: ='..'!N105 -> 0 | N93: ='..'!O105 -> 0 | O93: ='..'!P105 -> 0 | P93: ='..'!Q105 -> 5 | Q93: ='..'!R105 -> 0 | R93: ='..'!S105 -> 0 | S93: ='..'!T105 -> 0 | T93: ='..'!U105 -> 0 | U93: ='..'!V105 -> 5 | V93: ='..'!W105 -> 0 | W93: ='..'!X105 -> 0 | X93: ='..'!Y105 -> 0 | Y93: ='..'!Z105 -> 0 | Z93: ='..'!AA105 -> 0 | AA93: ='..'!AB105 -> 0 | AB93: ='..'!AC105 -> 0 | AC93: ='..'!AD105 -> 0 | AD93: ='..'!AE105 -> 0 | AE93: ='..'!AF105 -> 0 | AF93: ='..'!AG105 -> 0 | AG93: ='..'!AH105 -> 0 | AH93: ='..'!AI105 -> 0 | AI93: ='..'!AJ105 -> 0 | AJ93: ='..'!AK105 -> 0 | AK93: ='..'!AL105 -> 0 | AL93: ='..'!AM105 -> 0 | AM93: ='..'!AN105 -> 0 | AN93: ='..'!AO105 -> 0 | AO93: ='..'!AP105 -> 0
A94: ='..'!A106 -> 6 | B94: ='..'!B106 -> Lucky Draw | C94: ='..'!C106 -> 556 | D94: ='..'!D106 -> 0 | E94: ='..'!E106 -> 0 | F94: ='..'!F106 -> 0 | G94: ='..'!G106 -> 0 | H94: ='..'!I106 -> 0 | I94: ='..'!J106 -> 0 | J94: ='..'!K106 -> 0 | K94: ='..'!L106 -> winner money | L94: ='..'!M106 -> 702 | M94: ='..'!N106 -> 2802,4 | N94: ='..'!O106 -> 346,6 | O94: ='..'!P106 -> 2728,8 | P94: ='..'!Q106 -> 34,4 | Q94: ='..'!R106 -> 288,3 | R94: ='..'!S106 -> 574,2 | S94: ='..'!T106 -> 613 | T94: ='..'!U106 -> 686,6 | U94: ='..'!V106 -> 393,2 | V94: ='..'!W106 -> 0 | W94: ='..'!X106 -> 0 | X94: ='..'!Y106 -> 0 | Y94: ='..'!Z106 -> 0 | Z94: ='..'!AA106 -> 0 | AA94: ='..'!AB106 -> 0 | AB94: ='..'!AC106 -> 0 | AC94: ='..'!AD106 -> 0 | AD94: ='..'!AE106 -> 0 | AE94: ='..'!AF106 -> 0 | AF94: ='..'!AG106 -> 0 | AG94: ='..'!AH106 -> 0 | AH94: ='..'!AI106 -> 0 | AI94: ='..'!AJ106 -> 0 | AJ94: ='..'!AK106 -> 0 | AK94: ='..'!AL106 -> 0 | AL94: ='..'!AM106 -> 0 | AM94: ='..'!AN106 -> 0 | AN94: ='..'!AO106 -> 0 | AO94: ='..'!AP106 -> 0
A95: ='..'!A107 -> 7 | B95: ='..'!B107 -> LUCKY_WORD | C95: ='..'!C107 -> LUCKYCODE | D95: ='..'!D107 -> 0 | E95: ='..'!E107 -> 0 | F95: ='..'!F107 -> 0 | G95: ='..'!G107 -> 0 | H95: ='..'!I107 -> 0 | I95: ='..'!J107 -> 0 | J95: ='..'!K107 -> 0 | K95: ='..'!L107 -> 1025 | L95: ='..'!M107 -> 1025 | M95: ='..'!N107 -> 1025 | N95: ='..'!O107 -> 1025 | O95: ='..'!P107 -> 1025 | P95: ='..'!Q107 -> 1025 | Q95: ='..'!R107 -> 1025 | R95: ='..'!S107 -> 1025 | S95: ='..'!T107 -> 1025 | T95: ='..'!U107 -> 1025 | U95: ='..'!V107 -> 1025 | V95: ='..'!W107 -> 0 | W95: ='..'!X107 -> 0 | X95: ='..'!Y107 -> 0 | Y95: ='..'!Z107 -> 0 | Z95: ='..'!AA107 -> 0 | AA95: ='..'!AB107 -> 0 | AB95: ='..'!AC107 -> 0 | AC95: ='..'!AD107 -> 0 | AD95: ='..'!AE107 -> 0 | AE95: ='..'!AF107 -> 0 | AF95: ='..'!AG107 -> 0 | AG95: ='..'!AH107 -> 0 | AH95: ='..'!AI107 -> 0 | AI95: ='..'!AJ107 -> 0 | AJ95: ='..'!AK107 -> 0 | AK95: ='..'!AL107 -> 0 | AL95: ='..'!AM107 -> 0 | AM95: ='..'!AN107 -> 0 | AN95: ='..'!AO107 -> 0 | AO95: ='..'!AP107 -> 0
A96: ='..'!A108 -> 8 | B96: ='..'!B108 -> HOROSCOPE | C96: ='..'!C108 -> LUCKYCODE | D96: ='..'!D108 -> 0 | E96: ='..'!E108 -> 0 | F96: ='..'!F108 -> 0 | G96: ='..'!G108 -> 0 | H96: ='..'!I108 -> 0 | I96: ='..'!J108 -> 0 | J96: ='..'!K108 -> 0 | K96: ='..'!L108 -> 0 | L96: ='..'!M108 -> 0 | M96: ='..'!N108 -> 0 | N96: ='..'!O108 -> 0 | O96: ='..'!P108 -> 0 | P96: ='..'!Q108 -> 0 | Q96: ='..'!R108 -> 0 | R96: ='..'!S108 -> 0 | S96: ='..'!T108 -> 0 | T96: ='..'!U108 -> 0 | U96: ='..'!V108 -> 0 | V96: ='..'!W108 -> 0 | W96: ='..'!X108 -> 0 | X96: ='..'!Y108 -> 0 | Y96: ='..'!Z108 -> 0 | Z96: ='..'!AA108 -> 0 | AA96: ='..'!AB108 -> 0 | AB96: ='..'!AC108 -> 0 | AC96: ='..'!AD108 -> 0 | AD96: ='..'!AE108 -> 0 | AE96: ='..'!AF108 -> 0 | AF96: ='..'!AG108 -> 0 | AG96: ='..'!AH108 -> 0 | AH96: ='..'!AI108 -> 0 | AI96: ='..'!AJ108 -> 0 | AJ96: ='..'!AK108 -> 0 | AK96: ='..'!AL108 -> 0 | AL96: ='..'!AM108 -> 0 | AM96: ='..'!AN108 -> 0 | AN96: ='..'!AO108 -> 0 | AO96: ='..'!AP108 -> 0
A97: ='..'!A109 -> 9 | B97: ='..'!B109 -> IVR_RADIO | C97: ='..'!C109 -> 945 | D97: ='..'!D109 -> 0 | E97: ='..'!E109 -> 0 | F97: ='..'!F109 -> 0 | G97: ='..'!G109 -> 0 | H97: ='..'!I109 -> 0 | I97: ='..'!J109 -> 0 | J97: ='..'!K109 -> 0 | K97: ='..'!L109 -> 0 | L97: ='..'!M109 -> 0 | M97: ='..'!N109 -> 0 | N97: ='..'!O109 -> 0 | O97: ='..'!P109 -> 0 | P97: ='..'!Q109 -> 0 | Q97: ='..'!R109 -> 0 | R97: ='..'!S109 -> 0 | S97: ='..'!T109 -> 0 | T97: ='..'!U109 -> 0 | U97: ='..'!V109 -> 0 | V97: ='..'!W109 -> 0 | W97: ='..'!X109 -> 0 | X97: ='..'!Y109 -> 0 | Y97: ='..'!Z109 -> 0 | Z97: ='..'!AA109 -> 0 | AA97: ='..'!AB109 -> 0 | AB97: ='..'!AC109 -> 0 | AC97: ='..'!AD109 -> 0 | AD97: ='..'!AE109 -> 0 | AE97: ='..'!AF109 -> 0 | AF97: ='..'!AG109 -> 0 | AG97: ='..'!AH109 -> 0 | AH97: ='..'!AI109 -> 0 | AI97: ='..'!AJ109 -> 0 | AJ97: ='..'!AK109 -> 0 | AK97: ='..'!AL109 -> 0 | AL97: ='..'!AM109 -> 0 | AM97: ='..'!AN109 -> 0 | AN97: ='..'!AO109 -> 0 | AO97: ='..'!AP109 -> 0
A98: ='..'!A110 -> 10 | B98: ='..'!B110 -> CALL_PRO | C98: ='..'!C110 -> 526 | D98: ='..'!D110 -> 0 | E98: ='..'!E110 -> 0 | F98: ='..'!F110 -> 0 | G98: ='..'!G110 -> 0 | H98: ='..'!I110 -> 0 | I98: ='..'!J110 -> 0 | J98: ='..'!K110 -> 0 | K98: ='..'!L110 -> 0 | L98: ='..'!M110 -> 0 | M98: ='..'!N110 -> 0 | N98: ='..'!O110 -> 0 | O98: ='..'!P110 -> 0 | P98: ='..'!Q110 -> 0 | Q98: ='..'!R110 -> 0 | R98: ='..'!S110 -> 0 | S98: ='..'!T110 -> 0 | T98: ='..'!U110 -> 0 | U98: ='..'!V110 -> 0 | V98: ='..'!W110 -> 0 | W98: ='..'!X110 -> 0 | X98: ='..'!Y110 -> 0 | Y98: ='..'!Z110 -> 0 | Z98: ='..'!AA110 -> 0 | AA98: ='..'!AB110 -> 0 | AB98: ='..'!AC110 -> 0 | AC98: ='..'!AD110 -> 0 | AD98: ='..'!AE110 -> 0 | AE98: ='..'!AF110 -> 0 | AF98: ='..'!AG110 -> 0 | AG98: ='..'!AH110 -> 0 | AH98: ='..'!AI110 -> 0 | AI98: ='..'!AJ110 -> 0 | AJ98: ='..'!AK110 -> 0 | AK98: ='..'!AL110 -> 0 | AL98: ='..'!AM110 -> 0 | AM98: ='..'!AN110 -> 0 | AN98: ='..'!AO110 -> 0 | AO98: ='..'!AP110 -> 0
A99: ='..'!A111 -> 11 | B99: ='..'!B111 -> MILLIONAIRE | C99: ='..'!C111 -> 8585,Jetmilyone | D99: ='..'!D111 -> 0 | E99: ='..'!E111 -> 0 | F99: ='..'!F111 -> 0 | G99: ='..'!G111 -> 0 | H99: ='..'!I111 -> 0 | I99: ='..'!J111 -> 0 | J99: ='..'!K111 -> 0 | K99: ='..'!L111 -> 0 | L99: ='..'!M111 -> 0 | M99: ='..'!N111 -> 0 | N99: ='..'!O111 -> 0 | O99: ='..'!P111 -> 0 | P99: ='..'!Q111 -> 0 | Q99: ='..'!R111 -> 0 | R99: ='..'!S111 -> 0 | S99: ='..'!T111 -> 0 | T99: ='..'!U111 -> 0 | U99: ='..'!V111 -> 0 | V99: ='..'!W111 -> 0 | W99: ='..'!X111 -> 0 | X99: ='..'!Y111 -> 0 | Y99: ='..'!Z111 -> 0 | Z99: ='..'!AA111 -> 0 | AA99: ='..'!AB111 -> 0 | AB99: ='..'!AC111 -> 0 | AC99: ='..'!AD111 -> 0 | AD99: ='..'!AE111 -> 0 | AE99: ='..'!AF111 -> 0 | AF99: ='..'!AG111 -> 0 | AG99: ='..'!AH111 -> 0 | AH99: ='..'!AI111 -> 0 | AI99: ='..'!AJ111 -> 0 | AJ99: ='..'!AK111 -> 0 | AK99: ='..'!AL111 -> 0 | AL99: ='..'!AM111 -> 0 | AM99: ='..'!AN111 -> 0 | AN99: ='..'!AO111 -> 0 | AO99: ='..'!AP111 -> 0
A100: ='..'!A112 -> 12 | B100: ='..'!B112 -> NEW_VOTING | C100: ='..'!C112 -> MY TEAM | D100: ='..'!D112 -> 0 | E100: ='..'!E112 -> 0 | F100: ='..'!F112 -> 0 | G100: ='..'!G112 -> 0 | H100: ='..'!I112 -> 0 | I100: ='..'!J112 -> 0 | J100: ='..'!K112 -> 0 | K100: ='..'!L112 -> 0 | L100: ='..'!M112 -> 0 | M100: ='..'!N112 -> 0 | N100: ='..'!O112 -> 0 | O100: ='..'!P112 -> 0 | P100: ='..'!Q112 -> 0 | Q100: ='..'!R112 -> 0 | R100: ='..'!S112 -> 0 | S100: ='..'!T112 -> 0 | T100: ='..'!U112 -> 0 | U100: ='..'!V112 -> 0 | V100: ='..'!W112 -> 0 | W100: ='..'!X112 -> 0 | X100: ='..'!Y112 -> 0 | Y100: ='..'!Z112 -> 0 | Z100: ='..'!AA112 -> 0 | AA100: ='..'!AB112 -> 0 | AB100: ='..'!AC112 -> 0 | AC100: ='..'!AD112 -> 0 | AD100: ='..'!AE112 -> 0 | AE100: ='..'!AF112 -> 0 | AF100: ='..'!AG112 -> 0 | AG100: ='..'!AH112 -> 0 | AH100: ='..'!AI112 -> 0 | AI100: ='..'!AJ112 -> 0 | AJ100: ='..'!AK112 -> 0 | AK100: ='..'!AL112 -> 0 | AL100: ='..'!AM112 -> 0 | AM100: ='..'!AN112 -> 0 | AN100: ='..'!AO112 -> 0 | AO100: ='..'!AP112 -> 0
A101: ='..'!A113 -> 13 | B101: ='..'!B113 -> USSD_CHATTING | C101: ='..'!C113 -> 7979 | D101: ='..'!D113 -> 0 | E101: ='..'!E113 -> 0 | F101: ='..'!F113 -> 0 | G101: ='..'!G113 -> 0 | H101: ='..'!I113 -> 0 | I101: ='..'!J113 -> 0 | J101: ='..'!K113 -> 0 | K101: ='..'!L113 -> 0 | L101: ='..'!M113 -> 0 | M101: ='..'!N113 -> 0 | N101: ='..'!O113 -> 0 | O101: ='..'!P113 -> 0 | P101: ='..'!Q113 -> 0 | Q101: ='..'!R113 -> 0 | R101: ='..'!S113 -> 0 | S101: ='..'!T113 -> 0 | T101: ='..'!U113 -> 0 | U101: ='..'!V113 -> 0 | V101: ='..'!W113 -> 0 | W101: ='..'!X113 -> 0 | X101: ='..'!Y113 -> 0 | Y101: ='..'!Z113 -> 0 | Z101: ='..'!AA113 -> 0 | AA101: ='..'!AB113 -> 0 | AB101: ='..'!AC113 -> 0 | AC101: ='..'!AD113 -> 0 | AD101: ='..'!AE113 -> 0 | AE101: ='..'!AF113 -> 0 | AF101: ='..'!AG113 -> 0 | AG101: ='..'!AH113 -> 0 | AH101: ='..'!AI113 -> 0 | AI101: ='..'!AJ113 -> 0 | AJ101: ='..'!AK113 -> 0 | AK101: ='..'!AL113 -> 0 | AL101: ='..'!AM113 -> 0 | AM101: ='..'!AN113 -> 0 | AN101: ='..'!AO113 -> 0 | AO101: ='..'!AP113 -> 0
A102: ='..'!A114 -> 14 | B102: ='..'!B114 -> BACKGROUND_MUSIC | C102: ='..'!C114 -> 689 | D102: ='..'!D114 -> 0 | E102: ='..'!E114 -> 0 | F102: ='..'!F114 -> 0 | G102: ='..'!G114 -> 0 | H102: ='..'!I114 -> 0 | I102: ='..'!J114 -> 0 | J102: ='..'!K114 -> 0 | K102: ='..'!L114 -> 0 | L102: ='..'!M114 -> 0 | M102: ='..'!N114 -> 0 | N102: ='..'!O114 -> 0 | O102: ='..'!P114 -> 0 | P102: ='..'!Q114 -> 0 | Q102: ='..'!R114 -> 0 | R102: ='..'!S114 -> 0 | S102: ='..'!T114 -> 0 | T102: ='..'!U114 -> 0 | U102: ='..'!V114 -> 0 | V102: ='..'!W114 -> 0 | W102: ='..'!X114 -> 0 | X102: ='..'!Y114 -> 0 | Y102: ='..'!Z114 -> 0 | Z102: ='..'!AA114 -> 0 | AA102: ='..'!AB114 -> 0 | AB102: ='..'!AC114 -> 0 | AC102: ='..'!AD114 -> 0 | AD102: ='..'!AE114 -> 0 | AE102: ='..'!AF114 -> 0 | AF102: ='..'!AG114 -> 0 | AG102: ='..'!AH114 -> 0 | AH102: ='..'!AI114 -> 0 | AI102: ='..'!AJ114 -> 0 | AJ102: ='..'!AK114 -> 0 | AK102: ='..'!AL114 -> 0 | AL102: ='..'!AM114 -> 0 | AM102: ='..'!AN114 -> 0 | AN102: ='..'!AO114 -> 0 | AO102: ='..'!AP114 -> 0
A103: ='..'!A115 -> 15 | B103: ='..'!B115 -> LUCKY_ROULETTE | C103: ='..'!C115 -> BINGO, 5500 | D103: ='..'!D115 -> 0 | E103: ='..'!E115 -> 0 | F103: ='..'!F115 -> 0 | G103: ='..'!G115 -> 0 | H103: ='..'!I115 -> 0 | I103: ='..'!J115 -> 0 | J103: ='..'!K115 -> 0 | K103: ='..'!L115 -> 1025 | L103: ='..'!M115 -> 1025 | M103: ='..'!N115 -> 1025 | N103: ='..'!O115 -> 1025 | O103: ='..'!P115 -> 1025 | P103: ='..'!Q115 -> 1025 | Q103: ='..'!R115 -> 1025 | R103: ='..'!S115 -> 1025 | S103: ='..'!T115 -> 1025 | T103: ='..'!U115 -> 720 | U103: ='..'!V115 -> 970 | V103: ='..'!W115 -> 0 | W103: ='..'!X115 -> 0 | X103: ='..'!Y115 -> 0 | Y103: ='..'!Z115 -> 0 | Z103: ='..'!AA115 -> 0 | AA103: ='..'!AB115 -> 0 | AB103: ='..'!AC115 -> 0 | AC103: ='..'!AD115 -> 0 | AD103: ='..'!AE115 -> 0 | AE103: ='..'!AF115 -> 0 | AF103: ='..'!AG115 -> 0 | AG103: ='..'!AH115 -> 0 | AH103: ='..'!AI115 -> 0 | AI103: ='..'!AJ115 -> 0 | AJ103: ='..'!AK115 -> 0 | AK103: ='..'!AL115 -> 0 | AL103: ='..'!AM115 -> 0 | AM103: ='..'!AN115 -> 0 | AN103: ='..'!AO115 -> 0 | AO103: ='..'!AP115 -> 0
A104: ='..'!A116 -> 16 | B104: ='..'!B116 -> GAME_PORTAL | C104: ='..'!C116 -> 834 | D104: ='..'!D116 -> 0 | E104: ='..'!E116 -> 0 | F104: ='..'!F116 -> 0 | G104: ='..'!G116 -> 0 | H104: ='..'!I116 -> 0 | I104: ='..'!J116 -> 0 | J104: ='..'!K116 -> 0 | K104: ='..'!L116 -> 0 | L104: ='..'!M116 -> 0 | M104: ='..'!N116 -> 0 | N104: ='..'!O116 -> 0 | O104: ='..'!P116 -> 0 | P104: ='..'!Q116 -> 0 | Q104: ='..'!R116 -> 0 | R104: ='..'!S116 -> 0 | S104: ='..'!T116 -> 0 | T104: ='..'!U116 -> 0 | U104: ='..'!V116 -> 0 | V104: ='..'!W116 -> 0 | W104: ='..'!X116 -> 0 | X104: ='..'!Y116 -> 0 | Y104: ='..'!Z116 -> 0 | Z104: ='..'!AA116 -> 0 | AA104: ='..'!AB116 -> 0 | AB104: ='..'!AC116 -> 0 | AC104: ='..'!AD116 -> 0 | AD104: ='..'!AE116 -> 0 | AE104: ='..'!AF116 -> 0 | AF104: ='..'!AG116 -> 0 | AG104: ='..'!AH116 -> 0 | AH104: ='..'!AI116 -> 0 | AI104: ='..'!AJ116 -> 0 | AJ104: ='..'!AK116 -> 0 | AK104: ='..'!AL116 -> 0 | AL104: ='..'!AM116 -> 0 | AM104: ='..'!AN116 -> 0 | AN104: ='..'!AO116 -> 0 | AO104: ='..'!AP116 -> 0
A105: ='..'!A117 -> 17 | B105: ='..'!B117 -> DATA CREDIT | C105: ='..'!C117 -> 734 | D105: ='..'!D117 -> 0 | E105: ='..'!E117 -> 0 | F105: ='..'!F117 -> 0 | G105: ='..'!G117 -> 0 | H105: ='..'!I117 -> 0 | I105: ='..'!J117 -> 0 | J105: ='..'!K117 -> 0 | K105: ='..'!L117 -> 0 | L105: ='..'!M117 -> 0 | M105: ='..'!N117 -> 0 | N105: ='..'!O117 -> 0 | O105: ='..'!P117 -> 0 | P105: ='..'!Q117 -> 0 | Q105: ='..'!R117 -> 0 | R105: ='..'!S117 -> 0 | S105: ='..'!T117 -> 0 | T105: ='..'!U117 -> 0 | U105: ='..'!V117 -> 0 | V105: ='..'!W117 -> 0 | W105: ='..'!X117 -> 0 | X105: ='..'!Y117 -> 0 | Y105: ='..'!Z117 -> 0 | Z105: ='..'!AA117 -> 0 | AA105: ='..'!AB117 -> 0 | AB105: ='..'!AC117 -> 0 | AC105: ='..'!AD117 -> 0 | AD105: ='..'!AE117 -> 0 | AE105: ='..'!AF117 -> 0 | AF105: ='..'!AG117 -> 0 | AG105: ='..'!AH117 -> 0 | AH105: ='..'!AI117 -> 0 | AI105: ='..'!AJ117 -> 0 | AJ105: ='..'!AK117 -> 0 | AK105: ='..'!AL117 -> 0 | AL105: ='..'!AM117 -> 0 | AM105: ='..'!AN117 -> 0 | AN105: ='..'!AO117 -> 0 | AO105: ='..'!AP117 -> 0
B106: ='..'!B119 -> TELEMOR
A107: 18 | B107: ='..'!B120 -> HOROSCOPE | C107: ='..'!C120 -> 184 | D107: ='..'!D120 -> 0 | E107: ='..'!E120 -> 0 | F107: ='..'!F120 -> 0 | G107: ='..'!G120 -> 0 | H107: ='..'!I120 -> 0 | I107: ='..'!J120 -> 0 | J107: ='..'!K120 -> 0 | K107: ='..'!L120 -> 0 | L107: ='..'!M120 -> 0 | M107: ='..'!N120 -> 0 | N107: ='..'!O120 -> 0 | O107: ='..'!P120 -> 0 | P107: ='..'!Q120 -> 0 | Q107: ='..'!R120 -> 0 | R107: ='..'!S120 -> 0 | S107: ='..'!T120 -> 0 | T107: ='..'!U120 -> 0 | U107: ='..'!V120 -> 0 | V107: ='..'!W120 -> 0 | W107: ='..'!X120 -> 0 | X107: ='..'!Y120 -> 0 | Y107: ='..'!Z120 -> 0 | Z107: ='..'!AA120 -> 0 | AA107: ='..'!AB120 -> 0 | AB107: ='..'!AC120 -> 0 | AC107: ='..'!AD120 -> 0 | AD107: ='..'!AE120 -> 0 | AE107: ='..'!AF120 -> 0 | AF107: ='..'!AG120 -> 0 | AG107: ='..'!AH120 -> 0 | AH107: ='..'!AI120 -> 0 | AI107: ='..'!AJ120 -> 0 | AJ107: ='..'!AK120 -> 0 | AK107: ='..'!AL120 -> 0 | AL107: ='..'!AM120 -> 0 | AM107: ='..'!AN120 -> 0 | AN107: ='..'!AO120 -> 0 | AO107: ='..'!AP120 -> 0

Sheet TÚ (hidden)
A2: PROFIT | C2: DATE
A4: NO. | B4: VAS CODE | G4: ="Acc "&$H$4& " / "&$I$4 -> Acc COMPARE LAST MONTH / | H4: COMPARE LAST MONTH | K4: Friday | L4: Saturday | M4: Sunday | N4: Monday | O4: Tuesday | P4: Wednesday | Q4: Thursday | R4: Friday | S4: Saturday | T4: Sunday | U4: Monday | V4: Tuesday | W4: Wednesday | X4: Thursday | Y4: Friday | Z4: Saturday | AA4: Sunday | AB4: Monday | AC4: Tuesday | AD4: Wednesday | AE4: Thursday | AF4: Friday | AG4: Saturday | AH4: Sunday | AI4: Monday | AJ4: Tuesday | AK4: Wednesday | AL4: Wednesday | AM4: Wednesday | AN4: Wednesday | AO4: Wednesday
D5: NGƯỜI NHẬN BÁO CÁO | E5: TOTAL AFTER SHARING | F5: TOTAL BEFORE SHARING | H5: Acc last month | I5: +/- | J5: % | K5: 1 | L5: 2 | M5: 3 | N5: 4 | O5: 5 | P5: 6 | Q5: 7 | R5: 8 | S5: 9 | T5: 10 | U5: 11 | V5: 12 | W5: 13 | X5: 14 | Y5: 15 | Z5: 16 | AA5: 17 | AB5: 18 | AC5: 19 | AD5: 20 | AE5: 21 | AF5: 22 | AG5: 23 | AH5: 24 | AI5: 25 | AJ5: 26 | AK5: 27 | AL5: 28 | AM5: 29 | AN5: 30 | AO5: 31
B6: NATCOM
A7: 1 | B7: ='..'!B17 -> IVR_RADIO | C7: ='..'!C17 -> 945 | D7: BÌNH, A QUANG, A TÚ, HƯƠNG | E7: ='..'!E17 -> 0 | F7: ='..'!F17 -> 0 | G7: ='..'!G17 -> 0 | H7: ='..'!I17 -> 0 | I7: ='..'!J17 -> 0 | J7: ='..'!K17 -> 0 | K7: ='..'!L17 -> 17291 | L7: ='..'!M17 -> 0 | M7: ='..'!N17 -> 0 | N7: ='..'!O17 -> 17985 | O7: ='..'!P17 -> 17833 | P7: ='..'!Q17 -> 17551 | Q7: ='..'!R17 -> 0 | R7: ='..'!S17 -> 0 | S7: ='..'!T17 -> 17989 | T7: ='..'!U17 -> 17844 | U7: ='..'!V17 -> 14257 | V7: ='..'!W17 -> 0 | W7: ='..'!X17 -> 0 | X7: ='..'!Y17 -> 0 | Y7: ='..'!Z17 -> 0 | Z7: ='..'!AA17 -> 0 | AA7: ='..'!AB17 -> 0 | AB7: ='..'!AC17 -> 0 | AC7: ='..'!AD17 -> 0 | AD7: ='..'!AE17 -> 0 | AE7: ='..'!AF17 -> 0 | AF7: ='..'!AG17 -> 0 | AG7: ='..'!AH17 -> 0 | AH7: ='..'!AI17 -> 0 | AI7: ='..'!AJ17 -> 0 | AJ7: ='..'!AK17 -> 0 | AK7: ='..'!AL17 -> 0 | AL7: ='..'!AM17 -> 0 | AM7: ='..'!AN17 -> 0 | AN7: ='..'!AO17 -> 0 | AO7: ='..'!AP17 -> 0
A8: 2 | B8: ='..'!B18 -> CALL_PRO | C8: ='..'!C18 -> 526 | E8: ='..'!E18 -> 0 | F8: ='..'!F18 -> 0 | G8: ='..'!G18 -> 0 | H8: ='..'!I18 -> 0 | I8: ='..'!J18 -> 0 | J8: ='..'!K18 -> 0 | K8: ='..'!L18 -> 0 | L8: ='..'!M18 -> 84064 | M8: ='..'!N18 -> 117796 | N8: ='..'!O18 -> 127274 | O8: ='..'!P18 -> 118909 | P8: ='..'!Q18 -> 122467 | Q8: ='..'!R18 -> 120766 | R8: ='..'!S18 -> 123695 | S8: ='..'!T18 -> 127266 | T8: ='..'!U18 -> 106993 | U8: ='..'!V18 -> 104 | V8: ='..'!W18 -> 0 | W8: ='..'!X18 -> 0 | X8: ='..'!Y18 -> 0 | Y8: ='..'!Z18 -> 0 | Z8: ='..'!AA18 -> 0 | AA8: ='..'!AB18 -> 0 | AB8: ='..'!AC18 -> 0 | AC8: ='..'!AD18 -> 0 | AD8: ='..'!AE18 -> 0 | AE8: ='..'!AF18 -> 0 | AF8: ='..'!AG18 -> 0 | AG8: ='..'!AH18 -> 0 | AH8: ='..'!AI18 -> 0 | AI8: ='..'!AJ18 -> 0 | AJ8: ='..'!AK18 -> 0 | AK8: ='..'!AL18 -> 0 | AL8: ='..'!AM18 -> 0 | AM8: ='..'!AN18 -> 0 | AN8: ='..'!AO18 -> 0 | AO8: ='..'!AP18 -> 0
B9: ='..'!B19 -> TM | E9: ='..'!E19 -> 0 | F9: ='..'!F19 -> 0 | G9: ='..'!G19 -> 0 | H9: ='..'!I19 -> 0 | I9: ='..'!J19 -> 0 | J9: ='..'!K19 -> 0 | K9: ='..'!L19 -> 0 | L9: ='..'!M19 -> 0 | M9: ='..'!N19 -> 0 | N9: ='..'!O19 -> 0 | O9: ='..'!P19 -> 0 | P9: ='..'!Q19 -> 0 | Q9: ='..'!R19 -> 0 | R9: ='..'!S19 -> 0 | S9: ='..'!T19 -> 0 | T9: ='..'!U19 -> 0 | U9: ='..'!V19 -> 0 | V9: ='..'!W19 -> 0 | W9: ='..'!X19 -> 0 | X9: ='..'!Y19 -> 0 | Y9: ='..'!Z19 -> 0 | Z9: ='..'!AA19 -> 0 | AA9: ='..'!AB19 -> 0 | AB9: ='..'!AC19 -> 0 | AC9: ='..'!AD19 -> 0 | AD9: ='..'!AE19 -> 0 | AE9: ='..'!AF19 -> 0 | AF9: ='..'!AG19 -> 0 | AG9: ='..'!AH19 -> 0 | AH9: ='..'!AI19 -> 0 | AI9: ='..'!AJ19 -> 0 | AJ9: ='..'!AK19 -> 0 | AK9: ='..'!AL19 -> 0 | AL9: ='..'!AM19 -> 0 | AM9: ='..'!AN19 -> 0 | AN9: ='..'!AO19 -> 0 | AO9: ='..'!AP19 -> 0
A10: 3 | B10: ='..'!B20 -> MILLIONAIRE | C10: ='..'!C20 -> 8585,Jetmilyone | D10: BÌNH, A QUANG, A TÚ, HƯƠNG | E10: ='..'!E20 -> 0 | F10: ='..'!F20 -> 0 | G10: ='..'!G20 -> 0 | H10: ='..'!I20 -> 0 | I10: ='..'!J20 -> 0 | J10: ='..'!K20 -> 0 | K10: ='..'!L20 -> 30403 | L10: ='..'!M20 -> 24044 | M10: ='..'!N20 -> 29842 | N10: ='..'!O20 -> 29015 | O10: ='..'!P20 -> 28310 | P10: ='..'!Q20 -> 26524 | Q10: ='..'!R20 -> 26070 | R10: ='..'!S20 -> 25942 | S10: ='..'!T20 -> 26379 | T10: ='..'!U20 -> 20350 | U10: ='..'!V20 -> 10792 | V10: ='..'!W20 -> 0 | W10: ='..'!X20 -> 0 | X10: ='..'!Y20 -> 0 | Y10: ='..'!Z20 -> 0 | Z10: ='..'!AA20 -> 0 | AA10: ='..'!AB20 -> 0 | AB10: ='..'!AC20 -> 0 | AC10: ='..'!AD20 -> 0 | AD10: ='..'!AE20 -> 0 | AE10: ='..'!AF20 -> 0 | AF10: ='..'!AG20 -> 0 | AG10: ='..'!AH20 -> 0 | AH10: ='..'!AI20 -> 0 | AI10: ='..'!AJ20 -> 0 | AJ10: ='..'!AK20 -> 0 | AK10: ='..'!AL20 -> 0 | AL10: ='..'!AM20 -> 0 | AM10: ='..'!AN20 -> 0 | AN10: ='..'!AO20 -> 0 | AO10: ='..'!AP20 -> 0
A11: 4 | B11: ='..'!B21 -> NEW_VOTING | C11: ='..'!C21 -> MY TEAM | E11: ='..'!E21 -> 0 | F11: ='..'!F21 -> 0 | G11: ='..'!G21 -> 0 | H11: ='..'!I21 -> 0 | I11: ='..'!J21 -> 0 | J11: ='..'!K21 -> 0 | K11: ='..'!L21 -> 17200 | L11: ='..'!M21 -> 18080 | M11: ='..'!N21 -> 18222 | N11: ='..'!O21 -> 18160 | O11: ='..'!P21 -> 17880 | P11: ='..'!Q21 -> 17630 | Q11: ='..'!R21 -> 17317 | R11: ='..'!S21 -> 17390 | S11: ='..'!T21 -> 18465 | T11: ='..'!U21 -> 17423 | U11: ='..'!V21 -> 13891 | V11: ='..'!W21 -> 0 | W11: ='..'!X21 -> 0 | X11: ='..'!Y21 -> 0 | Y11: ='..'!Z21 -> 0 | Z11: ='..'!AA21 -> 0 | AA11: ='..'!AB21 -> 0 | AB11: ='..'!AC21 -> 0 | AC11: ='..'!AD21 -> 0 | AD11: ='..'!AE21 -> 0 | AE11: ='..'!AF21 -> 0 | AF11: ='..'!AG21 -> 0 | AG11: ='..'!AH21 -> 0 | AH11: ='..'!AI21 -> 0 | AI11: ='..'!AJ21 -> 0 | AJ11: ='..'!AK21 -> 0 | AK11: ='..'!AL21 -> 0 | AL11: ='..'!AM21 -> 0 | AM11: ='..'!AN21 -> 0 | AN11: ='..'!AO21 -> 0 | AO11: ='..'!AP21 -> 0
A12: 5 | B12: ='..'!B22 -> USSD_CHATTING | C12: ='..'!C22 -> 7979 | E12: ='..'!E22 -> 0 | F12: ='..'!F22 -> 0 | G12: ='..'!G22 -> 0 | H12: ='..'!I22 -> 0 | I12: ='..'!J22 -> 0 | J12: ='..'!K22 -> 0 | K12: ='..'!L22 -> 0 | L12: ='..'!M22 -> 0 | M12: ='..'!N22 -> 0 | N12: ='..'!O22 -> 0 | O12: ='..'!P22 -> 0 | P12: ='..'!Q22 -> 0 | Q12: ='..'!R22 -> 0 | R12: ='..'!S22 -> 0 | S12: ='..'!T22 -> 0 | T12: ='..'!U22 -> 0 | U12: ='..'!V22 -> 0 | V12: ='..'!W22 -> 0 | W12: ='..'!X22 -> 0 | X12: ='..'!Y22 -> 0 | Y12: ='..'!Z22 -> 0 | Z12: ='..'!AA22 -> 0 | AA12: ='..'!AB22 -> 0 | AB12: ='..'!AC22 -> 0 | AC12: ='..'!AD22 -> 0 | AD12: ='..'!AE22 -> 0 | AE12: ='..'!AF22 -> 0 | AF12: ='..'!AG22 -> 0 | AG12: ='..'!AH22 -> 0 | AH12: ='..'!AI22 -> 0 | AI12: ='..'!AJ22 -> 0 | AJ12: ='..'!AK22 -> 0 | AK12: ='..'!AL22 -> 0 | AL12: ='..'!AM22 -> 0 | AM12: ='..'!AN22 -> 0 | AN12: ='..'!AO22 -> 0 | AO12: ='..'!AP22 -> 0
A13: 6 | B13: ='..'!B23 -> BACKGROUND_MUSIC | C13: ='..'!C23 -> 689 | E13: ='..'!E23 -> 0 | F13: ='..'!F23 -> 0 | G13: ='..'!G23 -> 0 | H13: ='..'!I23 -> 0 | I13: ='..'!J23 -> 0 | J13: ='..'!K23 -> 0 | K13: ='..'!L23 -> 32916 | L13: ='..'!M23 -> 33420 | M13: ='..'!N23 -> 33526 | N13: ='..'!O23 -> 33908 | O13: ='..'!P23 -> 33698 | P13: ='..'!Q23 -> 33094 | Q13: ='..'!R23 -> 32740 | R13: ='..'!S23 -> 33676 | S13: ='..'!T23 -> 34586 | T13: ='..'!U23 -> 27358 | U13: ='..'!V23 -> 23516 | V13: ='..'!W23 -> 0 | W13: ='..'!X23 -> 0 | X13: ='..'!Y23 -> 0 | Y13: ='..'!Z23 -> 0 | Z13: ='..'!AA23 -> 0 | AA13: ='..'!AB23 -> 0 | AB13: ='..'!AC23 -> 0 | AC13: ='..'!AD23 -> 0 | AD13: ='..'!AE23 -> 0 | AE13: ='..'!AF23 -> 0 | AF13: ='..'!AG23 -> 0 | AG13: ='..'!AH23 -> 0 | AH13: ='..'!AI23 -> 0 | AI13: ='..'!AJ23 -> 0 | AJ13: ='..'!AK23 -> 0 | AK13: ='..'!AL23 -> 0 | AL13: ='..'!AM23 -> 0 | AM13: ='..'!AN23 -> 0 | AN13: ='..'!AO23 -> 0 | AO13: ='..'!AP23 -> 0
A14: 7 | B14: ='..'!B24 -> LUCKY_ROULETTE | C14: ='..'!C24 -> BINGO, 5500 | E14: ='..'!E24 -> 0 | F14: ='..'!F24 -> 0 | G14: ='..'!G24 -> 0 | H14: ='..'!I24 -> 0 | I14: ='..'!J24 -> 0 | J14: ='..'!K24 -> 0 | K14: ='..'!L24 -> 12805 | L14: ='..'!M24 -> 13522 | M14: ='..'!N24 -> 13593 | N14: ='..'!O24 -> 13192 | O14: ='..'!P24 -> 12977 | P14: ='..'!Q24 -> 12767 | Q14: ='..'!R24 -> 12593 | R14: ='..'!S24 -> 12404 | S14: ='..'!T24 -> 13208 | T14: ='..'!U24 -> 13283 | U14: ='..'!V24 -> 10077 | V14: ='..'!W24 -> 0 | W14: ='..'!X24 -> 0 | X14: ='..'!Y24 -> 0 | Y14: ='..'!Z24 -> 0 | Z14: ='..'!AA24 -> 0 | AA14: ='..'!AB24 -> 0 | AB14: ='..'!AC24 -> 0 | AC14: ='..'!AD24 -> 0 | AD14: ='..'!AE24 -> 0 | AE14: ='..'!AF24 -> 0 | AF14: ='..'!AG24 -> 0 | AG14: ='..'!AH24 -> 0 | AH14: ='..'!AI24 -> 0 | AI14: ='..'!AJ24 -> 0 | AJ14: ='..'!AK24 -> 0 | AK14: ='..'!AL24 -> 0 | AL14: ='..'!AM24 -> 0 | AM14: ='..'!AN24 -> 0 | AN14: ='..'!AO24 -> 0 | AO14: ='..'!AP24 -> 0
B15: ='..'!B25 -> TELETECH
A16: 8 | B16: ='..'!B28 -> DATA CREDIT | C16: ='..'!C28 -> 734 | D16: BÌNH, A QUANG, A TÚ, HƯƠNG | E16: ='..'!E28 -> 0 | F16: ='..'!F28 -> 0 | G16: ='..'!G28 -> 0 | H16: ='..'!I28 -> 0 | I16: ='..'!J28 -> 0 | J16: ='..'!K28 -> 0 | K16: ='..'!L28 -> 420 | L16: ='..'!M28 -> 0 | M16: ='..'!N28 -> 282 | N16: ='..'!O28 -> 516 | O16: ='..'!P28 -> 420 | P16: ='..'!Q28 -> 0 | Q16: ='..'!R28 -> 174 | R16: ='..'!S28 -> 330 | S16: ='..'!T28 -> 498 | T16: ='..'!U28 -> 324 | U16: ='..'!V28 -> 0 | V16: ='..'!W28 -> 0 | W16: ='..'!X28 -> 0 | X16: ='..'!Y28 -> 0 | Y16: ='..'!Z28 -> 0 | Z16: ='..'!AA28 -> 0 | AA16: ='..'!AB28 -> 0 | AB16: ='..'!AC28 -> 0 | AC16: ='..'!AD28 -> 0 | AD16: ='..'!AE28 -> 0 | AE16: ='..'!AF28 -> 0 | AF16: ='..'!AG28 -> 0 | AG16: ='..'!AH28 -> 0 | AH16: ='..'!AI28 -> 0 | AI16: ='..'!AJ28 -> 0 | AJ16: ='..'!AK28 -> 0 | AK16: ='..'!AL28 -> 0 | AL16: ='..'!AM28 -> 0 | AM16: ='..'!AN28 -> 0 | AN16: ='..'!AO28 -> 0 | AO16: ='..'!AP28 -> 0
B17: SMART SOLUTION
B18: TELEMOR
A19: 9 | B19: ='..'!B34 -> HOROSCOPE | C19: ='..'!C34 -> 184 | D19: ='..'!D34 -> BÌNH, A QUANG, TÚ, DU | E19: ='..'!E34 -> 0 | F19: ='..'!F34 -> 0 | G19: ='..'!G34 -> 0 | H19: ='..'!I34 -> 0 | I19: ='..'!J34 -> 0 | J19: ='..'!K34 -> 0 | K19: ='..'!L34 -> 0 | L19: ='..'!M34 -> 0 | M19: ='..'!N34 -> 0 | N19: ='..'!O34 -> $108,3 | O19: ='..'!P34 -> 106,65 | P19: ='..'!Q34 -> 107,35 | Q19: ='..'!R34 -> 177 | R19: ='..'!S34 -> 165,05 | S19: ='..'!T34 -> 188,2 | T19: ='..'!U34 -> 175,2 | U19: ='..'!V34 -> 158,5 | V19: ='..'!W34 -> 0 | W19: ='..'!X34 -> 0 | X19: ='..'!Y34 -> 0 | Y19: ='..'!Z34 -> 0 | Z19: ='..'!AA34 -> 0 | AA19: ='..'!AB34 -> 0 | AB19: ='..'!AC34 -> 0 | AC19: ='..'!AD34 -> 0 | AD19: ='..'!AE34 -> 0 | AE19: ='..'!AF34 -> 0 | AF19: ='..'!AG34 -> 0 | AG19: ='..'!AH34 -> 0 | AH19: ='..'!AI34 -> 0 | AI19: ='..'!AJ34 -> 0 | AJ19: ='..'!AK34 -> 0 | AK19: ='..'!AL34 -> 0 | AL19: ='..'!AM34 -> 0 | AM19: ='..'!AN34 -> 0 | AN19: ='..'!AO34 -> 0 | AO19: ='..'!AP34 -> 0
B20: ITL
A21: 10 | B21: ='..'!B36 -> LUCKY_NUMBER | C21: ='..'!C36 -> 0 | D21: BÌNH, TÚ, HƯƠNG | E21: ='..'!E36 -> 0 | F21: ='..'!F36 -> 0 | G21: ='..'!G36 -> 0 | H21: ='..'!I36 -> 0 | I21: ='..'!J36 -> 0 | J21: ='..'!K36 -> 0 | K21: ='..'!L36 -> 0 | L21: ='..'!M36 -> 0 | M21: ='..'!N36 -> 0 | N21: ='..'!O36 -> 0 | O21: ='..'!P36 -> 0 | P21: ='..'!Q36 -> 0 | Q21: ='..'!R36 -> 0 | R21: ='..'!S36 -> 0 | S21: ='..'!T36 -> 0 | T21: ='..'!U36 -> 0 | U21: ='..'!V36 -> 0 | V21: ='..'!W36 -> 0 | W21: ='..'!X36 -> 0 | X21: ='..'!Y36 -> 0 | Y21: ='..'!Z36 -> 0 | Z21: ='..'!AA36 -> 0 | AA21: ='..'!AB36 -> 0 | AB21: ='..'!AC36 -> 0 | AC21: ='..'!AD36 -> 0 | AD21: ='..'!AE36 -> 0 | AE21: ='..'!AF36 -> 0 | AF21: ='..'!AG36 -> 0 | AG21: ='..'!AH36 -> 0 | AH21: ='..'!AI36 -> 0 | AI21: ='..'!AJ36 -> 0 | AJ21: ='..'!AK36 -> 0 | AK21: ='..'!AL36 -> 0 | AL21: ='..'!AM36 -> 0 | AM21: ='..'!AN36 -> 0 | AN21: ='..'!AO36 -> 0 | AO21: ='..'!AP36 -> 0
A22: 11 | B22: ='..'!B37 -> FOOTBALL_PLUS | C22: ='..'!C37 -> 0 | E22: ='..'!E37 -> 0 | F22: ='..'!F37 -> 0 | G22: ='..'!G37 -> 0 | H22: ='..'!I37 -> 0 | I22: ='..'!J37 -> 0 | J22: ='..'!K37 -> 0 | K22: ='..'!L37 -> 0 | L22: ='..'!M37 -> 0 | M22: ='..'!N37 -> 0 | N22: ='..'!O37 -> 0 | O22: ='..'!P37 -> 0 | P22: ='..'!Q37 -> 0 | Q22: ='..'!R37 -> 0 | R22: ='..'!S37 -> 0 | S22: ='..'!T37 -> 0 | T22: ='..'!U37 -> 0 | U22: ='..'!V37 -> 0 | V22: ='..'!W37 -> 0 | W22: ='..'!X37 -> 0 | X22: ='..'!Y37 -> 0 | Y22: ='..'!Z37 -> 0 | Z22: ='..'!AA37 -> 0 | AA22: ='..'!AB37 -> 0 | AB22: ='..'!AC37 -> 0 | AC22: ='..'!AD37 -> 0 | AD22: ='..'!AE37 -> 0 | AE22: ='..'!AF37 -> 0 | AF22: ='..'!AG37 -> 0 | AG22: ='..'!AH37 -> 0 | AH22: ='..'!AI37 -> 0 | AI22: ='..'!AJ37 -> 0 | AJ22: ='..'!AK37 -> 0 | AK22: ='..'!AL37 -> 0 | AL22: ='..'!AM37 -> 0 | AM22: ='..'!AN37 -> 0 | AN22: ='..'!AO37 -> 0 | AO22: ='..'!AP37 -> 0
B23: TOTAL
A25: REGISTER
A27: NO. | B27: VAS CODE | G27: ="Acc "&$H$4& " / "&$I$4 -> Acc COMPARE LAST MONTH / | H27: COMPARE LAST MONTH | K27: Friday | L27: Friday | M27: Friday | N27: Friday | O27: Friday | P27: Friday | Q27: Friday | R27: Friday | S27: Friday | T27: Friday | U27: Friday | V27: Friday | W27: Friday | X27: Friday | Y27: Friday | Z27: Friday | AA27: Friday | AB27: Friday | AC27: Friday | AD27: Friday | AE27: Friday | AF27: Friday | AG27: Friday | AH27: Friday | AI27: Friday | AJ27: Friday | AK27: Friday | AL27: Friday | AM27: Friday | AN27: Friday | AO27: Friday
C28: SHORTCODE | H28: Acc last month | I28: +/- | J28: % | K28: 1 | L28: 2 | M28: 3 | N28: 4 | O28: 5 | P28: 6 | Q28: 7 | R28: 8 | S28: 9 | T28: 10 | U28: 11 | V28: 12 | W28: 13 | X28: 14 | Y28: 15 | Z28: 16 | AA28: 17 | AB28: 18 | AC28: 19 | AD28: 20 | AE28: 21 | AF28: 22 | AG28: 23 | AH28: 24 | AI28: 25 | AJ28: 26 | AK28: 27 | AL28: 28 | AM28: 29 | AN28: 30 | AO28: 31
B29: NATCOM
A30: 1 | B30: ='..'!B57 -> IVR_RADIO | C30: ='..'!C57 -> 945 | D30: ='..'!D57 -> 0 | E30: ='..'!E57 -> 0 | F30: ='..'!F57 -> 0 | G30: ='..'!G57 -> 0 | H30: ='..'!I57 -> 0 | I30: ='..'!J57 -> 0 | J30: ='..'!K57 -> 0 | K30: ='..'!L57 -> 55 | L30: ='..'!M57 -> 0 | M30: ='..'!N57 -> 0 | N30: ='..'!O57 -> 52 | O30: ='..'!P57 -> 137 | P30: ='..'!Q57 -> 38 | Q30: ='..'!R57 -> 0 | R30: ='..'!S57 -> 0 | S30: ='..'!T57 -> 54 | T30: ='..'!U57 -> 205 | U30: ='..'!V57 -> 234 | V30: ='..'!W57 -> 0 | W30: ='..'!X57 -> 0 | X30: ='..'!Y57 -> 0 | Y30: ='..'!Z57 -> 0 | Z30: ='..'!AA57 -> 0 | AA30: ='..'!AB57 -> 0 | AB30: ='..'!AC57 -> 0 | AC30: ='..'!AD57 -> 0 | AD30: ='..'!AE57 -> 0 | AE30: ='..'!AF57 -> 0 | AF30: ='..'!AG57 -> 0 | AG30: ='..'!AH57 -> 0 | AH30: ='..'!AI57 -> 0 | AI30: ='..'!AJ57 -> 0 | AJ30: ='..'!AK57 -> 0 | AK30: ='..'!AL57 -> 0 | AL30: ='..'!AM57 -> 0 | AM30: ='..'!AN57 -> 0 | AN30: ='..'!AO57 -> 0 | AO30: ='..'!AP57 -> 0
A31: 2 | B31: ='..'!B58 -> CALL_PRO | C31: ='..'!C58 -> 526 | D31: ='..'!D58 -> 0 | E31: ='..'!E58 -> 0 | F31: ='..'!F58 -> 0 | G31: ='..'!G58 -> 0 | H31: ='..'!I58 -> 0 | I31: ='..'!J58 -> 0 | J31: ='..'!K58 -> 0 | K31: ='..'!L58 -> 0 | L31: ='..'!M58 -> 836 | M31: ='..'!N58 -> 1347 | N31: ='..'!O58 -> 1660 | O31: ='..'!P58 -> 1459 | P31: ='..'!Q58 -> 1561 | Q31: ='..'!R58 -> 1454 | R31: ='..'!S58 -> 1494 | S31: ='..'!T58 -> 1388 | T31: ='..'!U58 -> 1424 | U31: ='..'!V58 -> 15 | V31: ='..'!W58 -> 0 | W31: ='..'!X58 -> 0 | X31: ='..'!Y58 -> 0 | Y31: ='..'!Z58 -> 0 | Z31: ='..'!AA58 -> 0 | AA31: ='..'!AB58 -> 0 | AB31: ='..'!AC58 -> 0 | AC31: ='..'!AD58 -> 0 | AD31: ='..'!AE58 -> 0 | AE31: ='..'!AF58 -> 0 | AF31: ='..'!AG58 -> 0 | AG31: ='..'!AH58 -> 0 | AH31: ='..'!AI58 -> 0 | AI31: ='..'!AJ58 -> 0 | AJ31: ='..'!AK58 -> 0 | AK31: ='..'!AL58 -> 0 | AL31: ='..'!AM58 -> 0 | AM31: ='..'!AN58 -> 0 | AN31: ='..'!AO58 -> 0 | AO31: ='..'!AP58 -> 0
A32: 3 | B32: ='..'!B59 -> MILLIONAIRE | C32: ='..'!C59 -> 8585,Jetmilyone | D32: ='..'!D59 -> 0 | E32: ='..'!E59 -> 0 | F32: ='..'!F59 -> 0 | G32: ='..'!G59 -> 0 | H32: ='..'!I59 -> 0 | I32: ='..'!J59 -> 0 | J32: ='..'!K59 -> 0 | K32: ='..'!L59 -> 62 | L32: ='..'!M59 -> 71 | M32: ='..'!N59 -> 54 | N32: ='..'!O59 -> 51 | O32: ='..'!P59 -> 37 | P32: ='..'!Q59 -> 45 | Q32: ='..'!R59 -> 40 | R32: ='..'!S59 -> 51 | S32: ='..'!T59 -> 46 | T32: ='..'!U59 -> 33 | U32: ='..'!V59 -> 1 | V32: ='..'!W59 -> 0 | W32: ='..'!X59 -> 0 | X32: ='..'!Y59 -> 0 | Y32: ='..'!Z59 -> 0 | Z32: ='..'!AA59 -> 0 | AA32: ='..'!AB59 -> 0 | AB32: ='..'!AC59 -> 0 | AC32: ='..'!AD59 -> 0 | AD32: ='..'!AE59 -> 0 | AE32: ='..'!AF59 -> 0 | AF32: ='..'!AG59 -> 0 | AG32: ='..'!AH59 -> 0 | AH32: ='..'!AI59 -> 0 | AI32: ='..'!AJ59 -> 0 | AJ32: ='..'!AK59 -> 0 | AK32: ='..'!AL59 -> 0 | AL32: ='..'!AM59 -> 0 | AM32: ='..'!AN59 -> 0 | AN32: ='..'!AO59 -> 0 | AO32: ='..'!AP59 -> 0
A33: 4 | B33: ='..'!B60 -> NEW_VOTING | C33: ='..'!C60 -> MY TEAM | D33: ='..'!D60 -> 0 | E33: ='..'!E60 -> 0 | F33: ='..'!F60 -> 0 | G33: ='..'!G60 -> 0 | H33: ='..'!I60 -> 0 | I33: ='..'!J60 -> 0 | J33: ='..'!K60 -> 0 | K33: ='..'!L60 -> 216 | L33: ='..'!M60 -> 366 | M33: ='..'!N60 -> 156 | N33: ='..'!O60 -> 157 | O33: ='..'!P60 -> 197 | P33: ='..'!Q60 -> 257 | Q33: ='..'!R60 -> 137 | R33: ='..'!S60 -> 132 | S33: ='..'!T60 -> 163 | T33: ='..'!U60 -> 145 | U33: ='..'!V60 -> 97 | V33: ='..'!W60 -> 0 | W33: ='..'!X60 -> 0 | X33: ='..'!Y60 -> 0 | Y33: ='..'!Z60 -> 0 | Z33: ='..'!AA60 -> 0 | AA33: ='..'!AB60 -> 0 | AB33: ='..'!AC60 -> 0 | AC33: ='..'!AD60 -> 0 | AD33: ='..'!AE60 -> 0 | AE33: ='..'!AF60 -> 0 | AF33: ='..'!AG60 -> 0 | AG33: ='..'!AH60 -> 0 | AH33: ='..'!AI60 -> 0 | AI33: ='..'!AJ60 -> 0 | AJ33: ='..'!AK60 -> 0 | AK33: ='..'!AL60 -> 0 | AL33: ='..'!AM60 -> 0 | AM33: ='..'!AN60 -> 0 | AN33: ='..'!AO60 -> 0 | AO33: ='..'!AP60 -> 0
A34: 5 | B34: ='..'!B61 -> USSD_CHATTING | C34: ='..'!C61 -> 7979 | D34: ='..'!D61 -> 0 | E34: ='..'!E61 -> 0 | F34: ='..'!F61 -> 0 | G34: ='..'!G61 -> 0 | H34: ='..'!I61 -> 0 | I34: ='..'!J61 -> 0 | J34: ='..'!K61 -> 0 | K34: ='..'!L61 -> 0 | L34: ='..'!M61 -> 0 | M34: ='..'!N61 -> 0 | N34: ='..'!O61 -> 0 | O34: ='..'!P61 -> 0 | P34: ='..'!Q61 -> 0 | Q34: ='..'!R61 -> 0 | R34: ='..'!S61 -> 0 | S34: ='..'!T61 -> 0 | T34: ='..'!U61 -> 0 | U34: ='..'!V61 -> 0 | V34: ='..'!W61 -> 0 | W34: ='..'!X61 -> 0 | X34: ='..'!Y61 -> 0 | Y34: ='..'!Z61 -> 0 | Z34: ='..'!AA61 -> 0 | AA34: ='..'!AB61 -> 0 | AB34: ='..'!AC61 -> 0 | AC34: ='..'!AD61 -> 0 | AD34: ='..'!AE61 -> 0 | AE34: ='..'!AF61 -> 0 | AF34: ='..'!AG61 -> 0 | AG34: ='..'!AH61 -> 0 | AH34: ='..'!AI61 -> 0 | AI34: ='..'!AJ61 -> 0 | AJ34: ='..'!AK61 -> 0 | AK34: ='..'!AL61 -> 0 | AL34: ='..'!AM61 -> 0 | AM34: ='..'!AN61 -> 0 | AN34: ='..'!AO61 -> 0 | AO34: ='..'!AP61 -> 0
A35: 6 | B35: ='..'!B62 -> BACKGROUND_MUSIC | C35: ='..'!C62 -> 689 | D35: ='..'!D62 -> 0 | E35: ='..'!E62 -> 0 | F35: ='..'!F62 -> 0 | G35: ='..'!G62 -> 0 | H35: ='..'!I62 -> 0 | I35: ='..'!J62 -> 0 | J35: ='..'!K62 -> 0 | K35: ='..'!L62 -> 52 | L35: ='..'!M62 -> 42 | M35: ='..'!N62 -> 45 | N35: ='..'!O62 -> 36 | O35: ='..'!P62 -> 45 | P35: ='..'!Q62 -> 51 | Q35: ='..'!R62 -> 51 | R35: ='..'!S62 -> 46 | S35: ='..'!T62 -> 44 | T35: ='..'!U62 -> 34 | U35: ='..'!V62 -> 17 | V35: ='..'!W62 -> 0 | W35: ='..'!X62 -> 0 | X35: ='..'!Y62 -> 0 | Y35: ='..'!Z62 -> 0 | Z35: ='..'!AA62 -> 0 | AA35: ='..'!AB62 -> 0 | AB35: ='..'!AC62 -> 0 | AC35: ='..'!AD62 -> 0 | AD35: ='..'!AE62 -> 0 | AE35: ='..'!AF62 -> 0 | AF35: ='..'!AG62 -> 0 | AG35: ='..'!AH62 -> 0 | AH35: ='..'!AI62 -> 0 | AI35: ='..'!AJ62 -> 0 | AJ35: ='..'!AK62 -> 0 | AK35: ='..'!AL62 -> 0 | AL35: ='..'!AM62 -> 0 | AM35: ='..'!AN62 -> 0 | AN35: ='..'!AO62 -> 0 | AO35: ='..'!AP62 -> 0
A36: 7 | B36: ='..'!B63 -> LUCKY_ROULETTE | C36: ='..'!C63 -> BINGO, 5500 | D36: ='..'!D63 -> 0 | E36: ='..'!E63 -> 0 | F36: ='..'!F63 -> 0 | G36: ='..'!G63 -> 0 | H36: ='..'!I63 -> 0 | I36: ='..'!J63 -> 0 | J36: ='..'!K63 -> 0 | K36: ='..'!L63 -> 96 | L36: ='..'!M63 -> 75 | M36: ='..'!N63 -> 83 | N36: ='..'!O63 -> 161 | O36: ='..'!P63 -> 159 | P36: ='..'!Q63 -> 120 | Q36: ='..'!R63 -> 164 | R36: ='..'!S63 -> 82 | S36: ='..'!T63 -> 82 | T36: ='..'!U63 -> 499 | U36: ='..'!V63 -> 99 | V36: ='..'!W63 -> 0 | W36: ='..'!X63 -> 0 | X36: ='..'!Y63 -> 0 | Y36: ='..'!Z63 -> 0 | Z36: ='..'!AA63 -> 0 | AA36: ='..'!AB63 -> 0 | AB36: ='..'!AC63 -> 0 | AC36: ='..'!AD63 -> 0 | AD36: ='..'!AE63 -> 0 | AE36: ='..'!AF63 -> 0 | AF36: ='..'!AG63 -> 0 | AG36: ='..'!AH63 -> 0 | AH36: ='..'!AI63 -> 0 | AI36: ='..'!AJ63 -> 0 | AJ36: ='..'!AK63 -> 0 | AK36: ='..'!AL63 -> 0 | AL36: ='..'!AM63 -> 0 | AM36: ='..'!AN63 -> 0 | AN36: ='..'!AO63 -> 0 | AO36: ='..'!AP63 -> 0
A37: 8 | B37: ='..'!B65 -> DATA CREDIT | C37: ='..'!C65 -> 734 | D37: ='..'!D65 -> 0 | E37: ='..'!E65 -> 0 | F37: ='..'!F65 -> 0 | G37: ='..'!G65 -> 0 | H37: ='..'!I65 -> 0 | I37: ='..'!J65 -> 0 | J37: ='..'!K65 -> 0 | K37: ='..'!L65 -> 0 | L37: ='..'!M65 -> 0 | M37: ='..'!N65 -> 0 | N37: ='..'!O65 -> 0 | O37: ='..'!P65 -> 0 | P37: ='..'!Q65 -> 0 | Q37: ='..'!R65 -> 0 | R37: ='..'!S65 -> 0 | S37: ='..'!T65 -> 0 | T37: ='..'!U65 -> 0 | U37: ='..'!V65 -> 0 | V37: ='..'!W65 -> 0 | W37: ='..'!X65 -> 0 | X37: ='..'!Y65 -> 0 | Y37: ='..'!Z65 -> 0 | Z37: ='..'!AA65 -> 0 | AA37: ='..'!AB65 -> 0 | AB37: ='..'!AC65 -> 0 | AC37: ='..'!AD65 -> 0 | AD37: ='..'!AE65 -> 0 | AE37: ='..'!AF65 -> 0 | AF37: ='..'!AG65 -> 0 | AG37: ='..'!AH65 -> 0 | AH37: ='..'!AI65 -> 0 | AI37: ='..'!AJ65 -> 0 | AJ37: ='..'!AK65 -> 0 | AK37: ='..'!AL65 -> 0 | AL37: ='..'!AM65 -> 0 | AM37: ='..'!AN65 -> 0 | AN37: ='..'!AO65 -> 0 | AO37: ='..'!AP65 -> 0
B38: TELEMOR
A39: 9 | B39: ='..'!B68 -> HOROSCOPE | C39: ='..'!C68 -> 184 | D39: ='..'!D68 -> 0 | E39: ='..'!E68 -> 0 | F39: ='..'!F68 -> 0 | G39: ='..'!G68 -> 0 | H39: ='..'!I68 -> 0 | I39: ='..'!J68 -> 0 | J39: ='..'!K68 -> 0 | K39: ='..'!L68 -> 0 | L39: ='..'!M68 -> 0 | M39: ='..'!N68 -> 0 | N39: ='..'!O68 -> 127 | O39: ='..'!P68 -> 91 | P39: ='..'!Q68 -> 82 | Q39: ='..'!R68 -> 1791 | R39: ='..'!S68 -> 382 | S39: ='..'!T68 -> 1033 | T39: ='..'!U68 -> 228 | U39: ='..'!V68 -> 111 | V39: ='..'!W68 -> 0 | W39: ='..'!X68 -> 0 | X39: ='..'!Y68 -> 0 | Y39: ='..'!Z68 -> 0 | Z39: ='..'!AA68 -> 0 | AA39: ='..'!AB68 -> 0 | AB39: ='..'!AC68 -> 0 | AC39: ='..'!AD68 -> 0 | AD39: ='..'!AE68 -> 0 | AE39: ='..'!AF68 -> 0 | AF39: ='..'!AG68 -> 0 | AG39: ='..'!AH68 -> 0 | AH39: ='..'!AI68 -> 0 | AI39: ='..'!AJ68 -> 0 | AJ39: ='..'!AK68 -> 0 | AK39: ='..'!AL68 -> 0 | AL39: ='..'!AM68 -> 0 | AM39: ='..'!AN68 -> 0 | AN39: ='..'!AO68 -> 0 | AO39: ='..'!AP68 -> 0
A42: CANCEL
A44: NO. | B44: VAS CODE | G44: ="Acc "&$H$4& " / "&$I$4 -> Acc COMPARE LAST MONTH / | H44: COMPARE LAST MONTH | K44: Friday | L44: Friday | M44: Friday | N44: Friday | O44: Friday | P44: Friday | Q44: Friday | R44: Friday | S44: Friday | T44: Friday | U44: Friday | V44: Friday | W44: Friday | X44: Friday | Y44: Friday | Z44: Friday | AA44: Friday | AB44: Friday | AC44: Friday | AD44: Friday | AE44: Friday | AF44: Friday | AG44: Friday | AH44: Friday | AI44: Friday | AJ44: Friday | AK44: Friday | AL44: Friday | AM44: Friday | AN44: Friday | AO44: Friday
C45: SHORTCODE | H45: Acc last month | I45: +/- | J45: % | K45: 1 | L45: 2 | M45: 3 | N45: 4 | O45: 5 | P45: 6 | Q45: 7 | R45: 8 | S45: 9 | T45: 10 | U45: 11 | V45: 12 | W45: 13 | X45: 14 | Y45: 15 | Z45: 16 | AA45: 17 | AB45: 18 | AC45: 19 | AD45: 20 | AE45: 21 | AF45: 22 | AG45: 23 | AH45: 24 | AI45: 25 | AJ45: 26 | AK45: 27 | AL45: 28 | AM45: 29 | AN45: 30 | AO45: 31
B46: NATCOM
A47: 1 | B47: ='..'!B84 -> IVR_RADIO | C47: ='..'!C84 -> 945 | D47: ='..'!D84 -> 0 | E47: ='..'!E84 -> 0 | F47: ='..'!F84 -> 0 | G47: ='..'!G84 -> 0 | H47: ='..'!I84 -> 0 | I47: ='..'!J84 -> 0 | J47: ='..'!K84 -> 0 | K47: ='..'!L84 -> 209 | L47: ='..'!M84 -> 0 | M47: ='..'!N84 -> 0 | N47: ='..'!O84 -> 172 | O47: ='..'!P84 -> 162 | P47: ='..'!Q84 -> 165 | Q47: ='..'!R84 -> 0 | R47: ='..'!S84 -> 0 | S47: ='..'!T84 -> 189 | T47: ='..'!U84 -> 228 | U47: ='..'!V84 -> 151 | V47: ='..'!W84 -> 0 | W47: ='..'!X84 -> 0 | X47: ='..'!Y84 -> 0 | Y47: ='..'!Z84 -> 0 | Z47: ='..'!AA84 -> 0 | AA47: ='..'!AB84 -> 0 | AB47: ='..'!AC84 -> 0 | AC47: ='..'!AD84 -> 0 | AD47: ='..'!AE84 -> 0 | AE47: ='..'!AF84 -> 0 | AF47: ='..'!AG84 -> 0 | AG47: ='..'!AH84 -> 0 | AH47: ='..'!AI84 -> 0 | AI47: ='..'!AJ84 -> 0 | AJ47: ='..'!AK84 -> 0 | AK47: ='..'!AL84 -> 0 | AL47: ='..'!AM84 -> 0 | AM47: ='..'!AN84 -> 0 | AN47: ='..'!AO84 -> 0 | AO47: ='..'!AP84 -> 0
A48: 2 | B48: ='..'!B85 -> CALL_PRO | C48: ='..'!C85 -> 526 | D48: ='..'!D85 -> 0 | E48: ='..'!E85 -> 0 | F48: ='..'!F85 -> 0 | G48: ='..'!G85 -> 0 | H48: ='..'!I85 -> 0 | I48: ='..'!J85 -> 0 | J48: ='..'!K85 -> 0 | K48: ='..'!L85 -> 0 | L48: ='..'!M85 -> 836 | M48: ='..'!N85 -> 602 | N48: ='..'!O85 -> 672 | O48: ='..'!P85 -> 612 | P48: ='..'!Q85 -> 604 | Q48: ='..'!R85 -> 561 | R48: ='..'!S85 -> 642 | S48: ='..'!T85 -> 594 | T48: ='..'!U85 -> 515 | U48: ='..'!V85 -> 6 | V48: ='..'!W85 -> 0 | W48: ='..'!X85 -> 0 | X48: ='..'!Y85 -> 0 | Y48: ='..'!Z85 -> 0 | Z48: ='..'!AA85 -> 0 | AA48: ='..'!AB85 -> 0 | AB48: ='..'!AC85 -> 0 | AC48: ='..'!AD85 -> 0 | AD48: ='..'!AE85 -> 0 | AE48: ='..'!AF85 -> 0 | AF48: ='..'!AG85 -> 0 | AG48: ='..'!AH85 -> 0 | AH48: ='..'!AI85 -> 0 | AI48: ='..'!AJ85 -> 0 | AJ48: ='..'!AK85 -> 0 | AK48: ='..'!AL85 -> 0 | AL48: ='..'!AM85 -> 0 | AM48: ='..'!AN85 -> 0 | AN48: ='..'!AO85 -> 0 | AO48: ='..'!AP85 -> 0
A49: 3 | B49: ='..'!B86 -> MILLIONAIRE | C49: ='..'!C86 -> 8585,Jetmilyone | D49: ='..'!D86 -> 0 | E49: ='..'!E86 -> 0 | F49: ='..'!F86 -> 0 | G49: ='..'!G86 -> 0 | H49: ='..'!I86 -> 0 | I49: ='..'!J86 -> 0 | J49: ='..'!K86 -> 0 | K49: ='..'!L86 -> 1041 | L49: ='..'!M86 -> 909 | M49: ='..'!N86 -> 816 | N49: ='..'!O86 -> 719 | O49: ='..'!P86 -> 637 | P49: ='..'!Q86 -> 621 | Q49: ='..'!R86 -> 557 | R49: ='..'!S86 -> 581 | S49: ='..'!T86 -> 579 | T49: ='..'!U86 -> 526 | U49: ='..'!V86 -> 0 | V49: ='..'!W86 -> 0 | W49: ='..'!X86 -> 0 | X49: ='..'!Y86 -> 0 | Y49: ='..'!Z86 -> 0 | Z49: ='..'!AA86 -> 0 | AA49: ='..'!AB86 -> 0 | AB49: ='..'!AC86 -> 0 | AC49: ='..'!AD86 -> 0 | AD49: ='..'!AE86 -> 0 | AE49: ='..'!AF86 -> 0 | AF49: ='..'!AG86 -> 0 | AG49: ='..'!AH86 -> 0 | AH49: ='..'!AI86 -> 0 | AI49: ='..'!AJ86 -> 0 | AJ49: ='..'!AK86 -> 0 | AK49: ='..'!AL86 -> 0 | AL49: ='..'!AM86 -> 0 | AM49: ='..'!AN86 -> 0 | AN49: ='..'!AO86 -> 0 | AO49: ='..'!AP86 -> 0
A50: 4 | B50: ='..'!B87 -> NEW_VOTING | C50: ='..'!C87 -> MY TEAM | D50: ='..'!D87 -> 0 | E50: ='..'!E87 -> 0 | F50: ='..'!F87 -> 0 | G50: ='..'!G87 -> 0 | H50: ='..'!I87 -> 0 | I50: ='..'!J87 -> 0 | J50: ='..'!K87 -> 0 | K50: ='..'!L87 -> 203 | L50: ='..'!M87 -> 171 | M50: ='..'!N87 -> 163 | N50: ='..'!O87 -> 165 | O50: ='..'!P87 -> 175 | P50: ='..'!Q87 -> 181 | Q50: ='..'!R87 -> 160 | R50: ='..'!S87 -> 149 | S50: ='..'!T87 -> 189 | T50: ='..'!U87 -> 177 | U50: ='..'!V87 -> 126 | V50: ='..'!W87 -> 0 | W50: ='..'!X87 -> 0 | X50: ='..'!Y87 -> 0 | Y50: ='..'!Z87 -> 0 | Z50: ='..'!AA87 -> 0 | AA50: ='..'!AB87 -> 0 | AB50: ='..'!AC87 -> 0 | AC50: ='..'!AD87 -> 0 | AD50: ='..'!AE87 -> 0 | AE50: ='..'!AF87 -> 0 | AF50: ='..'!AG87 -> 0 | AG50: ='..'!AH87 -> 0 | AH50: ='..'!AI87 -> 0 | AI50: ='..'!AJ87 -> 0 | AJ50: ='..'!AK87 -> 0 | AK50: ='..'!AL87 -> 0 | AL50: ='..'!AM87 -> 0 | AM50: ='..'!AN87 -> 0 | AN50: ='..'!AO87 -> 0 | AO50: ='..'!AP87 -> 0
A51: 5 | B51: ='..'!B88 -> USSD_CHATTING | C51: ='..'!C88 -> 7979 | D51: ='..'!D88 -> 0 | E51: ='..'!E88 -> 0 | F51: ='..'!F88 -> 0 | G51: ='..'!G88 -> 0 | H51: ='..'!I88 -> 0 | I51: ='..'!J88 -> 0 | J51: ='..'!K88 -> 0 | K51: ='..'!L88 -> 0 | L51: ='..'!M88 -> 0 | M51: ='..'!N88 -> 0 | N51: ='..'!O88 -> 0 | O51: ='..'!P88 -> 0 | P51: ='..'!Q88 -> 0 | Q51: ='..'!R88 -> 0 | R51: ='..'!S88 -> 0 | S51: ='..'!T88 -> 0 | T51: ='..'!U88 -> 0 | U51: ='..'!V88 -> 0 | V51: ='..'!W88 -> 0 | W51: ='..'!X88 -> 0 | X51: ='..'!Y88 -> 0 | Y51: ='..'!Z88 -> 0 | Z51: ='..'!AA88 -> 0 | AA51: ='..'!AB88 -> 0 | AB51: ='..'!AC88 -> 0 | AC51: ='..'!AD88 -> 0 | AD51: ='..'!AE88 -> 0 | AE51: ='..'!AF88 -> 0 | AF51: ='..'!AG88 -> 0 | AG51: ='..'!AH88 -> 0 | AH51: ='..'!AI88 -> 0 | AI51: ='..'!AJ88 -> 0 | AJ51: ='..'!AK88 -> 0 | AK51: ='..'!AL88 -> 0 | AL51: ='..'!AM88 -> 0 | AM51: ='..'!AN88 -> 0 | AN51: ='..'!AO88 -> 0 | AO51: ='..'!AP88 -> 0
A52: 6 | B52: ='..'!B89 -> BACKGROUND_MUSIC | C52: ='..'!C89 -> 689 | D52: ='..'!D89 -> 0 | E52: ='..'!E89 -> 0 | F52: ='..'!F89 -> 0 | G52: ='..'!G89 -> 0 | H52: ='..'!I89 -> 0 | I52: ='..'!J89 -> 0 | J52: ='..'!K89 -> 0 | K52: ='..'!L89 -> 411 | L52: ='..'!M89 -> 451 | M52: ='..'!N89 -> 451 | N52: ='..'!O89 -> 451 | O52: ='..'!P89 -> 449 | P52: ='..'!Q89 -> 438 | Q52: ='..'!R89 -> 454 | R52: ='..'!S89 -> 399 | S52: ='..'!T89 -> 489 | T52: ='..'!U89 -> 418 | U52: ='..'!V89 -> 273 | V52: ='..'!W89 -> 0 | W52: ='..'!X89 -> 0 | X52: ='..'!Y89 -> 0 | Y52: ='..'!Z89 -> 0 | Z52: ='..'!AA89 -> 0 | AA52: ='..'!AB89 -> 0 | AB52: ='..'!AC89 -> 0 | AC52: ='..'!AD89 -> 0 | AD52: ='..'!AE89 -> 0 | AE52: ='..'!AF89 -> 0 | AF52: ='..'!AG89 -> 0 | AG52: ='..'!AH89 -> 0 | AH52: ='..'!AI89 -> 0 | AI52: ='..'!AJ89 -> 0 | AJ52: ='..'!AK89 -> 0 | AK52: ='..'!AL89 -> 0 | AL52: ='..'!AM89 -> 0 | AM52: ='..'!AN89 -> 0 | AN52: ='..'!AO89 -> 0 | AO52: ='..'!AP89 -> 0
A53: 7 | B53: ='..'!B90 -> LUCKY_ROULETTE | C53: ='..'!C90 -> BINGO, 5500 | D53: ='..'!D90 -> 0 | E53: ='..'!E90 -> 0 | F53: ='..'!F90 -> 0 | G53: ='..'!G90 -> 0 | H53: ='..'!I90 -> 0 | I53: ='..'!J90 -> 0 | J53: ='..'!K90 -> 0 | K53: ='..'!L90 -> 309 | L53: ='..'!M90 -> 305 | M53: ='..'!N90 -> 320 | N53: ='..'!O90 -> 348 | O53: ='..'!P90 -> 350 | P53: ='..'!Q90 -> 358 | Q53: ='..'!R90 -> 305 | R53: ='..'!S90 -> 340 | S53: ='..'!T90 -> 381 | T53: ='..'!U90 -> 382 | U53: ='..'!V90 -> 234 | V53: ='..'!W90 -> 0 | W53: ='..'!X90 -> 0 | X53: ='..'!Y90 -> 0 | Y53: ='..'!Z90 -> 0 | Z53: ='..'!AA90 -> 0 | AA53: ='..'!AB90 -> 0 | AB53: ='..'!AC90 -> 0 | AC53: ='..'!AD90 -> 0 | AD53: ='..'!AE90 -> 0 | AE53: ='..'!AF90 -> 0 | AF53: ='..'!AG90 -> 0 | AG53: ='..'!AH90 -> 0 | AH53: ='..'!AI90 -> 0 | AI53: ='..'!AJ90 -> 0 | AJ53: ='..'!AK90 -> 0 | AK53: ='..'!AL90 -> 0 | AL53: ='..'!AM90 -> 0 | AM53: ='..'!AN90 -> 0 | AN53: ='..'!AO90 -> 0 | AO53: ='..'!AP90 -> 0
A54: 8 | B54: ='..'!B92 -> DATA CREDIT | C54: ='..'!C92 -> 734 | D54: ='..'!D92 -> 0 | E54: ='..'!E92 -> 0 | F54: ='..'!F92 -> 0 | G54: ='..'!G92 -> 0 | H54: ='..'!I92 -> 0 | I54: ='..'!J92 -> 0 | J54: ='..'!K92 -> 0 | K54: ='..'!L92 -> 3 | L54: ='..'!M92 -> 0 | M54: ='..'!N92 -> 1 | N54: ='..'!O92 -> 5 | O54: ='..'!P92 -> 1 | P54: ='..'!Q92 -> 0 | Q54: ='..'!R92 -> 0 | R54: ='..'!S92 -> 1 | S54: ='..'!T92 -> 2 | T54: ='..'!U92 -> 1 | U54: ='..'!V92 -> 0 | V54: ='..'!W92 -> 0 | W54: ='..'!X92 -> 0 | X54: ='..'!Y92 -> 0 | Y54: ='..'!Z92 -> 0 | Z54: ='..'!AA92 -> 0 | AA54: ='..'!AB92 -> 0 | AB54: ='..'!AC92 -> 0 | AC54: ='..'!AD92 -> 0 | AD54: ='..'!AE92 -> 0 | AE54: ='..'!AF92 -> 0 | AF54: ='..'!AG92 -> 0 | AG54: ='..'!AH92 -> 0 | AH54: ='..'!AI92 -> 0 | AI54: ='..'!AJ92 -> 0 | AJ54: ='..'!AK92 -> 0 | AK54: ='..'!AL92 -> 0 | AL54: ='..'!AM92 -> 0 | AM54: ='..'!AN92 -> 0 | AN54: ='..'!AO92 -> 0 | AO54: ='..'!AP92 -> 0
B55: TELEMOR
A56: 9 | B56: ='..'!B95 -> HOROSCOPE | C56: ='..'!C95 -> 184 | D56: ='..'!D95 -> 0 | E56: ='..'!E95 -> 0 | F56: ='..'!F95 -> 0 | G56: ='..'!G95 -> 0 | H56: ='..'!I95 -> 0 | I56: ='..'!J95 -> 0 | J56: ='..'!K95 -> 0 | K56: ='..'!L95 -> 0 | L56: ='..'!M95 -> 0 | M56: ='..'!N95 -> 0 | N56: ='..'!O95 -> 0 | O56: ='..'!P95 -> 20 | P56: ='..'!Q95 -> 29 | Q56: ='..'!R95 -> 50 | R56: ='..'!S95 -> 34 | S56: ='..'!T95 -> 37 | T56: ='..'!U95 -> 28 | U56: ='..'!V95 -> 15 | V56: ='..'!W95 -> 0 | W56: ='..'!X95 -> 0 | X56: ='..'!Y95 -> 0 | Y56: ='..'!Z95 -> 0 | Z56: ='..'!AA95 -> 0 | AA56: ='..'!AB95 -> 0 | AB56: ='..'!AC95 -> 0 | AC56: ='..'!AD95 -> 0 | AD56: ='..'!AE95 -> 0 | AE56: ='..'!AF95 -> 0 | AF56: ='..'!AG95 -> 0 | AG56: ='..'!AH95 -> 0 | AH56: ='..'!AI95 -> 0 | AI56: ='..'!AJ95 -> 0 | AJ56: ='..'!AK95 -> 0 | AK56: ='..'!AL95 -> 0 | AL56: ='..'!AM95 -> 0 | AM56: ='..'!AN95 -> 0 | AN56: ='..'!AO95 -> 0 | AO56: ='..'!AP95 -> 0
A57: ADD MONEY
A59: NO. | B59: VAS CODE | G59: ="Acc "&$H$4& " / "&$I$4 -> Acc COMPARE LAST MONTH / | H59: COMPARE LAST MONTH | K59: Friday | L59: Friday | M59: Friday | N59: Friday | O59: Friday | P59: Friday | Q59: Friday | R59: Friday | S59: Friday | T59: Friday | U59: Friday | V59: Friday | W59: Friday | X59: Friday | Y59: Friday | Z59: Friday | AA59: Friday | AB59: Friday | AC59: Friday | AD59: Friday | AE59: Friday | AF59: Friday | AG59: Friday | AH59: Friday | AI59: Friday | AJ59: Friday | AK59: Friday | AL59: Friday | AM59: Friday | AN59: Friday | AO59: Friday
C60: SHORTCODE | H60: Acc last month | I60: +/- | J60: % | K60: 1 | L60: 2 | M60: 3 | N60: 4 | O60: 5 | P60: 6 | Q60: 7 | R60: 8 | S60: 9 | T60: 10 | U60: 11 | V60: 12 | W60: 13 | X60: 14 | Y60: 15 | Z60: 16 | AA60: 17 | AB60: 18 | AC60: 19 | AD60: 20 | AE60: 21 | AF60: 22 | AG60: 23 | AH60: 24 | AI60: 25 | AJ60: 26 | AK60: 27 | AL60: 28 | AM60: 29 | AN60: 30 | AO60: 31
B61: NATCOM
A62: 1 | B62: ='..'!B109 -> IVR_RADIO | C62: ='..'!C109 -> 945 | D62: ='..'!D109 -> 0 | E62: ='..'!E109 -> 0 | F62: ='..'!F109 -> 0 | G62: ='..'!G109 -> 0 | H62: ='..'!I109 -> 0 | I62: ='..'!J109 -> 0 | J62: ='..'!K109 -> 0 | K62: ='..'!L109 -> 0 | L62: ='..'!M109 -> 0 | M62: ='..'!N109 -> 0 | N62: ='..'!O109 -> 0 | O62: ='..'!P109 -> 0 | P62: ='..'!Q109 -> 0 | Q62: ='..'!R109 -> 0 | R62: ='..'!S109 -> 0 | S62: ='..'!T109 -> 0 | T62: ='..'!U109 -> 0 | U62: ='..'!V109 -> 0 | V62: ='..'!W109 -> 0 | W62: ='..'!X109 -> 0 | X62: ='..'!Y109 -> 0 | Y62: ='..'!Z109 -> 0 | Z62: ='..'!AA109 -> 0 | AA62: ='..'!AB109 -> 0 | AB62: ='..'!AC109 -> 0 | AC62: ='..'!AD109 -> 0 | AD62: ='..'!AE109 -> 0 | AE62: ='..'!AF109 -> 0 | AF62: ='..'!AG109 -> 0 | AG62: ='..'!AH109 -> 0 | AH62: ='..'!AI109 -> 0 | AI62: ='..'!AJ109 -> 0 | AJ62: ='..'!AK109 -> 0 | AK62: ='..'!AL109 -> 0 | AL62: ='..'!AM109 -> 0 | AM62: ='..'!AN109 -> 0 | AN62: ='..'!AO109 -> 0 | AO62: ='..'!AP109 -> 0
A63: 2 | B63: ='..'!B110 -> CALL_PRO | C63: ='..'!C110 -> 526 | D63: ='..'!D110 -> 0 | E63: ='..'!E110 -> 0 | F63: ='..'!F110 -> 0 | G63: ='..'!G110 -> 0 | H63: ='..'!I110 -> 0 | I63: ='..'!J110 -> 0 | J63: ='..'!K110 -> 0 | K63: ='..'!L110 -> 0 | L63: ='..'!M110 -> 0 | M63: ='..'!N110 -> 0 | N63: ='..'!O110 -> 0 | O63: ='..'!P110 -> 0 | P63: ='..'!Q110 -> 0 | Q63: ='..'!R110 -> 0 | R63: ='..'!S110 -> 0 | S63: ='..'!T110 -> 0 | T63: ='..'!U110 -> 0 | U63: ='..'!V110 -> 0 | V63: ='..'!W110 -> 0 | W63: ='..'!X110 -> 0 | X63: ='..'!Y110 -> 0 | Y63: ='..'!Z110 -> 0 | Z63: ='..'!AA110 -> 0 | AA63: ='..'!AB110 -> 0 | AB63: ='..'!AC110 -> 0 | AC63: ='..'!AD110 -> 0 | AD63: ='..'!AE110 -> 0 | AE63: ='..'!AF110 -> 0 | AF63: ='..'!AG110 -> 0 | AG63: ='..'!AH110 -> 0 | AH63: ='..'!AI110 -> 0 | AI63: ='..'!AJ110 -> 0 | AJ63: ='..'!AK110 -> 0 | AK63: ='..'!AL110 -> 0 | AL63: ='..'!AM110 -> 0 | AM63: ='..'!AN110 -> 0 | AN63: ='..'!AO110 -> 0 | AO63: ='..'!AP110 -> 0
A64: 3 | B64: ='..'!B111 -> MILLIONAIRE | C64: ='..'!C111 -> 8585,Jetmilyone | D64: ='..'!D111 -> 0 | E64: ='..'!E111 -> 0 | F64: ='..'!F111 -> 0 | G64: ='..'!G111 -> 0 | H64: ='..'!I111 -> 0 | I64: ='..'!J111 -> 0 | J64: ='..'!K111 -> 0 | K64: ='..'!L111 -> 0 | L64: ='..'!M111 -> 0 | M64: ='..'!N111 -> 0 | N64: ='..'!O111 -> 0 | O64: ='..'!P111 -> 0 | P64: ='..'!Q111 -> 0 | Q64: ='..'!R111 -> 0 | R64: ='..'!S111 -> 0 | S64: ='..'!T111 -> 0 | T64: ='..'!U111 -> 0 | U64: ='..'!V111 -> 0 | V64: ='..'!W111 -> 0 | W64: ='..'!X111 -> 0 | X64: ='..'!Y111 -> 0 | Y64: ='..'!Z111 -> 0 | Z64: ='..'!AA111 -> 0 | AA64: ='..'!AB111 -> 0 | AB64: ='..'!AC111 -> 0 | AC64: ='..'!AD111 -> 0 | AD64: ='..'!AE111 -> 0 | AE64: ='..'!AF111 -> 0 | AF64: ='..'!AG111 -> 0 | AG64: ='..'!AH111 -> 0 | AH64: ='..'!AI111 -> 0 | AI64: ='..'!AJ111 -> 0 | AJ64: ='..'!AK111 -> 0 | AK64: ='..'!AL111 -> 0 | AL64: ='..'!AM111 -> 0 | AM64: ='..'!AN111 -> 0 | AN64: ='..'!AO111 -> 0 | AO64: ='..'!AP111 -> 0
A65: 4 | B65: ='..'!B112 -> NEW_VOTING | C65: ='..'!C112 -> MY TEAM | D65: ='..'!D112 -> 0 | E65: ='..'!E112 -> 0 | F65: ='..'!F112 -> 0 | G65: ='..'!G112 -> 0 | H65: ='..'!I112 -> 0 | I65: ='..'!J112 -> 0 | J65: ='..'!K112 -> 0 | K65: ='..'!L112 -> 0 | L65: ='..'!M112 -> 0 | M65: ='..'!N112 -> 0 | N65: ='..'!O112 -> 0 | O65: ='..'!P112 -> 0 | P65: ='..'!Q112 -> 0 | Q65: ='..'!R112 -> 0 | R65: ='..'!S112 -> 0 | S65: ='..'!T112 -> 0 | T65: ='..'!U112 -> 0 | U65: ='..'!V112 -> 0 | V65: ='..'!W112 -> 0 | W65: ='..'!X112 -> 0 | X65: ='..'!Y112 -> 0 | Y65: ='..'!Z112 -> 0 | Z65: ='..'!AA112 -> 0 | AA65: ='..'!AB112 -> 0 | AB65: ='..'!AC112 -> 0 | AC65: ='..'!AD112 -> 0 | AD65: ='..'!AE112 -> 0 | AE65: ='..'!AF112 -> 0 | AF65: ='..'!AG112 -> 0 | AG65: ='..'!AH112 -> 0 | AH65: ='..'!AI112 -> 0 | AI65: ='..'!AJ112 -> 0 | AJ65: ='..'!AK112 -> 0 | AK65: ='..'!AL112 -> 0 | AL65: ='..'!AM112 -> 0 | AM65: ='..'!AN112 -> 0 | AN65: ='..'!AO112 -> 0 | AO65: ='..'!AP112 -> 0
A66: 5 | B66: ='..'!B113 -> USSD_CHATTING | C66: ='..'!C113 -> 7979 | D66: ='..'!D113 -> 0 | E66: ='..'!E113 -> 0 | F66: ='..'!F113 -> 0 | G66: ='..'!G113 -> 0 | H66: ='..'!I113 -> 0 | I66: ='..'!J113 -> 0 | J66: ='..'!K113 -> 0 | K66: ='..'!L113 -> 0 | L66: ='..'!M113 -> 0 | M66: ='..'!N113 -> 0 | N66: ='..'!O113 -> 0 | O66: ='..'!P113 -> 0 | P66: ='..'!Q113 -> 0 | Q66: ='..'!R113 -> 0 | R66: ='..'!S113 -> 0 | S66: ='..'!T113 -> 0 | T66: ='..'!U113 -> 0 | U66: ='..'!V113 -> 0 | V66: ='..'!W113 -> 0 | W66: ='..'!X113 -> 0 | X66: ='..'!Y113 -> 0 | Y66: ='..'!Z113 -> 0 | Z66: ='..'!AA113 -> 0 | AA66: ='..'!AB113 -> 0 | AB66: ='..'!AC113 -> 0 | AC66: ='..'!AD113 -> 0 | AD66: ='..'!AE113 -> 0 | AE66: ='..'!AF113 -> 0 | AF66: ='..'!AG113 -> 0 | AG66: ='..'!AH113 -> 0 | AH66: ='..'!AI113 -> 0 | AI66: ='..'!AJ113 -> 0 | AJ66: ='..'!AK113 -> 0 | AK66: ='..'!AL113 -> 0 | AL66: ='..'!AM113 -> 0 | AM66: ='..'!AN113 -> 0 | AN66: ='..'!AO113 -> 0 | AO66: ='..'!AP113 -> 0
A67: 6 | B67: ='..'!B114 -> BACKGROUND_MUSIC | C67: ='..'!C114 -> 689 | D67: ='..'!D114 -> 0 | E67: ='..'!E114 -> 0 | F67: ='..'!F114 -> 0 | G67: ='..'!G114 -> 0 | H67: ='..'!I114 -> 0 | I67: ='..'!J114 -> 0 | J67: ='..'!K114 -> 0 | K67: ='..'!L114 -> 0 | L67: ='..'!M114 -> 0 | M67: ='..'!N114 -> 0 | N67: ='..'!O114 -> 0 | O67: ='..'!P114 -> 0 | P67: ='..'!Q114 -> 0 | Q67: ='..'!R114 -> 0 | R67: ='..'!S114 -> 0 | S67: ='..'!T114 -> 0 | T67: ='..'!U114 -> 0 | U67: ='..'!V114 -> 0 | V67: ='..'!W114 -> 0 | W67: ='..'!X114 -> 0 | X67: ='..'!Y114 -> 0 | Y67: ='..'!Z114 -> 0 | Z67: ='..'!AA114 -> 0 | AA67: ='..'!AB114 -> 0 | AB67: ='..'!AC114 -> 0 | AC67: ='..'!AD114 -> 0 | AD67: ='..'!AE114 -> 0 | AE67: ='..'!AF114 -> 0 | AF67: ='..'!AG114 -> 0 | AG67: ='..'!AH114 -> 0 | AH67: ='..'!AI114 -> 0 | AI67: ='..'!AJ114 -> 0 | AJ67: ='..'!AK114 -> 0 | AK67: ='..'!AL114 -> 0 | AL67: ='..'!AM114 -> 0 | AM67: ='..'!AN114 -> 0 | AN67: ='..'!AO114 -> 0 | AO67: ='..'!AP114 -> 0
A68: 7 | B68: ='..'!B115 -> LUCKY_ROULETTE | C68: ='..'!C115 -> BINGO, 5500 | D68: ='..'!D115 -> 0 | E68: ='..'!E115 -> 0 | F68: ='..'!F115 -> 0 | G68: ='..'!G115 -> 0 | H68: ='..'!I115 -> 0 | I68: ='..'!J115 -> 0 | J68: ='..'!K115 -> 0 | K68: ='..'!L115 -> 1025 | L68: ='..'!M115 -> 1025 | M68: ='..'!N115 -> 1025 | N68: ='..'!O115 -> 1025 | O68: ='..'!P115 -> 1025 | P68: ='..'!Q115 -> 1025 | Q68: ='..'!R115 -> 1025 | R68: ='..'!S115 -> 1025 | S68: ='..'!T115 -> 1025 | T68: ='..'!U115 -> 720 | U68: ='..'!V115 -> 970 | V68: ='..'!W115 -> 0 | W68: ='..'!X115 -> 0 | X68: ='..'!Y115 -> 0 | Y68: ='..'!Z115 -> 0 | Z68: ='..'!AA115 -> 0 | AA68: ='..'!AB115 -> 0 | AB68: ='..'!AC115 -> 0 | AC68: ='..'!AD115 -> 0 | AD68: ='..'!AE115 -> 0 | AE68: ='..'!AF115 -> 0 | AF68: ='..'!AG115 -> 0 | AG68: ='..'!AH115 -> 0 | AH68: ='..'!AI115 -> 0 | AI68: ='..'!AJ115 -> 0 | AJ68: ='..'!AK115 -> 0 | AK68: ='..'!AL115 -> 0 | AL68: ='..'!AM115 -> 0 | AM68: ='..'!AN115 -> 0 | AN68: ='..'!AO115 -> 0 | AO68: ='..'!AP115 -> 0
A69: 8 | B69: ='..'!B117 -> DATA CREDIT | C69: ='..'!C117 -> 734 | D69: ='..'!D117 -> 0 | E69: ='..'!E117 -> 0 | F69: ='..'!F117 -> 0 | G69: ='..'!G117 -> 0 | H69: ='..'!I117 -> 0 | I69: ='..'!J117 -> 0 | J69: ='..'!K117 -> 0 | K69: ='..'!L117 -> 0 | L69: ='..'!M117 -> 0 | M69: ='..'!N117 -> 0 | N69: ='..'!O117 -> 0 | O69: ='..'!P117 -> 0 | P69: ='..'!Q117 -> 0 | Q69: ='..'!R117 -> 0 | R69: ='..'!S117 -> 0 | S69: ='..'!T117 -> 0 | T69: ='..'!U117 -> 0 | U69: ='..'!V117 -> 0 | V69: ='..'!W117 -> 0 | W69: ='..'!X117 -> 0 | X69: ='..'!Y117 -> 0 | Y69: ='..'!Z117 -> 0 | Z69: ='..'!AA117 -> 0 | AA69: ='..'!AB117 -> 0 | AB69: ='..'!AC117 -> 0 | AC69: ='..'!AD117 -> 0 | AD69: ='..'!AE117 -> 0 | AE69: ='..'!AF117 -> 0 | AF69: ='..'!AG117 -> 0 | AG69: ='..'!AH117 -> 0 | AH69: ='..'!AI117 -> 0 | AI69: ='..'!AJ117 -> 0 | AJ69: ='..'!AK117 -> 0 | AK69: ='..'!AL117 -> 0 | AL69: ='..'!AM117 -> 0 | AM69: ='..'!AN117 -> 0 | AN69: ='..'!AO117 -> 0 | AO69: ='..'!AP117 -> 0
B70: TELEMOR
A71: 9 | B71: ='..'!B120 -> HOROSCOPE | C71: ='..'!C120 -> 184 | D71: ='..'!D120 -> 0 | E71: ='..'!E120 -> 0 | F71: ='..'!F120 -> 0 | G71: ='..'!G120 -> 0 | H71: ='..'!I120 -> 0 | I71: ='..'!J120 -> 0 | J71: ='..'!K120 -> 0 | K71: ='..'!L120 -> 0 | L71: ='..'!M120 -> 0 | M71: ='..'!N120 -> 0 | N71: ='..'!O120 -> 0 | O71: ='..'!P120 -> 0 | P71: ='..'!Q120 -> 0 | Q71: ='..'!R120 -> 0 | R71: ='..'!S120 -> 0 | S71: ='..'!T120 -> 0 | T71: ='..'!U120 -> 0 | U71: ='..'!V120 -> 0 | V71: ='..'!W120 -> 0 | W71: ='..'!X120 -> 0 | X71: ='..'!Y120 -> 0 | Y71: ='..'!Z120 -> 0 | Z71: ='..'!AA120 -> 0 | AA71: ='..'!AB120 -> 0 | AB71: ='..'!AC120 -> 0 | AC71: ='..'!AD120 -> 0 | AD71: ='..'!AE120 -> 0 | AE71: ='..'!AF120 -> 0 | AF71: ='..'!AG120 -> 0 | AG71: ='..'!AH120 -> 0 | AH71: ='..'!AI120 -> 0 | AI71: ='..'!AJ120 -> 0 | AJ71: ='..'!AK120 -> 0 | AK71: ='..'!AL120 -> 0 | AL71: ='..'!AM120 -> 0 | AM71: ='..'!AN120 -> 0 | AN71: ='..'!AO120 -> 0 | AO71: ='..'!AP120 -> 0

Sheet DU (hidden)
A2: PROFIT | C2: DATE
A4: NO. | B4: VAS CODE | G4: ="Acc "&$H$4& " / "&$I$4 -> Acc COMPARE LAST MONTH / | H4: COMPARE LAST MONTH | K4: Friday | L4: Saturday | M4: Sunday | N4: Monday | O4: Tuesday | P4: Wednesday | Q4: Thursday | R4: Friday | S4: Saturday | T4: Sunday | U4: Monday | V4: Tuesday | W4: Wednesday | X4: Thursday | Y4: Friday | Z4: Saturday | AA4: Sunday | AB4: Monday | AC4: Tuesday | AD4: Wednesday | AE4: Thursday | AF4: Friday | AG4: Saturday | AH4: Sunday | AI4: Monday | AJ4: Tuesday | AK4: Wednesday | AL4: Wednesday | AM4: Wednesday | AN4: Wednesday | AO4: Wednesday
D5: NGƯỜI NHẬN BÁO CÁO | E5: TOTAL AFTER SHARING | F5: TOTAL BEFORE SHARING | H5: Acc last month | I5: +/- | J5: % | K5: 1 | L5: 2 | M5: 3 | N5: 4 | O5: 5 | P5: 6 | Q5: 7 | R5: 8 | S5: 9 | T5: 10 | U5: 11 | V5: 12 | W5: 13 | X5: 14 | Y5: 15 | Z5: 16 | AA5: 17 | AB5: 18 | AC5: 19 | AD5: 20 | AE5: 21 | AF5: 22 | AG5: 23 | AH5: 24 | AI5: 25 | AJ5: 26 | AK5: 27 | AL5: 28 | AM5: 29 | AN5: 30 | AO5: 31
B6: NATCOM
A7: ='..'!A7 -> 1 | B7: ='..'!B7 -> BON_INFO, SMS INFOR | C7: ='..'!C7 -> LUCKYCODE | D7: BÌNH, A QUANG, HƯƠNG, DU | E7: ='..'!E7 -> 0 | F7: ='..'!F7 -> 0 | G7: ='..'!G7 -> 0 | H7: ='..'!I7 -> 0 | I7: ='..'!J7 -> 0 | J7: ='..'!K7 -> 0 | K7: ='..'!L7 -> 21267 | L7: ='..'!M7 -> 21194 | M7: ='..'!N7 -> 21278 | N7: ='..'!O7 -> 21428 | O7: ='..'!P7 -> 21357 | P7: ='..'!Q7 -> 20998 | Q7: ='..'!R7 -> 22336 | R7: ='..'!S7 -> 23492 | S7: ='..'!T7 -> 25165 | T7: ='..'!U7 -> 26125 | U7: ='..'!V7 -> 22708 | V7: ='..'!W7 -> 0 | W7: ='..'!X7 -> 0 | X7: ='..'!Y7 -> 0 | Y7: ='..'!Z7 -> 0 | Z7: ='..'!AA7 -> 0 | AA7: ='..'!AB7 -> 0 | AB7: ='..'!AC7 -> 0 | AC7: ='..'!AD7 -> 0 | AD7: ='..'!AE7 -> 0 | AE7: ='..'!AF7 -> 0 | AF7: ='..'!AG7 -> 21267 | AG7: ='..'!AH7 -> 0 | AH7: ='..'!AI7 -> 0 | AI7: ='..'!AJ7 -> 0 | AJ7: ='..'!AK7 -> 0 | AK7: ='..'!AL7 -> 0 | AL7: ='..'!AM7 -> 0 | AM7: ='..'!AN7 -> 0 | AN7: ='..'!AO7 -> 0 | AO7: ='..'!AP7 -> 0
A8: ='..'!A8 -> 2 | B8: ='..'!B8 -> IVR_INFOR | C8: ='..'!C8 -> LUCKYCODE | E8: ='..'!E8 -> 0 | F8: ='..'!F8 -> 0 | G8: ='..'!G8 -> 0 | H8: ='..'!I8 -> 0 | I8: ='..'!J8 -> 0 | J8: ='..'!K8 -> 0 | K8: ='..'!L8 -> 10965 | L8: ='..'!M8 -> 10990 | M8: ='..'!N8 -> 11010 | N8: ='..'!O8 -> 11176 | O8: ='..'!P8 -> 11034 | P8: ='..'!Q8 -> 10877 | Q8: ='..'!R8 -> 10891 | R8: ='..'!S8 -> 10573 | S8: ='..'!T8 -> 11002 | T8: ='..'!U8 -> 10910 | U8: ='..'!V8 -> 8893 | V8: ='..'!W8 -> 0 | W8: ='..'!X8 -> 0 | X8: ='..'!Y8 -> 0 | Y8: ='..'!Z8 -> 0 | Z8: ='..'!AA8 -> 0 | AA8: ='..'!AB8 -> 0 | AB8: ='..'!AC8 -> 0 | AC8: ='..'!AD8 -> 0 | AD8: ='..'!AE8 -> 0 | AE8: ='..'!AF8 -> 0 | AF8: ='..'!AG8 -> 10965 | AG8: ='..'!AH8 -> 0 | AH8: ='..'!AI8 -> 0 | AI8: ='..'!AJ8 -> 0 | AJ8: ='..'!AK8 -> 0 | AK8: ='..'!AL8 -> 0 | AL8: ='..'!AM8 -> 0 | AM8: ='..'!AN8 -> 0 | AN8: ='..'!AO8 -> 0 | AO8: ='..'!AP8 -> 0
A9: ='..'!A9 -> 3 | B9: ='..'!B9 -> LUCKY_SPIN | C9: ='..'!C9 -> 7878, Lawoulet | E9: ='..'!E9 -> 0 | F9: ='..'!F9 -> 0 | G9: ='..'!G9 -> 0 | H9: ='..'!I9 -> 0 | I9: ='..'!J9 -> 0 | J9: ='..'!K9 -> 0 | K9: ='..'!L9 -> 29898 | L9: ='..'!M9 -> 30199 | M9: ='..'!N9 -> 31887 | N9: ='..'!O9 -> 32658 | O9: ='..'!P9 -> 30840 | P9: ='..'!Q9 -> 30663 | Q9: ='..'!R9 -> 29784 | R9: ='..'!S9 -> 30013 | S9: ='..'!T9 -> 29915 | T9: ='..'!U9 -> 29306 | U9: ='..'!V9 -> 20808 | V9: ='..'!W9 -> 0 | W9: ='..'!X9 -> 0 | X9: ='..'!Y9 -> 0 | Y9: ='..'!Z9 -> 0 | Z9: ='..'!AA9 -> 0 | AA9: ='..'!AB9 -> 0 | AB9: ='..'!AC9 -> 0 | AC9: ='..'!AD9 -> 0 | AD9: ='..'!AE9 -> 0 | AE9: ='..'!AF9 -> 0 | AF9: ='..'!AG9 -> 29898 | AG9: ='..'!AH9 -> 0 | AH9: ='..'!AI9 -> 0 | AI9: ='..'!AJ9 -> 0 | AJ9: ='..'!AK9 -> 0 | AK9: ='..'!AL9 -> 0 | AL9: ='..'!AM9 -> 0 | AM9: ='..'!AN9 -> 0 | AN9: ='..'!AO9 -> 0 | AO9: ='..'!AP9 -> 0
A10: ='..'!A10 -> 4 | B10: ='..'!B10 -> LUCKY_CARD | C10: ='..'!C10 -> LUCKYCODE | E10: ='..'!E10 -> 0 | F10: ='..'!F10 -> 0 | G10: ='..'!G10 -> 0 | H10: ='..'!I10 -> 0 | I10: ='..'!J10 -> 0 | J10: ='..'!K10 -> 0 | K10: ='..'!L10 -> 20192 | L10: ='..'!M10 -> 21185 | M10: ='..'!N10 -> 22540 | N10: ='..'!O10 -> 22666 | O10: ='..'!P10 -> 22577 | P10: ='..'!Q10 -> 21112 | Q10: ='..'!R10 -> 20142 | R10: ='..'!S10 -> 19278 | S10: ='..'!T10 -> 20206 | T10: ='..'!U10 -> 19805 | U10: ='..'!V10 -> 16174 | V10: ='..'!W10 -> 0 | W10: ='..'!X10 -> 0 | X10: ='..'!Y10 -> 0 | Y10: ='..'!Z10 -> 0 | Z10: ='..'!AA10 -> 0 | AA10: ='..'!AB10 -> 0 | AB10: ='..'!AC10 -> 0 | AC10: ='..'!AD10 -> 0 | AD10: ='..'!AE10 -> 0 | AE10: ='..'!AF10 -> 0 | AF10: ='..'!AG10 -> 20192 | AG10: ='..'!AH10 -> 0 | AH10: ='..'!AI10 -> 0 | AI10: ='..'!AJ10 -> 0 | AJ10: ='..'!AK10 -> 0 | AK10: ='..'!AL10 -> 0 | AL10: ='..'!AM10 -> 0 | AM10: ='..'!AN10 -> 0 | AN10: ='..'!AO10 -> 0 | AO10: ='..'!AP10 -> 0
A11: ='..'!A11 -> 5 | B11: ='..'!B11 -> IVR_DATING | C11: ='..'!C11 -> 933 | E11: ='..'!E11 -> 0 | F11: ='..'!F11 -> 0 | G11: ='..'!G11 -> 0 | H11: ='..'!I11 -> 0 | I11: ='..'!J11 -> 0 | J11: ='..'!K11 -> 0 | K11: ='..'!L11 -> 28614 | L11: ='..'!M11 -> 29475 | M11: ='..'!N11 -> 29849 | N11: ='..'!O11 -> 29175 | O11: ='..'!P11 -> 28229 | P11: ='..'!Q11 -> 27897 | Q11: ='..'!R11 -> 27436 | R11: ='..'!S11 -> 0 | S11: ='..'!T11 -> 0 | T11: ='..'!U11 -> 28230 | U11: ='..'!V11 -> 22380 | V11: ='..'!W11 -> 0 | W11: ='..'!X11 -> 0 | X11: ='..'!Y11 -> 0 | Y11: ='..'!Z11 -> 0 | Z11: ='..'!AA11 -> 0 | AA11: ='..'!AB11 -> 0 | AB11: ='..'!AC11 -> 0 | AC11: ='..'!AD11 -> 0 | AD11: ='..'!AE11 -> 0 | AE11: ='..'!AF11 -> 0 | AF11: ='..'!AG11 -> 28614 | AG11: ='..'!AH11 -> 0 | AH11: ='..'!AI11 -> 0 | AI11: ='..'!AJ11 -> 0 | AJ11: ='..'!AK11 -> 0 | AK11: ='..'!AL11 -> 0 | AL11: ='..'!AM11 -> 0 | AM11: ='..'!AN11 -> 0 | AN11: ='..'!AO11 -> 0 | AO11: ='..'!AP11 -> 0
A12: ='..'!A12 -> 6 | B12: ='..'!B12 -> Lucky Draw | C12: ='..'!C12 -> 556 | E12: ='..'!E12 -> 0 | F12: ='..'!F12 -> 0 | G12: ='..'!G12 -> 0 | H12: ='..'!I12 -> 0 | I12: ='..'!J12 -> 0 | J12: ='..'!K12 -> 0 | K12: ='..'!L12 -> 0 | L12: ='..'!M12 -> 43261,99 | M12: ='..'!N12 -> 55189,52 | N12: ='..'!O12 -> 19497,44 | O12: ='..'!P12 -> 54241,97 | P12: ='..'!Q12 -> 18471,68 | Q12: ='..'!R12 -> 18414,44 | R12: ='..'!S12 -> 43915,32 | S12: ='..'!T12 -> 39650,38 | T12: ='..'!U12 -> 34237,96 | U12: ='..'!V12 -> 18827,42 | V12: ='..'!W12 -> 0 | W12: ='..'!X12 -> 0 | X12: ='..'!Y12 -> 0 | Y12: ='..'!Z12 -> 0 | Z12: ='..'!AA12 -> 0 | AA12: ='..'!AB12 -> 0 | AB12: ='..'!AC12 -> 0 | AC12: ='..'!AD12 -> 0 | AD12: ='..'!AE12 -> 0 | AE12: ='..'!AF12 -> 0 | AF12: ='..'!AG12 -> 0 | AG12: ='..'!AH12 -> 0 | AH12: ='..'!AI12 -> 0 | AI12: ='..'!AJ12 -> 0 | AJ12: ='..'!AK12 -> 0 | AK12: ='..'!AL12 -> 0 | AL12: ='..'!AM12 -> 0 | AM12: ='..'!AN12 -> 0 | AN12: ='..'!AO12 -> 0 | AO12: ='..'!AP12 -> 0
A13: ='..'!A13 -> 7 | B13: ='..'!B13 -> LUCKY_WORD | C13: ='..'!C13 -> LUCKYCODE | E13: ='..'!E13 -> 0 | F13: ='..'!F13 -> 0 | G13: ='..'!G13 -> 0 | H13: ='..'!I13 -> 0 | I13: ='..'!J13 -> 0 | J13: ='..'!K13 -> 0 | K13: ='..'!L13 -> 38314 | L13: ='..'!M13 -> 38573 | M13: ='..'!N13 -> 37926 | N13: ='..'!O13 -> 37674 | O13: ='..'!P13 -> 37441 | P13: ='..'!Q13 -> 37421 | Q13: ='..'!R13 -> 35963 | R13: ='..'!S13 -> 35967 | S13: ='..'!T13 -> 37794 | T13: ='..'!U13 -> 32050 | U13: ='..'!V13 -> 28386 | V13: ='..'!W13 -> 0 | W13: ='..'!X13 -> 0 | X13: ='..'!Y13 -> 0 | Y13: ='..'!Z13 -> 0 | Z13: ='..'!AA13 -> 0 | AA13: ='..'!AB13 -> 0 | AB13: ='..'!AC13 -> 0 | AC13: ='..'!AD13 -> 0 | AD13: ='..'!AE13 -> 0 | AE13: ='..'!AF13 -> 0 | AF13: ='..'!AG13 -> 0 | AG13: ='..'!AH13 -> 0 | AH13: ='..'!AI13 -> 0 | AI13: ='..'!AJ13 -> 0 | AJ13: ='..'!AK13 -> 0 | AK13: ='..'!AL13 -> 0 | AL13: ='..'!AM13 -> 0 | AM13: ='..'!AN13 -> 0 | AN13: ='..'!AO13 -> 0 | AO13: ='..'!AP13 -> 0
B14: ='..'!B14 -> ITL
A15: ='..'!A30 -> 18 | B15: ='..'!B30 -> E-News | C15: ='..'!C30 -> 368 | D15: BÌNH, DU, HƯƠNG | E15: ='..'!E30 -> 0 | F15: ='..'!F30 -> 0 | G15: ='..'!G30 -> 0 | H15: ='..'!I30 -> 0 | I15: ='..'!J30 -> 0 | J15: ='..'!K30 -> 0 | K15: ='..'!L30 -> 35787 | L15: ='..'!M30 -> 36387 | M15: ='..'!N30 -> 34921 | N15: ='..'!O30 -> 35093 | O15: ='..'!P30 -> 34062 | P15: ='..'!Q30 -> 33756 | Q15: ='..'!R30 -> 33501 | R15: ='..'!S30 -> 32399 | S15: ='..'!T30 -> 34202 | T15: ='..'!U30 -> 32297 | U15: ='..'!V30 -> 23606 | V15: ='..'!W30 -> 0 | W15: ='..'!X30 -> 0 | X15: ='..'!Y30 -> 0 | Y15: ='..'!Z30 -> 0 | Z15: ='..'!AA30 -> 0 | AA15: ='..'!AB30 -> 0 | AB15: ='..'!AC30 -> 0 | AC15: ='..'!AD30 -> 0 | AD15: ='..'!AE30 -> 0 | AE15: ='..'!AF30 -> 0 | AF15: ='..'!AG30 -> 0 | AG15: ='..'!AH30 -> 0 | AH15: ='..'!AI30 -> 0 | AI15: ='..'!AJ30 -> 0 | AJ15: ='..'!AK30 -> 0 | AK15: ='..'!AL30 -> 0 | AL15: ='..'!AM30 -> 0 | AM15: ='..'!AN30 -> 0 | AN15: ='..'!AO30 -> 0 | AO15: ='..'!AP30 -> 0
A16: ='..'!A31 -> 0 | B16: ='..'!B31 -> E VENTS | C16: ='..'!C31 -> 3333 | D16: BÌNH, DU, A QUANG, HƯƠNG | E16: ='..'!E31 -> 0 | F16: ='..'!F31 -> 0 | G16: ='..'!G31 -> 0 | H16: ='..'!I31 -> 0 | I16: ='..'!J31 -> 0 | J16: ='..'!K31 -> 0 | K16: ='..'!L31 -> 0 | L16: ='..'!M31 -> 0 | M16: ='..'!N31 -> 0 | N16: ='..'!O31 -> 0 | O16: ='..'!P31 -> 0 | P16: ='..'!Q31 -> 0 | Q16: ='..'!R31 -> 0 | R16: ='..'!S31 -> 0 | S16: ='..'!T31 -> 0 | T16: ='..'!U31 -> 0 | U16: ='..'!V31 -> 0 | V16: ='..'!W31 -> 0 | W16: ='..'!X31 -> 0 | X16: ='..'!Y31 -> 0 | Y16: ='..'!Z31 -> 0 | Z16: ='..'!AA31 -> 0 | AA16: ='..'!AB31 -> 0 | AB16: ='..'!AC31 -> 0 | AC16: ='..'!AD31 -> 0 | AD16: ='..'!AE31 -> 0 | AE16: ='..'!AF31 -> 0 | AF16: ='..'!AG31 -> 0 | AG16: ='..'!AH31 -> 0 | AH16: ='..'!AI31 -> 0 | AI16: ='..'!AJ31 -> 0 | AJ16: ='..'!AK31 -> 0 | AK16: ='..'!AL31 -> 0 | AL16: ='..'!AM31 -> 0 | AM16: ='..'!AN31 -> 0 | AN16: ='..'!AO31 -> 0 | AO16: ='..'!AP31 -> 0
B17: VIETTECH
B18: TELEMOR
A19: ='..'!A34 -> 19 | B19: ='..'!B34 -> HOROSCOPE | C19: ='..'!C34 -> 184 | D19: ='..'!D34 -> BÌNH, A QUANG, TÚ, DU | E19: ='..'!E34 -> 0 | F19: ='..'!F34 -> 0 | G19: ='..'!G34 -> 0 | H19: ='..'!I34 -> 0 | I19: ='..'!J34 -> 0 | J19: ='..'!K34 -> 0 | K19: ='..'!L34 -> 0 | L19: ='..'!M34 -> 0 | M19: ='..'!N34 -> 0 | N19: ='..'!O34 -> $108,3 | O19: ='..'!P34 -> 106,65 | P19: ='..'!Q34 -> 107,35 | Q19: ='..'!R34 -> 177 | R19: ='..'!S34 -> 165,05 | S19: ='..'!T34 -> 188,2 | T19: ='..'!U34 -> 175,2 | U19: ='..'!V34 -> 158,5 | V19: ='..'!W34 -> 0 | W19: ='..'!X34 -> 0 | X19: ='..'!Y34 -> 0 | Y19: ='..'!Z34 -> 0 | Z19: ='..'!AA34 -> 0 | AA19: ='..'!AB34 -> 0 | AB19: ='..'!AC34 -> 0 | AC19: ='..'!AD34 -> 0 | AD19: ='..'!AE34 -> 0 | AE19: ='..'!AF34 -> 0 | AF19: ='..'!AG34 -> 0 | AG19: ='..'!AH34 -> 0 | AH19: ='..'!AI34 -> 0 | AI19: ='..'!AJ34 -> 0 | AJ19: ='..'!AK34 -> 0 | AK19: ='..'!AL34 -> 0 | AL19: ='..'!AM34 -> 0 | AM19: ='..'!AN34 -> 0 | AN19: ='..'!AO34 -> 0 | AO19: ='..'!AP34 -> 0
B20: ITL
A21: ='..'!A39 -> 22 | B21: ='..'!B39 -> VIETCARE | C21: ='..'!C39 -> 0 | D21: BÌNH, DU, HƯƠNG | E21: ='..'!E39 -> 0 | F21: ='..'!F39 -> 0 | G21: ='..'!G39 -> 0 | H21: ='..'!I39 -> 0 | I21: ='..'!J39 -> 0 | J21: ='..'!K39 -> 0 | K21: ='..'!L39 -> 0 | L21: ='..'!M39 -> 0 | M21: ='..'!N39 -> 0 | N21: ='..'!O39 -> 0 | O21: ='..'!P39 -> 0 | P21: ='..'!Q39 -> 0 | Q21: ='..'!R39 -> 0 | R21: ='..'!S39 -> 0 | S21: ='..'!T39 -> 0 | T21: ='..'!U39 -> 0 | U21: ='..'!V39 -> 0 | V21: ='..'!W39 -> 0 | W21: ='..'!X39 -> 0 | X21: ='..'!Y39 -> 0 | Y21: ='..'!Z39 -> 0 | Z21: ='..'!AA39 -> 0 | AA21: ='..'!AB39 -> 0 | AB21: ='..'!AC39 -> 0 | AC21: ='..'!AD39 -> 0 | AD21: ='..'!AE39 -> 0 | AE21: ='..'!AF39 -> 0 | AF21: ='..'!AG39 -> 0 | AG21: ='..'!AH39 -> 0 | AH21: ='..'!AI39 -> 0 | AI21: ='..'!AJ39 -> 0 | AJ21: ='..'!AK39 -> 0 | AK21: ='..'!AL39 -> 0 | AL21: ='..'!AM39 -> 0 | AM21: ='..'!AN39 -> 0 | AN21: ='..'!AO39 -> 0 | AO21: ='..'!AP39 -> 0
A22: ='..'!A40 -> 23 | B22: ='..'!B40 -> CHIÊM TINH | C22: ='..'!C40 -> 0 | E22: ='..'!E40 -> 0 | F22: ='..'!F40 -> 0 | G22: ='..'!G40 -> 0 | H22: ='..'!I40 -> 0 | I22: ='..'!J40 -> 0 | J22: ='..'!K40 -> 0 | K22: ='..'!L40 -> 0 | L22: ='..'!M40 -> 0 | M22: ='..'!N40 -> 0 | N22: ='..'!O40 -> 0 | O22: ='..'!P40 -> 0 | P22: ='..'!Q40 -> 0 | Q22: ='..'!R40 -> 0 | R22: ='..'!S40 -> 0 | S22: ='..'!T40 -> 0 | T22: ='..'!U40 -> 0 | U22: ='..'!V40 -> 0 | V22: ='..'!W40 -> 0 | W22: ='..'!X40 -> 0 | X22: ='..'!Y40 -> 0 | Y22: ='..'!Z40 -> 0 | Z22: ='..'!AA40 -> 0 | AA22: ='..'!AB40 -> 0 | AB22: ='..'!AC40 -> 0 | AC22: ='..'!AD40 -> 0 | AD22: ='..'!AE40 -> 0 | AE22: ='..'!AF40 -> 0 | AF22: ='..'!AG40 -> 0 | AG22: ='..'!AH40 -> 0 | AH22: ='..'!AI40 -> 0 | AI22: ='..'!AJ40 -> 0 | AJ22: ='..'!AK40 -> 0 | AK22: ='..'!AL40 -> 0 | AL22: ='..'!AM40 -> 0 | AM22: ='..'!AN40 -> 0 | AN22: ='..'!AO40 -> 0 | AO22: ='..'!AP40 -> 0
B23: VIETTECH
B24: TOTAL
A26: REGISTER
A28: NO. | B28: VAS CODE | G28: ="Acc "&$H$4& " / "&$I$4 -> Acc COMPARE LAST MONTH / | H28: COMPARE LAST MONTH | K28: Friday | L28: Friday | M28: Friday | N28: Friday | O28: Friday | P28: Friday | Q28: Friday | R28: Friday | S28: Friday | T28: Friday | U28: Friday | V28: Friday | W28: Friday | X28: Friday | Y28: Friday | Z28: Friday | AA28: Friday | AB28: Friday | AC28: Friday | AD28: Friday | AE28: Friday | AF28: Friday | AG28: Friday | AH28: Friday | AI28: Friday | AJ28: Friday | AK28: Friday | AL28: Friday | AM28: Friday | AN28: Friday | AO28: Friday
C29: SHORTCODE | H29: Acc last month | I29: +/- | J29: % | K29: 1 | L29: 2 | M29: 3 | N29: 4 | O29: 5 | P29: 6 | Q29: 7 | R29: 8 | S29: 9 | T29: 10 | U29: 11 | V29: 12 | W29: 13 | X29: 14 | Y29: 15 | Z29: 16 | AA29: 17 | AB29: 18 | AC29: 19 | AD29: 20 | AE29: 21 | AF29: 22 | AG29: 23 | AH29: 24 | AI29: 25 | AJ29: 26 | AK29: 27 | AL29: 28 | AM29: 29 | AN29: 30 | AO29: 31
B30: NATCOM
A31: ='..'!A49 -> 1 | B31: ='..'!B49 -> BON_INFO,SMS INFOR | C31: ='..'!C49 -> LUCKYCODE | D31: ='..'!D49 -> 0 | E31: ='..'!E49 -> 0 | F31: ='..'!F49 -> 0 | G31: ='..'!G49 -> 0 | H31: ='..'!I49 -> 0 | I31: ='..'!J49 -> 0 | J31: ='..'!K49 -> 0 | K31: ='..'!L49 -> 135 | L31: ='..'!M49 -> 122 | M31: ='..'!N49 -> 119 | N31: ='..'!O49 -> 105 | O31: ='..'!P49 -> 172 | P31: ='..'!Q49 -> 1016 | Q31: ='..'!R49 -> 1805 | R31: ='..'!S49 -> 1689 | S31: ='..'!T49 -> 1524 | T31: ='..'!U49 -> 31 | U31: ='..'!V49 -> 838 | V31: ='..'!W49 -> 0 | W31: ='..'!X49 -> 0 | X31: ='..'!Y49 -> 0 | Y31: ='..'!Z49 -> 0 | Z31: ='..'!AA49 -> 0 | AA31: ='..'!AB49 -> 0 | AB31: ='..'!AC49 -> 0 | AC31: ='..'!AD49 -> 0 | AD31: ='..'!AE49 -> 0 | AE31: ='..'!AF49 -> 0 | AF31: ='..'!AG49 -> 0 | AG31: ='..'!AH49 -> 0 | AH31: ='..'!AI49 -> 0 | AI31: ='..'!AJ49 -> 0 | AJ31: ='..'!AK49 -> 0 | AK31: ='..'!AL49 -> 0 | AL31: ='..'!AM49 -> 0 | AM31: ='..'!AN49 -> 0 | AN31: ='..'!AO49 -> 0 | AO31: ='..'!AP49 -> 0
A32: ='..'!A50 -> 2 | B32: ='..'!B50 -> IVR_INFOR | C32: ='..'!C50 -> LUCKYCODE | D32: ='..'!D50 -> 0 | E32: ='..'!E50 -> 0 | F32: ='..'!F50 -> 0 | G32: ='..'!G50 -> 0 | H32: ='..'!I50 -> 0 | I32: ='..'!J50 -> 0 | J32: ='..'!K50 -> 0 | K32: ='..'!L50 -> 9 | L32: ='..'!M50 -> 6 | M32: ='..'!N50 -> 4 | N32: ='..'!O50 -> 4 | O32: ='..'!P50 -> 9 | P32: ='..'!Q50 -> 7 | Q32: ='..'!R50 -> 16 | R32: ='..'!S50 -> 13 | S32: ='..'!T50 -> 11 | T32: ='..'!U50 -> 7 | U32: ='..'!V50 -> 7 | V32: ='..'!W50 -> 0 | W32: ='..'!X50 -> 0 | X32: ='..'!Y50 -> 0 | Y32: ='..'!Z50 -> 0 | Z32: ='..'!AA50 -> 0 | AA32: ='..'!AB50 -> 0 | AB32: ='..'!AC50 -> 0 | AC32: ='..'!AD50 -> 0 | AD32: ='..'!AE50 -> 0 | AE32: ='..'!AF50 -> 0 | AF32: ='..'!AG50 -> 0 | AG32: ='..'!AH50 -> 0 | AH32: ='..'!AI50 -> 0 | AI32: ='..'!AJ50 -> 0 | AJ32: ='..'!AK50 -> 0 | AK32: ='..'!AL50 -> 0 | AL32: ='..'!AM50 -> 0 | AM32: ='..'!AN50 -> 0 | AN32: ='..'!AO50 -> 0 | AO32: ='..'!AP50 -> 0
A33: ='..'!A51 -> 3 | B33: ='..'!B51 -> LUCKY_SPIN | C33: ='..'!C51 -> 7878, Lawoulet | D33: ='..'!D51 -> 0 | E33: ='..'!E51 -> 0 | F33: ='..'!F51 -> 0 | G33: ='..'!G51 -> 0 | H33: ='..'!I51 -> 0 | I33: ='..'!J51 -> 0 | J33: ='..'!K51 -> 0 | K33: ='..'!L51 -> 998 | L33: ='..'!M51 -> 986 | M33: ='..'!N51 -> 1285 | N33: ='..'!O51 -> 1100 | O33: ='..'!P51 -> 900 | P33: ='..'!Q51 -> 286 | Q33: ='..'!R51 -> 422 | R33: ='..'!S51 -> 241 | S33: ='..'!T51 -> 108 | T33: ='..'!U51 -> 170 | U33: ='..'!V51 -> 51 | V33: ='..'!W51 -> 0 | W33: ='..'!X51 -> 0 | X33: ='..'!Y51 -> 0 | Y33: ='..'!Z51 -> 0 | Z33: ='..'!AA51 -> 0 | AA33: ='..'!AB51 -> 0 | AB33: ='..'!AC51 -> 0 | AC33: ='..'!AD51 -> 0 | AD33: ='..'!AE51 -> 0 | AE33: ='..'!AF51 -> 0 | AF33: ='..'!AG51 -> 0 | AG33: ='..'!AH51 -> 0 | AH33: ='..'!AI51 -> 0 | AI33: ='..'!AJ51 -> 0 | AJ33: ='..'!AK51 -> 0 | AK33: ='..'!AL51 -> 0 | AL33: ='..'!AM51 -> 0 | AM33: ='..'!AN51 -> 0 | AN33: ='..'!AO51 -> 0 | AO33: ='..'!AP51 -> 0
A34: ='..'!A52 -> 4 | B34: ='..'!B52 -> LUCKY_CARD | C34: ='..'!C52 -> LUCKYCODE | D34: ='..'!D52 -> 0 | E34: ='..'!E52 -> 0 | F34: ='..'!F52 -> 0 | G34: ='..'!G52 -> 0 | H34: ='..'!I52 -> 0 | I34: ='..'!J52 -> 0 | J34: ='..'!K52 -> 0 | K34: ='..'!L52 -> 942 | L34: ='..'!M52 -> 994 | M34: ='..'!N52 -> 1527 | N34: ='..'!O52 -> 1016 | O34: ='..'!P52 -> 920 | P34: ='..'!Q52 -> 77 | Q34: ='..'!R52 -> 50 | R34: ='..'!S52 -> 41 | S34: ='..'!T52 -> 41 | T34: ='..'!U52 -> 48 | U34: ='..'!V52 -> 395 | V34: ='..'!W52 -> 0 | W34: ='..'!X52 -> 0 | X34: ='..'!Y52 -> 0 | Y34: ='..'!Z52 -> 0 | Z34: ='..'!AA52 -> 0 | AA34: ='..'!AB52 -> 0 | AB34: ='..'!AC52 -> 0 | AC34: ='..'!AD52 -> 0 | AD34: ='..'!AE52 -> 0 | AE34: ='..'!AF52 -> 0 | AF34: ='..'!AG52 -> 0 | AG34: ='..'!AH52 -> 0 | AH34: ='..'!AI52 -> 0 | AI34: ='..'!AJ52 -> 0 | AJ34: ='..'!AK52 -> 0 | AK34: ='..'!AL52 -> 0 | AL34: ='..'!AM52 -> 0 | AM34: ='..'!AN52 -> 0 | AN34: ='..'!AO52 -> 0 | AO34: ='..'!AP52 -> 0
A35: ='..'!A53 -> 5 | B35: ='..'!B53 -> IVR_DATING | C35: ='..'!C53 -> 933 | D35: ='..'!D53 -> 0 | E35: ='..'!E53 -> 0 | F35: ='..'!F53 -> 0 | G35: ='..'!G53 -> 0 | H35: ='..'!I53 -> 0 | I35: ='..'!J53 -> 0 | J35: ='..'!K53 -> 0 | K35: ='..'!L53 -> 27 | L35: ='..'!M53 -> 37 | M35: ='..'!N53 -> 31 | N35: ='..'!O53 -> 49 | O35: ='..'!P53 -> 181 | P35: ='..'!Q53 -> 43 | Q35: ='..'!R53 -> 36 | R35: ='..'!S53 -> 0 | S35: ='..'!T53 -> 0 | T35: ='..'!U53 -> 67 | U35: ='..'!V53 -> 544 | V35: ='..'!W53 -> 0 | W35: ='..'!X53 -> 0 | X35: ='..'!Y53 -> 0 | Y35: ='..'!Z53 -> 0 | Z35: ='..'!AA53 -> 0 | AA35: ='..'!AB53 -> 0 | AB35: ='..'!AC53 -> 0 | AC35: ='..'!AD53 -> 0 | AD35: ='..'!AE53 -> 0 | AE35: ='..'!AF53 -> 0 | AF35: ='..'!AG53 -> 0 | AG35: ='..'!AH53 -> 0 | AH35: ='..'!AI53 -> 0 | AI35: ='..'!AJ53 -> 0 | AJ35: ='..'!AK53 -> 0 | AK35: ='..'!AL53 -> 0 | AL35: ='..'!AM53 -> 0 | AM35: ='..'!AN53 -> 0 | AN35: ='..'!AO53 -> 0 | AO35: ='..'!AP53 -> 0
A36: ='..'!A54 -> 6 | B36: ='..'!B54 -> Lucky Draw | C36: ='..'!C54 -> 556 | D36: ='..'!D54 -> 0 | E36: ='..'!E54 -> 0 | F36: ='..'!F54 -> 0 | G36: ='..'!G54 -> 0 | H36: ='..'!I54 -> 0 | I36: ='..'!J54 -> 0 | J36: ='..'!K54 -> 0 | K36: ='..'!L54 -> 1165 | L36: ='..'!M54 -> 1162 | M36: ='..'!N54 -> 1280 | N36: ='..'!O54 -> 1276 | O36: ='..'!P54 -> 1387 | P36: ='..'!Q54 -> 1272 | Q36: ='..'!R54 -> 1211 | R36: ='..'!S54 -> 1212 | S36: ='..'!T54 -> 1075 | T36: ='..'!U54 -> 602 | U36: ='..'!V54 -> 15 | V36: ='..'!W54 -> 0 | W36: ='..'!X54 -> 0 | X36: ='..'!Y54 -> 0 | Y36: ='..'!Z54 -> 0 | Z36: ='..'!AA54 -> 0 | AA36: ='..'!AB54 -> 0 | AB36: ='..'!AC54 -> 0 | AC36: ='..'!AD54 -> 0 | AD36: ='..'!AE54 -> 0 | AE36: ='..'!AF54 -> 0 | AF36: ='..'!AG54 -> 0 | AG36: ='..'!AH54 -> 0 | AH36: ='..'!AI54 -> 0 | AI36: ='..'!AJ54 -> 0 | AJ36: ='..'!AK54 -> 0 | AK36: ='..'!AL54 -> 0 | AL36: ='..'!AM54 -> 0 | AM36: ='..'!AN54 -> 0 | AN36: ='..'!AO54 -> 0 | AO36: ='..'!AP54 -> 0
A37: ='..'!A55 -> 7 | B37: ='..'!B55 -> LUCKY_WORD | C37: ='..'!C55 -> LUCKYCODE | D37: ='..'!D55 -> 0 | E37: ='..'!E55 -> 0 | F37: ='..'!F55 -> 0 | G37: ='..'!G55 -> 0 | H37: ='..'!I55 -> 0 | I37: ='..'!J55 -> 0 | J37: ='..'!K55 -> 0 | K37: ='..'!L55 -> 65 | L37: ='..'!M55 -> 58 | M37: ='..'!N55 -> 54 | N37: ='..'!O55 -> 438 | O37: ='..'!P55 -> 287 | P37: ='..'!Q55 -> 863 | Q37: ='..'!R55 -> 70 | R37: ='..'!S55 -> 56 | S37: ='..'!T55 -> 51 | T37: ='..'!U55 -> 31 | U37: ='..'!V55 -> 13 | V37: ='..'!W55 -> 0 | W37: ='..'!X55 -> 0 | X37: ='..'!Y55 -> 0 | Y37: ='..'!Z55 -> 0 | Z37: ='..'!AA55 -> 0 | AA37: ='..'!AB55 -> 0 | AB37: ='..'!AC55 -> 0 | AC37: ='..'!AD55 -> 0 | AD37: ='..'!AE55 -> 0 | AE37: ='..'!AF55 -> 0 | AF37: ='..'!AG55 -> 0 | AG37: ='..'!AH55 -> 0 | AH37: ='..'!AI55 -> 0 | AI37: ='..'!AJ55 -> 0 | AJ37: ='..'!AK55 -> 0 | AK37: ='..'!AL55 -> 0 | AL37: ='..'!AM55 -> 0 | AM37: ='..'!AN55 -> 0 | AN37: ='..'!AO55 -> 0 | AO37: ='..'!AP55 -> 0
A38: ='..'!A66 -> 18 | B38: ='..'!B66 -> E-News | C38: ='..'!C66 -> 368 | D38: ='..'!D66 -> 0 | E38: ='..'!E66 -> 0 | F38: ='..'!F66 -> 0 | G38: ='..'!G66 -> 0 | H38: ='..'!I66 -> 0 | I38: ='..'!J66 -> 0 | J38: ='..'!K66 -> 0 | K38: ='..'!L66 -> 414 | L38: ='..'!M66 -> 265 | M38: ='..'!N66 -> 277 | N38: ='..'!O66 -> 275 | O38: ='..'!P66 -> 285 | P38: ='..'!Q66 -> 464 | Q38: ='..'!R66 -> 298 | R38: ='..'!S66 -> 188 | S38: ='..'!T66 -> 87 | T38: ='..'!U66 -> 67 | U38: ='..'!V66 -> 10043 | V38: ='..'!W66 -> 0 | W38: ='..'!X66 -> 0 | X38: ='..'!Y66 -> 0 | Y38: ='..'!Z66 -> 0 | Z38: ='..'!AA66 -> 0 | AA38: ='..'!AB66 -> 0 | AB38: ='..'!AC66 -> 0 | AC38: ='..'!AD66 -> 0 | AD38: ='..'!AE66 -> 0 | AE38: ='..'!AF66 -> 0 | AF38: ='..'!AG66 -> 0 | AG38: ='..'!AH66 -> 0 | AH38: ='..'!AI66 -> 0 | AI38: ='..'!AJ66 -> 0 | AJ38: ='..'!AK66 -> 0 | AK38: ='..'!AL66 -> 0 | AL38: ='..'!AM66 -> 0 | AM38: ='..'!AN66 -> 0 | AN38: ='..'!AO66 -> 0 | AO38: ='..'!AP66 -> 0
B39: TELEMOR
A40: ='..'!A68 -> 19 | B40: ='..'!B68 -> HOROSCOPE | C40: ='..'!C68 -> 184 | D40: ='..'!D68 -> 0 | E40: ='..'!E68 -> 0 | F40: ='..'!F68 -> 0 | G40: ='..'!G68 -> 0 | H40: ='..'!I68 -> 0 | I40: ='..'!J68 -> 0 | J40: ='..'!K68 -> 0 | K40: ='..'!L68 -> 0 | L40: ='..'!M68 -> 0 | M40: ='..'!N68 -> 0 | N40: ='..'!O68 -> 127 | O40: ='..'!P68 -> 91 | P40: ='..'!Q68 -> 82 | Q40: ='..'!R68 -> 1791 | R40: ='..'!S68 -> 382 | S40: ='..'!T68 -> 1033 | T40: ='..'!U68 -> 228 | U40: ='..'!V68 -> 111 | V40: ='..'!W68 -> 0 | W40: ='..'!X68 -> 0 | X40: ='..'!Y68 -> 0 | Y40: ='..'!Z68 -> 0 | Z40: ='..'!AA68 -> 0 | AA40: ='..'!AB68 -> 0 | AB40: ='..'!AC68 -> 0 | AC40: ='..'!AD68 -> 0 | AD40: ='..'!AE68 -> 0 | AE40: ='..'!AF68 -> 0 | AF40: ='..'!AG68 -> 0 | AG40: ='..'!AH68 -> 0 | AH40: ='..'!AI68 -> 0 | AI40: ='..'!AJ68 -> 0 | AJ40: ='..'!AK68 -> 0 | AK40: ='..'!AL68 -> 0 | AL40: ='..'!AM68 -> 0 | AM40: ='..'!AN68 -> 0 | AN40: ='..'!AO68 -> 0 | AO40: ='..'!AP68 -> 0
A43: CANCEL
A45: NO. | B45: VAS CODE | G45: ="Acc "&$H$4& " / "&$I$4 -> Acc COMPARE LAST MONTH / | H45: COMPARE LAST MONTH | K45: Friday | L45: Friday | M45: Friday | N45: Friday | O45: Friday | P45: Friday | Q45: Friday | R45: Friday | S45: Friday | T45: Friday | U45: Friday | V45: Friday | W45: Friday | X45: Friday | Y45: Friday | Z45: Friday | AA45: Friday | AB45: Friday | AC45: Friday | AD45: Friday | AE45: Friday | AF45: Friday | AG45: Friday | AH45: Friday | AI45: Friday | AJ45: Friday | AK45: Friday | AL45: Friday | AM45: Friday | AN45: Friday | AO45: Friday
C46: SHORTCODE | H46: Acc last month | I46: +/- | J46: % | K46: 1 | L46: 2 | M46: 3 | N46: 4 | O46: 5 | P46: 6 | Q46: 7 | R46: 8 | S46: 9 | T46: 10 | U46: 11 | V46: 12 | W46: 13 | X46: 14 | Y46: 15 | Z46: 16 | AA46: 17 | AB46: 18 | AC46: 19 | AD46: 20 | AE46: 21 | AF46: 22 | AG46: 23 | AH46: 24 | AI46: 25 | AJ46: 26 | AK46: 27 | AL46: 28 | AM46: 29 | AN46: 30 | AO46: 31
B47: NATCOM
A48: ='..'!A76 -> 1 | B48: ='..'!B76 -> BON_INFO, SMS INFO | C48: ='..'!C76 -> LUCKYCODE | D48: ='..'!D76 -> 0 | E48: ='..'!E76 -> 0 | F48: ='..'!F76 -> 0 | G48: ='..'!G76 -> 0 | H48: ='..'!I76 -> 0 | I48: ='..'!J76 -> 0 | J48: ='..'!K76 -> 0 | K48: ='..'!L76 -> 138 | L48: ='..'!M76 -> 138 | M48: ='..'!N76 -> 126 | N48: ='..'!O76 -> 125 | O48: ='..'!P76 -> 139 | P48: ='..'!Q76 -> 182 | Q48: ='..'!R76 -> 223 | R48: ='..'!S76 -> 275 | S48: ='..'!T76 -> 274 | T48: ='..'!U76 -> 319 | U48: ='..'!V76 -> 194 | V48: ='..'!W76 -> 0 | W48: ='..'!X76 -> 0 | X48: ='..'!Y76 -> 0 | Y48: ='..'!Z76 -> 0 | Z48: ='..'!AA76 -> 0 | AA48: ='..'!AB76 -> 0 | AB48: ='..'!AC76 -> 0 | AC48: ='..'!AD76 -> 0 | AD48: ='..'!AE76 -> 0 | AE48: ='..'!AF76 -> 0 | AF48: ='..'!AG76 -> 0 | AG48: ='..'!AH76 -> 0 | AH48: ='..'!AI76 -> 0 | AI48: ='..'!AJ76 -> 0 | AJ48: ='..'!AK76 -> 0 | AK48: ='..'!AL76 -> 0 | AL48: ='..'!AM76 -> 0 | AM48: ='..'!AN76 -> 0 | AN48: ='..'!AO76 -> 0 | AO48: ='..'!AP76 -> 0
A49: ='..'!A77 -> 2 | B49: ='..'!B77 -> IVR_INFOR | C49: ='..'!C77 -> LUCKYCODE | D49: ='..'!D77 -> 0 | E49: ='..'!E77 -> 0 | F49: ='..'!F77 -> 0 | G49: ='..'!G77 -> 0 | H49: ='..'!I77 -> 0 | I49: ='..'!J77 -> 0 | J49: ='..'!K77 -> 0 | K49: ='..'!L77 -> 7 | L49: ='..'!M77 -> 8 | M49: ='..'!N77 -> 7 | N49: ='..'!O77 -> 8 | O49: ='..'!P77 -> 6 | P49: ='..'!Q77 -> 15 | Q49: ='..'!R77 -> 15 | R49: ='..'!S77 -> 10 | S49: ='..'!T77 -> 8 | T49: ='..'!U77 -> 10 | U49: ='..'!V77 -> 13 | V49: ='..'!W77 -> 0 | W49: ='..'!X77 -> 0 | X49: ='..'!Y77 -> 0 | Y49: ='..'!Z77 -> 0 | Z49: ='..'!AA77 -> 0 | AA49: ='..'!AB77 -> 0 | AB49: ='..'!AC77 -> 0 | AC49: ='..'!AD77 -> 0 | AD49: ='..'!AE77 -> 0 | AE49: ='..'!AF77 -> 0 | AF49: ='..'!AG77 -> 0 | AG49: ='..'!AH77 -> 0 | AH49: ='..'!AI77 -> 0 | AI49: ='..'!AJ77 -> 0 | AJ49: ='..'!AK77 -> 0 | AK49: ='..'!AL77 -> 0 | AL49: ='..'!AM77 -> 0 | AM49: ='..'!AN77 -> 0 | AN49: ='..'!AO77 -> 0 | AO49: ='..'!AP77 -> 0
A50: ='..'!A78 -> 3 | B50: ='..'!B78 -> LUCKY_SPIN | C50: ='..'!C78 -> 7878, Lawoulet | D50: ='..'!D78 -> 0 | E50: ='..'!E78 -> 0 | F50: ='..'!F78 -> 0 | G50: ='..'!G78 -> 0 | H50: ='..'!I78 -> 0 | I50: ='..'!J78 -> 0 | J50: ='..'!K78 -> 0 | K50: ='..'!L78 -> 513 | L50: ='..'!M78 -> 511 | M50: ='..'!N78 -> 660 | N50: ='..'!O78 -> 674 | O50: ='..'!P78 -> 524 | P50: ='..'!Q78 -> 549 | Q50: ='..'!R78 -> 493 | R50: ='..'!S78 -> 465 | S50: ='..'!T78 -> 331 | T50: ='..'!U78 -> 339 | U50: ='..'!V78 -> 164 | V50: ='..'!W78 -> 0 | W50: ='..'!X78 -> 0 | X50: ='..'!Y78 -> 0 | Y50: ='..'!Z78 -> 0 | Z50: ='..'!AA78 -> 0 | AA50: ='..'!AB78 -> 0 | AB50: ='..'!AC78 -> 0 | AC50: ='..'!AD78 -> 0 | AD50: ='..'!AE78 -> 0 | AE50: ='..'!AF78 -> 0 | AF50: ='..'!AG78 -> 0 | AG50: ='..'!AH78 -> 0 | AH50: ='..'!AI78 -> 0 | AI50: ='..'!AJ78 -> 0 | AJ50: ='..'!AK78 -> 0 | AK50: ='..'!AL78 -> 0 | AL50: ='..'!AM78 -> 0 | AM50: ='..'!AN78 -> 0 | AN50: ='..'!AO78 -> 0 | AO50: ='..'!AP78 -> 0
A51: ='..'!A79 -> 4 | B51: ='..'!B79 -> LUCKY_CARD | C51: ='..'!C79 -> LUCKYCODE | D51: ='..'!D79 -> 0 | E51: ='..'!E79 -> 0 | F51: ='..'!F79 -> 0 | G51: ='..'!G79 -> 0 | H51: ='..'!I79 -> 0 | I51: ='..'!J79 -> 0 | J51: ='..'!K79 -> 0 | K51: ='..'!L79 -> 387 | L51: ='..'!M79 -> 386 | M51: ='..'!N79 -> 1527 | N51: ='..'!O79 -> 408 | O51: ='..'!P79 -> 389 | P51: ='..'!Q79 -> 260 | Q51: ='..'!R79 -> 241 | R51: ='..'!S79 -> 242 | S51: ='..'!T79 -> 245 | T51: ='..'!U79 -> 224 | U51: ='..'!V79 -> 207 | V51: ='..'!W79 -> 0 | W51: ='..'!X79 -> 0 | X51: ='..'!Y79 -> 0 | Y51: ='..'!Z79 -> 0 | Z51: ='..'!AA79 -> 0 | AA51: ='..'!AB79 -> 0 | AB51: ='..'!AC79 -> 0 | AC51: ='..'!AD79 -> 0 | AD51: ='..'!AE79 -> 0 | AE51: ='..'!AF79 -> 0 | AF51: ='..'!AG79 -> 0 | AG51: ='..'!AH79 -> 0 | AH51: ='..'!AI79 -> 0 | AI51: ='..'!AJ79 -> 0 | AJ51: ='..'!AK79 -> 0 | AK51: ='..'!AL79 -> 0 | AL51: ='..'!AM79 -> 0 | AM51: ='..'!AN79 -> 0 | AN51: ='..'!AO79 -> 0 | AO51: ='..'!AP79 -> 0
A52: ='..'!A80 -> 5 | B52: ='..'!B80 -> IVR_DATING | C52: ='..'!C80 -> 933 | D52: ='..'!D80 -> 0 | E52: ='..'!E80 -> 0 | F52: ='..'!F80 -> 0 | G52: ='..'!G80 -> 0 | H52: ='..'!I80 -> 0 | I52: ='..'!J80 -> 0 | J52: ='..'!K80 -> 0 | K52: ='..'!L80 -> 238 | L52: ='..'!M80 -> 227 | M52: ='..'!N80 -> 222 | N52: ='..'!O80 -> 253 | O52: ='..'!P80 -> 271 | P52: ='..'!Q80 -> 215 | Q52: ='..'!R80 -> 248 | R52: ='..'!S80 -> 0 | S52: ='..'!T80 -> 0 | T52: ='..'!U80 -> 326 | U52: ='..'!V80 -> 210 | V52: ='..'!W80 -> 0 | W52: ='..'!X80 -> 0 | X52: ='..'!Y80 -> 0 | Y52: ='..'!Z80 -> 0 | Z52: ='..'!AA80 -> 0 | AA52: ='..'!AB80 -> 0 | AB52: ='..'!AC80 -> 0 | AC52: ='..'!AD80 -> 0 | AD52: ='..'!AE80 -> 0 | AE52: ='..'!AF80 -> 0 | AF52: ='..'!AG80 -> 0 | AG52: ='..'!AH80 -> 0 | AH52: ='..'!AI80 -> 0 | AI52: ='..'!AJ80 -> 0 | AJ52: ='..'!AK80 -> 0 | AK52: ='..'!AL80 -> 0 | AL52: ='..'!AM80 -> 0 | AM52: ='..'!AN80 -> 0 | AN52: ='..'!AO80 -> 0 | AO52: ='..'!AP80 -> 0
A53: ='..'!A81 -> 6 | B53: ='..'!B81 -> Lucky Draw | C53: ='..'!C81 -> 556 | D53: ='..'!D81 -> 0 | E53: ='..'!E81 -> 0 | F53: ='..'!F81 -> 0 | G53: ='..'!G81 -> 0 | H53: ='..'!I81 -> 0 | I53: ='..'!J81 -> 0 | J53: ='..'!K81 -> 0 | K53: ='..'!L81 -> 563 | L53: ='..'!M81 -> 544 | M53: ='..'!N81 -> 584 | N53: ='..'!O81 -> 574 | O53: ='..'!P81 -> 623 | P53: ='..'!Q81 -> 586 | Q53: ='..'!R81 -> 541 | R53: ='..'!S81 -> 540 | S53: ='..'!T81 -> 494 | T53: ='..'!U81 -> 351 | U53: ='..'!V81 -> 34 | V53: ='..'!W81 -> 0 | W53: ='..'!X81 -> 0 | X53: ='..'!Y81 -> 0 | Y53: ='..'!Z81 -> 0 | Z53: ='..'!AA81 -> 0 | AA53: ='..'!AB81 -> 0 | AB53: ='..'!AC81 -> 0 | AC53: ='..'!AD81 -> 0 | AD53: ='..'!AE81 -> 0 | AE53: ='..'!AF81 -> 0 | AF53: ='..'!AG81 -> 0 | AG53: ='..'!AH81 -> 0 | AH53: ='..'!AI81 -> 0 | AI53: ='..'!AJ81 -> 0 | AJ53: ='..'!AK81 -> 0 | AK53: ='..'!AL81 -> 0 | AL53: ='..'!AM81 -> 0 | AM53: ='..'!AN81 -> 0 | AN53: ='..'!AO81 -> 0 | AO53: ='..'!AP81 -> 0
A54: ='..'!A82 -> 7 | B54: ='..'!B82 -> LUCKY_WORD | C54: ='..'!C82 -> LUCKYCODE | D54: ='..'!D82 -> 0 | E54: ='..'!E82 -> 0 | F54: ='..'!F82 -> 0 | G54: ='..'!G82 -> 0 | H54: ='..'!I82 -> 0 | I54: ='..'!J82 -> 0 | J54: ='..'!K82 -> 0 | K54: ='..'!L82 -> 543 | L54: ='..'!M82 -> 447 | M54: ='..'!N82 -> 436 | N54: ='..'!O82 -> 428 | O54: ='..'!P82 -> 399 | P54: ='..'!Q82 -> 523 | Q54: ='..'!R82 -> 423 | R54: ='..'!S82 -> 424 | S54: ='..'!T82 -> 364 | T54: ='..'!U82 -> 354 | U54: ='..'!V82 -> 282 | V54: ='..'!W82 -> 0 | W54: ='..'!X82 -> 0 | X54: ='..'!Y82 -> 0 | Y54: ='..'!Z82 -> 0 | Z54: ='..'!AA82 -> 0 | AA54: ='..'!AB82 -> 0 | AB54: ='..'!AC82 -> 0 | AC54: ='..'!AD82 -> 0 | AD54: ='..'!AE82 -> 0 | AE54: ='..'!AF82 -> 0 | AF54: ='..'!AG82 -> 0 | AG54: ='..'!AH82 -> 0 | AH54: ='..'!AI82 -> 0 | AI54: ='..'!AJ82 -> 0 | AJ54: ='..'!AK82 -> 0 | AK54: ='..'!AL82 -> 0 | AL54: ='..'!AM82 -> 0 | AM54: ='..'!AN82 -> 0 | AN54: ='..'!AO82 -> 0 | AO54: ='..'!AP82 -> 0
A55: ='..'!A93 -> 18 | B55: ='..'!B93 -> E-News | C55: ='..'!C93 -> 368 | D55: ='..'!D93 -> 0 | E55: ='..'!E93 -> 0 | F55: ='..'!F93 -> 0 | G55: ='..'!G93 -> 0 | H55: ='..'!I93 -> 0 | I55: ='..'!J93 -> 0 | J55: ='..'!K93 -> 0 | K55: ='..'!L93 -> 536 | L55: ='..'!M93 -> 520 | M55: ='..'!N93 -> 463 | N55: ='..'!O93 -> 423 | O55: ='..'!P93 -> 467 | P55: ='..'!Q93 -> 440 | Q55: ='..'!R93 -> 490 | R55: ='..'!S93 -> 335 | S55: ='..'!T93 -> 398 | T55: ='..'!U93 -> 385 | U55: ='..'!V93 -> 293 | V55: ='..'!W93 -> 0 | W55: ='..'!X93 -> 0 | X55: ='..'!Y93 -> 0 | Y55: ='..'!Z93 -> 0 | Z55: ='..'!AA93 -> 0 | AA55: ='..'!AB93 -> 0 | AB55: ='..'!AC93 -> 0 | AC55: ='..'!AD93 -> 0 | AD55: ='..'!AE93 -> 0 | AE55: ='..'!AF93 -> 0 | AF55: ='..'!AG93 -> 0 | AG55: ='..'!AH93 -> 0 | AH55: ='..'!AI93 -> 0 | AI55: ='..'!AJ93 -> 0 | AJ55: ='..'!AK93 -> 0 | AK55: ='..'!AL93 -> 0 | AL55: ='..'!AM93 -> 0 | AM55: ='..'!AN93 -> 0 | AN55: ='..'!AO93 -> 0 | AO55: ='..'!AP93 -> 0
B56: TELEMOR
A57: ='..'!A95 -> 19 | B57: ='..'!B95 -> HOROSCOPE | C57: ='..'!C95 -> 184 | D57: ='..'!D95 -> 0 | E57: ='..'!E95 -> 0 | F57: ='..'!F95 -> 0 | G57: ='..'!G95 -> 0 | H57: ='..'!I95 -> 0 | I57: ='..'!J95 -> 0 | J57: ='..'!K95 -> 0 | K57: ='..'!L95 -> 0 | L57: ='..'!M95 -> 0 | M57: ='..'!N95 -> 0 | N57: ='..'!O95 -> 0 | O57: ='..'!P95 -> 20 | P57: ='..'!Q95 -> 29 | Q57: ='..'!R95 -> 50 | R57: ='..'!S95 -> 34 | S57: ='..'!T95 -> 37 | T57: ='..'!U95 -> 28 | U57: ='..'!V95 -> 15 | V57: ='..'!W95 -> 0 | W57: ='..'!X95 -> 0 | X57: ='..'!Y95 -> 0 | Y57: ='..'!Z95 -> 0 | Z57: ='..'!AA95 -> 0 | AA57: ='..'!AB95 -> 0 | AB57: ='..'!AC95 -> 0 | AC57: ='..'!AD95 -> 0 | AD57: ='..'!AE95 -> 0 | AE57: ='..'!AF95 -> 0 | AF57: ='..'!AG95 -> 0 | AG57: ='..'!AH95 -> 0 | AH57: ='..'!AI95 -> 0 | AI57: ='..'!AJ95 -> 0 | AJ57: ='..'!AK95 -> 0 | AK57: ='..'!AL95 -> 0 | AL57: ='..'!AM95 -> 0 | AM57: ='..'!AN95 -> 0 | AN57: ='..'!AO95 -> 0 | AO57: ='..'!AP95 -> 0
A58: ADD MONEY
A60: NO. | B60: VAS CODE | G60: ="Acc "&$H$4& " / "&$I$4 -> Acc COMPARE LAST MONTH / | H60: COMPARE LAST MONTH | K60: Friday | L60: Friday | M60: Friday | N60: Friday | O60: Friday | P60: Friday | Q60: Friday | R60: Friday | S60: Friday | T60: Friday | U60: Friday | V60: Friday | W60: Friday | X60: Friday | Y60: Friday | Z60: Friday | AA60: Friday | AB60: Friday | AC60: Friday | AD60: Friday | AE60: Friday | AF60: Friday | AG60: Friday | AH60: Friday | AI60: Friday | AJ60: Friday | AK60: Friday | AL60: Friday | AM60: Friday | AN60: Friday | AO60: Friday
C61: SHORTCODE | H61: Acc last month | I61: +/- | J61: % | K61: 1 | L61: 2 | M61: 3 | N61: 4 | O61: 5 | P61: 6 | Q61: 7 | R61: 8 | S61: 9 | T61: 10 | U61: 11 | V61: 12 | W61: 13 | X61: 14 | Y61: 15 | Z61: 16 | AA61: 17 | AB61: 18 | AC61: 19 | AD61: 20 | AE61: 21 | AF61: 22 | AG61: 23 | AH61: 24 | AI61: 25 | AJ61: 26 | AK61: 27 | AL61: 28 | AM61: 29 | AN61: 30 | AO61: 31
B62: NATCOM
A63: ='..'!A101 -> 1 | B63: ='..'!B101 -> BON_INFO,SMS INFO | C63: ='..'!C101 -> LUCKYCODE | D63: ='..'!D101 -> 0 | E63: ='..'!E101 -> 0 | F63: ='..'!F101 -> 0 | G63: ='..'!G101 -> 0 | H63: ='..'!I101 -> 0 | I63: ='..'!J101 -> 0 | J63: ='..'!K101 -> 0 | K63: ='..'!L101 -> 0 | L63: ='..'!M101 -> 0 | M63: ='..'!N101 -> 0 | N63: ='..'!O101 -> 0 | O63: ='..'!P101 -> 0 | P63: ='..'!Q101 -> 0 | Q63: ='..'!R101 -> 0 | R63: ='..'!S101 -> 0 | S63: ='..'!T101 -> 0 | T63: ='..'!U101 -> 0 | U63: ='..'!V101 -> 0 | V63: ='..'!W101 -> 0 | W63: ='..'!X101 -> 0 | X63: ='..'!Y101 -> 0 | Y63: ='..'!Z101 -> 0 | Z63: ='..'!AA101 -> 0 | AA63: ='..'!AB101 -> 0 | AB63: ='..'!AC101 -> 0 | AC63: ='..'!AD101 -> 0 | AD63: ='..'!AE101 -> 0 | AE63: ='..'!AF101 -> 0 | AF63: ='..'!AG101 -> 0 | AG63: ='..'!AH101 -> 0 | AH63: ='..'!AI101 -> 0 | AI63: ='..'!AJ101 -> 0 | AJ63: ='..'!AK101 -> 0 | AK63: ='..'!AL101 -> 0 | AL63: ='..'!AM101 -> 0 | AM63: ='..'!AN101 -> 0 | AN63: ='..'!AO101 -> 0 | AO63: ='..'!AP101 -> 0
A64: ='..'!A102 -> 2 | B64: ='..'!B102 -> IVR_INFOR | C64: ='..'!C102 -> LUCKYCODE | D64: ='..'!D102 -> 0 | E64: ='..'!E102 -> 0 | F64: ='..'!F102 -> 0 | G64: ='..'!G102 -> 0 | H64: ='..'!I102 -> 0 | I64: ='..'!J102 -> 0 | J64: ='..'!K102 -> 0 | K64: ='..'!L102 -> 0 | L64: ='..'!M102 -> 0 | M64: ='..'!N102 -> 0 | N64: ='..'!O102 -> 0 | O64: ='..'!P102 -> 0 | P64: ='..'!Q102 -> 0 | Q64: ='..'!R102 -> 0 | R64: ='..'!S102 -> 0 | S64: ='..'!T102 -> 0 | T64: ='..'!U102 -> 0 | U64: ='..'!V102 -> 0 | V64: ='..'!W102 -> 0 | W64: ='..'!X102 -> 0 | X64: ='..'!Y102 -> 0 | Y64: ='..'!Z102 -> 0 | Z64: ='..'!AA102 -> 0 | AA64: ='..'!AB102 -> 0 | AB64: ='..'!AC102 -> 0 | AC64: ='..'!AD102 -> 0 | AD64: ='..'!AE102 -> 0 | AE64: ='..'!AF102 -> 0 | AF64: ='..'!AG102 -> 0 | AG64: ='..'!AH102 -> 0 | AH64: ='..'!AI102 -> 0 | AI64: ='..'!AJ102 -> 0 | AJ64: ='..'!AK102 -> 0 | AK64: ='..'!AL102 -> 0 | AL64: ='..'!AM102 -> 0 | AM64: ='..'!AN102 -> 0 | AN64: ='..'!AO102 -> 0 | AO64: ='..'!AP102 -> 0
A65: ='..'!A103 -> 3 | B65: ='..'!B103 -> LUCKY_SPIN | C65: ='..'!C103 -> 7878, Lawoulet | D65: ='..'!D103 -> 0 | E65: ='..'!E103 -> 0 | F65: ='..'!F103 -> 0 | G65: ='..'!G103 -> 0 | H65: ='..'!I103 -> 0 | I65: ='..'!J103 -> 0 | J65: ='..'!K103 -> 0 | K65: ='..'!L103 -> 3000 | L65: ='..'!M103 -> 3001 | M65: ='..'!N103 -> 3001 | N65: ='..'!O103 -> 3000 | O65: ='..'!P103 -> 3000 | P65: ='..'!Q103 -> 3001 | Q65: ='..'!R103 -> 3000 | R65: ='..'!S103 -> 3000 | S65: ='..'!T103 -> 3002 | T65: ='..'!U103 -> 3000 | U65: ='..'!V103 -> 982 | V65: ='..'!W103 -> 0 | W65: ='..'!X103 -> 0 | X65: ='..'!Y103 -> 0 | Y65: ='..'!Z103 -> 0 | Z65: ='..'!AA103 -> 0 | AA65: ='..'!AB103 -> 0 | AB65: ='..'!AC103 -> 0 | AC65: ='..'!AD103 -> 0 | AD65: ='..'!AE103 -> 0 | AE65: ='..'!AF103 -> 0 | AF65: ='..'!AG103 -> 0 | AG65: ='..'!AH103 -> 0 | AH65: ='..'!AI103 -> 0 | AI65: ='..'!AJ103 -> 0 | AJ65: ='..'!AK103 -> 0 | AK65: ='..'!AL103 -> 0 | AL65: ='..'!AM103 -> 0 | AM65: ='..'!AN103 -> 0 | AN65: ='..'!AO103 -> 0 | AO65: ='..'!AP103 -> 0
A66: ='..'!A104 -> 4 | B66: ='..'!B104 -> LUCKY_CARD | C66: ='..'!C104 -> LUCKYCODE | D66: ='..'!D104 -> 0 | E66: ='..'!E104 -> 0 | F66: ='..'!F104 -> 0 | G66: ='..'!G104 -> 0 | H66: ='..'!I104 -> 0 | I66: ='..'!J104 -> 0 | J66: ='..'!K104 -> 0 | K66: ='..'!L104 -> 4 | L66: ='..'!M104 -> 0 | M66: ='..'!N104 -> 4 | N66: ='..'!O104 -> 4 | O66: ='..'!P104 -> 0 | P66: ='..'!Q104 -> 0 | Q66: ='..'!R104 -> 4 | R66: ='..'!S104 -> 4 | S66: ='..'!T104 -> 8 | T66: ='..'!U104 -> 0 | U66: ='..'!V104 -> 0 | V66: ='..'!W104 -> 0 | W66: ='..'!X104 -> 0 | X66: ='..'!Y104 -> 0 | Y66: ='..'!Z104 -> 0 | Z66: ='..'!AA104 -> 0 | AA66: ='..'!AB104 -> 0 | AB66: ='..'!AC104 -> 0 | AC66: ='..'!AD104 -> 0 | AD66: ='..'!AE104 -> 0 | AE66: ='..'!AF104 -> 0 | AF66: ='..'!AG104 -> 0 | AG66: ='..'!AH104 -> 0 | AH66: ='..'!AI104 -> 0 | AI66: ='..'!AJ104 -> 0 | AJ66: ='..'!AK104 -> 0 | AK66: ='..'!AL104 -> 0 | AL66: ='..'!AM104 -> 0 | AM66: ='..'!AN104 -> 0 | AN66: ='..'!AO104 -> 0 | AO66: ='..'!AP104 -> 0
A67: ='..'!A105 -> 5 | B67: ='..'!B105 -> IVR_DATING | C67: ='..'!C105 -> 933 | D67: ='..'!D105 -> 0 | E67: ='..'!E105 -> 0 | F67: ='..'!F105 -> 0 | G67: ='..'!G105 -> 0 | H67: ='..'!I105 -> 0 | I67: ='..'!J105 -> 0 | J67: ='..'!K105 -> 0 | K67: ='..'!L105 -> 0 | L67: ='..'!M105 -> 0 | M67: ='..'!N105 -> 0 | N67: ='..'!O105 -> 0 | O67: ='..'!P105 -> 0 | P67: ='..'!Q105 -> 5 | Q67: ='..'!R105 -> 0 | R67: ='..'!S105 -> 0 | S67: ='..'!T105 -> 0 | T67: ='..'!U105 -> 0 | U67: ='..'!V105 -> 5 | V67: ='..'!W105 -> 0 | W67: ='..'!X105 -> 0 | X67: ='..'!Y105 -> 0 | Y67: ='..'!Z105 -> 0 | Z67: ='..'!AA105 -> 0 | AA67: ='..'!AB105 -> 0 | AB67: ='..'!AC105 -> 0 | AC67: ='..'!AD105 -> 0 | AD67: ='..'!AE105 -> 0 | AE67: ='..'!AF105 -> 0 | AF67: ='..'!AG105 -> 0 | AG67: ='..'!AH105 -> 0 | AH67: ='..'!AI105 -> 0 | AI67: ='..'!AJ105 -> 0 | AJ67: ='..'!AK105 -> 0 | AK67: ='..'!AL105 -> 0 | AL67: ='..'!AM105 -> 0 | AM67: ='..'!AN105 -> 0 | AN67: ='..'!AO105 -> 0 | AO67: ='..'!AP105 -> 0
A68: ='..'!A106 -> 6 | B68: ='..'!B106 -> Lucky Draw | C68: ='..'!C106 -> 556 | D68: ='..'!D106 -> 0 | E68: ='..'!E106 -> 0 | F68: ='..'!F106 -> 0 | G68: ='..'!G106 -> 0 | H68: ='..'!I106 -> 0 | I68: ='..'!J106 -> 0 | J68: ='..'!K106 -> 0 | K68: ='..'!L106 -> winner money | L68: ='..'!M106 -> 702 | M68: ='..'!N106 -> 2802,4 | N68: ='..'!O106 -> 346,6 | O68: ='..'!P106 -> 2728,8 | P68: ='..'!Q106 -> 34,4 | Q68: ='..'!R106 -> 288,3 | R68: ='..'!S106 -> 574,2 | S68: ='..'!T106 -> 613 | T68: ='..'!U106 -> 686,6 | U68: ='..'!V106 -> 393,2 | V68: ='..'!W106 -> 0 | W68: ='..'!X106 -> 0 | X68: ='..'!Y106 -> 0 | Y68: ='..'!Z106 -> 0 | Z68: ='..'!AA106 -> 0 | AA68: ='..'!AB106 -> 0 | AB68: ='..'!AC106 -> 0 | AC68: ='..'!AD106 -> 0 | AD68: ='..'!AE106 -> 0 | AE68: ='..'!AF106 -> 0 | AF68: ='..'!AG106 -> 0 | AG68: ='..'!AH106 -> 0 | AH68: ='..'!AI106 -> 0 | AI68: ='..'!AJ106 -> 0 | AJ68: ='..'!AK106 -> 0 | AK68: ='..'!AL106 -> 0 | AL68: ='..'!AM106 -> 0 | AM68: ='..'!AN106 -> 0 | AN68: ='..'!AO106 -> 0 | AO68: ='..'!AP106 -> 0
A69: ='..'!A107 -> 7 | B69: ='..'!B107 -> LUCKY_WORD | C69: ='..'!C107 -> LUCKYCODE | D69: ='..'!D107 -> 0 | E69: ='..'!E107 -> 0 | F69: ='..'!F107 -> 0 | G69: ='..'!G107 -> 0 | H69: ='..'!I107 -> 0 | I69: ='..'!J107 -> 0 | J69: ='..'!K107 -> 0 | K69: ='..'!L107 -> 1025 | L69: ='..'!M107 -> 1025 | M69: ='..'!N107 -> 1025 | N69: ='..'!O107 -> 1025 | O69: ='..'!P107 -> 1025 | P69: ='..'!Q107 -> 1025 | Q69: ='..'!R107 -> 1025 | R69: ='..'!S107 -> 1025 | S69: ='..'!T107 -> 1025 | T69: ='..'!U107 -> 1025 | U69: ='..'!V107 -> 1025 | V69: ='..'!W107 -> 0 | W69: ='..'!X107 -> 0 | X69: ='..'!Y107 -> 0 | Y69: ='..'!Z107 -> 0 | Z69: ='..'!AA107 -> 0 | AA69: ='..'!AB107 -> 0 | AB69: ='..'!AC107 -> 0 | AC69: ='..'!AD107 -> 0 | AD69: ='..'!AE107 -> 0 | AE69: ='..'!AF107 -> 0 | AF69: ='..'!AG107 -> 0 | AG69: ='..'!AH107 -> 0 | AH69: ='..'!AI107 -> 0 | AI69: ='..'!AJ107 -> 0 | AJ69: ='..'!AK107 -> 0 | AK69: ='..'!AL107 -> 0 | AL69: ='..'!AM107 -> 0 | AM69: ='..'!AN107 -> 0 | AN69: ='..'!AO107 -> 0 | AO69: ='..'!AP107 -> 0
A70: ='..'!A118 -> 18 | B70: ='..'!B118 -> E-News | C70: ='..'!C118 -> 368 | D70: ='..'!D118 -> 0 | E70: ='..'!E118 -> 0 | F70: ='..'!F118 -> 0 | G70: ='..'!G118 -> 0 | H70: ='..'!I118 -> 0 | I70: ='..'!J118 -> 0 | J70: ='..'!K118 -> 0 | K70: ='..'!L118 -> 0 | L70: ='..'!M118 -> 0 | M70: ='..'!N118 -> 0 | N70: ='..'!O118 -> 0 | O70: ='..'!P118 -> 0 | P70: ='..'!Q118 -> 0 | Q70: ='..'!R118 -> 0 | R70: ='..'!S118 -> 0 | S70: ='..'!T118 -> 0 | T70: ='..'!U118 -> 0 | U70: ='..'!V118 -> 0 | V70: ='..'!W118 -> 0 | W70: ='..'!X118 -> 0 | X70: ='..'!Y118 -> 0 | Y70: ='..'!Z118 -> 0 | Z70: ='..'!AA118 -> 0 | AA70: ='..'!AB118 -> 0 | AB70: ='..'!AC118 -> 0 | AC70: ='..'!AD118 -> 0 | AD70: ='..'!AE118 -> 0 | AE70: ='..'!AF118 -> 0 | AF70: ='..'!AG118 -> 0 | AG70: ='..'!AH118 -> 0 | AH70: ='..'!AI118 -> 0 | AI70: ='..'!AJ118 -> 0 | AJ70: ='..'!AK118 -> 0 | AK70: ='..'!AL118 -> 0 | AL70: ='..'!AM118 -> 0 | AM70: ='..'!AN118 -> 0 | AN70: ='..'!AO118 -> 0 | AO70: ='..'!AP118 -> 0
B71: TELEMOR
A72: ='..'!A120 -> 19 | B72: ='..'!B120 -> HOROSCOPE | C72: ='..'!C120 -> 184 | D72: ='..'!D120 -> 0 | E72: ='..'!E120 -> 0 | F72: ='..'!F120 -> 0 | G72: ='..'!G120 -> 0 | H72: ='..'!I120 -> 0 | I72: ='..'!J120 -> 0 | J72: ='..'!K120 -> 0 | K72: ='..'!L120 -> 0 | L72: ='..'!M120 -> 0 | M72: ='..'!N120 -> 0 | N72: ='..'!O120 -> 0 | O72: ='..'!P120 -> 0 | P72: ='..'!Q120 -> 0 | Q72: ='..'!R120 -> 0 | R72: ='..'!S120 -> 0 | S72: ='..'!T120 -> 0 | T72: ='..'!U120 -> 0 | U72: ='..'!V120 -> 0 | V72: ='..'!W120 -> 0 | W72: ='..'!X120 -> 0 | X72: ='..'!Y120 -> 0 | Y72: ='..'!Z120 -> 0 | Z72: ='..'!AA120 -> 0 | AA72: ='..'!AB120 -> 0 | AB72: ='..'!AC120 -> 0 | AC72: ='..'!AD120 -> 0 | AD72: ='..'!AE120 -> 0 | AE72: ='..'!AF120 -> 0 | AF72: ='..'!AG120 -> 0 | AG72: ='..'!AH120 -> 0 | AH72: ='..'!AI120 -> 0 | AI72: ='..'!AJ120 -> 0 | AJ72: ='..'!AK120 -> 0 | AK72: ='..'!AL120 -> 0 | AL72: ='..'!AM120 -> 0 | AM72: ='..'!AN120 -> 0 | AN72: ='..'!AO120 -> 0 | AO72: ='..'!AP120 -> 0

Sheet 02.2019 (hidden)
B1: REVENUE | C1: DATE | D1: =FINAL!D1 -> 31 | E1: Month | F1: Feb
D2: COMPARE LAST MONTH
A3: NO | B3: VAS CODE | C3: ="Acc "&$D$1& " / "&$F$1 -> Acc 31 / Feb | D3: Acc last month | E3: +/- | F3: % | G3: =D1 -> 31 | H3: 1 | I3: 2 | J3: 3 | K3: 4 | L3: 5 | M3: 6 | N3: 7 | O3: 8 | P3: 9 | Q3: 10 | R3: 11 | S3: 12 | T3: 13 | U3: 14 | V3: 15 | W3: 16 | X3: 17 | Y3: 18 | Z3: 19 | AA3: 20 | AB3: 21 | AC3: 22 | AD3: 23 | AE3: 24 | AF3: 25 | AG3: 26 | AH3: 27 | AI3: 28 | AJ3: 29 | AK3: 30 | AL3: 31
A4: 10 | B4: HOROSCOPE 566 | C4: =SUM(H4:INDEX(H4:AL4,1,$D$1)) -> 593725 | D4: 538788 | E4: =+C4-D4 -> 54937 | F4: =+IFERROR(+E4/D4,"") -> 0.1019640378 | G4: =+INDEX(H4:AL4,1,$D$1) -> 0 | H4: 18068 | I4: 19426 | J4: 18465 | K4: 18161 | L4: 18073 | M4: 16622 | N4: 17737 | O4: 17345 | P4: 17969 | Q4: 18240 | R4: 17197 | S4: 18726 | T4: 18128 | U4: 17169 | V4: 16443 | W4: 16757 | X4: 17262 | Y4: 17185 | Z4: 17927 | AA4: 21310 | AB4: 26852 | AC4: 27251 | AD4: 28849 | AE4: 29677 | AF4: 29858 | AG4: 30386 | AH4: 30767 | AI4: 31875
A5: 11 | B5: LUCKY_SPIN 7878 NET | C5: =SUM(H5:INDEX(H5:AL5,1,$D$1)) -> 812291 | H5: =+H6-H7 -> 33205 | I5: =+I6-I7 -> 33205 | J5: 33662 | K5: 33448 | L5: 32598 | M5: 32045 | N5: 32045 | O5: 30683 | P5: 29599 | Q5: 30048 | R5: 29903 | S5: 27353 | T5: 28676 | U5: 29327 | V5: 26024 | W5: =+W6-W7 -> 27178 | X5: =+X6-X7 -> 27059 | Y5: 27063 | Z5: 28045 | AA5: 27789 | AB5: 27494 | AC5: 29191 | AD5: 26850 | AE5: 26345 | AF5: 26679 | AG5: 26298 | AH5: 24966 | AI5: 25513
B6: LUCKY_SPIN 7878 | C6: =SUM(H6:INDEX(H6:AL6,1,$D$1)) -> 896297 | D6: 1221373 | E6: =+C6-D6 -> -325076 | F6: =+IFERROR(+E6/D6,"") -> -0.2661562029 | G6: =+INDEX(H6:AL6,1,$D$1) -> 0 | H6: 36205 | I6: 36205 | J6: 36662 | K6: 36448 | L6: 35598 | M6: 35045 | N6: 35045 | O6: 33683 | P6: 32599 | Q6: 33048 | R6: 32903 | S6: 30353 | T6: 31676 | U6: 32327 | V6: 29024 | W6: 30178 | X6: 30063 | Y6: 30063 | Z6: 31045 | AA6: 30789 | AB6: 30494 | AC6: 32191 | AD6: 29850 | AE6: 29345 | AF6: 29680 | AG6: 29299 | AH6: 27966 | AI6: 28513
B7: LUCKY_SPIN 7878 COST | C7: =SUM(H7:INDEX(H7:AL7,1,$D$1)) -> 84006 | H7: 3000 | I7: 3000 | J7: 3000 | K7: 3000 | L7: 3000 | M7: 3000 | N7: 3000 | O7: 3000 | P7: 3000 | Q7: 3000 | R7: 3000 | S7: 3000 | T7: 3000 | U7: 3000 | V7: 3000 | W7: 3000 | X7: 3004 | Y7: 3000 | Z7: 3000 | AA7: 3000 | AB7: 3000 | AC7: 3000 | AD7: 3000 | AE7: 3000 | AF7: 3001 | AG7: 3001 | AH7: 3000 | AI7: 3000
A8: 12 | B8: LUCKY_WORD 8484 NET | C8: =SUM(H8:INDEX(H8:AL8,1,$D$1)) -> 786894 | H8: =+H9-H10 -> 29610 | I8: =+I9-I10 -> 31595 | J8: 29497 | K8: 27904 | L8: 27229 | M8: 24553 | N8: 26987 | O8: 26467 | P8: 27884 | Q8: 28490 | R8: 26115 | S8: 29736 | T8: 28728 | U8: 26104 | V8: =+V9-V10 -> 24151 | W8: =+W9-W10 -> 24721 | X8: 25165 | Y8: 25373 | Z8: 26504 | AA8: 25603 | AB8: 31155 | AC8: 28901 | AD8: 28615 | AE8: 27301 | AF8: =+AF9-AF10 -> 27073 | AG8: =+AG9-AG10 -> 32795 | AH8: =+AH9-AH10 -> 32858 | AI8: =+AI9-AI10 -> 35780
B9: LUCKY_WORD 8484 | C9: =SUM(H9:INDEX(H9:AL9,1,$D$1)) -> 951494 | D9: 1057087 | E9: =+C9-D9 -> -105593 | F9: =+IFERROR(+E9/D9,"") -> -0.09989054827 | G9: =+INDEX(H9:AL9,1,$D$1) -> 0 | H9: 35635 | I9: 37620 | J9: 35522 | K9: 33929 | L9: 33254 | M9: 30578 | N9: 33012 | O9: 32492 | P9: 33909 | Q9: 34515 | R9: 32140 | S9: 35761 | T9: 34753 | U9: 32129 | V9: 30176 | W9: 30746 | X9: 31190 | Y9: 31398 | Z9: 32329 | AA9: 31628 | AB9: 37180 | AC9: 34926 | AD9: 34640 | AE9: 33426 | AF9: 33098 | AG9: 38820 | AH9: 38883 | AI9: 37805
B10: LUCKY_WORD COST | C10: =SUM(H10:INDEX(H10:AL10,1,$D$1)) -> 164600 | H10: 6025 | I10: 6025 | J10: 6025 | K10: 6025 | L10: 6025 | M10: 6025 | N10: 6025 | O10: 6025 | P10: 6025 | Q10: 6025 | R10: 6025 | S10: 6025 | T10: 6025 | U10: 6025 | V10: 6025 | W10: 6025 | X10: 6025 | Y10: 6025 | Z10: 5825 | AA10: 6025 | AB10: 6025 | AC10: 6025 | AD10: 6025 | AE10: 6125 | AF10: 6025 | AG10: 6025 | AH10: 6025 | AI10: 2025
A11: 13 | B11: LUCKY_CARD 8889 NET | C11: =SUM(H11:INDEX(H11:AL11,1,$D$1)) -> 405429 | H11: =+H12-H13 -> 16141 | I11: =+I12-I13 -> 18251 | J11: 17264 | K11: 16366 | L11: 15996 | M11: 14280 | N11: 14420 | O11: 18779 | P11: 14324 | Q11: 14072 | R11: 12724 | S11: 14382 | T11: 14227 | U11: 13042 | V11: =+V12-V13 -> 11960 | W11: =+W12-W13 -> 12060 | X11: 11991 | Y11: 12035 | Z11: 11924 | AA11: 11266 | AB11: 13858 | AC11: 13952 | AD11: 12064 | AE11: 11081 | AF11: 12682 | AG11: 18830 | AH11: 18277 | AI11: 19181
B12: LUCKY_CARD 8889 | C12: =SUM(H12:INDEX(H12:AL12,1,$D$1)) -> 563357 | D12: 620252 | E12: =+C12-D12 -> -56895 | F12: =+IFERROR(+E12/D12,"") -> -0.09172884569 | G12: =+INDEX(H12:AL12,1,$D$1) -> 0 | H12: 21141 | I12: 23315 | J12: 22340 | K12: 21362 | L12: 21396 | M12: 19584 | N12: 19392 | O12: 18779 | P12: 20320 | Q12: 20764 | R12: 19344 | S12: 20898 | T12: 20779 | U12: 19894 | V12: 18636 | W12: 18904 | X12: 19455 | Y12: 19271 | Z12: 19496 | AA12: 19406 | AB12: 22114 | AC12: 20112 | AD12: 20388 | AE12: 20005 | AF12: 19958 | AG12: 18830 | AH12: 18285 | AI12: 19189
B13: LUCKY_CARD COST | C13: =SUM(H13:INDEX(H13:AL13,1,$D$1)) -> 157928 | H13: 5000 | I13: 5064 | J13: 5076 | K13: 4996 | L13: 5400 | M13: 5304 | N13: 4972 | O13: 0 | P13: 5996 | Q13: 6692 | R13: 6620 | S13: 6516 | T13: 6552 | U13: 6852 | V13: 6676 | W13: 6844 | X13: 7464 | Y13: 7236 | Z13: 7572 | AA13: 8140 | AB13: 8256 | AC13: 6160 | AD13: 8324 | AE13: 8924 | AF13: 7276 | AG13: 0 | AH13: 8 | AI13: 8
A14: 14 | B14: SMS INFO | C14: =+SUM(C$15:C$16) -> 952030 | D14: 1008390 | E14: =+C14-D14 -> -56360 | F14: =+IFERROR(+E14/D14,"") -> -0.05589107389 | G14: =+INDEX(H14:AL14,1,$D$1) -> 0 | H14: =+SUM(H15:H16) -> 34550 | I14: =+SUM(I15:I16) -> 36628 | J14: =+SUM(J15:J16) -> 35213 | K14: =+SUM(K15:K16) -> 34334 | L14: =+SUM(L15:L16) -> 33939 | M14: 23451 | N14: 32482 | O14: 61863 | P14: 33393 | Q14: 33544 | R14: 32100 | S14: 34691 | T14: 34339 | U14: 32776 | V14: 31174 | W14: 31592 | X14: 32547 | Y14: 32774 | Z14: 33308 | AA14: 32759 | AB14: 36618 | AC14: 33806 | AD14: 33709 | AE14: 32627 | AF14: 32591 | AG14: 32455 | AH14: 31255 | AI14: 31512
A15: 14 | B15: BON_INFO 206 | C15: =SUM(H15:INDEX(H15:AL15,1,$D$1)) -> 606509 | D15: 657307 | F15: =+IFERROR(+E15/D15,"") -> 0 | G15: =+INDEX(H15:AL15,1,$D$1) -> 0 | H15: 22724 | I15: 23873 | J15: 22801 | K15: 22374 | L15: 22263 | M15: 15283 | N15: 21409 | O15: 21370 | P15: 21785 | Q15: 22068 | R15: 21085 | S15: 22597 | T15: 22488 | U15: 21326 | V15: 20340 | W15: 20705 | X15: 21451 | Y15: 21816 | Z15: 22021 | AA15: 21588 | AB15: 24839 | AC15: 22290 | AD15: 22276 | AE15: 21533 | AF15: 21498 | AG15: 21388 | AH15: 20608 | AI15: 20710
A16: 15 | B16: IVR_INFO 206 | C16: =SUM(H16:INDEX(H16:AL16,1,$D$1)) -> 345521 | D16: 351083 | F16: =+IFERROR(+E16/D16,"") -> 0 | G16: =+INDEX(H16:AL16,1,$D$1) -> 0 | H16: 11826 | I16: 12755 | J16: 12412 | K16: 11960 | L16: 11676 | M16: 8168 | N16: 11073 | O16: 40493 | P16: 11608 | Q16: 11476 | R16: 11015 | S16: 12094 | T16: 11851 | U16: 11450 | V16: 10834 | W16: 10887 | X16: 11096 | Y16: 10958 | Z16: 11287 | AA16: 11171 | AB16: 11779 | AC16: 11516 | AD16: 11433 | AE16: 11094 | AF16: 11093 | AG16: 11067 | AH16: 10647 | AI16: 10802
A17: 16 | B17: IVR_DATING 933 | C17: =SUM(H17:INDEX(H17:AL17,1,$D$1)) -> 867342 | D17: 1138431 | E17: =+C17-D17 -> -271089 | F17: =+IFERROR(+E17/D17,"") -> -0.2381251038 | G17: =+INDEX(H17:AL17,1,$D$1) -> 0 | H17: 30176 | I17: 31893 | J17: 32511 | K17: 33541 | L17: 33941 | M17: 32968 | N17: 31988 | O17: 31111 | P17: 31647 | Q17: 32574 | R17: 30526 | S17: 32337 | T17: 31634 | U17: 30307 | V17: 28514 | W17: 29140 | X17: 30173 | Y17: 29545 | Z17: 29803 | AA17: 29667 | AB17: 34861 | AC17: 32061 | AD17: 31480 | AE17: 30733 | AF17: 29422 | AG17: 28974 | AH17: 28054 | AI17: 27761
A18: 17 | B18: GAME_PORTAL 834 | C18: =SUM(H18:INDEX(H18:AL18,1,$D$1)) -> 882420 | D18: 750086 | E18: =+C18-D18 -> 132334 | F18: =+IFERROR(+E18/D18,"") -> 0.1764251033 | G18: =+INDEX(H18:AL18,1,$D$1) -> 0 | H18: 34992 | I18: 35604 | J18: 34864 | K18: 35224 | L18: 34400 | M18: 34114 | N18: 33530 | O18: 32120 | P18: 32238 | Q18: 32194 | R18: 31398 | S18: 29968 | T18: 32334 | U18: 32026 | V18: 29116 | W18: 30066 | X18: 30324 | Y18: 30228 | Z18: 31014 | AA18: 30754 | AB18: 30218 | AC18: 31320 | AD18: 30976 | AE18: 30200 | AF18: 29412 | AG18: 28760 | AH18: 27666 | AI18: 27360
A19: 18 | B19: LUCKY_DRAW 556 NET | C19: =SUM(H19:INDEX(H19:AL19,1,$D$1)) -> 1010647 | H19: =+H20-H21 -> 24855 | I19: =+I20-I21 -> 26885 | J19: 26998 | K19: 28422 | L19: 28701 | M19: 30377 | N19: 30929 | O19: 30662 | P19: 31958 | Q19: 34049 | R19: 32137 | S19: 31907 | T19: 34161 | U19: 36225 | V19: =+V20-V21 -> 32729 | W19: =+W20-W21 -> 35904 | X19: 38460 | Y19: 38854 | Z19: 41535 | AA19: 42717 | AB19: 44599 | AC19: 43306 | AD19: 44080 | AE19: 44046 | AF19: 44625 | AG19: =+AG20-AG21 -> 44531 | AH19: =+AH20-AH21 -> 43279 | AI19: =+AI20-AI21 -> 43716
A20: 18 | B20: LUCKY_DRAW 556 | C20: =SUM(H20:INDEX(H20:AL20,1,$D$1)) -> 1167307 | D20: 134759 | E20: =+C20-D20 -> 1032548 | F20: =+IFERROR(+E20/D20,"") -> 7.662182118 | G20: =+INDEX(H20:AL20,1,$D$1) -> 0 | H20: 30203 | I20: 32488 | J20: 32406 | K20: 34142 | L20: 34805 | M20: 35763 | N20: 36939 | O20: 36399 | P20: 37619 | Q20: 39499 | R20: 37587 | S20: 37587 | T20: 40043 | U20: 42107 | V20: 38140 | W20: 41708 | X20: 44011 | Y20: 44608 | Z20: 47367 | AA20: 47959 | AB20: 49841 | AC20: 48887 | AD20: 49369 | AE20: 49731 | AF20: 50390 | AG20: 49766 | AH20: 48827 | AI20: 49116
B21: LUCKY_DRAW COST | C21: =SUM(H21:INDEX(H21:AL21,1,$D$1)) -> 156660 | H21: =2000+2801+547 -> 5348 | I21: =2000+2744+859 -> 5603 | J21: =2000+2726+682 -> 5408 | K21: =2000+2806+914 -> 5720 | L21: =2000+2874+1230 -> 6104 | M21: =2000+2778+608 -> 5386 | N21: =2000+2923+1087 -> 6010 | O21: =2000+2905+832 -> 5737 | P21: =2000+2775+886 -> 5661 | Q21: =2000+2781+669 -> 5450 | R21: =2000+2781+669 -> 5450 | S21: =2000+2773+907 -> 5680 | T21: =2000+2927+955 -> 5882 | U21: =2000+2927+955 -> 5882 | V21: =2000+2768+643 -> 5411 | W21: =2000+2806+998 -> 5804 | X21: =2000+2826+725 -> 5551 | Y21: =2000+2787+967 -> 5754 | Z21: =2000+2810+1022 -> 5832 | AA21: =2000+2722+520 -> 5242 | AB21: =2000+2722+520 -> 5242 | AC21: =2000+2774+807 -> 5581 | AD21: =2000+2795+494 -> 5289 | AE21: =2000+2828+857 -> 5685 | AF21: =2832+2000+933 -> 5765 | AG21: =2675+2000+560 -> 5235 | AH21: =2000+2754+794 -> 5548 | AI21: =2710+2000+690 -> 5400
B22: Call pro | C22: =SUM(H22:INDEX(H22:AL22,1,$D$1)) -> 3266348 | H22: 128830 | I22: 131568 | J22: 114270 | K22: 87106 | L22: 125898 | M22: 126183 | N22: 116202 | O22: 117873 | P22: 125676 | Q22: 124324 | R22: 122011 | S22: 109604 | T22: 81895 | U22: 109398 | V22: 121380 | W22: 115314 | X22: 120819 | Y22: 83570 | Z22: 122644 | AA22: 120821 | AB22: 120754 | AC22: 122208 | AD22: 124826 | AE22: 118294 | AF22: 123792 | AG22: 118998 | AH22: 113736 | AI22: 118354
B23: ivr radio | C23: =SUM(H23:INDEX(H23:AL23,1,$D$1)) -> 525717 | H23: 18214 | I23: 19353 | J23: 19508 | K23: 20148 | L23: 20272 | M23: 20072 | N23: 19310 | O23: 18604 | P23: 19188 | Q23: 19772 | R23: 18853 | S23: 20114 | T23: 19440 | U23: 18519 | V23: 17559 | W23: 17988 | X23: 18418 | Y23: 18354 | Z23: 18589 | AA23: 18309 | AB23: 20246 | AC23: 19206 | AD23: 18903 | AE23: 17994 | AF23: 17730 | AG23: 17467 | AH23: 16763 | AI23: 16824
B24: MILLIONAIRE | C24: =SUM(H24:INDEX(H24:AL24,1,$D$1)) -> 421474 | H24: 11055 | I24: 11510 | J24: 11274 | K24: 11290 | L24: 10761 | M24: 10826 | N24: 10394 | O24: 10113 | P24: 10209 | Q24: 10441 | R24: 10282 | S24: 9253 | T24: 9515 | U24: 9806 | V24: 8771 | W24: 9124 | X24: 9483 | Y24: 9411 | Z24: 9713 | AA24: 9761 | AB24: 10456 | AC24: 22365 | AD24: 26510 | AE24: 30045 | AF24: 32533 | AG24: 33302 | AH24: 32582 | AI24: 30689
B25: NEW_VOTING | C25: =SUM(H25:INDEX(H25:AL25,1,$D$1)) -> 500621 | H25: 13499 | I25: 17613 | J25: 17692 | K25: 18759 | L25: 19071 | M25: 18543 | N25: 17720 | O25: 17525 | P25: 17986 | Q25: 18704 | R25: 17560 | S25: 20282 | T25: 19834 | U25: 18113 | V25: 16742 | W25: 16955 | X25: 17423 | Y25: 17565 | Z25: 17506 | AA25: 17408 | AB25: 20145 | AC25: 18263 | AD25: 18606 | AE25: 18357 | AF25: 17939 | AG25: 17323 | AH25: 16541 | AI25: 16947
B26: USSD_CHATTING | C26: =SUM(H26:INDEX(H26:AL26,1,$D$1)) -> 0
B27: BACKGROUND_MUSIC | C27: =SUM(H27:INDEX(H27:AL27,1,$D$1)) -> 0
B28: LUCKY_ROULETTE | C28: =SUM(H28:INDEX(H28:AL28,1,$D$1)) -> 377560 | H28: 12557 | I28: 12362 | J28: 13135 | K28: 14379 | L28: 14338 | M28: 13925 | N28: 14035 | O28: 13640 | P28: 13592 | Q28: 14520 | R28: 13268 | S28: 14045 | T28: 14277 | U28: 13372 | V28: 12664 | W28: 12962 | X28: 13471 | Y28: 13270 | Z28: 13215 | AA28: 13233 | AB28: 15276 | AC28: 13865 | AD28: 13758 | AE28: 13569 | AF28: 12980 | AG28: 12943 | AH28: 12482 | AI28: 12427
B29: DATA CREDIT | C29: =SUM(H29:INDEX(H29:AL29,1,$D$1)) -> 14106 | H29: 720 | I29: 720 | J29: 564 | K29: 630 | L29: 540 | M29: 408 | N29: 504 | O29: 546 | P29: 366 | Q29: 612 | R29: 492 | S29: 330 | T29: 498 | U29: 564 | V29: 522 | W29: 702 | X29: 642 | Y29: 378 | Z29: 552 | AA29: 396 | AB29: 462 | AC29: 498 | AD29: 606 | AE29: 390 | AF29: 342 | AG29: 498 | AH29: 312 | AI29: 312
B30: E-News 368 | C30: =SUM(H30:INDEX(H30:AL30,1,$D$1)) -> 846409 | H30: 25462 | I30: 28849 | J30: 28922 | K30: 30483 | L30: 30195 | M30: 30146 | N30: 29086 | O30: 28290 | P30: 29406 | Q30: 30044 | R30: 28276 | S30: 31434 | T30: 30597 | U30: 29020 | V30: 27262 | W30: 27821 | X30: 28629 | Y30: 28395 | Z30: 28645 | AA30: 28493 | AB30: 38808 | AC30: 34178 | AD30: 33230 | AE30: 32536 | AF30: 31300 | AG30: 31388 | AH30: 30119 | AI30: 35395
B31: FOOTBALL_PLUS | C31: =SUM(H31:INDEX(H31:AL31,1,$D$1)) -> 331547400 | H31: 7667000 | I31: 7469400 | J31: 7622200 | K31: 7665400 | L31: 7589400 | M31: 7473200 | N31: 7301400 | O31: 11312800 | P31: 7638800 | Q31: 10345000 | R31: 8383400 | S31: 9426000 | T31: 9420000 | U31: 8101800 | V31: 8169600 | W31: 8189000 | X31: 10927800 | Y31: 14331800 | Z31: 15584000 | AA31: 16623600 | AB31: 18059400 | AC31: 18088000 | AD31: 17516600 | AE31: 16666000 | AF31: 15992600 | AG31: 15828000 | AH31: 13826000 | AI31: 24329200
B36: TOTAL | C36: =+C4+C5+C8+C11+C14+C17+C18+C19 -> 6310778 | D36: =+D4+D6+D9+D12+D14+D17+D18+D20 -> 6469166 | E36: =+C36-D36 -> -158388 | F36: =+IFERROR(+E36/D36,"") -> -0.02448352693
A37: 19 | B37: No Than tai | C37: Total | D37: Remain
A38: 20 | C38: 982220 | D38: =C38-(195866+C20) -> -380953
A39: 21
A40: 22
B48: TOTAL SUB | D48: COMPARE LAST MONTH
A49: NO | B49: VAS CODE | C49: AVE SUB | D49: AVE SUB Last Month | E49: +/- | F49: % | G49: =+D1 -> 31 | H49: 1 | I49: 2 | J49: 3 | K49: 4 | L49: 5 | M49: 6 | N49: 7 | O49: 8 | P49: 9 | Q49: 10 | R49: 11 | S49: 12 | T49: 13 | U49: 14 | V49: 15 | W49: 16 | X49: 17 | Y49: 18 | Z49: 19 | AA49: 20 | AB49: 21 | AC49: 22 | AD49: 23 | AE49: 24 | AF49: 25 | AG49: 26 | AH49: 27 | AI49: 28 | AJ49: 29 | AK49: 30 | AL49: 31
A50: 10 | B50: HOROSCOPE 566 | C50: =+AVERAGE(H50:AL50) -> 98804.17857 | D50: 90358.70968 | E50: =+C50-D50 -> 8445.468894 | G50: =+INDEX(H50:AL50,1,$D$1) -> 0 | H50: 89224 | I50: 89165 | J50: 89144 | K50: 89108 | L50: 89079 | M50: 89476 | N50: 89482 | O50: 89449 | P50: 89401 | Q50: 89369 | R50: 89333 | S50: 89297 | T50: 89238 | U50: 89207 | V50: 89175 | W50: 89140 | X50: 89097 | Y50: 90297 | Z50: 97760 | AA50: 103896 | AB50: 108810 | AC50: 111889 | AD50: 114730 | AE50: 117996 | AF50: 120934 | AG50: 123731 | AH50: 127516 | AI50: 131574
A51: 11 | B51: LUCKY_SPIN 7878 | C51: 82292.57143 | D51: 88129.3 | E51: -5836.728571 | G51: 0 | H51: 85245 | I51: 85245 | J51: 85090 | K51: 84917 | L51: 84714 | M51: 84479 | N51: 84479 | O51: 83855 | P51: 83581 | Q51: 83330 | R51: 83059 | S51: 82822 | T51: 82560 | U51: 82292 | V51: 82015 | W51: 81758 | X51: 81469 | Y51: 81469 | Z51: 80926 | AA51: 80663 | AB51: 80412 | AC51: 80161 | AD51: 79956 | AE51: 79966 | AF51: 79718 | AG51: 79540 | AH51: 79971 | AI51: 80500
A52: 12 | B52: LUCKY_WORD 8484 | C52: 177292.9643 | D52: 187259.8065 | E52: -9966.842166 | G52: 0 | H52: 183761 | I52: 183594 | J52: 18347 | K52: 183345 | L52: 183208 | M52: 183103 | N52: 182974 | O52: 182836 | P52: 182691 | Q52: 182550 | R52: 182404 | S52: 182265 | T52: 182078 | U52: 181946 | V52: 182810 | W52: 181678 | X52: 181548 | Y52: 181393 | Z52: 181244 | AA52: 181825 | AB52: 181902 | AC52: 180203 | AD52: 179169 | AE52: 179144 | AF52: 183619 | AG52: 190700 | AH52: 192179 | AI52: 191687
A53: 13 | B53: LUCKY_CARD 8889 | C53: 93526 | D53: 92276.03226 | E53: 1249.967742 | G53: 0 | H53: 94244 | I53: 94813 | J53: 94787 | K53: 94375 | L53: 94700 | M53: 94639 | N53: 94566 | O53: 94495 | P53: 94421 | Q53: 94336 | R53: 94248 | S53: 94176 | T53: 94060 | U53: 93986 | V53: 93899 | W53: 93831 | X53: 93739 | Y53: 93637 | Z53: 93636 | AA53: 93629 | AB53: 93511 | AC53: 92546 | AD53: 91788 | AE53: 91619 | AF53: 91531 | AG53: 90742 | AH53: 91063 | AI53: 91711
A54: 14 | B54: SMS INFO | C54: 118722.1071 | D54: =+SUM(D$55:D$56) -> 117330.2581 | E54: 1391.849078 | G54: =+SUM(G$55:G$56) -> 0 | H54: =+SUM(H55:H56) -> 117817 | I54: =+SUM(I55:I56) -> 117796 | J54: 117843 | K54: 117851 | L54: 117860 | M54: 117881 | N54: 117967 | O54: 117991 | P54: 118015 | Q54: 118034 | R54: 118061 | S54: 118146 | T54: 118352 | U54: 118529 | V54: 118577 | W54: 119364 | X54: 119584 | Y54: 119842 | Z54: 119920 | AA54: 120001 | AB54: 120046 | AC54: 119572 | AD54: 119250 | AE54: 119223 | AF54: 119224 | AG54: 119179 | AH54: 119157 | AI54: 119137
A55: 14 | B55: BON_INFO 206 | C55: 78404.85714 | D55: 76445.70968 | E55: 1959.147465 | G55: 0 | H55: 77208 | I55: 77216 | J55: 77275 | K55: 77306 | L55: 77335 | M55: 77370 | N55: 77462 | O55: 77498 | P55: 77542 | Q55: 77578 | R55: 77621 | S55: 77733 | T55: 77968 | U55: 78163 | V55: 78232 | W55: 79041 | X55: 79283 | Y55: 79569 | Z55: 79658 | AA55: 79749 | AB55: 79813 | AC55: 79440 | AD55: 79206 | AE55: 79211 | AF55: 79226 | AG55: 79207 | AH55: 79211 | AI55: 79215
A56: 15 | B56: IVR_INFO 206 | C56: 40317.25 | D56: 40884.54839 | E56: -567.2983871 | G56: 0 | H56: 40609 | I56: 40580 | J56: 40568 | K56: 40545 | L56: 40525 | M56: 40511 | N56: 40505 | O56: 40493 | P56: 40473 | Q56: 40456 | R56: 40440 | S56: 40413 | T56: 40384 | U56: 40366 | V56: 40345 | W56: 40323 | X56: 40301 | Y56: 40273 | Z56: 40262 | AA56: 40252 | AB56: 40233 | AC56: 40132 | AD56: 40044 | AE56: 40012 | AF56: 39998 | AG56: 39972 | AH56: 39946 | AI56: 39922
A57: 16 | B57: IVR_DATING 933 | C57: 129171.6786 | D57: 132920.3226 | E57: -3748.644009 | G57: 0 | H57: 130528 | I57: 130408 | J57: 130305 | K57: 130501 | L57: 130365 | M57: 130242 | N57: 130121 | O57: 130003 | P57: 129866 | Q57: 129799 | R57: 129797 | S57: 129790 | T57: 129665 | U57: 129518 | V57: 129374 | W57: 129219 | X57: 129065 | Y57: 128904 | Z57: 129117 | AA57: 129641 | AB57: 129488 | AC57: 127884 | AD57: 127612 | AE57: 127366 | AF57: 127348 | AG57: 127173 | AH57: 126963 | AI57: 126745
A58: 17 | B58: GAME_PORTAL 834 | C58: 127265.25 | D58: 101935.6452 | E58: 25329.60484 | G58: 0 | H58: 131017 | I58: 130749 | J58: 130460 | K58: 130167 | L58: 129864 | M58: 129589 | N58: 129316 | O58: 129045 | P58: 128784 | Q58: 128509 | R58: 128189 | S58: 127914 | T58: 127640 | U58: 127380 | V58: 127138 | W58: 126887 | X58: 126659 | Y58: 126414 | Z58: 126170 | AA58: 125949 | AB58: 125721 | AC58: 125034 | AD58: 124756 | AE58: 124498 | AF58: 124249 | AG58: 124003 | AH58: 123781 | AI58: 123545
A59: 18 | B59: LUCKY_DRAW 556 | C59: 48998 | D59: 11937.09677 | E59: 37060.90323 | G59: 0 | H59: 26028 | I59: 28132 | J59: 29968 | K59: 31948 | L59: 33818 | M59: 35627 | N59: 37456 | O59: 39097 | P59: 40813 | Q59: 42567 | R59: 46060 | S59: 46060 | T59: 47620 | U59: 49074 | V59: 50549 | W59: 51899 | X59: 53350 | Y59: 54834 | Z59: 56409 | AA59: 58009 | AB59: 59540 | AC59: 60924 | AD59: 62209 | AE59: 63535 | AF59: 64837 | AG59: 66013 | AH59: 67215 | AI59: 68353
A60: 19 | B60: Call pro | C60: =+AVERAGE(H60:AL60) -> 69824.92857 | G60: 0 | H60: 71101 | I60: 71050 | J60: 71004 | K60: 70951 | L60: 70880 | M60: 70796 | N60: 70723 | O60: 70670 | P60: 70609 | Q60: 70533 | R60: 70473 | S60: 70401 | T60: 70309 | U60: 70240 | V60: 70166 | W60: 70083 | X60: 69976 | Y60: 69897 | Z60: 69837 | AA60: 69757 | AB60: 69751 | AC60: 68401 | AD60: 68265 | AE60: 68114 | AF60: 67969 | AG60: 67840 | AH60: 67717 | AI60: 67585
A61: 20 | B61: ivr radio | C61: =+AVERAGE(H61:AL61) -> 415970.8214 | G61: 0 | H61: 402622 | I61: 403612 | J61: 404522 | K61: 405454 | L61: 406530 | M61: 407562 | N61: 408609 | O61: 409749 | P61: 410877 | Q61: 412051 | R61: 413247 | S61: 414423 | T61: 415727 | U61: 417011 | V61: 418167 | W61: 419220 | X61: 420463 | Y61: 421504 | Z61: 422559 | AA61: 423572 | AB61: 424696 | AC61: 425665 | AD61: 422068 | AE61: 422528 | AF61: 423032 | AG61: 423454 | AH61: 423932 | AI61: 424327
B62: MILLIONAIRE | C62: 33649.82143 | G62: 0 | H62: 18463 | I62: 18215 | J62: 17992 | K62: 17771 | L62: 17546 | M62: 17341 | N62: 17123 | O62: 16920 | P62: 16689 | Q62: 16492 | R62: 16348 | S62: 16138 | T62: 15987 | U62: 15779 | V62: 15592 | W62: 15487 | X62: 15304 | Y62: 15125 | Z62: 14961 | AA62: 14816 | AB62: 24579 | AC62: 67458 | AD62: 67636 | AE62: 84956 | AF62: 89785 | AG62: 92965 | AH62: 92857 | AI62: 91870
B63: NEW_VOTING | C63: 75923.82143 | G63: 0 | H63: 76126 | I63: 76154 | J63: 76170 | K63: 76173 | L63: 76192 | M63: 76166 | N63: 76164 | O63: 76173 | P63: 76195 | Q63: 76169 | R63: 76130 | S63: 76082 | T63: 76034 | U63: 76016 | V63: 76016 | W63: 76000 | X63: 76005 | Y63: 76005 | Z63: 75969 | AA63: 75941 | AB63: 75919 | AC63: 75673 | AD63: 75620 | AE63: 75528 | AF63: 75436 | AG63: 75356 | AH63: 75284 | AI63: 75171
B64: USSD_CHATTING | C64: 225536 | G64: 0 | AG64: 224954 | AH64: 225547 | AI64: 226107
B65: BACKGROUND_MUSIC | C65: 88829.33333 | G65: 0 | AG65: 89150 | AH65: 88802 | AI65: 88536
B66: LUCKY_ROULETTE | G66: 0
B67: DATA CREDIT | G67: 0
B69: RATIO CHARGE | G69: =+D1 -> 31 | H69: 1 | I69: 2 | J69: 3 | K69: 4 | L69: 5 | M69: 6 | N69: 7 | O69: 8 | P69: 9 | Q69: 10 | R69: 11 | S69: 12 | T69: 13 | U69: 14 | V69: 15 | W69: 16 | X69: 17 | Y69: 18 | Z69: 19 | AA69: 20 | AB69: 21 | AC69: 22 | AD69: 23 | AE69: 24 | AF69: 25 | AG69: 26 | AH69: 27 | AI69: 28 | AJ69: 29 | AK69: 30 | AL69: 31
A70: NO | B70: VAS CODE | C70: Ave Ratio Charge | D70: Ave Sub active | E70: Ave Rev | F70: %
A71: 10 | B71: HOROSCOPE 566 | C71: =+AVERAGE(H71:AL71) -> 0.100159633 | D71: =+C50 -> 98804.17857 | H71: =+(H4/2)/H50 -> 0.1012507845 | I71: =+(I$4/2)/I$50 -> 0.1089328773 | J71: 0.1035683837 | K71: 0.1019044306 | L71: 0.1014436624 | M71: 0.09288524297 | N71: 0.09910931808 | O71: 0.09695468926 | P71: 0.1004966387 | Q71: 0.1020488089 | R71: 0.09625222482 | S71: 0.1048523467 | T71: 0.1015710796 | U71: 0.09623123746 | V71: 0.09219512195 | W71: 0.09399259592 | X71: 0.09687194855 | Y71: 0.09515820016 | Z71: 0.09168882979 | AA71: 0.1025544776 | AB71: 0.1233893944
A72: 11 | B72: LUCKY_SPIN 7878 | C72: 0.1974381175 | D72: 82292.57143 | H72: =+(H6/2)/H51 -> 0.2123584961 | I72: =+(I$6/2)/I$51 -> 0.2123584961 | J72: 0.2154307204 | K72: 0.2146095599 | L72: 0.2101069481 | M72: 0.2074184117 | N72: 0.2074184117 | O72: 0.200840737 | P72: 0.1950144172 | Q72: 0.1982959318 | R72: 0.1980700466 | S72: 0.1832423752 | T72: 0.1918362403 | U72: 0.1964164196 | V72: 0.1769432421 | W72: 0.1845568629 | X72: 0.1845057629 | Y72: 0.1845057629 | Z72: 0.1918110372 | AA72: 0.1908495841 | AB72: 0.1896110033
A73: 12 | B73: LUCKY_WORD 8484 | C73: 0.1327879621 | D73: 177292.9643 | H73: =+(H9/2)/H52 -> 0.09696018198 | I73: =+(I$9/2)/I$52 -> 0.1024543286 | J73: 0.9680601733 | K73: 0.09252774823 | L73: 0.09075477053 | M73: 0.08349945113 | N73: 0.09020953797 | O73: 0.08885558643 | P73: 0.09280424323 | Q73: 0.09453574363 | R73: 0.08810113813 | S73: 0.09810166516 | T73: 0.09543437428 | U73: 0.08829268025 | V73: 0.08253377824 | W73: 0.08461673951 | X73: 0.08590014762 | Y73: 0.0865468899 | Z73: 0.08918640065 | AA73: 0.08697373848 | AB73: 0.1021978868
A74: 13 | B74: LUCKY_CARD 8889 | C74: 0.1078385627 | D74: 93526 | H74: =+(H12/2)/H53 -> 0.1121609864 | I74: =+(I$12/2)/I$53 -> 0.1229525487 | J74: 0.1178431641 | K74: 0.1131761589 | L74: 0.112967265 | M74: 0.1034668583 | N74: 0.1025315653 | O74: 0.09936504577 | P74: 0.1076031815 | Q74: 0.1100534261 | R74: 0.1026228673 | S74: 0.1109518349 | T74: 0.1104560919 | U74: 0.1058349116 | V74: 0.09923428365 | W74: 0.1007342989 | X74: 0.1037721759 | Y74: 0.1029026987 | Z74: 0.1041052587 | AA74: 0.1036324216 | AB74: 0.1182427736
A75: 14 | B75: SMS INFO | C75: 0.1510489357 | D75: 118722.1071 | H75: =+(H14/2)/H54 -> 0.1466256992 | I75: =+(I$14/2)/I$54 -> 0.1554721722
A76: 14 | B76: BON_INFO 206 | C76: 0.1390375329 | D76: 78404.85714 | H76: =+(H15/2)/H55 -> 0.147160916 | I76: =+(I$15/2)/I$55 -> 0.1545858371 | J76: 0.1475315432 | K76: 0.1447106305 | L76: 0.1439387082 | M76: 0.09876567145 | N76: 0.1381903385 | O76: 0.1378745258 | P76: 0.1404722602 | Q76: 0.1422310449 | R76: 0.1358202033 | S76: 0.1453501087 | T76: 0.1442130105 | U76: 0.1364200453 | V76: 0.1299979548 | W76: 0.1309763287 | X76: 0.1352812078 | Y76: 0.1370885646 | Z76: 0.1382221497 | AA76: 0.1353496596 | AB76: 0.1556074825
A77: 15 | B77: IVR_INFO 206 | C77: 0.1577475506 | D77: 40317.25 | H77: =+(H16/2)/H56 -> 0.1456081164 | I77: =+(I$16/2)/I$56 -> 0.1571586989 | J77: 0.1529777164 | K77: 0.1474904427 | L77: 0.1440592227 | M77: 0.1008121251 | N77: 0.1366868288 | O77: 0.5 | P77: 0.1434042448 | Q77: 0.1418331026 | R77: 0.1361894164 | S77: 0.1496300695 | T77: 0.1467289025 | U77: 0.1418272804 | V77: 0.1342669476 | W77: 0.134997396 | X77: 0.1376640778 | Y77: 0.1360464828 | Z77: 0.1401693905 | AA77: 0.1387632913 | AB77: 0.1463848085
A78: 16 | B78: IVR_DATING 933 | C78: 0.1208477857 | D78: 129171.6786 | H78: =+(H17/2)/H57 -> 0.1155920569 | I78: =+(I$17/2)/I$57 -> 0.1222816085 | J78: 0.1247496259 | K78: 0.1285085938 | L78: 0.1301768113 | M78: 0.1265643955 | N78: 0.1229163625 | O78: 0.119654931 | P78: 0.1218448247 | Q78: 0.1254786246 | R78: 0.1175913157 | S78: 0.1245743124 | T78: 0.1219835731 | U78: 0.1169991816 | V78: 0.1101998856 | W78: 0.1127543163 | X78: 0.116890714 | Y78: 0.1146007882 | Z78: 0.1154108289 | AA78: 0.1144198209 | AB78: 0.1346109292
A79: 17 | B79: GAME_PORTAL 834 | C79: 0.1255527266 | D79: 127265.25 | H79: =+(H18/2)/H58 -> 0.1335399223 | I79: =+(I$18/2)/I$58 -> 0.136154005 | J79: 0.1336195002 | K79: 0.1353031106 | L79: 0.1324462515 | M79: 0.1316238261 | N79: 0.1296436636 | O79: 0.1244527103 | P79: 0.1251630637 | Q79: 0.1252597094 | R79: 0.1224676064 | S79: 0.1171412042 | T79: 0.1266609213 | U79: 0.1257104726 | V79: 0.114505498 | W79: 0.1184754939 | X79: 0.1197072454 | Y79: 0.1195595425 | Z79: 0.1229056036 | AA79: 0.1220890996 | AB79: 0.1201788086
A80: 18 | B80: LUCKY_DRAW 556 | C80: 0.1837743531 | D80: 48998 | H80: =+(H20/5)/H59 -> 0.232080836 | I80: =+(I$20/5)/I$59 -> 0.2309682923 | J80: 0.2162706887 | K80: 0.2137348191 | L80: 0.2058371282 | M80: 0.2007634659 | N80: 0.1972394276 | O80: 0.1861984295 | P80: 0.1843481244 | Q80: 0.1855850776 | R80: 0.163208858 | S80: 0.163208858 | T80: 0.1681772365 | U80: 0.1716061458 | V80: 0.1509030841 | W80: 0.160727567 | X80: 0.1649896907 | Y80: 0.1627019732 | Z80: 0.167941286 | AA80: 0.1653502043 | AB80: 0.1674202217
A81: 19
A82: 20
B86: ADD MONEY
B87: LUCKY ROULETTE | C87: =SUM(H87:INDEX(H87:AL87,1,$D$1)) -> 26635 | H87: 1025 | I87: 1025 | J87: 1025 | K87: 1025 | L87: 1025 | M87: 1025 | N87: 1025 | O87: 1025 | P87: 1025 | Q87: 960 | R87: 25 | S87: 25 | T87: 1025 | U87: 1025 | V87: 1025 | W87: 1025 | X87: 1025 | Y87: 1025 | Z87: 1025 | AA87: 1025 | AB87: 1025 | AC87: 1025 | AD87: 1025 | AE87: 1025 | AF87: 1025 | AG87: 1025 | AH87: 1025 | AI87: 1025

Sheet 01.2019 (hidden)
B1: REVENUE | C1: DATE | D1: 28 | E1: Month | F1: January
D2: COMPARE LAST MONTH
A3: NO | B3: VAS CODE | C3: ="Acc "&$D$1& " / "&$F$1 -> Acc 28 / January | D3: Acc last month | E3: +/- | F3: % | G3: =D1 -> 28 | H3: 1 | I3: 2 | J3: 3 | K3: 4 | L3: 5 | M3: 6 | N3: 7 | O3: 8 | P3: 9 | Q3: 10 | R3: 11 | S3: 12 | T3: 13 | U3: 14 | V3: 15 | W3: 16 | X3: 17 | Y3: 18 | Z3: 19 | AA3: 20 | AB3: 21 | AC3: 22 | AD3: 23 | AE3: 24 | AF3: 25 | AG3: 26 | AH3: 27 | AI3: 28 | AJ3: 29 | AK3: 30 | AL3: 31
A4: 10 | B4: HOROSCOPE 566 | C4: =SUM(H4:INDEX(H4:AL4,1,$D$1)) -> 538788 | D4: =VLOOKUP(B4,#REF!,2,FALSE) ->  | F4: =+IFERROR(+E4/D4,"") ->  | G4: =+INDEX(H4:AL4,1,$D$1) -> 18713 | H4: 22123 | I4: 21801 | J4: 21801 | K4: 20784 | L4: 20991 | M4: 20417 | N4: 19998 | O4: 20008 | P4: 19457 | Q4: 19120 | R4: 19421 | S4: 19387 | T4: 19237 | U4: 18923 | V4: 15362 | W4: 17624 | X4: 18817 | Y4: 18310 | Z4: 19192 | AA4: 18782 | AB4: 18439 | AC4: 18398 | AD4: 18248 | AE4: 18516 | AF4: 17920 | AG4: 18700 | AH4: 18299 | AI4: 18713 | AJ4: 18103 | AK4: 17269 | AL4: 17380
A5: 11 | B5: LUCKY_SPIN 7878 | C5: =SUM(H5:INDEX(H5:AL5,1,$D$1)) -> 1221373 | D5: =VLOOKUP(B5,#REF!,2,FALSE) ->  | E5: =+C5-D5 ->  | G5: 38308 | H5: 52224 | I5: 49003 | J5: 48342 | K5: 47622 | L5: 47125 | M5: 45969 | N5: 46312 | O5: 46637 | P5: 46173 | Q5: 45217 | R5: 45875 | S5: 45334 | T5: 44895 | U5: 45337 | V5: 45875 | W5: 44971 | X5: 33160 | Y5: 43741 | Z5: 42805 | AA5: 41658 | AB5: 40350 | AC5: 40415 | AD5: 38689 | AE5: 39140 | AF5: 39338 | AG5: 38429 | AH5: 38429 | AI5: 38308 | AJ5: 38308 | AK5: 38308 | AL5: 36916
A6: 12 | B6: LUCKY_WORD 8484 | C6: =SUM(H6:INDEX(H6:AL6,1,$D$1)) -> 1057087 | D6: =VLOOKUP(B6,#REF!,2,FALSE) ->  | G6: 36416 | H6: 44025 | I6: 42881 | J6: 42881 | K6: 41142 | L6: 41119 | M6: 40358 | N6: 39742 | O6: 38298 | P6: 39192 | Q6: 37970 | R6: 37836 | S6: 37269 | T6: 38173 | U6: 36438 | V6: 28910 | W6: 35182 | X6: 37285 | Y6: 36292 | Z6: 38352 | AA6: 37458 | AB6: 35584 | AC6: 36601 | AD6: 35816 | AE6: 36135 | AF6: 33674 | AG6: 36377 | AH6: 35681 | AI6: 36416 | AJ6: 35418 | AK6: 33860 | AL6: 32983
A7: 13 | B7: LUCKY_CARD 8889 | C7: =SUM(H7:INDEX(H7:AL7,1,$D$1)) -> 620252 | D7: =VLOOKUP(B7,#REF!,2,FALSE) ->  | G7: 21777 | H7: 25262 | I7: 24851 | J7: 24851 | K7: 23709 | L7: 23838 | M7: 23520 | N7: 22963 | O7: 22885 | P7: 22916 | Q7: 22029 | R7: 21718 | S7: 22124 | T7: 21945 | U7: 21367 | V7: 17576 | W7: 20840 | X7: 21988 | Y7: 21130 | Z7: 22202 | AA7: 21360 | AB7: 21271 | AC7: 21356 | AD7: 20986 | AE7: 21121 | AF7: 20652 | AG7: 22333 | AH7: 21682 | AI7: 21777 | AJ7: 21166 | AK7: 20388 | AL7: 20466
A8: 14 | B8: SMS INFO | C8: =+SUM(C$9:C$10) -> 1008390 | D8: =+SUM(D$9:D$10) ->  | G8: 35528 | H8: =+SUM(H$9:H$10) -> 40431 | I8: =+SUM(I$9:I$10) -> 39934 | J8: 39934 | K8: 37868 | L8: 37786 | M8: 36884 | N8: 36748 | O8: 36894 | P8: 36357 | Q8: 35929 | R8: 35991 | S8: 36494 | T8: 35736 | U8: 35555 | V8: 29883 | W8: 33803 | X8: 35410 | Y8: 35759 | Z8: 36217 | AA8: 35236 | AB8: 34888 | AC8: 35048 | AD8: 34699 | AE8: 35013 | AF8: 34517 | AG8: 35313 | AH8: 34535 | AI8: 35528 | AJ8: 34471 | AK8: 33254 | AL8: 33807
A9: 14 | B9: BON_INFO 206 | C9: =SUM(H9:INDEX(H9:AL9,1,$D$1)) -> 657307 | D9: =VLOOKUP(B9,#REF!,2,FALSE) ->  | G9: 23261 | H9: 25999 | I9: 25792 | J9: 25792 | K9: 24432 | L9: 24490 | M9: 23709 | N9: 23709 | O9: 23966 | P9: 23650 | Q9: 23247 | R9: 23619 | S9: 23957 | T9: 23523 | U9: 23370 | V9: 19635 | W9: 22020 | X9: 23187 | Y9: 23510 | Z9: 23771 | AA9: 23149 | AB9: 22697 | AC9: 22892 | AD9: 22644 | AE9: 22957 | AF9: 22535 | AG9: 23064 | AH9: 22730 | AI9: 23261 | AJ9: 22497 | AK9: 21808 | AL9: 22054
A10: 15 | B10: IVR_INFO 206 | C10: =SUM(H10:INDEX(H10:AL10,1,$D$1)) -> 351083 | D10: =VLOOKUP(B10,#REF!,2,FALSE) ->  | G10: 12267 | H10: 14432 | I10: 14142 | J10: 14142 | K10: 13436 | L10: 13296 | M10: 13175 | N10: 13039 | O10: 12928 | P10: 12707 | Q10: 12682 | R10: 12372 | S10: 12537 | T10: 12213 | U10: 12185 | V10: 10248 | W10: 11783 | X10: 12223 | Y10: 12249 | Z10: 12446 | AA10: 12087 | AB10: 12191 | AC10: 12156 | AD10: 12055 | AE10: 12056 | AF10: 11982 | AG10: 12249 | AH10: 11805 | AI10: 12267 | AJ10: 11974 | AK10: 11446 | AL10: 11753
A11: 16 | B11: IVR_DATING 933 | C11: =SUM(H11:INDEX(H11:AL11,1,$D$1)) -> 1138431 | D11: =VLOOKUP(B11,#REF!,2,FALSE) ->  | G11: 35095 | H11: 49499 | I11: 50144 | J11: 50144 | K11: 50541 | L11: 49276 | M11: 47290 | N11: 45566 | O11: 44507 | P11: 42905 | Q11: 41411 | R11: 40663 | S11: 41126 | T11: 40609 | U11: 39281 | V11: 30865 | W11: 36569 | X11: 37417 | Y11: 37217 | Z11: 38700 | AA11: 37783 | AB11: 36461 | AC11: 36694 | AD11: 35961 | AE11: 35939 | AF11: 35189 | AG11: 36179 | AH11: 35400 | AI11: 35095 | AJ11: 34573 | AK11: 33273 | AL11: 33705
A12: 17 | B12: GAME_PORTAL 834 | C12: =SUM(H12:INDEX(H12:AL12,1,$D$1)) -> 750086 | D12: =VLOOKUP(B12,#REF!,2,FALSE) ->  | G12: 36154 | H12: 22390 | I12: 21314 | J12: 20424 | K12: 19970 | L12: 19862 | M12: 19030 | N12: 19484 | O12: 20296 | P12: 21646 | Q12: 23650 | R12: 23580 | S12: 25926 | T12: 27240 | U12: 28578 | V12: 29132 | W12: 30348 | X12: 24012 | Y12: 16654 | Z12: 27744 | AA12: 26878 | AB12: 30278 | AC12: 31140 | AD12: 37570 | AE12: 37016 | AF12: 36936 | AG12: 36704 | AH12: 36130 | AI12: 36154 | AJ12: 36042 | AK12: 34818 | AL12: 35802
A13: 18 | B13: LUCKY_DRAW 556 | C13: =SUM(H13:INDEX(H13:AL13,1,$D$1)) -> 134759 | D13: =VLOOKUP(B13,#REF!,2,FALSE) ->  | G13: 18540 | H13: 8269 | I13: 9542 | L13: 3020 | M13: 1409 | N13: 1529 | O13: 1107 | P13: 1321 | Q13: 2061 | R13: 2364 | S13: 1442 | T13: 1627 | U13: 1992 | V13: 2861 | W13: 1631 | X13: 2663 | Y13: 3109 | Z13: 2982 | AA13: 2855 | AB13: 2359 | AC13: 2272 | AD13: 6056 | AE13: 10143 | AF13: 12170 | AG13: 15130 | AH13: 16305 | AI13: 18540 | AJ13: 19310 | AK13: 19496 | AL13: 22301
A14: 19 | B14: No Than tai | C14: Total | D14: Remain
A15: 20 | C15: 982220 | D15: =+$C$15-C13 -> 847461
A16: 21
A17: 22
B25: TOTAL SUB | D25: COMPARE LAST MONTH
A26: NO | B26: VAS CODE | C26: AVE SUB | D26: AVE Last Month | E26: +/- | F26: % | G26: =+D1 -> 28 | H26: 1 | I26: 2 | J26: 3 | K26: 4 | L26: 5 | M26: 6 | N26: 7 | O26: 8 | P26: 9 | Q26: 10 | R26: 11 | S26: 12 | T26: 13 | U26: 14 | V26: 15 | W26: 16 | X26: 17 | Y26: 18 | Z26: 19 | AA26: 20 | AB26: 21 | AC26: 22 | AD26: 23 | AE26: 24 | AF26: 25 | AG26: 26 | AH26: 27 | AI26: 28 | AJ26: 29 | AK26: 30 | AL26: 31
A27: 10 | B27: HOROSCOPE 566 | C27: =+AVERAGE(H27:AL27) -> 90358.70968 | G27: =+INDEX(H27:AL27,1,$D$1) -> 89423 | H27: 91122 | I27: 91122 | J27: 91122 | K27: 91122 | L27: 91074 | M27: 91015 | N27: 90980 | O27: 90920 | P27: 90863 | Q27: 90824 | R27: 90778 | S27: 90721 | T27: 90675 | U27: 90629 | V27: 90559 | W27: 90495 | X27: 90406 | Y27: 90332 | Z27: 90228 | AA27: 90147 | AB27: 90060 | AC27: 89989 | AD27: 89910 | AE27: 89834 | AF27: 89709 | AG27: 89609 | AH27: 89512 | AI27: 89423 | AJ27: 89368 | AK27: 89318 | AL27: 89254
A28: 11 | B28: LUCKY_SPIN 7878 | C28: 88129.3 | G28: 86241 | H28: 89298 | I28: 88818 | J28: 88885 | K28: 88974 | L28: 88901 | M28: 88774 | N28: 88957 | O28: 88964 | P28: 88728 | Q28: 88791 | R28: 88859 | S28: 88840 | T28: 88664 | U28: 88856 | V28: 88853 | W28: 88883 | X28: 88853 | Y28: 88618 | Z28: 88314 | AA28: 88178 | AB28: 87884 | AC28: 87596 | AD28: 87281 | AE28: 86987 | AF28: 86684 | AG28: 86743 | AH28: 86241 | AI28: 86241 | AJ28: 86241 | AL28: 85973
A29: 12 | B29: LUCKY_WORD 8484 | C29: 187259.8065 | G29: 184427 | H29: 189467 | I29: 189467 | J29: 189467 | K29: 189467 | L29: 189323 | M29: 189192 | N29: 189048 | O29: 188903 | P29: 188764 | Q29: 188625 | R29: 188490 | S29: 188376 | T29: 188265 | U29: 188146 | V29: 187950 | W29: 187734 | X29: 187502 | Y29: 187248 | Z29: 186986 | AA29: 186729 | AB29: 186474 | AC29: 186183 | AD29: 185903 | AE29: 185625 | AF29: 185282 | AG29: 185007 | AH29: 184712 | AI29: 184427 | AJ29: 184259 | AK29: 184108 | AL29: 183925
A30: 13 | B30: LUCKY_CARD 8889 | C30: 92276.03226 | G30: 94532 | H30: 95199 | I30: 95199 | J30: 95199 | K30: 95199 | L30: 95158 | M30: 95076 | N30: 94988 | O30: 94900 | P30: 94823 | Q30: 94746 | R30: 94666 | S30: 94576 | T30: 94519 | U30: 94633 | V30: 94571 | W30: 95023 | X30: 94966 | Y30: 91931 | Z30: 94811 | AA30: 94716 | AB30: 94616 | AC30: 94510 | AD30: 94392 | AE30: 94265 | AF30: 94122 | AG30: 94704 | AH30: 94627 | AI30: 94532 | AJ30: 21166 | AK30: 94399 | AL30: 94325
A31: 14 | B31: SMS INFO | C31: 117330.2581 | D31: =+SUM(D$32:D$33) -> 0 | G31: =+SUM(G$32:G$33) -> 117855 | H31: =+SUM(H$32:H$33) -> 116384 | I31: =+SUM(I$32:I$33) -> 116384 | J31: 116384 | K31: 116384 | L31: 116373 | M31: 116357 | N31: 116856 | O31: 116908 | P31: 116915 | Q31: 117275 | R31: 117294 | S31: 117304 | T31: 117315 | U31: 117328 | V31: 117381 | W31: 117350 | X31: 117707 | Y31: 117730 | Z31: 117737 | AA31: 117755 | AB31: 117758 | AC31: 117761 | AD31: 117832 | AE31: 117818 | AF31: 117814 | AG31: 117864 | AH31: 117871 | AI31: 117855 | AJ31: 117862 | AK31: 117837 | AL31: 117845
A32: 14 | B32: BON_INFO 206 | C32: 76445.70968 | G32: 77173 | H32: 75314 | I32: 75314 | J32: 75314 | K32: 75314 | L32: 75323 | M32: 75319 | N32: 75830 | O32: 75893 | P32: 75913 | Q32: 76289 | R32: 76325 | S32: 76355 | T32: 76372 | U32: 76397 | V32: 76458 | W32: 76448 | X32: 76826 | Y32: 76866 | Z32: 76892 | AA32: 76924 | AB32: 76944 | AC32: 76964 | AD32: 77044 | AE32: 77046 | AF32: 77060 | AG32: 77126 | AH32: 77160 | AI32: 77173 | AJ32: 77198 | AK32: 77194 | AL32: 77222
A33: 15 | B33: IVR_INFO 206 | C33: 40884.54839 | G33: 40682 | H33: 41070 | I33: 41070 | J33: 41070 | K33: 41070 | L33: 41050 | M33: 41038 | N33: 41026 | O33: 41015 | P33: 41002 | Q33: 40986 | R33: 40969 | S33: 40949 | T33: 40943 | U33: 40931 | V33: 40923 | W33: 40902 | X33: 40881 | Y33: 40864 | Z33: 40845 | AA33: 40831 | AB33: 40814 | AC33: 40797 | AD33: 40788 | AE33: 40772 | AF33: 40754 | AG33: 40738 | AH33: 40711 | AI33: 40682 | AJ33: 40664 | AK33: 40643 | AL33: 40623
A34: 16 | B34: IVR_DATING 933 | C34: 132920.3226 | G34: 131153 | H34: 135157 | I34: 135157 | J34: 135157 | K34: 135157 | L34: 135056 | M34: 134771 | N34: 134505 | O34: 134212 | P34: 133968 | Q34: 133723 | R34: 133513 | S34: 133284 | T34: 133090 | U34: 133219 | V34: 133089 | W34: 132889 | X34: 132659 | Y34: 132466 | Z34: 132312 | AA34: 132085 | AB34: 132285 | AC34: 132091 | AD34: 131860 | AE34: 131632 | AF34: 131412 | AG34: 131205 | AH34: 130997 | AI34: 131153 | AJ34: 130971 | AK34: 130799 | AL34: 130656
A35: 17 | B35: GAME_PORTAL 834 | C35: 101935.6452 | G35: 131910 | H35: 55452 | I35: 55376 | J35: 55233 | K35: 55047 | L35: 54970 | M35: 54859 | N35: 59724 | O35: 69497 | P35: 77671 | Q35: 83828 | R35: 88964 | S35: 93468 | T35: 96035 | U35: 101555 | V35: 105405 | W35: 109166 | X35: 113733 | Y35: 118614 | Z35: 124204 | AA35: 129419 | AB35: 134210 | AC35: 133780 | AD35: 133384 | AE35: 132956 | AF35: 132893 | AG35: 132573 | AH35: 132252 | AI35: 131910 | AJ35: 131583 | AK35: 131280 | AL35: 130964
A36: 18 | B36: LUCKY_DRAW 556 | C36: 11937.09677 | G36: 18137 | H36: 216 | I36: 252 | J36: 252 | K36: 252 | L36: 252 | M36: 259 | N36: 240 | O36: 247 | P36: 247 | Q36: 246 | R36: 252 | S36: 260 | T36: 260 | U36: 265 | V36: 269 | W36: 265 | X36: 294 | Y36: 298 | Z36: 316 | AA36: 324 | AB36: 330 | AC36: 2891 | AD36: 6119 | AE36: 9128 | AF36: 11681 | AG36: 14041 | AH36: 16000 | AI36: 18137 | AJ36: 20288 | AK36: 22165 | AL36: 244004
A37: 19 | G37: 0
A38: 20 | G38: 0
B42: RATIO CHARGE | G42: =+D1 -> 28 | H42: 1 | I42: 2 | J42: 3 | K42: 4 | L42: 5 | M42: 6 | N42: 7 | O42: 8 | P42: 9 | Q42: 10 | R42: 11 | S42: 12 | T42: 13 | U42: 14 | V42: 15 | W42: 16 | X42: 17 | Y42: 18 | Z42: 19 | AA42: 20 | AB42: 21 | AC42: 22 | AD42: 23 | AE42: 24 | AF42: 25 | AG42: 26 | AH42: 27 | AI42: 28 | AJ42: 29 | AK42: 30 | AL42: 31
A43: NO | B43: VAS CODE | C43: Ave Ratio Charge | D43: Ave Sub active | E43: Ave Rev | F43: %
A44: 10 | B44: HOROSCOPE 566 | C44: =+AVERAGE(H44:AL44) -> 0.1075788214 | D44: =+C27 -> 90358.70968 | H44: =+(H4/2)/H27 -> 0.1213921995 | I44: =+(I$4/2)/I$27 -> 0.1196253375 | J44: 0.1196253375 | K44: 0.1140449068 | L44: 0.115241452 | M44: 0.1121628303 | N44: 0.1099032754 | O44: 0.1100307963 | P44: 0.1070677834 | Q44: 0.105258522 | R44: 0.1069697504 | S44: 0.1068495718 | T44: 0.1060766474 | U44: 0.1043981507 | V44: 0.0848176327 | W44: 0.09737554561 | X44: 0.1040694202 | Y44: 0.1013483594 | Z44: 0.1063527951 | AA44: 0.1041742931 | AB44: 0.1023706418
A45: 11 | B45: LUCKY_SPIN 7878 | C45: 0.254439838 | D45: 88129.3 | H45: 0.2924141638 | I45: =+(I$5/2)/I$28 -> 0.2758618748 | J45: 0.2719356472 | K45: 0.2676175062 | L45: 0.265042013 | M45: 0.2589102665 | N45: 0.2603055409 | O45: 0.2621116407 | P45: 0.2601940763 | Q45: 0.2546260319 | R45: 0.2581336724 | S45: 0.2551440792 | T45: 0.2531749075 | U45: 0.2551150176 | V45: 0.2581511035 | W45: 0.2529786348 | X45: 0.1866003399 | Y45: 0.2467952335 | Z45: 0.2423454945 | AA45: 0.2362153825 | AB45: 0.2295639707
A46: 12 | B46: LUCKY_WORD 8484 | C46: 0.1019042301 | D46: 187259.8065 | H46: 0.1161811819 | I46: =+(I$6/2)/I$29 -> 0.1131621866 | J46: 0.1131621866 | K46: 0.1085729969 | L46: 0.1085948353 | M46: 0.1066588439 | N46: 0.1051108713 | O46: 0.1013694859 | P46: 0.1038121676 | Q46: 0.1006494367 | R46: 0.1003660672 | S46: 0.09892183718 | T46: 0.1013810321 | U46: 0.09683437331 | V46: 0.07690875233 | W46: 0.09370172691 | X46: 0.09942560613 | Y46: 0.09690891224 | Z46: 0.1025531323 | AA46: 0.1003004354 | AB46: 0.09541276532
A47: 13 | B47: LUCKY_CARD 8889 | C47: 0.1181860014 | D47: 92276.03226 | H47: 0.1326799651 | I47: =+(I$7/2)/I$30 -> 0.130521329 | J47: 0.130521329 | K47: 0.1245233668 | L47: 0.1252548393 | M47: 0.1236905213 | N47: 0.1208731629 | O47: 0.1205742887 | P47: 0.1208356622 | Q47: 0.1162529289 | R47: 0.1147085543 | S47: 0.1169641347 | T47: 0.1160877707 | U47: 0.1128940222 | V47: 0.09292489241 | W47: 0.1096576618 | X47: 0.1157677485 | Y47: 0.1149231489 | Z47: 0.1170855702 | AA47: 0.1127581401 | AB47: 0.1124069925
A48: 14 | B48: SMS INFO | C48: 0.1726289696 | D48: 117330.2581 | H48: 0.1736965562 | I48: =+(I$8/2)/I$31 -> 0.171561383
A49: 14 | B49: BON_INFO 206 | C49: 0.1555678505 | D49: 76445.70968 | H49: 0.1726040311 | I49: =+(I$9/2)/I$32 -> 0.1712297846 | J49: 0.1712297846 | K49: 0.1622009188 | L49: 0.1625665467 | M49: 0.1573905655 | N49: 0.1563299486 | O49: 0.1578933498 | P49: 0.1557704214 | Q49: 0.1523614151 | R49: 0.1547264985 | S49: 0.1568790518 | T49: 0.1540027759 | U49: 0.1529510321 | V49: 0.1284038296 | W49: 0.1440194642 | X49: 0.1509059433 | Y49: 0.1529284729 | Z49: 0.1545739479 | AA49: 0.1504666944 | AB49: 0.1474903826
A50: 15 | B50: IVR_INFO 206 | C50: 0.1548889756 | D50: 40884.54839 | H50: 0.1757000243 | I50: =+(I$10/2)/I$33 -> 0.1721694668 | J50: 0.1721694668 | K50: 0.1635743852 | L50: 0.1619488429 | M50: 0.1605219553 | N50: 0.158911422 | O50: 0.1576008777 | P50: 0.1549558558 | Q50: 0.1547113649 | R50: 0.1509922136 | S50: 0.1530806613 | T50: 0.1491463742 | U50: 0.1488480614 | V50: 0.1252107617 | W50: 0.1440394113 | X50: 0.1494948754 | Y50: 0.1498751958 | Z50: 0.1523564696 | AA50: 0.1480125395 | AB50: 0.1493482629
A51: 16 | B51: IVR_DATING 933 | C51: 0.1579913931 | D51: 132920.3226 | H51: 0.1831166717 | I51: =+(I$11/2)/I$34 -> 0.1855027856 | J51: 0.1855027856 | K51: 0.186971448 | L51: 0.1824280299 | M51: 0.1754457561 | N51: 0.1693840378 | O51: 0.1658085715 | P51: 0.1601315239 | Q51: 0.1548387338 | R51: 0.1522810513 | S51: 0.1542795834 | T51: 0.152562176 | U51: 0.1474301714 | V51: 0.1159562398 | W51: 0.1375922763 | X51: 0.141026994 | Y51: 0.1404775565 | Z51: 0.1462452385 | AA51: 0.1430253246 | AB51: 0.1378122992
A52: 17 | B52: GAME_PORTAL 834 | C52: 0.1447281116 | D52: 101935.6452 | H52: 0.2018863161 | I52: =+(I$12/2)/I$35 -> 0.1924479919 | J52: 0.1848894683 | K52: 0.1813904482 | L52: 0.1806621794 | M52: 0.173444649 | N52: 0.1631170049 | O52: 0.1460206915 | P52: 0.1393441568 | Q52: 0.1410626521 | R52: 0.1325255159 | S52: 0.138689177 | T52: 0.1418232936 | U52: 0.1407020826 | V52: 0.1381907879 | W52: 0.1389993221 | X52: 0.1055630292 | Y52: 0.07020250561 | Z52: 0.1116872242 | AA52: 0.1038410125 | AB52: 0.1128008345
A53: 18 | B53: LUCKY_DRAW 556 | C53: 1.986004051 | D53: 11937.09677 | H53: =+(H13/5)/H36 -> 7.656481481 | I53: =+(I$13/5)/I$36 -> 7.573015873 | J53: 0 | K53: 0 | L53: 2.396825397 | M53: 1.088030888 | N53: 1.274166667 | O53: 0.8963562753 | P53: 1.069635628 | Q53: 1.675609756 | R53: 1.876190476 | S53: 1.109230769 | T53: 1.251538462 | U53: 1.503396226 | V53: 2.127137546 | W53: 1.230943396 | X53: 1.811564626 | Y53: 2.086577181 | Z53: 1.887341772 | AA53: 1.762345679 | AB53: 1.42969697
A54: 19
A55: 20

Sheet FINAL (hidden)
B1: REVENUE | C1: DATE | D1: ='04.2019'!D1 -> 31 | E1: Month | F1: March
D2: COMPARE LAST MONTH
A3: NO | B3: VAS CODE | C3: ="Acc "&$D$1& " / "&$F$1 -> Acc 31 / March | D3: Acc last month | E3: +/- | F3: % | G3: =D1 -> 31 | H3: 1 | I3: 2 | J3: 3 | K3: 4 | L3: 5 | M3: 6 | N3: 7 | O3: 8 | P3: 9 | Q3: 10 | R3: 11 | S3: 12 | T3: 13 | U3: 14 | V3: 15 | W3: 16 | X3: 17 | Y3: 18 | Z3: 19 | AA3: 20 | AB3: 21 | AC3: 22 | AD3: 23 | AE3: 24 | AF3: 25 | AG3: 26 | AH3: 27 | AI3: 28 | AJ3: 29 | AK3: 30 | AL3: 31
A4: NATCOM
A5: 1 | B5: SMS INFO | C5: =+SUM(C$6:C$7) -> 1097202 | D5: ='02.2019'!C14 -> 952030 | E5: =+C5-D5 -> 145172 | F5: =+IFERROR(+E5/D5,"") -> 0.1524867914 | G5: =+INDEX(H5:AL5,1,$D$1) -> 37131 | H5: =+H6+H7 -> 32184 | I5: =+I6+I7 -> 32184 | J5: 32288 | K5: 32604 | L5: 32391 | M5: 31875 | N5: 33227 | O5: 34065 | P5: 36167 | Q5: 31601 | R5: 31601 | S5: 32632 | T5: 34842 | U5: 34355 | V5: 35837 | W5: 37054 | X5: 33757 | Y5: 33604 | Z5: 40812 | AA5: 40931 | AB5: 38851 | AC5: 34967 | AD5: 38630 | AE5: 38493 | AF5: 41539 | AG5: 39789 | AH5: 37163 | AI5: 35451 | AJ5: 34658 | AK5: 36519 | AL5: 37131
B6: BON_INFO 206 | C6: =SUM(H6:INDEX(H6:AL6,1,$D$1)) -> 780571 | D6: ='02.2019'!C15 -> 606509 | E6: 174062 | F6: =+IFERROR(+E6/D6,"") -> 0.2869899705 | G6: =+INDEX(H6:AL6,1,$D$1) -> 26718 | H6: 21194 | I6: 21194 | J6: 21278 | K6: 21428 | L6: 21357 | M6: 20998 | N6: 22336 | O6: 23492 | P6: 25165 | Q6: 22708 | R6: 22708 | S6: 23346 | T6: 24831 | U6: 24513 | V6: 25667 | W6: 27011 | X6: 25061 | Y6: 25186 | Z6: 29973 | AA6: 30432 | AB6: 28753 | AC6: 25897 | AD6: 28420 | AE6: 28126 | AF6: 30079 | AG6: 28858 | AH6: 27008 | AI6: 25663 | AJ6: 24913 | AK6: 26258 | AL6: 26718
B7: IVR_INFO 206 | C7: =SUM(H7:INDEX(H7:AL7,1,$D$1)) -> 316631 | D7: ='02.2019'!C16 -> 345521 | E7: -28890 | F7: -0.08361286289 | G7: 10413 | H7: 10990 | I7: 10990 | J7: 11010 | K7: 11176 | L7: 11034 | M7: 10877 | N7: 10891 | O7: 10573 | P7: 11002 | Q7: 8893 | R7: 8893 | S7: 9286 | T7: 10011 | U7: 9842 | V7: 10170 | W7: 10043 | X7: 8696 | Y7: 8418 | Z7: 10839 | AA7: 10499 | AB7: 10098 | AC7: 9070 | AD7: 10210 | AE7: 10367 | AF7: 11460 | AG7: 10931 | AH7: 10155 | AI7: 9788 | AJ7: 9745 | AK7: 10261 | AL7: 10413
A8: 2 | B8: LUCKY_SPIN 7878 NET | C8: =SUM(H8:INDEX(H8:AL8,1,$D$1)) -> 738463 | D8: ='02.2019'!C5 -> 812291 | E8: -73828 | F8: -0.09088861012 | G8: 21850 | H8: =+H9-H10 -> 26898 | I8: 27198 | J8: 28886 | K8: 29658 | L8: 27840 | M8: 27662 | N8: 26784 | O8: 27013 | P8: 26913 | Q8: =+Q9-Q10 -> 26306 | R8: 20010 | S8: =+S9-S10 -> 20996 | T8: 21544 | U8: 21533 | V8: 22804 | W8: 22535 | X8: 19789 | Y8: 18750 | Z8: 24436 | AA8: 23484 | AB8: 22447 | AC8: 23752 | AD8: 22566 | AE8: 22044 | AF8: 22873 | AG8: 23965 | AH8: 22858 | AI8: 21964 | AJ8: 21543 | AK8: 21562 | AL8: 21850
B9: LUCKY_SPIN 7878 | C9: =SUM(H9:INDEX(H9:AL9,1,$D$1)) -> 831486 | D9: ='02.2019'!C6 -> 896297 | E9: =+C9-D9 -> -64811 | F9: -0.07230973662 | G9: 24850 | H9: 29898 | I9: 30199 | J9: 31887 | K9: 32658 | L9: 30840 | M9: 30663 | N9: 29784 | O9: 30013 | P9: 29915 | Q9: 29306 | R9: 23010 | S9: 23998 | T9: 24544 | U9: 24533 | V9: 25804 | W9: 25537 | X9: 22793 | Y9: 21750 | Z9: 27436 | AA9: 26486 | AB9: 25447 | AC9: 26752 | AD9: 25566 | AE9: 25044 | AF9: 25875 | AG9: 26968 | AH9: 25859 | AI9: 24964 | AJ9: 24544 | AK9: 24563 | AL9: 24850
B10: LUCKY_SPIN 7878 COST | C10: =SUM(H10:INDEX(H10:AL10,1,$D$1)) -> 93023 | D10: ='02.2019'!C7 -> 84006 | E10: 9017 | F10: 0.1073375711 | G10: 3000 | H10: 3000 | I10: 3001 | J10: 3001 | K10: 3000 | L10: 3000 | M10: 3001 | N10: 3000 | O10: 3000 | P10: 3002 | Q10: 3000 | R10: 3000 | S10: 3002 | T10: 3000 | U10: 3000 | V10: 3000 | W10: 3002 | X10: 3004 | Y10: 3000 | Z10: 3000 | AA10: 3002 | AB10: 3000 | AC10: 3000 | AD10: =3000 -> 3000 | AE10: 3000 | AF10: 3002 | AG10: 3003 | AH10: 3001 | AI10: 3000 | AJ10: 3001 | AK10: 3001 | AL10: 3000
A11: 3 | B11: LUCKY_DRAW 556 NET | C11: =SUM(H11:INDEX(H11:AL11,1,$D$1)) -> 1503744 | D11: ='02.2019'!C19 -> 1010647 | E11: =+C11-D11 -> 493097 | F11: =+IFERROR(+E11/D11,"") -> 0.4879023042 | G11: 56593 | H11: =+H12-H13 -> 45912 | I11: =+I12-I13 -> 46976 | J11: =+J12-J13 -> 49352 | K11: =+K12-K13 -> 49124 | L11: 48597 | M11: 48775 | N11: 47879 | O11: 49307 | P11: 51340 | Q11: 28982 | R11: 35811 | S11: 39587 | T11: 39820 | U11: 41759 | V11: 44532 | W11: 44956 | X11: 39451 | Y11: 39326 | Z11: 52210 | AA11: 53850 | AB11: 51348 | AC11: 53498 | AD11: 53062 | AE11: 53869 | AF11: 54729 | AG11: 60282 | AH11: 55046 | AI11: 54718 | AJ11: 56809 | AK11: 56244 | AL11: 56593
B12: LUCKY_DRAW 556 | C12: =SUM(H12:INDEX(H12:AL12,1,$D$1)) -> 1672162 | D12: ='02.2019'!C20 -> 1167307 | E12: 504855 | F12: =+IFERROR(+E12/D12,"") -> 0.4324954789 | G12: 62139 | H12: 51341 | I12: 52405 | J12: 55189 | K12: 54704 | L12: 54241 | M12: 54189 | N12: 53415 | O12: 54828 | P12: 56555 | Q12: 34237 | R12: 41240 | S12: 44869 | T12: 45235 | U12: 47060 | V12: 49840 | W12: 50365 | X12: 44790 | Y12: 44682 | Z12: 57335 | AA12: 59398 | AB12: 56911 | AC12: 58971 | AD12: 58282 | AE12: 59285 | AF12: 60298 | AG12: 65699 | AH12: 60525 | AI12: 60195 | AJ12: 62316 | AK12: 61623 | AL12: 62139
B13: LUCKY_DRAW COST | C13: =SUM(H13:INDEX(H13:AL13,1,$D$1)) -> 168418 | D13: ='02.2019'!C21 -> 156660 | E13: 11758 | F13: 0.07505425763 | G13: 5546 | H13: =2000+2682+747 -> 5429 | I13: =2000+2685+744 -> 5429 | J13: =2000+2802+1035 -> 5837 | K13: =2000+2772+808 -> 5580 | L13: =2000+916+2728 -> 5644 | M13: =2000+2703+711 -> 5414 | N13: =2000+2791+745 -> 5536 | O13: =2000+2758+763 -> 5521 | P13: =1950+2627+638 -> 5215 | Q13: =2724+1900+631 -> 5255 | R13: =2765+2000+664 -> 5429 | S13: =2620+2000+662 -> 5282 | T13: =2717+2000+698 -> 5415 | U13: =2643+2000+658 -> 5301 | V13: =2667+2000+641 -> 5308 | W13: =2669+2000+740 -> 5409 | X13: =2672+2000+667 -> 5339 | Y13: =2761+2000+595 -> 5356 | Z13: =2593+2000+532 -> 5125 | AA13: =2753+2000+795 -> 5548 | AB13: =2779+2000+784 -> 5563 | AC13: =2738+2000+735 -> 5473 | AD13: =2651+2000+569 -> 5220 | AE13: =2747+2000+669 -> 5416 | AF13: =2716+2000+853 -> 5569 | AG13: =2780+2000+637 -> 5417 | AH13: =2674+2000+805 -> 5479 | AI13: =2778+2000+699 -> 5477 | AJ13: =2755+2000+752 -> 5507 | AK13: =2705+2000+674 -> 5379 | AL13: =2778+2000+768 -> 5546
A14: 4 | B14: LUCKY_WORD 8484 NET | C14: =SUM(H14:INDEX(H14:AL14,1,$D$1)) -> 1002995 | D14: ='02.2019'!C8 -> 786894 | E14: =+C14-D14 -> 216101 | F14: 0.274625299 | G14: 31908 | H14: =+H15-H16 -> 37548 | I14: =+I15-I16 -> 37548 | J14: =+J15-J16 -> 36901 | K14: =+K15-K16 -> 36649 | L14: 36416 | M14: 36396 | N14: 34938 | O14: 34942 | P14: 36769 | Q14: 31025 | R14: 27361 | S14: 29685 | T14: 31313 | U14: 30053 | V14: 30794 | W14: 31897 | X14: 21427 | Y14: 26277 | Z14: 32410 | AA14: 32726 | AB14: 31898 | AC14: 27213 | AD14: 33008 | AE14: 32950 | AF14: 38374 | AG14: 34355 | AH14: 31096 | AI14: 29436 | AJ14: 28462 | AK14: 31220 | AL14: 31908
B15: LUCKY_WORD 8484 | C15: =SUM(H15:INDEX(H15:AL15,1,$D$1)) -> 1034570 | D15: ='02.2019'!C9 -> 951494 | E15: 83076 | F15: 0.08731111284 | G15: 32933 | H15: 38573 | I15: 38573 | J15: 37926 | K15: 37674 | L15: 37441 | M15: 37421 | N15: 35963 | O15: 35967 | P15: 37794 | Q15: 32050 | R15: 28386 | S15: 30710 | T15: 32338 | U15: 31078 | V15: 31819 | W15: 32922 | X15: 22452 | Y15: 27302 | Z15: 33435 | AA15: 33751 | AB15: 32923 | AC15: 28238 | AD15: 34033 | AE15: 33975 | AF15: 39199 | AG15: 35380 | AH15: 32121 | AI15: 30461 | AJ15: 29487 | AK15: 32245 | AL15: 32933
B16: LUCKY_WORD COST | C16: =SUM(H16:INDEX(H16:AL16,1,$D$1)) -> 31575 | D16: ='02.2019'!C10 -> 164600 | E16: -133025 | F16: -0.8081713244 | G16: 1025 | H16: 1025 | I16: 1025 | J16: 1025 | K16: 1025 | L16: 1025 | M16: 1025 | N16: 1025 | O16: 1025 | P16: 1025 | Q16: 1025 | R16: 1025 | S16: 1025 | T16: 1025 | U16: 1025 | V16: 1025 | W16: 1025 | X16: 1025 | Y16: 1025 | Z16: 1025 | AA16: 1025 | AB16: 1025 | AC16: 1025 | AD16: 1025 | AE16: 1025 | AF16: 825 | AG16: 1025 | AH16: 1025 | AI16: 1025 | AJ16: 1025 | AK16: 1025 | AL16: 1025
A17: 5 | B17: LUCKY_CARD 8889 NET | C17: =SUM(H17:INDEX(H17:AL17,1,$D$1)) -> 861291 | D17: ='02.2019'!C11 -> 405429 | E17: =+C17-D17 -> 455862 | F17: =+IFERROR(+E17/D17,"") -> 1.12439416 | G17: =+INDEX(H17:AL17,1,$D$1) -> 47722 | H17: =+H18-H19 -> 20188 | I17: 21185 | J17: 22536 | K17: 22662 | L17: 22577 | M17: 21112 | N17: 20138 | O17: 19274 | P17: 20198 | Q17: 19805 | R17: 16174 | S17: 16514 | T17: 17398 | U17: 16779 | V17: 16995 | W17: 17875 | X17: 15728 | Y17: 20988 | Z17: 30718 | AA17: 33635 | AB17: 33793 | AC17: 31075 | AD17: 37661 | AE17: 39992 | AF17: 45536 | AG17: 45256 | AH17: 42305 | AI17: 40421 | AJ17: 39931 | AK17: 45120 | AL17: 47722
B18: LUCKY_CARD 8889 | C18: =SUM(H18:INDEX(H18:AL18,1,$D$1)) -> 861367 | D18: ='02.2019'!C12 -> 563357 | E18: 298010 | F18: 0.5289896105 | G18: 47722 | H18: 20192 | I18: 21185 | J18: 22540 | K18: 22666 | L18: 22577 | M18: 21112 | N18: 20142 | O18: 19278 | P18: 20206 | Q18: 19805 | R18: 16174 | S18: 16514 | T18: 17398 | U18: 16779 | V18: 16995 | W18: 17879 | X18: 15728 | Y18: 20992 | Z18: 30718 | AA18: 33635 | AB18: 33793 | AC18: 31087 | AD18: 37665 | AE18: 40000 | AF18: 45540 | AG18: 45256 | AH18: 42305 | AI18: 40429 | AJ18: 39931 | AK18: 45124 | AL18: 47722
B19: LUCKY_CARD COST | C19: =SUM(H19:INDEX(H19:AL19,1,$D$1)) -> 76 | D19: ='02.2019'!C13 -> 157928 | E19: -157852 | F19: -0.999518768 | G19: 0 | H19: 4 | I19: 0 | J19: 4 | K19: 4 | L19: 0 | M19: 0 | N19: 4 | O19: 4 | P19: 8 | Q19: 0 | R19: 0 | S19: 0 | T19: 0 | U19: 0 | V19: 0 | W19: 4 | X19: 0 | Y19: 4 | Z19: 0 | AA19: 0 | AB19: 0 | AC19: 12 | AD19: 4 | AE19: 8 | AF19: 4 | AG19: 0 | AH19: 0 | AI19: 8 | AJ19: 0 | AK19: 4 | AL19: 0
A20: 6 | B20: IVR_DATING 933 | C20: =SUM(H20:INDEX(H20:AL20,1,$D$1)) -> 896576 | D20: ='02.2019'!C17 -> 867342 | E20: =+C20-D20 -> 29234 | F20: =+IFERROR(+E20/D20,"") -> 0.03370527427 | G20: =+INDEX(H20:AL20,1,$D$1) -> 29686 | H20: 29475 | I20: 29475 | J20: 29849 | K20: 29175 | L20: 28229 | M20: 27897 | N20: 27436 | O20: 27268 | P20: 28828 | Q20: 28230 | R20: 22380 | S20: 24006 | T20: 25999 | U20: 26517 | V20: 27800 | W20: 29798 | X20: 27412 | Y20: 26921 | Z20: 32512 | AA20: 33039 | AB20: 32160 | AC20: 31256 | AD20: 31620 | AE20: 31142 | AF20: 33474 | AG20: 31840 | AH20: 29089 | AI20: 27975 | AJ20: 26765 | AK20: 29323 | AL20: 29686
B21: TOTAL | C21: =SUM(C5,C8,C11,C14,C17,C20) -> 6100271 | D21: =SUM(D5,D8,D11,D14,D17,D20) -> 4834633 | E21: =+C21-D21 -> 1265638 | F21: =+IFERROR(+E21/D21,"") -> 0.2617857446 | G21: =SUM(G5,G8,G11,G14,G17,G20) -> 224890
A22: INTERLAND
A23: 7 | B23: IVR_RADIO 945 | C23: =SUM(H23:INDEX(H23:AL23,1,$D$1)) -> 610793 | D23: ='02.2019'!C23 -> 525717 | E23: 85076 | F23: 0.1618285123 | G23: =+INDEX(H23:AL23,1,$D$1) -> 29921 | H23: 17291 | I23: 17887 | J23: 18076 | K23: 17985 | L23: 17833 | M23: 17551 | N23: 17421 | O23: 17175 | P23: 17989 | Q23: 17844 | R23: 14257 | S23: 14796 | T23: 15544 | U23: 15156 | V23: 15654 | W23: 15934 | X23: 13721 | Y23: 13315 | Z23: 16950 | AA23: 16779 | AB23: 18866 | AC23: 20948 | AD23: 23745 | AE23: 24820 | AF23: 27461 | AG23: 27326 | AH23: 26295 | AI23: 26330 | AJ23: 26331 | AK23: 29592 | AL23: 29921
A24: 8 | B24: CALL_PRO 526 | C24: =SUM(H24:INDEX(H24:AL24,1,$D$1)) -> 3220579 | D24: ='02.2019'!C22 -> 3266348 | E24: -45769 | F24: -0.01401228528 | G24: =+INDEX(H24:AL24,1,$D$1) -> 114758 | I24: 84064 | J24: 117796 | K24: 127274 | L24: 118909 | M24: 122467 | N24: 120766 | O24: 123695 | P24: 127266 | Q24: 106993 | R24: 67602 | S24: 83690 | T24: 84140 | U24: 91150 | V24: 106314 | W24: 103270 | X24: 65040 | Y24: 72458 | Z24: 122671 | AA24: 116366 | AB24: 111986 | AC24: 112702 | AD24: 117794 | AE24: 101180 | AF24: 119288 | AG24: 115068 | AH24: 112934 | AI24: 110438 | AJ24: 119412 | AK24: 123088 | AL24: 114758
B25: TOTAL | C25: =SUM(C23:C24) -> 3831372 | D25: =SUM(D23:D24) -> 3792065 | E25: 39307 | F25: 0.01036559236 | G25: =SUM(G23:G24) -> 144679
A26: TM MUSIC
A27: 9 | B27: HOROSCOPE 566 | C27: =SUM(H27:INDEX(H27:AL27,1,$D$1)) -> 1348224 | D27: ='02.2019'!C4 -> 593725 | E27: =+C27-D27 -> 754499 | F27: =+IFERROR(+E27/D27,"") -> 1.270788665 | G27: =+INDEX(H27:AL27,1,$D$1) -> 44933 | H27: 36764 | I27: 36764 | J27: 38234 | K27: 39684 | L27: 40386 | M27: 41375 | N27: 42272 | O27: 42644 | P27: 46914 | Q27: 47601 | R27: 36994 | S27: 39340 | T27: 41680 | U27: 41348 | V27: 43264 | W27: 45796 | X27: 42418 | Y27: 41903 | Z27: 49529 | AA27: 49994 | AB27: 46666 | AC27: 41081 | AD27: 47990 | AE27: 47628 | AF27: 55054 | AG27: 49370 | AH27: 45048 | AI27: 41908 | AJ27: 39905 | AK27: 43737 | AL27: 44933
B28: TOTAL | C28: =C27 -> 1348224 | D28: =D27 -> 593725 | E28: =+C28-D28 -> 754499 | F28: =+IFERROR(+E28/D28,"") -> 1.270788665 | G28: =G27 -> 44933
A29: THIÊN AN
A30: 10 | B30: GAME_PORTAL 834 | C30: =SUM(H30:INDEX(H30:AL30,1,$D$1)) -> 775002 | D30: ='02.2019'!C18 -> 882420 | E30: =+C30-D30 -> -107418 | F30: =+IFERROR(+E30/D30,"") -> -0.1217311484 | G30: =+INDEX(H30:AL30,1,$D$1) -> 24366 | H30: 28130 | I30: 28154 | J30: 28742 | K30: 28400 | L30: 28136 | M30: 27578 | N30: 27166 | O30: 27310 | P30: 27992 | Q30: 25838 | R30: 20096 | S30: 20120 | T30: 20122 | U30: 24424 | V30: 25028 | W30: 24490 | X30: 21900 | Y30: 21150 | Z30: 25812 | AA30: 25356 | AB30: 19792 | AC30: 25460 | AD30: 24968 | AE30: 23912 | AF30: 25168 | AG30: 27326 | AH30: 25566 | AI30: 24888 | AJ30: 23110 | AK30: 24502 | AL30: 24366
B31: TOTAL | C31: =C30 -> 775002 | D31: =D30 -> 882420 | E31: =+C31-D31 -> -107418 | F31: =+IFERROR(+E31/D31,"") -> -0.1217311484 | G31: =G30 -> 24366
A32: GLOBAL SOLUTION (GTS)
A33: 11 | B33: MILLIONAIRE | C33: =SUM(H33:INDEX(H33:AL33,1,$D$1)) -> 862706 | D33: ='02.2019'!C24 -> 421474 | E33: =+C33-D33 -> 441232 | F33: =+IFERROR(+E33/D33,"") -> 1.046878337 | G33: =+INDEX(H33:AL33,1,$D$1) -> 34128 | H33: 30403 | I33: 29156 | J33: 29842 | K33: 29015 | L33: 28310 | M33: 26524 | N33: 26070 | O33: 25942 | P33: 26379 | Q33: 25273 | R33: 21256 | S33: 22635 | T33: 24070 | U33: 23068 | V33: 23456 | W33: 22845 | X33: 20290 | Y33: 18828 | Z33: 24338 | AA33: 24056 | AB33: 25906 | AC33: 29045 | AD33: 30310 | AE33: 31586 | AF33: 38374 | AG33: 33688 | AH33: 33162 | AI33: 33877 | AJ33: 36490 | AK33: 34384 | AL33: 34128
A34: 12 | B34: NEW_VOTING | C34: =SUM(H34:INDEX(H34:AL34,1,$D$1)) -> 516597 | D34: ='02.2019'!C25 -> 500621 | E34: 15976 | F34: 0.03191236484 | G34: 17496 | H34: 17200 | I34: 18080 | J34: 18222 | K34: 18160 | L34: 17880 | M34: 17630 | N34: 17317 | O34: 17390 | P34: 18465 | Q34: 17423 | R34: 13891 | S34: 14723 | T34: 15958 | U34: 15112 | V34: 15719 | W34: 16102 | X34: 13606 | Y34: 13114 | Z34: 16839 | AA34: 16726 | AB34: 16418 | AC34: 16677 | AD34: 17222 | AE34: 16759 | AF34: 19839 | AG34: 17767 | AH34: 16321 | AI34: 16125 | AJ34: 15506 | AK34: 16910 | AL34: 17496
A35: 13 | B35: USSD_CHATTING | C35: =SUM(H35:INDEX(H35:AL35,1,$D$1)) -> 911816 | D35: 0 | E35: 911816 | G35: 28852 | H35: 32916 | I35: 33420 | J35: 33526 | K35: 33908 | L35: 33698 | M35: 33094 | N35: 32740 | O35: 33676 | P35: 34586 | Q35: 27358 | R35: 23516 | S35: 25446 | T35: 27320 | U35: 25942 | V35: 26268 | W35: 26734 | X35: 22564 | Y35: 22298 | Z35: 26416 | AA35: 27074 | AB35: 27664 | AC35: 28816 | AD35: 28646 | AE35: 29352 | AF35: 39798 | AG35: 32846 | AH35: 29392 | AI35: 28284 | AJ35: 27170 | AK35: 28496 | AL35: 28852
A36: 14 | B36: BACKGROUND_MUSIC | C36: =SUM(H36:INDEX(H36:AL36,1,$D$1)) -> 630714 | D36: 0 | E36: 630714 | G36: 18800 | H36: 18850 | I36: 18916 | J36: 18378 | K36: 20890 | L36: 23322 | M36: 25992 | N36: 24952 | O36: 24416 | P36: 23868 | Q36: 22410 | R36: 20282 | S36: 20104 | T36: 20760 | U36: 19480 | V36: 19566 | W36: 19950 | X36: 18152 | Y36: 11948 | Z36: 19158 | AA36: 19360 | AB36: 19480 | AC36: 19608 | AD36: 19368 | AE36: 19730 | AF36: 26700 | AG36: 21798 | AH36: 19360 | AI36: 18692 | AJ36: 17922 | AK36: 18502 | AL36: 18800
A37: 15 | B37: LUCKY_ROULETTE NET | C37: =C38-C39 -> 347026 | D37: =D38-D39 -> 350925 | E37: -3899 | F37: -0.01111063618 | G37: 11797 | H37: =H38-H39 -> 11780 | I37: =I38-I39 -> 12497 | J37: 12568 | K37: 12167 | L37: 11952 | M37: 11742 | N37: 11568 | O37: 11379 | P37: 12183 | Q37: 12563 | R37: 9107 | S37: 10197 | T37: 10676 | U37: 10214 | V37: 10466 | W37: 11089 | X37: 9447 | Y37: 8859 | Z37: 11114 | AA37: 10867 | AB37: 11119 | AC37: 10977 | AD37: 11445 | AE37: 11320 | AF37: 12540 | AG37: 11782 | AH37: 11377 | AI37: 10586 | AJ37: 10459 | AK37: 11189 | AL37: 11797
B38: LUCKY_ROULETTE | C38: =SUM(H38:INDEX(H38:AL38,1,$D$1)) -> 378366 | D38: ='02.2019'!C28 -> 377560 | E38: 806 | F38: 0.002134760038 | G38: 12822 | H38: 12805 | I38: 13522 | J38: 13593 | K38: 13192 | L38: 12977 | M38: 12767 | N38: 12593 | O38: 12404 | P38: 13208 | Q38: 13283 | R38: 10077 | S38: 11222 | T38: 11701 | U38: 11239 | V38: 11491 | W38: 12114 | X38: 10472 | Y38: 9884 | Z38: 12139 | AA38: 11892 | AB38: 12109 | AC38: 12002 | AD38: 12470 | AE38: 12345 | AF38: 13565 | AG38: 12807 | AH38: 12402 | AI38: 11611 | AJ38: 11444 | AK38: 12214 | AL38: 12822
B39: LUCKY_ROULETTE COST | C39: =SUM(H39:INDEX(H39:AL39,1,$D$1)) -> 31340 | D39: ='02.2019'!C87 -> 26635 | E39: 4705 | F39: 0.1766472686 | G39: 1025 | H39: 1025 | I39: 1025 | J39: 1025 | K39: 1025 | L39: 1025 | M39: 1025 | N39: 1025 | O39: 1025 | P39: 1025 | Q39: 720 | R39: 970 | S39: 1025 | T39: 1025 | U39: 1025 | V39: 1025 | W39: 1025 | X39: 1025 | Y39: 1025 | Z39: 1025 | AA39: 1025 | AB39: 990 | AC39: 1025 | AD39: 1025 | AE39: 1025 | AF39: 1025 | AG39: 1025 | AH39: 1025 | AI39: 1025 | AJ39: 985 | AK39: 1025 | AL39: 1025
B40: TOTAL | C40: =SUM(C33,C34,C35,C36,C37) -> 3268859 | D40: =SUM(D33:D39) -> 1677215 | E40: 1591644 | F40: =+IFERROR(+E40/D40,"") -> 0.9489803037 | G40: =SUM(G33:G37) -> 111073
A41: TELETECH
A42: 16 | B42: DATA CREDIT | C42: =SUM(H42:INDEX(H42:AL42,1,$D$1)) -> 10392 | D42: ='02.2019'!C29 -> 14106 | E42: =+C42-D42 -> -3714 | F42: =+IFERROR(+E42/D42,"") -> -0.2632922161 | G42: =+INDEX(H42:AL42,1,$D$1) -> 366 | H42: 420 | I42: 522 | J42: 282 | K42: 516 | L42: 420 | M42: 408 | N42: 174 | O42: 330 | P42: 498 | Q42: 324 | R42: 246 | S42: 258 | T42: 276 | U42: 294 | V42: 168 | W42: 390 | X42: 222 | Y42: 156 | Z42: 498 | AA42: 306 | AB42: 282 | AC42: 282 | AD42: 294 | AE42: 336 | AF42: 348 | AG42: 318 | AH42: 312 | AI42: 330 | AJ42: 462 | AK42: 354 | AL42: 366
B43: TOTAL | C43: =C42 -> 10392 | D43: =D42 -> 14106 | E43: =+C43-D43 -> -3714 | F43: =+IFERROR(+E43/D43,"") -> -0.2632922161 | G43: =G42 -> 366
A44: SMART SOLUTION
A45: 15 | B45: E-News 368 | C45: =SUM(H45:INDEX(H45:AL45,1,$D$1)) -> 988091 | D45: ='02.2019'!C30 -> 846409 | E45: =+C45-D45 -> 141682 | F45: =+IFERROR(+E45/D45,"") -> 0.1673918874 | G45: =+INDEX(H45:AL45,1,$D$1) -> 31074 | H45: 35787 | I45: 36387 | J45: 34921 | K45: 35093 | L45: 34062 | M45: 33756 | N45: 33501 | O45: 32399 | P45: 34202 | Q45: 32297 | R45: 23606 | S45: 31811 | T45: 32506 | U45: 30967 | V45: 31217 | W45: 32698 | X45: 27557 | Y45: 27053 | Z45: 31988 | AA45: 32026 | AB45: 31531 | AC45: 31586 | AD45: 32347 | AE45: 31316 | AF45: 35844 | AG45: 33070 | AH45: 30006 | AI45: 28988 | AJ45: 27927 | AK45: 30568 | AL45: 31074
A46: 16 | B46: N-EVENT 3333 | C46: =SUM(H46:INDEX(H46:AL46,1,$D$1)) -> 463 | D46: 0 | E46: =+C46-D46 -> 463 | F46: =+IFERROR(+E46/D46,"") ->  | G46: 25 | R46: 9 | S46: 12 | T46: 0 | U46: 20 | V46: 20 | W46: 20 | X46: 20 | Y46: 15 | Z46: 45 | AA46: 35 | AB46: 31 | AC46: 25 | AD46: 30 | AE46: 24 | AF46: 20 | AG46: 30 | AH46: 20 | AI46: 20 | AJ46: 21 | AK46: 21 | AL46: 25
B47: TOTAL | C47: =SUM(C45:C46) -> 988554 | D47: =SUM(D45:D46) -> 846409 | E47: =+C47-D47 -> 142145 | F47: =+IFERROR(+E47/D47,"") -> 0.1679389042 | G47: 0
B48: TOTAL SERVICE | C48: =SUM(C5+C9+C12+C15+C18+C20+C23+C24+C27+C30+C33+C34+C35+C36+C37+C42+C45+C46) -> 16615766 | G48: 0
A49: TOTAL COST | C49: =C10+C13+C16+C19 -> 293092 | G49: 0
B50: REMAIN | C50: =C48-C49 -> 16322674 | G50: 0
A51: VIETTECH
A52: TELEMOR
A53: 17 | B53: HOROSCOPE 184 | C53: =SUM(H53:INDEX(H53:AL53,1,$D$1)) -> 4847 | D53: 0 | E53: 0 | G53: 234 | K53: 108,3 | L53: 106,65 | M53: 107,35 | N53: 177 | O53: 165,05 | P53: 188,2 | Q53: 175,2 | R53: 158,5 | S53: 182,9 | T53: 231 | U53: 227 | V53: 231 | W53: 260 | X53: 256 | Y53: 242 | Z53: 236 | AA53: 237 | AB53: 278 | AC53: 268 | AD53: 255 | AE53: 255 | AF53: 256 | AG53: 251 | AH53: 251 | AI53: 216 | AJ53: 239 | AK53: 247 | AL53: 234
B54: TOTAL | C54: =C53 -> 4847 | G54: 0
A55: INTERLAND | G55: 0
A56: VIETNAMOBILE
A57: 18 | B57: LUCKY_NUMBER | C57: =SUM(H57:INDEX(H57:AL57,1,$D$1)) -> 73246000 | D57: 0 | E57: 0 | G57: =+INDEX(H57:AL57,1,$D$1) -> 6194000 | M57: 215000 | N57: 3962000 | O57: 2636000 | P57: 1722000 | Q57: 1648000 | R57: 1631000 | S57: 1559000 | T57: 1559000 | U57: 1331000 | V57: 1567000 | W57: 1577000 | X57: 1534000 | Y57: 1517000 | Z57: 1483000 | AA57: 1434000 | AB57: 1460000 | AC57: 3029000 | AD57: 2913000 | AE57: 4403000 | AF57: 3945000 | AG57: 4047000 | AH57: 5211000 | AI57: 4937000 | AJ57: 5194000 | AK57: 6538000 | AL57: 6194000
A58: 19 | B58: FOOTBALL_PLUS | C58: =SUM(H58:INDEX(H58:AL58,1,$D$1)) -> 734040400 | D58: ='02.2019'!C31 -> 331547400 | E58: =+C58-D58 -> 402493000 | F58: =+IFERROR(+E58/D58,"") -> 1.21398328 | G58: 23206000 | H58: 23927400 | I58: 23378600 | J58: 22765800 | K58: 21956200 | L58: 20934200 | M58: 20168000 | N58: 20091800 | O58: 20074000 | P58: 19826200 | Q58: 19613200 | R58: 19328600 | S58: 18979600 | T58: 18604400 | U58: 19525200 | V58: 19303200 | W58: 41280000 | X58: 30542000 | Y58: 30064000 | Z58: 28424000 | AA58: 34874000 | AB58: 31702000 | AC58: 26182000 | AD58: 24874000 | AE58: 22678000 | AF58: 21842000 | AG58: 21596000 | AH58: 20918000 | AI58: 22392000 | AJ58: 22694000 | AK58: 22296000 | AL58: 23206000
B59: TOTAL | C59: =SUM(C57:C58) -> 807286400 | D59: =SUM(D57:D58) -> 331547400 | E59: =+C59-D59 -> 475739000 | F59: =+IFERROR(+E59/D59,"") -> 1.434904934 | G59: =SUM(G57:G58) -> 29400000
A60: INTERLAND
A61: 20 | B61: VIETCARE | C61: =SUM(H61:INDEX(H61:AL61,1,$D$1)) -> 407660000 | D61: 0 | E61: 0 | G61: 7709000 | H61: 1857000 | I61: 2025000 | J61: 2061000 | K61: 2261000 | L61: 2297000 | M61: 2369000 | N61: 4160000 | O61: 5528000 | P61: 6809000 | Q61: 8106000 | R61: 9369000 | S61: 11198000 | T61: 14737000 | U61: 16100000 | V61: 18862000 | W61: 18230000 | X61: 18632000 | Y61: 20233000 | Z61: 20146000 | AA61: 26561000 | AB61: 51765000 | AC61: 20171000 | AD61: 18643000 | AE61: 17225000 | AF61: 17405000 | AG61: 20467000 | AH61: 18327000 | AI61: 10197000 | AJ61: 7017000 | AK61: 7193000 | AL61: 7709000
A62: 21 | B62: CHIÊM TINH | C62: =SUM(H62:INDEX(H62:AL62,1,$D$1)) -> 256607000 | D62: 0 | E62: 0 | G62: 6543000 | U62: 7944000 | V62: 11839000 | W62: 13484000 | X62: 15424000 | Y62: 18842000 | Z62: 21066000 | AA62: 19540000 | AB62: 20521000 | AC62: 15021000 | AD62: 15872000 | AE62: 27193000 | AF62: 12793000 | AG62: 15724000 | AH62: 13996000 | AI62: 8912000 | AJ62: 6070000 | AK62: 5823000 | AL62: 6543000
B63: TOTAL | C63: =SUM(C61:C62) -> 664267000 | D63: =SUM(D61:D62) -> 0 | G63: =SUM(G61:G62) -> 14252000
A64: VIETTECH
B65: KHÉO PLUS | C65: =SUM(H65:INDEX(H65:AL65,1,$D$1)) -> 3369000 | D65: 0 | AJ65: 1103000 | AK65: 1145000 | AL65: 1121000
B71: TOTAL SUB | D71: COMPARE LAST MONTH
B72: TOTAL SUB | C72: DATE | D72: 11 | E72: Month | F72: March
D73: COMPARE LAST MONTH
A74: NO | B74: VAS CODE | C74: ="Acc "&$D$1& " / "&$F$1 -> Acc 31 / March | D74: Acc last month | E74: +/- | F74: % | G74: =D72 -> 11 | H74: 1 | I74: 2 | J74: 3 | K74: 4 | L74: 5 | M74: 6 | N74: 7 | O74: 8 | P74: 9 | Q74: 10 | R74: 11 | S74: 12 | T74: 13 | U74: 14 | V74: 15 | W74: 16 | X74: 17 | Y74: 18 | Z74: 19 | AA74: 20 | AB74: 21 | AC74: 22 | AD74: 23 | AE74: 24 | AF74: 25 | AG74: 26 | AH74: 27 | AI74: 28 | AJ74: 29 | AK74: 30 | AL74: 31
A75: NATCOM
A76: 1 | B76: SMS INFO | C76: =+SUM(C$6:C$7) -> 1097202 | D76: 325853 | E76: =+C76-D76 -> 771349 | F76: =+IFERROR(+E76/D76,"") -> 2.367168631 | G76: =+INDEX(H76:AL76,1,$D$1) -> 0 | H76: =+H77+H78 -> 119111 | I76: 119065 | J76: 119021 | K76: 118960 | L76: 118957 | M76: 119802 | N76: 121402 | O76: 122820 | P76: 124071 | Q76: 125309 | R76: 125922 | S76: 126779 | T76: 127497 | U76: 0 | V76: 0 | W76: 0 | X76: 0 | Y76: 0 | Z76: 0 | AA76: 0 | AB76: 0 | AC76: 0 | AD76: 0 | AE76: 0 | AF76: 0 | AG76: 0 | AH76: 0 | AI76: 0 | AJ76: 0 | AK76: 0 | AL76: 0
B77: BON_INFO 206 | C77: =SUM(H77:INDEX(H77:AL77,1,$D$1)) -> 1071547 | D77: 193882 | E77: =+C77-D77 -> 877665 | F77: 4.526799806 | G77: 0 | H77: 79205 | I77: 79180 | J77: 79157 | K77: 79124 | L77: 79139 | M77: 80007 | N77: 81627 | O77: 83056 | P77: 84327 | Q77: 85589 | R77: 86219 | S77: 87090 | T77: 87827
B78: IVR_INFO 206 | C78: =SUM(H78:INDEX(H78:AL78,1,$D$1)) -> 517169 | D78: 131971 | E78: 385198 | F78: 2.91880792 | G78: 0 | H78: 39906 | I78: 39885 | J78: 39864 | K78: 39836 | L78: 39818 | M78: 39795 | N78: 39775 | O78: 39764 | P78: 39744 | Q78: 39720 | R78: 39703 | S78: 39689 | T78: 39670
A79: 2 | B79: LUCKY_SPIN 7878 NET | C79: =SUM(H79:INDEX(H79:AL79,1,$D$1)) -> 0 | D79: 290490 | E79: -290490 | F79: -1 | G79: 0
B80: LUCKY_SPIN 7878 | C80: =SUM(H80:INDEX(H80:AL80,1,$D$1)) -> 1066439 | D80: 317490 | E80: 748949 | F80: 2.358968786 | G80: 0 | H80: 80975 | I80: 81476 | J80: 82077 | K80: 82479 | L80: 82820 | M80: 82594 | N80: 82515 | O80: 82274 | P80: 82116 | Q80: 81926 | R80: 81835 | S80: 81708 | T80: 81644
A81: 3 | B81: LUCKY_DRAW 556 NET | C81: =SUM(H81:INDEX(H81:AL81,1,$D$1)) -> 0 | D81: 259787 | E81: -259787 | F81: -1 | G81: 0
B82: LUCKY_DRAW 556 | C82: =SUM(H82:INDEX(H82:AL82,1,$D$1)) -> 836996 | D82: 134759 | E82: 702237 | F82: 5.21105826 | G82: 0 | H82: 70220 | I82: 70745 | J82: 72535 | K82: 73752 | L82: 74980 | M82: 76203 | N82: 77332 | P82: 78955 | Q82: 80038 | R82: 80849 | S82: 81387
A83: 4 | B83: LUCKY_WORD 8484 NET | C83: =SUM(H83:INDEX(H83:AL83,1,$D$1)) -> 0 | D83: 251726 | E83: -251726 | F83: -1 | G83: 0
B84: LUCKY_WORD 8484 | C84: =SUM(H84:INDEX(H84:AL84,1,$D$1)) -> 2468326 | D84: 305951 | E84: 2162375 | F84: 7.067716726 | G84: 0 | H84: 191178 | I84: 190753 | J84: 190335 | K84: 190364 | L84: 190250 | M84: 190652 | N84: 190270 | O84: 189881 | P84: 189542 | Q84: 189204 | R84: 188931 | S84: 188624 | T84: 188342
A85: 5 | B85: LUCKY_CARD 8889 NET | C85: =SUM(H85:INDEX(H85:AL85,1,$D$1)) -> 0 | D85: 145821 | E85: -145821 | F85: -1 | G85: 0
B86: LUCKY_CARD 8889 | C86: =SUM(H86:INDEX(H86:AL86,1,$D$1)) -> 1229142 | D86: 187629 | E86: 1041513 | F86: 5.550916969 | G86: 0 | H86: 92367 | I86: 93058 | J86: 94313 | K86: 94987 | L86: 95589 | M86: 95370 | N86: 95156 | O86: 94951 | P86: 94740 | Q86: 94549 | R86: 94768 | S86: 94621 | T86: 94673
A87: 6 | B87: IVR_RADIO | C87: =SUM(H87:INDEX(H87:AL87,1,$D$1)) -> 874855 | G87: 0 | H87: 67687 | I87: 67733 | J87: 67590 | K87: 67583 | L87: 67462 | M87: 67333 | N87: 67199 | O87: 67069 | P87: 67120 | Q87: 67200 | R87: 67073 | S87: 66960 | T87: 66846
A88: 7 | B88: CALL_PRO | C88: =SUM(H88:INDEX(H88:AL88,1,$D$1)) -> 5126015 | H88: 424757 | I88: 425221 | J88: 425565 | K88: 426174 | L88: 426654 | M88: 427158 | N88: 427618 | O88: 428023 | Q88: 428545 | R88: 428525 | S88: 428593 | T88: 429182
A89: 8 | B89: IVR_DATING 933 | C89: =SUM(H89:INDEX(H89:AL89,1,$D$1)) -> 1637873 | D89: 289776 | E89: 1348097 | F89: 4.652203771 | G89: 0 | H89: 126547 | I89: 126354 | J89: 126161 | K89: 126143 | L89: 125914 | M89: 125739 | N89: 125523 | O89: 125346 | P89: 125130 | Q89: 125469 | R89: 125692 | S89: 126414 | T89: 127441
B90: TOTAL | C90: =SUM(C76,C80,C82,C84,C86,C89,C88,C87) -> 14336848
A91: INTERLAND
A92: 9 | B92: HOROSCOPE 566 | C92: =SUM(H92:INDEX(H92:AL92,1,$D$1)) -> 2043158 | D92: 161866 | E92: =+C92-D92 -> 1881292 | F92: =+IFERROR(+E92/D92,"") -> 11.62252728 | G92: =+INDEX(H92:AL92,1,$D$1) -> 0 | H92: 135749 | I92: 139566 | J92: 143302 | K92: 147081 | L92: 150846 | M92: 154810 | N92: 158408 | O92: 161955 | P92: 165313 | Q92: 168781 | R92: 170224 | S92: 172360 | T92: 174763
B93: TOTAL | C93: =C92 -> 2043158
A94: THIÊN AN
A95: 10 | B95: GAME_PORTAL 834 | C95: =SUM(H95:INDEX(H95:AL95,1,$D$1)) -> 1588335 | D95: 307086 | E95: =+C95-D95 -> 1281249 | F95: =+IFERROR(+E95/D95,"") -> 4.172280729 | G95: =+INDEX(H95:AL95,1,$D$1) -> 0 | H95: 123338 | I95: 123129 | J95: 122932 | K95: 122073 | L95: 122728 | M95: 122344 | N95: 122269 | O95: 122076 | P95: 121823 | Q95: 121568 | R95: 121579 | S95: 121293 | T95: 121183
B96: TOTAL | C96: =C95 -> 1588335
A97: GLOBAL SOLUTION (GTS)
A98: 11 | B98: MILLIONAIRE | C98: =SUM(H98:INDEX(H98:AL98,1,$D$1)) -> 1176442 | E98: =+C98-D98 ->  | F98: =+IFERROR(+E98/D98,"") ->  | H98: 90994 | I98: 90272 | J98: 89602 | K98: 88928 | L98: 88379 | M98: 87812 | N98: 87332 | O98: 86813 | P98: 86393 | Q98: 85961 | R98: 98273 | S98: 97945 | T98: 97738
A99: 12 | B99: NEW_VOTING | C99: =SUM(H99:INDEX(H99:AL99,1,$D$1)) -> 976715 | E99: =+C99-D99 ->  | F99: =+IFERROR(+E99/D99,"") ->  | H99: 75373 | I99: 75327 | J99: 75299 | K99: 75218 | L99: 75309 | M99: 75241 | N99: 75175 | O99: 75139 | P99: 75053 | Q99: 74988 | R99: 74907 | S99: 74881 | T99: 74805
A100: 13 | B100: USSD_CHATTING | C100: =SUM(H100:INDEX(H100:AL100,1,$D$1)) -> 0 | E100: =+C100-D100 ->  | F100: =+IFERROR(+E100/D100,"") -> 
A101: 14 | B101: BACKGROUND_MUSIC | C101: =SUM(H101:INDEX(H101:AL101,1,$D$1)) -> 2911486 | E101: =+C101-D101 ->  | F101: =+IFERROR(+E101/D101,"") ->  | H101: 226649 | I101: 227051 | J101: 227531 | K101: 228056 | L101: 228566 | M101: 228911 | N101: 229481 | O101: 229968 | P101: 230447 | Q101: 230918 | R101: 230866 | S101: 231237 | T101: 161805
A102: 15 | B102: LUCKY_ROULETTE | C102: =SUM(H102:INDEX(H102:AL102,1,$D$1)) -> 939090 | F102: =+IFERROR(+E102/D102,"") ->  | H102: 72932 | I102: 72735 | J102: 72615 | K102: 72475 | L102: 72354 | M102: 72225 | N102: 72114 | O102: 71978 | P102: 71833 | Q102: 72098 | R102: 72019 | S102: 71917 | T102: 71795
B103: TOTAL | C103: =SUM(C98:C102) -> 6003733
A104: TELETECH
A105: 16 | B105: DATA CREDIT | C105: =SUM(H105:INDEX(H105:AL105,1,$D$1)) -> 1446968 | E105: =+C105-D105 ->  | H105: 120517 | I105: 120516 | J105: 120515 | K105: 120548 | L105: 120583 | M105: 120616 | N105: 120616 | O105: 120615 | P105: 120613 | Q105: 120612 | R105: 120609 | S105: 120608
B106: TOTAL | C106: =C105 -> 1446968
A107: SMART SOLUTION
A108: 17 | B108: E-News 368 | C108: =SUM(H108:INDEX(H108:AL108,1,$D$1)) -> 1797457 | F108: =+IFERROR(+E108/D108,"") ->  | H108: 137428 | I108: 137191 | J108: 136989 | K108: 136867 | L108: 136936 | M108: 136787 | N108: 136490 | O108: 136218 | P108: 135874 | Q108: 135536 | R108: 144125 | S108: 143701 | T108: 143315
A109: 18 | B109: N-EVENT 3333 | C109: =SUM(H109:INDEX(H109:AL109,1,$D$1)) -> 16 | R109: 4 | S109: 4 | T109: 4 | U109: 4
B110: TOTAL | C110: =SUM(C108:C109) -> 1797473
A111: VIETTECH
A112: TELEMOR
A113: 19 | B113: HOROSCOPE 184 | C113: =SUM(H113:INDEX(H113:AL113,1,$D$1)) -> 26921 | S113: 8404 | T113: 18517
B114: TOTAL | C114: =C113 -> 26921
A115: INTERLAND
A116: VIETNAMOBILE
A117: 20 | B117: LUCKY_NUMBER | C117: =SUM(H117:INDEX(H117:AL117,1,$D$1)) -> 1426621 | H117: 102101 | I117: 102081 | J117: 102040 | K117: 102019 | L117: 101974 | M117: 101951 | N117: 101922 | O117: 101881 | P117: 101860 | Q117: 101811 | R117: 101804 | S117: 101763 | T117: 101722 | U117: 101692
A118: 21 | B118: FOOTBALL_PLUS | C118: =SUM(H118:INDEX(H118:AL118,1,$D$1)) -> 135890 | H118: 1 | I118: 1 | J118: 1 | K118: 1 | L118: 1 | M118: 8003 | N118: 15999 | O118: 15999 | P118: 15989 | Q118: 15984 | R118: 15982 | S118: 15983 | T118: 15973 | U118: 15973
B119: TOTAL | C119: =SUM(C117:C118) -> 1562511
A120: INTERLAND
A121: 22 | B121: VIETCARE | C121: =SUM(H121:INDEX(H121:AL121,1,$D$1)) -> 1058377 | H121: 30873 | I121: 35848 | J121: 40816 | K121: 48736 | L121: 48736 | M121: 55713 | N121: 63232 | O121: 70862 | P121: 78524 | Q121: 86229 | R121: 101533 | S121: 116983 | T121: 132407 | U121: 147885
A122: 23 | B122: CHIÊM TINH | C122: =SUM(H122:INDEX(H122:AL122,1,$D$1)) -> 0
B123: TOTAL | C123: =SUM(C121:C122) -> 1058377
A124: VIETTECH
B127: REGISTER | C127: DATE | D127: 11 | E127: Month | F127: March
D128: COMPARE LAST MONTH
A129: NO | B129: VAS CODE | C129: ="Acc "&$D$1& " / "&$F$1 -> Acc 31 / March | D129: Acc last month | E129: +/- | F129: % | G129: =D127 -> 11 | H129: 1 | I129: 2 | J129: 3 | K129: 4 | L129: 5 | M129: 6 | N129: 7 | O129: 8 | P129: 9 | Q129: 10 | R129: 11 | S129: 12 | T129: 13 | U129: 14 | V129: 15 | W129: 16 | X129: 17 | Y129: 18 | Z129: 19 | AA129: 20 | AB129: 21 | AC129: 22 | AD129: 23 | AE129: 24 | AF129: 25 | AG129: 26 | AH129: 27 | AI129: 28 | AJ129: 29 | AK129: 30 | AL129: 31
A130: NATCOM
A131: 1 | B131: SMS INFO | C131: =+SUM(C$6:C$7) -> 1097202 | D131: 325853 | E131: =+C131-D131 -> 771349 | F131: =+IFERROR(+E131/D131,"") -> 2.367168631 | G131: =+INDEX(H131:AL131,1,$D$1) -> 0 | H131: =+H132+H133 -> 144 | I131: 128 | J131: 123 | K131: 109 | L131: 181 | M131: 1023 | N131: 1821 | O131: 1702 | P131: 1535 | Q131: 38 | R131: 845 | S131: 1095 | T131: 981 | U131: 0 | V131: 0 | W131: 0 | X131: 0 | Y131: 0 | Z131: 0 | AA131: 0 | AB131: 0 | AC131: 0 | AD131: 0 | AE131: 0 | AF131: 0 | AG131: 0 | AH131: 0 | AI131: 0 | AJ131: 0 | AK131: 0 | AL131: 0
B132: BON_INFO 206 | C132: =SUM(H132:INDEX(H132:AL132,1,$D$1)) -> 9617 | D132: 193882 | E132: -184265 | F132: -0.9503976646 | G132: 0 | H132: 135 | I132: 122 | J132: 119 | K132: 105 | L132: 172 | M132: 1016 | N132: 1805 | O132: 1689 | P132: 1524 | Q132: 31 | R132: 838 | S132: 1086 | T132: 975
B133: IVR_INFO 206 | C133: =SUM(H133:INDEX(H133:AL133,1,$D$1)) -> 108 | D133: 131971 | E133: -131863 | F133: -0.9991816384 | G133: 0 | H133: 9 | I133: 6 | J133: 4 | K133: 4 | L133: 9 | M133: 7 | N133: 16 | O133: 13 | P133: 11 | Q133: 7 | R133: 7 | S133: 9 | T133: 6
A134: 2 | B134: LUCKY_SPIN 7878 NET | C134: =SUM(H134:INDEX(H134:AL134,1,$D$1)) -> 6621 | D134: 290490 | E134: -283869 | F134: -0.977207477 | G134: 0 | H134: =+H135 -> 998 | I134: =+I135 -> 986 | J134: =+J135 -> 1285 | K134: 1100 | L134: 900 | M134: 286 | N134: 422 | O134: 241 | P134: 108 | Q134: 170 | R134: 64 | S134: 61 | T134: 0 | U134: 0 | V134: 0 | W134: 0 | X134: 0 | Y134: 0 | Z134: 0 | AA134: 0 | AB134: 0 | AC134: 0 | AD134: 0 | AE134: 0 | AF134: 0 | AG134: 0 | AH134: 0 | AI134: 0 | AJ134: 0 | AK134: 0 | AL134: 0
B135: LUCKY_SPIN 7878 | C135: =SUM(H135:INDEX(H135:AL135,1,$D$1)) -> 6621 | D135: 317490 | E135: -310869 | F135: -0.9791457999 | G135: 0 | H135: 998 | I135: 986 | J135: 1285 | K135: 1100 | L135: 900 | M135: 286 | N135: 422 | O135: 241 | P135: 108 | Q135: 170 | R135: 64 | S135: 61
A136: 3 | B136: LUCKY_DRAW 556 NET | C136: =SUM(H136:INDEX(H136:AL136,1,$D$1)) -> 12971 | D136: 259787 | E136: -246816 | F136: -0.9500706348 | G136: 0 | H136: =+H137 -> 1165 | I136: =+I137 -> 1162 | J136: 1280 | K136: 1276 | L136: 1387 | M136: 1272 | N136: 1211 | O136: 1212 | P136: 1075 | Q136: 602 | R136: 700 | S136: 629 | T136: 0 | U136: 0 | V136: 0 | W136: 0 | X136: 0 | Y136: 0 | Z136: 0 | AA136: 0 | AB136: 0 | AC136: 0 | AD136: 0 | AE136: 0 | AF136: 0 | AG136: 0 | AH136: 0 | AI136: 0 | AJ136: 0 | AK136: 0 | AL136: 0
B137: LUCKY_DRAW 556 | C137: =SUM(H137:INDEX(H137:AL137,1,$D$1)) -> 12971 | D137: 134759 | E137: -121788 | F137: -0.9037466885 | G137: 0 | H137: 1165 | I137: 1162 | J137: 1280 | K137: 1276 | L137: 1387 | M137: 1272 | N137: 1211 | O137: 1212 | P137: 1075 | Q137: 602 | R137: 700 | S137: 629
A138: 4 | B138: LUCKY_WORD 8484 NET | C138: =SUM(H138:INDEX(H138:AL138,1,$D$1)) -> 2036 | D138: 251726 | E138: -249690 | F138: -0.9919118407 | G138: 0 | H138: =+H139 -> 65 | I138: =+I139 -> 58 | J138: 54 | K138: 438 | L138: 287 | M138: 863 | N138: 70 | O138: 56 | P138: 51 | Q138: 31 | R138: 13 | S138: 22 | T138: 28 | U138: 0 | V138: 0 | W138: 0 | X138: 0 | Y138: 0 | Z138: 0 | AA138: 0 | AB138: 0 | AC138: 0 | AD138: 0 | AE138: 0 | AF138: 0 | AG138: 0 | AH138: 0 | AI138: 0 | AJ138: 0 | AK138: 0 | AL138: 0
B139: LUCKY_WORD 8484 | C139: =SUM(H139:INDEX(H139:AL139,1,$D$1)) -> 2036 | D139: 305951 | E139: -303915 | F139: -0.9933453396 | G139: 0 | H139: 65 | I139: 58 | J139: 54 | K139: 438 | L139: 287 | M139: 863 | N139: 70 | O139: 56 | P139: 51 | Q139: 31 | R139: 13 | S139: 22 | T139: 28
A140: 5 | B140: LUCKY_CARD 8889 NET | C140: =SUM(H140:INDEX(H140:AL140,1,$D$1)) -> 6112 | D140: 145821 | E140: -139709 | F140: -0.9580855981 | G140: 0 | H140: =H141 -> 942 | I140: =I141 -> 994 | J140: 1527 | K140: 1016 | L140: 920 | M140: 77 | N140: 50 | O140: 41 | P140: 41 | Q140: 48 | R140: 395 | S140: 61 | T140: 0 | U140: 0 | V140: 0 | W140: 0 | X140: 0 | Y140: 0 | Z140: 0 | AA140: 0 | AB140: 0 | AC140: 0 | AD140: 0 | AE140: 0 | AF140: 0 | AG140: 0 | AH140: 0 | AI140: 0 | AJ140: 0 | AK140: 0 | AL140: 0
B141: LUCKY_CARD 8889 | C141: =SUM(H141:INDEX(H141:AL141,1,$D$1)) -> 6112 | D141: 187629 | E141: =+C141-D141 -> -181517 | F141: =+IFERROR(+E141/D141,"") -> -0.9674250782 | G141: 0 | H141: 942 | I141: 994 | J141: 1527 | K141: 1016 | L141: 920 | M141: 77 | N141: 50 | O141: 41 | P141: 41 | Q141: 48 | R141: 395 | S141: 61
A142: 6 | B142: IVR_RADIO | C142: =SUM(H142:INDEX(H142:AL142,1,$D$1)) -> 801 | E142: =+C142-D142 ->  | G142: 0 | H142: 55 | K142: 52 | L142: 137 | M142: 38 | P142: 54 | Q142: 205 | R142: 234 | S142: 26
A143: 7 | B143: CALL_PRO | C143: =SUM(H143:INDEX(H143:AL143,1,$D$1)) -> 14164 | E143: =+C143-D143 ->  | F143: =+IFERROR(+E143/D143,"") ->  | G143: 0 | I143: 836 | J143: 1347 | K143: 1660 | L143: 1459 | M143: 1561 | N143: 1454 | O143: 1494 | P143: 1388 | Q143: 1424 | R143: 662 | S143: 879
A144: 8 | B144: IVR_DATING 933 | C144: =SUM(H144:INDEX(H144:AL144,1,$D$1)) -> 2381 | D144: 289776 | E144: -287395 | F144: -0.9917833085 | G144: 0 | H144: 27 | I144: 37 | J144: 31 | K144: 49 | L144: 181 | M144: 43 | N144: 36 | Q144: 67 | R144: 544 | S144: 418 | T144: 948
B145: TOTAL | C145: =SUM(C134,C136,C138,C140,C142,C143,C144) -> 45086
A146: INTERLAND
A147: 9 | B147: HOROSCOPE 566 | C147: =SUM(H147:INDEX(H147:AL147,1,$D$1)) -> 12597 | D147: 161866 | E147: =+C147-D147 -> -149269 | F147: =+IFERROR(+E147/D147,"") -> -0.9221763681 | G147: =+INDEX(H147:AL147,1,$D$1) -> 0 | K147: 127 | L147: 91 | M147: 82 | N147: 1791 | O147: 382 | P147: 1033 | Q147: 228 | R147: 111 | S147: 5646 | T147: 3106
B148: TOTAL | C148: =C147 -> 12597
A149: THIÊN AN
A150: 10 | B150: GAME_PORTAL 834 | C150: =SUM(H150:INDEX(H150:AL150,1,$D$1)) -> 60 | D150: 307086 | E150: =+C150-D150 -> -307026 | F150: =+IFERROR(+E150/D150,"") -> -0.999804615 | G150: =+INDEX(H150:AL150,1,$D$1) -> 0 | H150: 5 | I150: 7 | L150: 0 | M150: 7 | N150: 0 | O150: 0 | P150: 13 | Q150: 14 | R150: 6 | S150: 6 | T150: 2
B151: TOTAL | C151: =C150 -> 60
A152: GLOBAL SOLUTION (GTS)
A153: 11 | B153: MILLIONAIRE | C153: =SUM(H153:INDEX(H153:AL153,1,$D$1)) -> 541 | E153: =+C153-D153 ->  | F153: =+IFERROR(+E153/D153,"") ->  | H153: 62 | I153: 71 | J153: 54 | K153: 51 | L153: 37 | M153: 45 | N153: 40 | O153: 51 | P153: 46 | Q153: 33 | R153: 21 | S153: 30
A154: 12 | B154: NEW_VOTING | C154: =SUM(H154:INDEX(H154:AL154,1,$D$1)) -> 2273 | E154: =+C154-D154 ->  | F154: =+IFERROR(+E154/D154,"") ->  | H154: 216 | I154: 366 | J154: 156 | K154: 157 | L154: 197 | M154: 257 | N154: 137 | O154: 132 | P154: 163 | Q154: 145 | R154: 97 | S154: 108 | T154: 142
A155: 13 | B155: USSD_CHATTING | C155: =SUM(H155:INDEX(H155:AL155,1,$D$1)) -> 0 | E155: =+C155-D155 ->  | F155: =+IFERROR(+E155/D155,"") -> 
A156: 14 | B156: BACKGROUND_MUSIC | C156: =SUM(H156:INDEX(H156:AL156,1,$D$1)) -> 476 | E156: =+C156-D156 ->  | F156: =+IFERROR(+E156/D156,"") ->  | H156: 52 | I156: 42 | J156: 45 | K156: 36 | L156: 45 | M156: 51 | N156: 51 | O156: 46 | P156: 44 | Q156: 34 | R156: 17 | S156: 13
A157: 15 | B157: LUCKY_ROULETTE | C157: =SUM(H157:INDEX(H157:AL157,1,$D$1)) -> 1730 | F157: =+IFERROR(+E157/D157,"") ->  | H157: 96 | I157: 75 | J157: 83 | K157: 161 | L157: 159 | M157: 120 | N157: 164 | O157: 82 | P157: 82 | Q157: 499 | R157: 99 | S157: 110
B158: TOTAL | C158: =SUM(C153:C157) -> 5020
A159: TELETECH
A160: 16 | B160: DATA CREDIT | C160: =SUM(H160:INDEX(H160:AL160,1,$D$1)) -> 0 | E160: =+C160-D160 ->  | H160: 0 | J160: 0 | K160: 0 | L160: 0 | N160: 0 | O160: 0 | P160: 0 | Q160: 0 | R160: 0 | S160: 0
B161: TOTAL | C161: =C160 -> 0
A162: SMART SOLUTION
A163: 17 | B163: E-News 368 | C163: =SUM(H163:INDEX(H163:AL163,1,$D$1)) -> 12695 | F163: =+IFERROR(+E163/D163,"") ->  | H163: 414 | I163: 265 | J163: 277 | K163: 275 | L163: 285 | M163: 464 | N163: 298 | O163: 188 | P163: 87 | Q163: 67 | R163: 10043 | S163: 32
A164: 18 | B164: N-EVENT 3333 | C164: =SUM(H164:INDEX(H164:AL164,1,$D$1)) -> 0 | R164: 0 | S164: 0
B165: TOTAL | C165: =SUM(C163:C164) -> 12695
A166: VIETTECH
A167: TELEMOR
A168: 19 | B168: HOROSCOPE 184 | C168: =SUM(H168:INDEX(H168:AL168,1,$D$1)) -> 10573 | K168: 127 | L168: 91 | M168: 82 | N168: 1791 | O168: 382 | P168: 1033 | Q168: 228 | R168: 111 | S168: 5646 | T168: 1082
B169: TOTAL | C169: =C168 -> 10573
A170: INTERLAND
A171: VIETNAMOBILE
A172: 20 | B172: LUCKY_NUMBER | C172: =SUM(H172:INDEX(H172:AL172,1,$D$1)) -> 1 | M172: 1 | N172: 0 | O172: 0 | P172: 0 | Q172: 0 | R172: 0 | S172: 0 | T172: 0
A173: 21 | B173: FOOTBALL_PLUS | C173: =SUM(H173:INDEX(H173:AL173,1,$D$1)) -> 0 | H173: 0 | I173: 0 | J173: 0 | K173: 0 | L173: 0 | M173: 0 | N173: 0 | O173: 0 | P173: 0 | Q173: 0 | R173: 0 | S173: 0 | T173: 0
B174: TOTAL | C174: =SUM(C172:C173) -> 1
A175: INTERLAND
A176: 22 | B176: VIETCARE | C176: =SUM(H176:INDEX(H176:AL176,1,$D$1)) -> 39 | H176: 3 | I176: 3 | J176: 3 | K176: 3 | L176: 3 | M176: 3 | N176: 3 | O176: 3 | P176: 3 | Q176: 3 | R176: 3 | S176: 3 | T176: 3
A177: 23 | B177: CHIÊM TINH | C177: =SUM(H177:INDEX(H177:AL177,1,$D$1)) -> 0
B178: TOTAL | C178: =SUM(C176:C177) -> 39
A179: VIETTECH
B182: CANCEL | C182: DATE | D182: 11 | E182: Month | F182: March
D183: COMPARE LAST MONTH
A184: NO | B184: VAS CODE | C184: ="Acc "&$D$1& " / "&$F$1 -> Acc 31 / March | D184: Acc last month | E184: +/- | F184: % | G184: =D182 -> 11 | H184: 1 | I184: 2 | J184: 3 | K184: 4 | L184: 5 | M184: 6 | N184: 7 | O184: 8 | P184: 9 | Q184: 10 | R184: 11 | S184: 12 | T184: 13 | U184: 14 | V184: 15 | W184: 16 | X184: 17 | Y184: 18 | Z184: 19 | AA184: 20 | AB184: 21 | AC184: 22 | AD184: 23 | AE184: 24 | AF184: 25 | AG184: 26 | AH184: 27 | AI184: 28 | AJ184: 29 | AK184: 30 | AL184: 31
A185: NATCOM
A186: 1 | B186: SMS INFO | C186: =+SUM(C$6:C$7) -> 1097202 | D186: 325853 | E186: =+C186-D186 -> 771349 | F186: =+IFERROR(+E186/D186,"") -> 2.367168631 | G186: =+INDEX(H186:AL186,1,$D$1) -> 0 | H186: =H187+H188 -> 145 | I186: =I187+I188 -> 146 | J186: 133 | K186: 133 | L186: 145 | M186: 197 | N186: 238 | O186: 285 | P186: 282 | Q186: 329 | R186: 207 | S186: 235 | T186: 235 | U186: 0 | V186: 0 | W186: 0 | X186: 0 | Y186: 0 | Z186: 0 | AA186: 0 | AB186: 0 | AC186: 0 | AD186: 0 | AE186: 0 | AF186: 0 | AG186: 0 | AH186: 0 | AI186: 0 | AJ186: 0 | AK186: 0 | AL186: 0
B187: BON_INFO 206 | C187: =SUM(H187:INDEX(H187:AL187,1,$D$1)) -> 2582 | D187: 193882 | E187: =+C187-D187 -> -191300 | F187: -0.9866826214 | G187: 0 | H187: 138 | I187: 138 | J187: 126 | K187: 125 | L187: 139 | M187: 182 | N187: 223 | O187: 275 | P187: 274 | Q187: 319 | R187: 194 | S187: 223 | T187: 226
B188: IVR_INFO 206 | C188: =SUM(H188:INDEX(H188:AL188,1,$D$1)) -> 128 | D188: 131971 | E188: -131843 | F188: -0.9990300899 | G188: 0 | H188: 7 | I188: 8 | J188: 7 | K188: 8 | L188: 6 | M188: 15 | N188: 15 | O188: 10 | P188: 8 | Q188: 10 | R188: 13 | S188: 12 | T188: 9
A189: 2 | B189: LUCKY_SPIN 7878 NET | C189: =SUM(H189:INDEX(H189:AL189,1,$D$1)) -> 5405 | D189: 290490 | E189: -285085 | F189: -0.9813935075 | G189: 0 | H189: =+H190 -> 513 | I189: =+I190 -> 511 | J189: 660 | K189: 674 | L189: 524 | M189: 549 | N189: 493 | O189: 465 | P189: 331 | Q189: 339 | R189: 192 | S189: 154 | T189: 0 | U189: 0 | V189: 0 | W189: 0 | X189: 0 | Y189: 0 | Z189: 0 | AA189: 0 | AB189: 0 | AC189: 0 | AD189: 0 | AE189: 0 | AF189: 0 | AG189: 0 | AH189: 0 | AI189: 0 | AJ189: 0 | AK189: 0 | AL189: 0
B190: LUCKY_SPIN 7878 | C190: =SUM(H190:INDEX(H190:AL190,1,$D$1)) -> 5405 | D190: 317490 | E190: -312085 | F190: -0.9829758418 | G190: 0 | H190: 513 | I190: 511 | J190: 660 | K190: 674 | L190: 524 | M190: 549 | N190: 493 | O190: 465 | P190: 331 | Q190: 339 | R190: 192 | S190: 154
A191: 3 | B191: LUCKY_DRAW 556 NET | C191: =SUM(H191:INDEX(H191:AL191,1,$D$1)) -> 6048 | D191: 259787 | E191: -253739 | F191: -0.9767193893 | G191: 0 | H191: =+H192 -> 563 | I191: =+I192 -> 544 | J191: 584 | K191: 574 | L191: 623 | M191: 586 | N191: 541 | O191: 540 | P191: 494 | Q191: 351 | R191: 323 | S191: 325 | T191: 0 | U191: 0 | V191: 0 | W191: 0 | X191: 0 | Y191: 0 | Z191: 0 | AA191: 0 | AB191: 0 | AC191: 0 | AD191: 0 | AE191: 0 | AF191: 0 | AG191: 0 | AH191: 0 | AI191: 0 | AJ191: 0 | AK191: 0 | AL191: 0
B192: LUCKY_DRAW 556 | C192: =SUM(H192:INDEX(H192:AL192,1,$D$1)) -> 6048 | D192: 134759 | E192: -128711 | F192: -0.9551198807 | G192: 0 | H192: 563 | I192: 544 | J192: 584 | K192: 574 | L192: 623 | M192: 586 | N192: 541 | O192: 540 | P192: 494 | Q192: 351 | R192: 323 | S192: 325
A193: 4 | B193: LUCKY_WORD 8484 NET | C193: =SUM(H193:INDEX(H193:AL193,1,$D$1)) -> 5242 | D193: 251726 | E193: -246484 | F193: -0.9791757705 | G193: 0 | H193: =H194 -> 543 | I193: =I194 -> 447 | J193: 436 | K193: 428 | L193: 399 | M193: 523 | N193: 423 | O193: 424 | P193: 364 | Q193: 354 | R193: 282 | S193: 317 | T193: 302 | U193: 0 | V193: 0 | W193: 0 | X193: 0 | Y193: 0 | Z193: 0 | AA193: 0 | AB193: 0 | AC193: 0 | AD193: 0 | AE193: 0 | AF193: 0 | AG193: 0 | AH193: 0 | AI193: 0 | AJ193: 0 | AK193: 0 | AL193: 0
B194: LUCKY_WORD 8484 | C194: =SUM(H194:INDEX(H194:AL194,1,$D$1)) -> 5242 | D194: 305951 | E194: -300709 | F194: -0.9828665375 | G194: 0 | H194: 543 | I194: 447 | J194: 436 | K194: 428 | L194: 399 | M194: 523 | N194: 423 | O194: 424 | P194: 364 | Q194: 354 | R194: 282 | S194: 317 | T194: 302
A195: 5 | B195: LUCKY_CARD 8889 NET | C195: =SUM(H195:INDEX(H195:AL195,1,$D$1)) -> 4935 | D195: 145821 | E195: -140886 | F195: -0.9661571379 | G195: 0 | H195: =H196 -> 387 | I195: =I196 -> 386 | J195: 1527 | K195: 408 | L195: 389 | M195: 260 | N195: 241 | O195: 242 | P195: 245 | Q195: 224 | R195: 207 | S195: 208 | T195: 211 | U195: 0 | V195: 0 | W195: 0 | X195: 0 | Y195: 0 | Z195: 0 | AA195: 0 | AB195: 0 | AC195: 0 | AD195: 0 | AE195: 0 | AF195: 0 | AG195: 0 | AH195: 0 | AI195: 0 | AJ195: 0 | AK195: 0 | AL195: 0
B196: LUCKY_CARD 8889 | C196: =SUM(H196:INDEX(H196:AL196,1,$D$1)) -> 4935 | D196: 187629 | E196: -182694 | F196: -0.9736980957 | G196: 0 | H196: 387 | I196: 386 | J196: 1527 | K196: 408 | L196: 389 | M196: 260 | N196: 241 | O196: 242 | P196: 245 | Q196: 224 | R196: 207 | S196: 208 | T196: 211
A197: 6 | B197: IVR_RADIO | C197: =SUM(H197:INDEX(H197:AL197,1,$D$1)) -> 1419 | H197: 209 | K197: 172 | L197: 162 | M197: 165 | P197: 189 | Q197: 228 | R197: 151 | S197: 143
A198: 7 | B198: CALL_PRO | C198: =SUM(H198:INDEX(H198:AL198,1,$D$1)) -> 6196 | I198: 836 | J198: 602 | K198: 672 | L198: 612 | M198: 604 | N198: 561 | O198: 642 | P198: 594 | Q198: 515 | R198: 257 | S198: 301
A199: 8 | B199: IVR_DATING 933 | C199: =SUM(H199:INDEX(H199:AL199,1,$D$1)) -> 2808 | D199: 289776 | E199: -286968 | F199: -0.9903097565 | G199: 0 | H199: 238 | I199: 227 | J199: 222 | K199: 253 | L199: 271 | M199: 215 | N199: 248 | Q199: 326 | R199: 210 | S199: 280 | T199: 318
B200: TOTAL | C200: =SUM(C186,C189,C191,C193,C195,C197,C198,C199) -> 1129255
A201: INTERLAND
A202: 9 | B202: HOROSCOPE 566 | C202: =SUM(H202:INDEX(H202:AL202,1,$D$1)) -> 25568 | D202: 161866 | E202: =+C202-D202 -> -136298 | F202: =+IFERROR(+E202/D202,"") -> -0.842042183 | G202: =+INDEX(H202:AL202,1,$D$1) -> 0 | H202: 2237 | I202: 2183 | J202: 2129 | K202: 2145 | L202: 2229 | M202: 2069 | N202: 2085 | O202: 2162 | P202: 2266 | Q202: 2092 | R202: 1129 | S202: 1342 | T202: 1500
B203: TOTAL | C203: =C202 -> 25568
A204: THIÊN AN
A205: 10 | B205: GAME_PORTAL 834 | C205: =SUM(H205:INDEX(H205:AL205,1,$D$1)) -> 1354 | D205: 307086 | E205: =+C205-D205 -> -305732 | F205: =+IFERROR(+E205/D205,"") -> -0.9955908117 | G205: =+INDEX(H205:AL205,1,$D$1) -> 0 | H205: 208 | I205: 206 | L205: 18 | M205: 178 | N205: 20 | O205: 32 | P205: 197 | Q205: 208 | R205: 146 | S205: 141
B206: TOTAL | C206: =C205 -> 1354
A207: GLOBAL SOLUTION (GTS)
A208: 11 | B208: MILLIONAIRE | C208: =SUM(H208:INDEX(H208:AL208,1,$D$1)) -> 7637 | E208: =+C208-D208 ->  | F208: =+IFERROR(+E208/D208,"") ->  | H208: 1041 | I208: 909 | J208: 816 | K208: 719 | L208: 637 | M208: 621 | N208: 557 | O208: 581 | P208: 579 | Q208: 526 | R208: 357 | S208: 294
A209: 12 | B209: NEW_VOTING | C209: =SUM(H209:INDEX(H209:AL209,1,$D$1)) -> 2121 | E209: =+C209-D209 ->  | F209: =+IFERROR(+E209/D209,"") ->  | H209: 203 | I209: 171 | J209: 163 | K209: 165 | L209: 175 | M209: 181 | N209: 160 | O209: 149 | P209: 189 | Q209: 177 | R209: 126 | S209: 102 | T209: 160
... 45 more rows

Sheet 04.2019 (hidden)
B1: REVENUE | C1: DATE | D1: ='05.2019'!D1 -> 31 | E1: Month | F1: March
D2: COMPARE LAST MONTH
A3: NO | B3: VAS CODE | C3: ="Acc "&$D$1& " / "&$F$1 -> Acc 31 / March | D3: Acc last month | E3: +/- | F3: % | G3: =D1 -> 31 | H3: 1 | I3: 2 | J3: 3 | K3: 4 | L3: 5 | M3: 6 | N3: 7 | O3: 8 | P3: 9 | Q3: 10 | R3: 11 | S3: 12 | T3: 13 | U3: 14 | V3: 15 | W3: 16 | X3: 17 | Y3: 18 | Z3: 19 | AA3: 20 | AB3: 21 | AC3: 22 | AD3: 23 | AE3: 24 | AF3: 25 | AG3: 26 | AH3: 27 | AI3: 28 | AJ3: 29 | AK3: 30
A4: NATCOM
A5: 1 | B5: SMS INFO | C5: =+SUM(C$6:C$7) ->  | D5: =FINAL!C5 -> 1097202 | E5: =+C5-D5 ->  | F5: =+IFERROR(+E5/D5,"") ->  | G5: =+INDEX(H5:AK5,1,$D$1) ->  | H5: =H6+H7 -> 36597 | I5: =I6+I7 -> 36205 | J5: 35589 | K5: 35046 | L5: 34169 | M5: 35109 | N5: 34741 | O5: 33710 | P5: 34964 | Q5: 34324 | R5: 33488 | S5: 32468 | T5: 34413 | U5: 34037 | V5: 32884 | W5: 32701 | X5: 37986 | Y5: 39451 | Z5: 39731 | AA5: 38539 | AB5: 36982 | AC5: 40803 | AD5: 0 | AE5: 46381 | AF5: 28837 | AG5: 36407 | AH5: 36498 | AI5: 35422 | AJ5: 42224 | AK5: 40622
B6: BON_INFO 206 | C6: =SUM(H6:INDEX(H6:AK6,1,$D$1)) ->  | D6: =FINAL!C6 -> 780571 | F6: =+IFERROR(+E6/D6,"") ->  | H6: 26256 | I6: 26185 | J6: 25525 | K6: 25215 | L6: 24658 | M6: 25119 | N6: 24847 | O6: 24132 | P6: 24914 | Q6: 24504 | R6: 23990 | S6: 23439 | T6: 24785 | U6: 24606 | V6: 23543 | W6: 23356 | X6: 27228 | Y6: 28777 | Z6: 29027 | AA6: 28053 | AB6: 26776 | AC6: 29412 | AE6: 33439 | AF6: 22038 | AG6: 26556 | AH6: 26547 | AI6: 25599 | AJ6: 30637 | AK6: 29363
B7: IVR_INFO 206 | C7: =SUM(H7:INDEX(H7:AK7,1,$D$1)) ->  | D7: =FINAL!C7 -> 316631 | H7: 10341 | I7: 10020 | J7: 10064 | K7: 9831 | L7: =L5-L6 -> 9511 | M7: 9990 | N7: 9894 | O7: 9578 | P7: 10050 | Q7: 9820 | R7: 9498 | S7: 9029 | T7: 9628 | U7: 9431 | V7: 9341 | W7: 9345 | X7: 10758 | Y7: 10674 | Z7: 10704 | AA7: 10486 | AB7: 10206 | AC7: 11391 | AE7: 12942 | AF7: 6799 | AG7: 9851 | AH7: 9951 | AI7: 9823 | AJ7: 11587 | AK7: 11259
A8: 2 | B8: LUCKY_SPIN 7878 NET | C8: =SUM(H8:INDEX(H8:AK8,1,$D$1)) ->  | D8: =FINAL!C8 -> 738463 | H8: =H9-H10 -> 22576 | I8: =I9-I10 -> 18631 | J8: 20877 | K8: 19083 | L8: 21412 | M8: 20843 | N8: 20598 | O8: 21456 | P8: 20592 | Q8: 20629 | R8: 20864 | S8: 20366 | T8: 20222 | U8: 19648 | V8: 20831 | W8: 20426 | X8: 20241 | Y8: 21137 | Z8: 19577 | AA8: 19526 | AB8: 18581 | AC8: 18526 | AD8: 9768 | AE8: 20409 | AF8: 19739 | AG8: 11983 | AH8: 20333 | AI8: 18803 | AJ8: 18792 | AK8: 20494
B9: LUCKY_SPIN 7878 | C9: =SUM(H9:INDEX(H9:AK9,1,$D$1)) ->  | D9: =FINAL!C9 -> 831486 | E9: =+C9-D9 ->  | H9: 25577 | I9: 19561 | J9: 23879 | K9: 20083 | L9: 24412 | M9: 23843 | N9: 23599 | O9: 24456 | P9: 23593 | Q9: 23629 | R9: 23864 | S9: 23366 | T9: 23222 | U9: 22648 | V9: 23831 | W9: 23427 | X9: 23241 | Y9: 24137 | Z9: 22581 | AA9: 22526 | AB9: 21581 | AC9: 21527 | AD9: 12768 | AE9: 23409 | AF9: 22743 | AG9: 14987 | AH9: 23334 | AI9: 21807 | AJ9: 21795 | AK9: 23495
B10: LUCKY_SPIN 7878 COST | C10: =SUM(H10:INDEX(H10:AK10,1,$D$1)) ->  | D10: =FINAL!C10 -> 93023 | H10: 3001 | I10: 930 | J10: 3002 | K10: 1000 | L10: 3000 | M10: 3000 | N10: 3001 | O10: 3000 | P10: 3001 | Q10: 3000 | R10: 3000 | S10: 3000 | T10: 3000 | U10: 3000 | V10: 3000 | W10: 3001 | X10: 3000 | Y10: 3000 | Z10: 3004 | AA10: 3000 | AB10: 3000 | AC10: 3001 | AD10: 3000 | AE10: 3000 | AF10: 3004 | AG10: 3004 | AH10: 3001 | AI10: 3004 | AJ10: 3003 | AK10: 3001
A11: 3 | B11: LUCKY_DRAW 556 NET | C11: =SUM(H11:INDEX(H11:AK11,1,$D$1)) ->  | D11: =FINAL!C11 -> 1503744 | E11: =+C11-D11 ->  | F11: =+IFERROR(+E11/D11,"") ->  | H11: =H12-H13 -> 58802 | I11: =I12-I13 -> 56851 | J11: 55798 | K11: 55279 | L11: 58074 | M11: 57059 | N11: 59438 | O11: 61257 | P11: 58451 | Q11: 58749 | R11: 56209 | S11: 56659 | T11: 57183 | U11: 57127 | V11: 59428 | W11: 60152 | X11: 60005 | Y11: 64751 | Z11: 59350 | AA11: 56944 | AB11: 56192 | AC11: 0 | AD11: 0 | AE11: 57317 | AF11: 61604 | AG11: 68049 | AH11: 64974 | AI11: 61853 | AJ11: 59595 | AK11: 66967
B12: LUCKY_DRAW 556 | C12: =SUM(H12:INDEX(H12:AK12,1,$D$1)) ->  | D12: =FINAL!C12 -> 1672162 | F12: =+IFERROR(+E12/D12,"") ->  | H12: 64095 | I12: 62414 | J12: 61008 | K12: 60716 | L12: 63670 | M12: 62692 | N12: 65062 | O12: 66577 | P12: 63974 | Q12: 64197 | R12: 61580 | S12: 62055 | T12: 62638 | U12: 62613 | V12: 65051 | W12: 65485 | X12: 65564 | Y12: 70601 | Z12: 64728 | AA12: 62244 | AB12: 61878 | AE12: 63006 | AF12: 63637 | AG12: 73062 | AH12: 70462 | AI12: 67203 | AJ12: 65360 | AK12: 72571
B13: LUCKY_DRAW COST | C13: =SUM(H13:INDEX(H13:AK13,1,$D$1)) ->  | D13: =FINAL!C13 -> 168418 | H13: =2716+2000+577 -> 5293 | I13: =2763+2000+800 -> 5563 | J13: =2647+2000+563 -> 5210 | K13: =2696+2000+741 -> 5437 | L13: =2797+2000+799 -> 5596 | M13: =2679+2000+954 -> 5633 | N13: =2823+2000+801 -> 5624 | O13: =2708+2000+612 -> 5320 | P13: =2778+2000+745 -> 5523 | Q13: =2738+2000+710 -> 5448 | R13: =2623+2000+748 -> 5371 | S13: =2704+2000+692 -> 5396 | T13: =2696+2000+759 -> 5455 | U13: =2677+2000+809 -> 5486 | V13: =2811+2000+812 -> 5623 | W13: =2697+2000+636 -> 5333 | X13: =2709+2000+850 -> 5559 | Y13: =2836+2000+1014 -> 5850 | Z13: =2741+2000+637 -> 5378 | AA13: =2718+2000+582 -> 5300 | AB13: =2865+2000+821 -> 5686 | AE13: =2712+2000+977 -> 5689 | AF13: =1294+739 -> 2033 | AG13: =2654+2000+359 -> 5013 | AH13: =2739+2000+749 -> 5488 | AI13: =2718+2000+632 -> 5350 | AJ13: =2792+2000+973 -> 5765 | AK13: =2787+2000+817 -> 5604
A14: 4 | B14: LUCKY_WORD 8484 NET | C14: =SUM(H14:INDEX(H14:AK14,1,$D$1)) ->  | D14: =FINAL!C14 -> 1002995 | E14: =+C14-D14 ->  | H14: =H15-H16 -> 30731 | I14: =I15-I16 -> 30540 | J14: 29698 | K14: 28945 | L14: 37094 | M14: 42095 | N14: 42729 | O14: 39841 | P14: 41957 | Q14: 40762 | R14: 39443 | S14: 37414 | T14: 39902 | U14: 40716 | V14: 37850 | W14: 38643 | X14: 39208 | Y14: 29209 | Z14: 30129 | AA14: 29140 | AB14: 28453 | AC14: 34105 | AD14: 0 | AE14: 39971 | AF14: 24104 | AG14: 30295 | AH14: 27480 | AI14: 31063 | AJ14: 37366 | AK14: 33063
B15: LUCKY_WORD 8484 | C15: =SUM(H15:INDEX(H15:AK15,1,$D$1)) ->  | D15: =FINAL!C15 -> 1034570 | H15: 31756 | I15: 31565 | J15: 30723 | K15: 29970 | L15: 38119 | M15: 43120 | N15: 43754 | O15: 40866 | P15: 42982 | Q15: 41787 | R15: 40468 | S15: 38439 | T15: 40927 | U15: 41741 | V15: 38875 | W15: 39668 | X15: 40233 | Y15: 30234 | Z15: 31154 | AA15: 30165 | AB15: 29478 | AC15: 35130 | AE15: 40996 | AF15: 25129 | AG15: 31320 | AH15: 28505 | AI15: 32088 | AJ15: 38391 | AK15: 34088
B16: LUCKY_WORD COST | C16: =SUM(H16:INDEX(H16:AK16,1,$D$1)) ->  | D16: =FINAL!C16 -> 31575 | H16: 1025 | I16: 1025 | J16: 1025 | K16: 1025 | L16: 1025 | M16: 1025 | N16: 1025 | O16: 1025 | P16: 1025 | Q16: 1025 | R16: 1025 | S16: 1025 | T16: 1025 | U16: 1025 | V16: 1025 | W16: 1025 | X16: 1025 | Y16: 1025 | Z16: 1025 | AA16: 1025 | AB16: 1025 | AC16: 1025 | AE16: 1025 | AF16: 1025 | AG16: 1025 | AH16: 1025 | AI16: 1025 | AJ16: 1025 | AK16: 1025
